{"text_format":"1","workbook":"xlsx","n_sheets":5,"sheets":["Instructions","Input","Parameters","Inflation","Publish"],"not_rendered":{"charts":0,"images":0,"macros":1,"external_links":0,"defined_names":28,"comments":0,"pivot_tables":0},"unopened":[],"bounds":{"document_bytes":16777216,"sheet_cells":100000,"rows_first":2000,"rows_last":500,"rows_between":2000,"halvings":0,"cell_chars":16384,"cell_head_chars":4096},"cells_cut":0,"cells_raw":0,"read":"whole","date_system":"1900"}

{"sheet":"Instructions","index":0,"n_rows":23,"n_cols":4,"rows_kept":23,"cut":false,"hidden":false,"merged":[]}
[]
[null,"TERM-Lite Inventory Publisher"]
[null,"for the Transit Economic Requirements Model"]
[]
[null,"Add Data"]
[null,null,"Complete all white cells. Non-white cells are protected and cannot be selected. "]
[null,null,null,"Tip: If pasting from another workbook, use the \"Paste Special as Values\" option to avoid losing the data validation features."]
[null,null,null,"Tip: If more rows are needed, type in the number of cells (1 to 1,000) and click on \"Add\""]
[]
[null,"Review Costs (Optional)"]
[null,null,"Adjust the \"Base Year\" field above the \"Cost\" columns to see how costs are normalized"]
[null,null,null,"Tip: This is for informational purposes only. You will again be asked to specify the Base Year once using the TERM model."]
[]
[null,"Removing unwanted Record/Data Rows"]
[null,null,"Before publishing, remove all unused or undesired rows"]
[null,null,null,"Tip: Click \"Delete Records with no Description\" to remove excess or unused rows. Make sure all valid records have descriptions first."]
[null,null,null,"Tip: To delete specific records or continuous ranges of records, select the rows in any editable column and click \"Delete Selected Records\""]
[]
[null,"Publish"]
[null,null,"Method #1: Click the \"Publish Inventory\" button in the top left corner of the screen"]
[null,null,null,"Tip: This will result in the data being copied to your clipboard, ready to paste into the TERM input form."]
[null,null,"Method #2: Click the \"Publish Inventory\" button. Save the Publisher file to a location of your choice. Use the 'Import' feature in TERM-Lite"]
[null,null,null,"Tip: When using the import option, TERM-Lite will prompt you to browse to the file you saved"]

{"sheet":"Input","index":1,"n_rows":431,"n_cols":54,"rows_kept":431,"cut":false,"hidden":false,"merged":[[2,9,2,10]]}
[]
[null,null,"TERM-Lite Inventory Publisher",null,null,null,null,null,null,{"$f":"\"Currently, there are \"&TEXT(ROWS(rows.input),\"#,##0\")&\" record\"&IF(ROWS(rows.input)=1,\"\",\"s\")","v":"Currently, there are 422 records"}]
[null,null,"for the Transit Economic Requirements Model",null,null,null,null,null,null,1,null,null,null,null,null,"«",null,null,null,null,null,"Base Year"]
[null,null,null,null,null,null,null,null,null,null,null,null,null,"«",null,"Replacement Cost (original)",null,null,null,null,"«",2015,null,null,null,null,"Delayed"]
[null,null,null,"« (mandatory)",null,"«",null,"«",null,"«",null,null,"Expan-","Year",null,"Unit","Acquisition","Repl.","Soft",null,"Cost","Repl.",null,"Useful",null,"«","Replacement",null,null,null,"Additional Asset Information",null,null,null,null,null,null,null,null,null,null,null,null,null,null,null,null,null,null,null,null,null,"Data Information"]
[null,null,"Record","Mode",null,"Description",null,"Asset Classification",null,"Quantity","Unit",null,"sion?","Built",null,"Cost ($)","Cost ($)","Cost ($)","Cost",null,"Year","Cost ($)",null,"Life",null,"Priority","Age",null,"Additional Notes",null,"Department/Owner","Project #","Project Cat.","Project Description","Asset Type","Make/Model","Asset ID","Parent ID","Area","Sub-Area","Line/Route","Start","End","Latitude","Longitude","Address","Agency Cond. Rating","User Defined 1","User Defined 2","User Defined 3","User Defined 4",null,"Year","Source"]
[null,{"$f":"SUM(rows.input B:B)","v":0},null,"Range copied when records are added"]
[null,{"$f":"1-NOT(ISBLANK(D8))*NOT(ISBLANK(F8))*NOT(ISBLANK(H8))*NOT(ISBLANK(J8))*NOT(ISBLANK(N8))*NOT(ISBLANK(U8))*NOT(ISBLANK(M8))*NOT(AND(ISBLANK(P8),ISBLANK(Q8)))*NOT(ISBLANK(Z8))","v":1},{"$f":"OFFSET(C8,-1,0)+1","v":1},null,null,null," ",null," ",null,null," ","No",null,null,null,null,{"$f":"IF(P8=\"\",Q8,J8*P8)","v":0},null,null,null,{"$f":"IFERROR(R8*INDEX(rng.CostIndexMeans,MATCH(rng.ConstantYear,rng.CostIndexYear,0))/INDEX(rng.CostIndexMeans,MATCH(U8,rng.CostIndexYear,0))*(1+S8),\"\")","v":""},null,null,{"$f":"IFERROR(TEXT(INDEX(rng.ClassEDL,MATCH(H8,rng.ClassChoice,0)),\"0\")&\" Yrs    \",\"\")","v":""},"Normal",null,null,null," ",null,null,null,null,null,null,null,null,null,null,null,null,null,null,null,null,null,null,null,null,null," ",null,"TERM Data Publisher"]
[]
[null,{"$f":"1-NOT(ISBLANK(D10))*NOT(ISBLANK(F10))*NOT(ISBLANK(H10))*NOT(ISBLANK(J10))*NOT(ISBLANK(N10))*NOT(ISBLANK(U10))*NOT(ISBLANK(M10))*NOT(AND(ISBLANK(P10),ISBLANK(Q10)))*NOT(ISBLANK(Z10))","v":0},{"$f":"OFFSET(C10,-1,0)+1","v":1},"CR - Commuter Rail",null,"Rail Commuter Rail"," ","21221 - Facilities, Buildings, Maintenance, Rail Commuter Rail"," ",1,"Each"," ","No",1966,null,30000000,null,{"$f":"IF(P10=\"\",Q10,J10*P10)","v":30000000},0.1,null,2001,{"$f":"IFERROR(R10*INDEX(rng.CostIndexMeans,MATCH(rng.ConstantYear,rng.CostIndexYear,0))/INDEX(rng.CostIndexMeans,MATCH(U10,rng.CostIndexYear,0))*(1+S10),\"\")","v":43187573.96449703},null,60,{"$f":"IFERROR(TEXT(INDEX(rng.ClassEDL,MATCH(H10,rng.ClassChoice,0)),\"0\")&\" Yrs    \",\"\")","v":"80 Yrs    "},"Normal",null,null,null," ",null,"MJW-GW-BT-TT-3.5-K",null,null,null,null,"30-675-865",null,"Systemwide","","",null,null,null,null,null,null,null,null,null,null," "]
[null,0,2,"CR - Commuter Rail",null,"Rail Commuter Rail"," ","21221 - Facilities, Buildings, Maintenance, Rail Commuter Rail"," ",1,"Each"," ","No",1966,null,30000000,null,30000000,0.1,null,2001,43187573.96449703,null,60,"80 Yrs    ","Normal",null,null,null," ",null,"MJW-GW-BT-TT-3.5-K",null,null,null,null,"30-675-865",null,"Systemwide","","",null,null,null,null,null,null,null,null,null,null," "]
[null,0,3,"CR - Commuter Rail",null,"Rail Commuter Rail"," ","23311 - Facilities, Equipment, Maintenance, Rail Commuter Rail"," ",1,"Each"," ","No",2011,null,6254086.7659999998,null,6254086.7659999998,0.1,null,2000,9206085.8954932671,null,15,"15 Yrs    ","Normal",null,null,null," ",null,"WVE-ES-OCS0195-FD-JA-2.2-Y",null,null,null,null,"06-599-166",null,"South","","",null,null,null,null,null,null,null,null,null,null," "]
[null,0,4,"CR - Commuter Rail",null,"Rail Commuter Rail"," ","23311 - Facilities, Equipment, Maintenance, Rail Commuter Rail"," ",5,"Each"," ","No",1966,null,1006537.4689,null,5032687.3444999997,0.1,null,1955,39036091.716476873,null,15,"15 Yrs    ","Normal",null,null,null," ",null,"CRS1-GW-BT-TT-10.1-K",null,null,null,null,"27-650-648",null,"North","","",null,null,null,null,null,null,null,null,null,null," "]
[null,0,5,"CR - Commuter Rail",null,"Grade Crossing Commuter Rail"," ","10211 - Guideway Elements, Guideway, At Grade-In-Street, Grade Crossing Commuter Rail"," ",41,"Ea"," ","No",2023,null,353722.0404,null,14502603.656400001,0,null,2013,14892059.569132145,null,18,"20 Yrs    ","Normal",null,null,null," ",null,"WVE-ES-OCS0195-FD-JA-2.2-Y",null,null,null,null,"48-450-217",null,"North Line","North","",null,null,null,null,null,null,null,null,null,null," "]
[null,0,6,"CR - Commuter Rail",null,"Grade Crossing Commuter Rail"," ","10211 - Guideway Elements, Guideway, At Grade-In-Street, Grade Crossing Commuter Rail"," ",1750,"LF"," ","No",2019,null,187.8432,null,328725.59999999998,0,null,2013,337553.26512962824,null,18,"20 Yrs    ","Normal",null,null,null," ",null,"WVE-ES-OCS0195-FD-JA-2.2-Y",null,null,null,null,"93-280-382",null,"South Line","North","",null,null,null,null,null,null,null,null,null,null," "]
[null,0,7,"CR - Commuter Rail",null,"Grade Crossing Commuter Rail"," ","10211 - Guideway Elements, Guideway, At Grade-In-Street, Grade Crossing Commuter Rail"," ",4,"Ea"," ","No",2019,null,188.53380000000001,null,754.13520000000005,0,null,2013,774.38690235620618,null,18,"20 Yrs    ","Normal",null,null,null," ",null,"CRN1-GW-BT-TT-32.7-K",null,null,null,null,"90-187-567",null,"North Line","Central","",null,null,null,null,null,null,null,null,null,null," "]
[null,0,8,"CR - Commuter Rail",null,"Grade Crossing Commuter Rail"," ","10211 - Guideway Elements, Guideway, At Grade-In-Street, Grade Crossing Commuter Rail"," ",1,"LF"," ","No",2022,null,493088.52429999999,null,493088.52429999999,0,null,2013,506330.02533242025,null,18,"20 Yrs    ","Normal",null,null,null," ",null,"CRS2-GW-BT-TT-30.1-K",null,null,null,null,"50-638-241",null,"North Line","","",null,null,null,null,null,null,null,null,null,null," "]
[null,0,9,"CR - Commuter Rail",null,"Grade Crossing Commuter Rail"," ","10211 - Guideway Elements, Guideway, At Grade-In-Street, Grade Crossing Commuter Rail"," ",72,"LF"," ","No",2010,null,187.9967,null,13535.7624,0,null,2013,13899.254558023023,null,18,"20 Yrs    ","Normal",null,null,null," ",null,"CRN1-GW-BT-TT-32.7-K",null,null,null,null,"02-717-323",null,"South Line","","",null,null,null,null,null,null,null,null,null,null," "]
[null,0,10,"CR - Commuter Rail",null,"Bridge Commuter Rail"," ","10331 - Guideway Elements, Guideway, Elevated Structure, Bridge Commuter Rail"," ",500,"LF"," ","No",2019,null,34992.4084,null,17496204.199999999,0,null,2013,17966050.879775461,null,null,"100 Yrs    ","Normal",null,null,null," ",null,"CRN1-GW-BT-TT-19.1-K",null,null,null,null,"15-381-940",null,"South Line","Central","",null,null,null,null,null,null,null,null,null,null," "]
[null,0,11,"CR - Commuter Rail",null,"Bridge Commuter Rail"," ","10331 - Guideway Elements, Guideway, Elevated Structure, Bridge Commuter Rail"," ",700,"LF"," ","No",2019,null,34992.4084,null,24494685.879999999,0,null,2013,25152471.231685638,null,null,"100 Yrs    ","Normal",null,null,null," ",null,"CRS2-GW-BT-TT-0.1-K",null,null,null,null,"15-381-940",null,"North Line","South","",null,null,null,null,null,null,null,null,null,null," "]
[null,0,12,"CR - Commuter Rail",null,"Bridge Commuter Rail"," ","10331 - Guideway Elements, Guideway, Elevated Structure, Bridge Commuter Rail"," ",850,"LF"," ","No",2019,null,34992.4084,null,29743547.140000001,0,null,2013,30542286.49561828,null,null,"100 Yrs    ","Normal",null,null,null," ",null,"WVE-ES-OCS0195-FD-JA-2.2-Y",null,null,null,null,"15-381-940",null,"South Line","South","",null,null,null,null,null,null,null,null,null,null," "]
[null,0,13,"CR - Commuter Rail",null,"Fencing"," ","12100 - Guideway Elements, Special Structures, Fencing"," ",132165,"LF"," ","No",2019,null,109.73099999999999,null,14502597.614999998,0,null,2013,14892053.36549514,null,25,"25 Yrs    ","Normal",null,null,null," ",null,"CRN2-GW-BT-TT-1.6-K",null,null,null,null,"33-329-903",null,"North Line","North","",null,null,null,null,null,null,null,null,null,null," "]
[null,0,14,"CR - Commuter Rail",null,"Retaining Walls"," ","12200 - Guideway Elements, Special Structures, Retaining Walls"," ",4799.22,"LF"," ","No",2019,null,34.247799999999998,null,164362.726716,0,null,2013,168776.55731283047,null,null,"40 Yrs    ","Normal",null,null,null," ",null,"MJW-GW-BT-TT-6.2-K",null,null,null,null,"80-967-750",null,"South Line","North","",null,null,null,null,null,null,null,null,null,null," "]
[null,0,15,"CR - Commuter Rail",null,"Curve"," ","11202 - Guideway Elements, Trackwork, Ballasted, Curve"," ",67930.2,"LF"," ","No",2023,null,469.68400000000003,null,31905728.0568,0,null,2013,32762531.065152306,null,20,"36 Yrs    ","Normal",null,null,null," ",null,"CRN1-GW-BT-CT-2.8-K",null,null,null,null,"88-518-568",null,"North Line","Central","A-00978",null,null,null,null,null,null,null,null,null,null," "]
[null,0,16,"CR - Commuter Rail",null,"Curve"," ","11202 - Guideway Elements, Trackwork, Ballasted, Curve"," ",90490.43,"LF"," ","No",2019,null,309.84899999999999,null,28038369.245069996,0,null,2013,28791317.401454367,null,20,"36 Yrs    ","Normal",null,null,null," ",null,"WVE-ES-OCS0195-FD-JA-2.2-Y",null,null,null,null,"74-059-854",null,"South Line","Central","C-09874",null,null,null,null,null,null,null,null,null,null," "]
[null,0,17,"CR - Commuter Rail",null,"Curve"," ","11202 - Guideway Elements, Trackwork, Ballasted, Curve"," ",128.08000000000001,"LF"," ","No",1911,null,468.02069999999998,null,59944.091256,0,null,2013,61553.842258379627,null,20,"36 Yrs    ","Normal",null,null,null," ",null,"CRS1-GW-BT-CT-10.1-K",null,null,null,null,"25-681-400",null,"North Line","South","C-05198",null,null,null,null,null,null,null,null,null,null," "]
[null,0,18,"CR - Commuter Rail",null,"Curve"," ","11202 - Guideway Elements, Trackwork, Ballasted, Curve"," ",1,"Ea"," ","No",2019,null,45441.491499999996,null,45441.491499999996,0,null,2013,46661.786694389637,null,20,"36 Yrs    ","Normal",null,null,null," ",null,"CRS2-GW-BT-CT-44.0-K",null,null,null,null,"84-389-334",null,"South Line","South","B-02890",null,null,null,null,null,null,null,null,null,null," "]
[null,0,19,"CR - Commuter Rail",null,"Platform Curved"," ","11205 - Guideway Elements, Trackwork, Ballasted, Platform Curved"," ",1695.45,"LF"," ","No",2019,null,467.60980000000001,null,792809.03541000001,0,null,2013,814099.29292673455,null,null,"36 Yrs    ","Normal",null,null,null," ",null,"CRS1-GW-BT-CT-22.4-K",null,null,null,null,"31-801-257",null,"North Line","North","C-00585",null,null,null,null,null,null,null,null,null,null," "]
[null,0,20,"CR - Commuter Rail",null,"Platform Tangent"," ","11204 - Guideway Elements, Trackwork, Ballasted, Platform Tangent"," ",5395.99,"LF"," ","No",2019,null,232.9308,null,1256892.267492,0,null,2013,1290645.1119356288,null,10,"44 Yrs    ","Normal",null,null,null," ",null,"WVE-GW-BT-CT-4.6-K",null,null,null,null,"09-031-138",null,"South Line","North","C-08771",null,null,null,null,null,null,null,null,null,null," "]
[null,0,21,"CR - Commuter Rail",null,"Tangent"," ","11201 - Guideway Elements, Trackwork, Ballasted, Tangent"," ",162262.20000000001,"LF"," ","No",2019,null,190.6722,null,30938890.650840003,0,null,2013,31769730.007883694,null,40,"44 Yrs    ","Normal",null,null,null," ",null,"WVW-GW-BT-CT-3.1-K",null,null,null,null,"41-115-876",null,"North Line","Central","B-01758",null,null,null,null,null,null,null,null,null,null," "]
[null,0,22,"CR - Commuter Rail",null,"Tangent"," ","11201 - Guideway Elements, Trackwork, Ballasted, Tangent"," ",202413.6,"LF"," ","No",2023,null,119.4139,null,24170997.389040001,0,null,2013,24820090.343162116,null,40,"44 Yrs    ","Normal",null,null,null," ",null,"CRS2-GW-BT-CT-30.4-K",null,null,null,null,"02-626-862",null,"South Line","Central","B-00170",null,null,null,null,null,null,null,null,null,null," "]
[null,0,23,"CR - Commuter Rail",null,"Tangent"," ","11201 - Guideway Elements, Trackwork, Ballasted, Tangent"," ",6,"Ea"," ","No",2019,null,49953.412600000003,null,299720.47560000001,0,null,2013,307769.23113072145,null,40,"44 Yrs    ","Normal",null,null,null," ",null,"WVE-ES-OCS0195-FD-JA-2.2-Y",null,null,null,null,"79-670-024",null,"North Line","South","B-03928",null,null,null,null,null,null,null,null,null,null," "]
[null,0,24,"CR - Commuter Rail",null,"At-Grade Crossings"," ","11303 - Guideway Elements, Trackwork, Embedded, At-Grade Crossings"," ",2343.39,"LF"," ","No",2019,null,292.93310000000002,null,686456.49720900005,0,null,2013,704890.74170781195,null,20,"12 Yrs    ","Normal",null,null,null," ",null,"WVE-ES-OCS0195-FD-JA-2.2-Y",null,null,null,null,"64-948-292",null,"South Line","South","C-01411",null,null,null,null,null,null,null,null,null,null," "]
[null,0,25,"CR - Commuter Rail",null,"Special"," ","11400 - Guideway Elements, Trackwork, Special"," ",2903,"LF"," ","No",2019,null,466.2681,null,1353576.2943,0,null,2013,1389925.5115604857,null,20,"29 Yrs    ","Normal",null,null,null," ",null,"CRS1-GW-BT-CT-29.6-K",null,null,null,null,"66-297-441",null,"North Line","North","A-00216",null,null,null,null,null,null,null,null,null,null," "]
[null,0,26,"CR - Commuter Rail",null,"Special"," ","11400 - Guideway Elements, Trackwork, Special"," ",34,"Ea"," ","No",2019,null,12796.415000000001,null,435078.11000000004,0,null,2013,446761.78739023546,null,20,"29 Yrs    ","Normal",null,null,null," ",null,"CRN1-GW-BT-CT-35.7-K",null,null,null,null,"45-849-739",null,"South Line","North","B-04731",null,null,null,null,null,null,null,null,null,null," "]
[null,0,27,"CR - Commuter Rail",null,"Special"," ","11400 - Guideway Elements, Trackwork, Special"," ",1,"Ea"," ","No",1911,null,116.02079999999999,null,116.02079999999999,0,null,2013,119.13644651633938,null,20,"29 Yrs    ","Normal",null,null,null," ",null,"WVE-ES-OCS0195-FD-JA-2.2-Y",null,null,null,null,"26-134-619",null,"North Line","Central","B-00386",null,null,null,null,null,null,null,null,null,null," "]
[null,0,28,"CR - Commuter Rail",null,"Ballasted Diamond Crossover"," ","11403 - Guideway Elements, Trackwork, Special, Ballasted Diamond Crossover"," ",1,"Ea"," ","No",2019,null,25137.846300000001,null,25137.846300000001,0,null,2013,25812.903214388371,null,32,"29 Yrs    ","Normal",null,null,null," ",null,"WVE-ES-OCS0195-FD-JA-2.2-Y",null,null,null,null,"31-740-789",null,"North Line","North","B-06009",null,null,null,null,null,null,null,null,null,null," "]
[null,0,29,"CR - Commuter Rail",null,"Ballasted Single Crossover"," ","11406 - Guideway Elements, Trackwork, Special, Ballasted Single Crossover"," ",1,"Ea"," ","No",2019,null,87015.621899999998,null,87015.621899999998,0,null,2013,89352.357375361666,null,32,"29 Yrs    ","Normal",null,null,null," ",null,"WVE-ES-OCS0195-FD-JA-2.2-Y",null,null,null,null,"03-382-032",null,"South Line","North","B-00954",null,null,null,null,null,null,null,null,null,null," "]
[null,0,30,"CR - Commuter Rail",null,"Diamond Crossover"," ","11401 - Guideway Elements, Trackwork, Special, Diamond Crossover"," ",1,"Ea"," ","No",2019,null,37706.769500000002,null,37706.769500000002,0,null,2013,38719.354872925265,null,32,"29 Yrs    ","Normal",null,null,null," ",null,"APW-GW-ET-TT-1.1-K",null,null,null,null,"02-058-951",null,"North Line","Central","B-02396",null,null,null,null,null,null,null,null,null,null," "]
[null,0,31,"CR - Commuter Rail",null,"Single Crossover"," ","11404 - Guideway Elements, Trackwork, Special, Single Crossover"," ",3,"EA"," ","No",2023,null,87015.621899999998,null,261046.86569999999,0,null,2013,268057.072126085,null,32,"29 Yrs    ","Normal",null,null,null," ",null,"APE-GW-ET-TT-1.5-K",null,null,null,null,"75-048-891",null,"South Line","Central","A-02887",null,null,null,null,null,null,null,null,null,null," "]
[null,0,32,"CR - Commuter Rail",null,"Single Crossover"," ","11404 - Guideway Elements, Trackwork, Special, Single Crossover"," ",2,"Ea"," ","No",2019,null,24654.426200000002,null,49308.852400000003,0,null,2013,50633.002502436408,null,32,"29 Yrs    ","Normal",null,null,null," ",null,"UNW-GW-ET-TT-2.6-K",null,null,null,null,"67-592-461",null,"North Line","South","B-00386",null,null,null,null,null,null,null,null,null,null," "]
[null,0,33,"CR - Commuter Rail",null,"Turnout"," ","11407 - Guideway Elements, Trackwork, Special, Turnout"," ",65,"Ea"," ","No",2023,null,35698.716699999997,null,2320416.5855,0,null,2013,2382729.5315499255,null,42,"30 Yrs    ","Normal",null,null,null," ",null,"UNE-GW-ET-TT-2.6-K",null,null,null,null,"92-490-806",null,"South Line","South","B-02194",null,null,null,null,null,null,null,null,null,null," "]
[null,0,34,"CR - Commuter Rail",null,"Turnout"," ","11407 - Guideway Elements, Trackwork, Special, Turnout"," ",1,"Ea"," ","No",2019,null,25137.846300000001,null,25137.846300000001,0,null,2013,25812.903214388371,null,32,"30 Yrs    ","Normal",null,null,null," ",null,"APW-GW-BT-TT-5.4-K",null,null,null,null,"20-606-741",null,"North Line","North","B-05446",null,null,null,null,null,null,null,null,null,null," "]
[null,0,35,"CR - Commuter Rail",null,"Park & Ride"," ","41603 - Stations, Access, Parking, Park & Ride"," ",1853500,"Each"," ","No",2019,null,23.236499999999999,null,43068852.75,0.1,null,2008,52383367.475724034,null,null,"40 Yrs    ","Normal",null,null,null," ",null,"WVE-ES-OCS0195-FD-JA-2.2-Y",null,null,null,null,"07-593-302",null,"South Line","","",null,null,null,null,null,null,null,null,null,null," "]
[null,0,36,"CR - Commuter Rail",null,"Park & Ride"," ","41603 - Stations, Access, Parking, Park & Ride"," ",1853500,"Each"," ","No",2019,null,23.236499999999999,null,43068852.75,0.1,null,2008,52383367.475724034,null,null,"40 Yrs    ","Normal",null,null,null," ",null,"UNW-GW-ET-TT-2.4-K",null,null,null,null,"07-593-302",null,"North Line","","",null,null,null,null,null,null,null,null,null,null," "]
[null,0,37,"CR - Commuter Rail",null,"Roadway Access"," ","41650 - Stations, Access, Roadway Access"," ",1,"Each"," ","No",2019,null,1113850.4606000001,null,1113850.4606000001,0.1,null,2008,1354743.2602697846,null,null,"20 Yrs    ","Normal",null,null,null," ",null,"UNW-GW-ET-CT-0.9-K",null,null,null,null,"37-163-158",null,"South Line","","",null,null,null,null,null,null,null,null,null,null," "]
[null,0,38,"CR - Commuter Rail",null,"Commuter Rail"," ","41001 - Stations, Complete Station, Commuter Rail"," ",7,"Each"," ","No",2019,null,2598984.4081999999,null,18192890.8574,0.1,null,2008,22127473.25220833,null,60,"50 Yrs    ","Normal",null,null,null," ",null,"APW-GW-ET-CT-1.2-K",null,null,null,null,"90-661-470",null,"North Line","North","",null,null,null,null,null,null,null,null,null,null," "]
[null,0,39,"CR - Commuter Rail",null,"Commuter Rail"," ","41001 - Stations, Complete Station, Commuter Rail"," ",7,"Each"," ","No",2019,null,2598984.4081999999,null,18192890.8574,0.1,null,2008,22127473.25220833,null,60,"50 Yrs    ","Normal",null,null,null," ",null,"WVE-ES-OCS0195-FD-JA-2.2-Y",null,null,null,null,"90-661-470",null,"South Line","North","",null,null,null,null,null,null,null,null,null,null," "]
[null,0,40,"CR - Commuter Rail",null,"Commuter Rail"," ","41001 - Stations, Complete Station, Commuter Rail"," ",4,"Each"," ","No",2019,null,2598984.4081999999,null,10395937.6328,0.1,null,2008,12644270.429833332,null,60,"50 Yrs    ","Normal",null,null,null," ",null,"WVE-ES-OCS0195-FD-JA-2.2-Y",null,null,null,null,"90-661-470",null,"North Line","Central","",null,null,null,null,null,null,null,null,null,null," "]
[null,0,41,"CR - Commuter Rail",null,"Commuter Rail"," ","41001 - Stations, Complete Station, Commuter Rail"," ",4,"Each"," ","No",2019,null,2598984.4081999999,null,10395937.6328,0.1,null,2008,12644270.429833332,null,60,"50 Yrs    ","Normal",null,null,null," ",null,"APW-GW-BT-CT-3.5-K",null,null,null,null,"90-661-470",null,"South Line","Central","",null,null,null,null,null,null,null,null,null,null," "]
[null,0,42,"CR - Commuter Rail",null,"Commuter Rail"," ","41001 - Stations, Complete Station, Commuter Rail"," ",9,"Each"," ","No",2019,null,2598984.4081999999,null,23390859.673799999,0.1,null,2008,28449608.467124999,null,60,"50 Yrs    ","Normal",null,null,null," ",null,"WVE-ES-OCS0195-FD-JA-2.2-Y",null,null,null,null,"90-661-470",null,"North Line","South","",null,null,null,null,null,null,null,null,null,null," "]
[null,0,43,"CR - Commuter Rail",null,"Commuter Rail"," ","41001 - Stations, Complete Station, Commuter Rail"," ",9,"Each"," ","No",2019,null,2598984.4081999999,null,23390859.673799999,0.1,null,2008,28449608.467124999,null,60,"50 Yrs    ","Normal",null,null,null," ",null,"CRS1-GW-BT-GCP-0.7-K",null,null,null,null,"90-661-470",null,"South Line","South","",null,null,null,null,null,null,null,null,null,null," "]
[null,0,44,"CR - Commuter Rail",null,"Fare Control System Commuter Rail"," ","35121 - Systems, Revenue Collection, In-Station, Fare Control System Commuter Rail"," ",37,"Each"," ","No",2020,null,3943.9625999999998,null,145926.61619999999,0.1,null,2009,176397.9181572239,null,null,"20 Yrs    ","Normal",null,null,null," ",null,"WVW-GW-BT-GCP-1.6-K",null,null,null,null,"03-322-124",null,"Red Line","West","",null,null,null,null,null,null,null,null,null,null," "]
[null,0,45,"CR - Commuter Rail",null,"System Commuter Rail"," ","35111 - Systems, Revenue Collection, In-Station, System Commuter Rail"," ",17,"Each"," ","No",2019,null,56784.533300000003,null,965337.06610000005,0.1,null,2008,1174110.82586716,null,null,"15 Yrs    ","Normal",null,null,null," ",null,"MJW-GW-BT-GCP-8.0-K",null,null,null,null,"63-550-806",null,"Yellow Line","Central","",null,null,null,null,null,null,null,null,null,null," "]
[null,0,46,"CR - Commuter Rail",null,"Commuter Rail"," ","31001 - Systems, Train Control, Commuter Rail"," ",83,"Ea"," ","No",2023,null,198027.51980000001,null,16436284.1434,0,null,2013,16877667.511149134,null,null,"40 Yrs    ","Normal",null,null,null," ",null,"WVW-GW-BT-ST-HSR-1.2-K",null,null,null,null,"45-414-365",null,"North Line","North","",null,null,null,null,null,null,null,null,null,null," "]
[null,0,47,"CR - Commuter Rail",null,"Commuter Rail"," ","31001 - Systems, Train Control, Commuter Rail"," ",20,"Ea"," ","No",2019,null,117110.2267,null,2342204.534,0,null,2013,2405102.5781171881,null,null,"40 Yrs    ","Normal",null,null,null," ",null,"UNE-GW-ET-CT-PCR-0.0-K",null,null,null,null,"32-653-690",null,"South Line","North","",null,null,null,null,null,null,null,null,null,null," "]
[null,0,48,"CR - Commuter Rail",null,"Commuter Rail"," ","31001 - Systems, Train Control, Commuter Rail"," ",22,"Ea"," ","No",2019,null,117110.2267,null,2576424.9874,0,null,2013,2645612.8359289067,null,null,"40 Yrs    ","Normal",null,null,null," ",null,"MJE-GW-BT-ST-SM1A-3.5-K",null,null,null,null,"32-653-690",null,"North Line","Central","",null,null,null,null,null,null,null,null,null,null," "]
[null,0,49,"CR - Commuter Rail",null,"Commuter Rail"," ","31001 - Systems, Train Control, Commuter Rail"," ",18,"Ea"," ","No",2019,null,117110.2267,null,2107984.0806,0,null,2013,2164592.320305469,null,null,"40 Yrs    ","Normal",null,null,null," ",null,"NSE-GW-ET-ST-SM9402A-5.6-C",null,null,null,null,"32-653-690",null,"South Line","Central","",null,null,null,null,null,null,null,null,null,null," "]
[null,0,50,"CR - Commuter Rail",null,"Commuter Rail"," ","31001 - Systems, Train Control, Commuter Rail"," ",21,"Ea"," ","No",2019,null,117110.2267,null,2459314.7607,0,null,2013,2525357.7070230474,null,null,"40 Yrs    ","Normal",null,null,null," ",null,"MJE-GW-BT-ST-GR-2.4-K",null,null,null,null,"32-653-690",null,"North Line","South","",null,null,null,null,null,null,null,null,null,null," "]
[null,0,51,"CR - Commuter Rail",null,"Commuter Rail"," ","31001 - Systems, Train Control, Commuter Rail"," ",20,"Ea"," ","No",2019,null,117110.2267,null,2342204.534,0,null,2013,2405102.5781171881,null,null,"40 Yrs    ","Normal",null,null,null," ",null,"APE-GW-ET-ST-HSR-2.4-K",null,null,null,null,"32-653-690",null,"South Line","South","",null,null,null,null,null,null,null,null,null,null," "]
[null,0,52,"CR - Commuter Rail",null,"Interlockings"," ","31500 - Systems, Train Control, Interlockings"," ",120,"Ea"," ","No",2019,null,362565.09139999998,null,43507810.967999995,0,null,2013,44676178.706164204,null,null,"40 Yrs    ","Normal",null,null,null," ",null,"MJW-GW-BT-GT-1.2-K",null,null,null,null,"83-084-975",null,"North Line","North","",null,null,null,null,null,null,null,null,null,null," "]
[null,0,53,"CR - Commuter Rail",null,"Interlockings"," ","31500 - Systems, Train Control, Interlockings"," ",88,"Ea"," ","No",2023,null,362565.09139999998,null,31905728.043199997,0,null,2013,32762531.051187079,null,null,"40 Yrs    ","Normal",null,null,null," ",null,"WVE-GW-BT-ST-HSR-2.4-K",null,null,null,null,"11-417-976",null,"South Line","North","",null,null,null,null,null,null,null,null,null,null," "]
[null,0,54,"CR - Commuter Rail",null,"Commuter Rail"," ","31401 - Systems, Train Control, Roadway Crossings, Commuter Rail"," ",183,"Ea"," ","No",2023,null,153215.12059999999,null,28038367.069800001,0,null,2013,28791315.167769223,null,40,"40 Yrs    ","Normal",null,null,null," ",null,"WVE-GW-ET-ST-HSR-3.6-K",null,null,null,null,"35-484-401",null,"North Line","North","",null,null,null,null,null,null,null,null,null,null," "]
[null,0,55,"CR - Commuter Rail",null,"Commuter Rail"," ","31401 - Systems, Train Control, Roadway Crossings, Commuter Rail"," ",131,"Ea"," ","No",2019,null,103326.43829999999,null,13535763.417299999,0,null,2013,13899255.602641808,null,40,"40 Yrs    ","Normal",null,null,null," ",null,"WV-GW-BT-ST-SXO-1.2-K",null,null,null,null,"72-014-031",null,"South Line","North","",null,null,null,null,null,null,null,null,null,null," "]
[null,0,56,"CR - Commuter Rail",null,"Drainage"," ","36200 - Systems, Utilities, Drainage"," ",761,"Ea"," ","No",2019,null,43196.541799999999,null,32872568.309799999,0,null,2013,33755335.045915909,null,45,"40 Yrs    ","Normal",null,null,null," ",null,"CRS2-GW-BT-ST-TO-14.2-K",null,null,null,null,"08-967-864",null,"North Line","North","",null,null,null,null,null,null,null,null,null,null," "]
[null,0,57,"CR - Commuter Rail",null,"Drainage"," ","36200 - Systems, Utilities, Drainage"," ",56573.65,"LF"," ","No",2019,null,70.068799999999996,null,3964047.76712,0,null,2013,4070499.1242579473,null,45,"40 Yrs    ","Normal",null,null,null," ",null,"MJE-GW-BT-ST-TO-8.1-K",null,null,null,null,"53-155-713",null,"South Line","North","",null,null,null,null,null,null,null,null,null,null," "]
[null,0,58,"CR - Commuter Rail",null,"Passenger Car"," ","51302 - Vehicles, Revenue Vehicles, Commuter Rail, Passenger Car"," ",21,"EA"," ","No",2019,null,2369142.2496000002,null,49751987.241600007,0.1,null,2008,60511865.627167583,null,40,"40 Yrs    ","Normal",null,null,null," ",null,"CRS2-GW-BT-ST-SM-T146-38.4-K",null,null,null,null,"65-430-221",null,"North Line","","",null,null,null,null,null,null,null,null,null,null," "]
[null,0,59,"CR - Commuter Rail",null,"Passenger Car"," ","51302 - Vehicles, Revenue Vehicles, Commuter Rail, Passenger Car"," ",15,"EA"," ","No",2019,null,2178196.4564,null,32672946.846000001,0.1,null,2008,39739135.636688545,null,40,"40 Yrs    ","Normal",null,null,null," ",null,"CRS1-GW-BT-ST-SM-T330-2.8-K",null,null,null,null,"39-890-800",null,"South Line","","",null,null,null,null,null,null,null,null,null,null," "]
[null,0,60,"CR - Commuter Rail",null,"Passenger Car"," ","51302 - Vehicles, Revenue Vehicles, Commuter Rail, Passenger Car"," ",25,"EA"," ","No",2021,null,282797.90600000002,null,7069947.6500000004,0.1,null,2010,8443646.5554505102,null,40,"40 Yrs    ","Normal",null,null,null," ",null,"WVE-ES-OCS0195-FD-JA-2.2-Y",null,null,null,null,"19-165-379",null,"North Line","","",null,null,null,null,null,null,null,null,null,null," "]
[null,0,61,"CR - Commuter Rail",null,"Passenger Car"," ","51302 - Vehicles, Revenue Vehicles, Commuter Rail, Passenger Car"," ",1,"EA"," ","No",2023,null,2634380.1601,null,2634380.1601,0.1,null,2012,3026281.84392682,null,40,"40 Yrs    ","Normal",null,null,null," ",null,"CRS2-GW-BT-ST-TO-43.1-K",null,null,null,null,"45-997-334",null,"South Line","","",null,null,null,null,null,null,null,null,null,null," "]
[null,0,62,"CR - Commuter Rail",null,"Passenger Car"," ","51302 - Vehicles, Revenue Vehicles, Commuter Rail, Passenger Car"," ",1,"EA"," ","No",2023,null,2209480.1342000002,null,2209480.1342000002,0.1,null,2012,2538171.869010977,null,40,"40 Yrs    ","Normal",null,null,null," ",null,"CRS2-GW-BT-ST-TO-27.5-K",null,null,null,null,"17-859-419",null,"North Line","","",null,null,null,null,null,null,null,null,null,null," "]
[null,0,63,"CR - Commuter Rail",null,"Revenue Locomotive"," ","51301 - Vehicles, Revenue Vehicles, Commuter Rail, Revenue Locomotive"," ",17,"EA"," ","No",2019,null,2620824.6132999999,null,44554018.426100001,0.1,null,2008,54189730.413345546,null,40,"40 Yrs    ","Normal",null,null,null," ",null,"CRN1-GW-FE-26.7-K",null,null,null,null,"67-922-640",null,"South Line","","",null,null,null,null,null,null,null,null,null,null," "]
[null,0,64,"CR - Commuter Rail",null,"Revenue Locomotive"," ","51301 - Vehicles, Revenue Vehicles, Commuter Rail, Revenue Locomotive"," ",1,"EA"," ","No",2023,null,2804340.1704000002,null,2804340.1704000002,0.1,null,2012,3221525.8338242322,null,40,"40 Yrs    ","Normal",null,null,null," ",null,"CRN1-GW-FE-11.9-K",null,null,null,null,"05-286-700",null,"South Line","","",null,null,null,null,null,null,null,null,null,null," "]
[null,{"$f":"1-NOT(ISBLANK(D74))*NOT(ISBLANK(F74))*NOT(ISBLANK(H74))*NOT(ISBLANK(J74))*NOT(ISBLANK(N74))*NOT(ISBLANK(U74))*NOT(ISBLANK(M74))*NOT(AND(ISBLANK(P74),ISBLANK(Q74)))*NOT(ISBLANK(Z74))","v":0},{"$f":"OFFSET(C74,-1,0)+1","v":65},"DR - Demand Response",null,"Bus (<30 ft)"," ","51906 - Vehicles, Revenue Vehicles, Bus, Bus (<30 ft)"," ",1,"Each"," ","No",2009,null,89108.036900000006,null,{"$f":"IF(P74=\"\",Q74,J74*P74)","v":89108.036900000006},0.1,null,2008,{"$f":"IFERROR(R74*INDEX(rng.CostIndexMeans,MATCH(rng.ConstantYear,rng.CostIndexYear,0))/INDEX(rng.CostIndexMeans,MATCH(U74,rng.CostIndexYear,0))*(1+S74),\"\")","v":108379.46088482883},null,6,{"$f":"IFERROR(TEXT(INDEX(rng.ClassEDL,MATCH(H74,rng.ClassChoice,0)),\"0\")&\" Yrs    \",\"\")","v":"9 Yrs    "},"Normal",null,null,null," ",null,"WVE-ES-OCS0195-FD-JA-2.2-Y",null,null,null,null,"61-265-967",null,"West","Brothford","",null,null,null,null,null,null,null,null,null,null," "]
[null,0,66,"DR - Demand Response",null,"Automobile"," ","52301 - Vehicles, Revenue Vehicles, Vans, Cutaways and Autos, Automobile"," ",56,"Each"," ","No",2018,null,90882.547300000006,null,5089422.6488000005,0.1,null,2004,6889619.9898792673,null,5,"6 Yrs    ","Normal",null,null,null," ",null,null,null,null,null,null,"29-246-349",null,"South","Archer's Line","",null,null,null,null,null,null,null,null,null,null," "]
[null,0,67,"DR - Demand Response",null,"Medium-Duty Van"," ","52523 - Vehicles, Revenue Vehicles, Vans, Cutaways and Autos, Medium-Duty Van"," ",46,"Each"," ","No",2019,null,89799.042000000001,null,4130755.932,0.1,null,2010,4933366.5287661012,null,5,"9 Yrs    ","Normal",null,null,null," ",null,null,null,null,null,null,"65-210-221",null,"North","Wingston","",null,null,null,null,null,null,null,null,null,null," "]
[null,0,68,"DR - Demand Response",null,"Medium-Duty Van"," ","52523 - Vehicles, Revenue Vehicles, Vans, Cutaways and Autos, Medium-Duty Van"," ",32,"Each"," ","No",2018,null,89367.315799999997,null,2859754.1055999999,0.1,null,2010,3415407.5954416567,null,5,"9 Yrs    ","Normal",null,null,null," ",null,null,null,null,null,null,"36-064-427",null,"North","Wingston","",null,null,null,null,null,null,null,null,null,null," "]
[null,0,69,"DR - Demand Response",null,"Medium-Duty Van"," ","52523 - Vehicles, Revenue Vehicles, Vans, Cutaways and Autos, Medium-Duty Van"," ",30,"Each"," ","No",2020,null,90029.295899999997,null,2700878.8769999999,0.1,null,2010,3225662.7284178105,null,5,"9 Yrs    ","Normal",null,null,null," ",null,null,null,null,null,null,"79-012-477",null,"North","Wingston","",null,null,null,null,null,null,null,null,null,null," "]
[null,0,70,"DR - Demand Response",null,"Medium-Duty Van"," ","52523 - Vehicles, Revenue Vehicles, Vans, Cutaways and Autos, Medium-Duty Van"," ",21,"Each"," ","No",2014,null,90785.844599999997,null,1906502.7365999999,0.1,null,2010,2276938.3964037639,null,5,"9 Yrs    ","Normal",null,null,null," ",null,null,null,null,null,null,"94-182-822",null,"West","Brothford","",null,null,null,null,null,null,null,null,null,null," "]
[null,0,71,"DR - Demand Response",null,"Medium-Duty Van"," ","52523 - Vehicles, Revenue Vehicles, Vans, Cutaways and Autos, Medium-Duty Van"," ",20,"Each"," ","No",2013,null,87381.375499999995,null,1747627.5099999998,0.1,null,2010,2087193.5317685201,null,5,"9 Yrs    ","Normal",null,null,null," ",null,null,null,null,null,null,"87-877-488",null,"West","Brothford","",null,null,null,null,null,null,null,null,null,null," "]
[null,0,72,"DR - Demand Response",null,"Medium-Duty Van"," ","52523 - Vehicles, Revenue Vehicles, Vans, Cutaways and Autos, Medium-Duty Van"," ",13,"Each"," ","No",2015,null,91658.785399999993,null,1191564.2101999999,0.1,null,2010,1423086.4975433494,null,5,"9 Yrs    ","Normal",null,null,null," ",null,null,null,null,null,null,"05-445-358",null,"North","Wingston","",null,null,null,null,null,null,null,null,null,null," "]
[null,0,73,"DR - Demand Response",null,"Medium-Duty Van"," ","52523 - Vehicles, Revenue Vehicles, Vans, Cutaways and Autos, Medium-Duty Van"," ",4,"Each"," ","No",2016,null,89367.315799999997,null,357469.26319999999,0.1,null,2010,426925.94943020708,null,5,"9 Yrs    ","Normal",null,null,null," ",null,null,null,null,null,null,"00-089-686",null,"North","Wingston","",null,null,null,null,null,null,null,null,null,null," "]
[null,0,74,"DR - Demand Response",null,"Medium-Duty Van"," ","52523 - Vehicles, Revenue Vehicles, Vans, Cutaways and Autos, Medium-Duty Van"," ",2,"Each"," ","No",2011,null,87381.375499999995,null,174762.75099999999,0.1,null,2010,208719.35317685205,null,5,"9 Yrs    ","Normal",null,null,null," ",null,null,null,null,null,null,"82-272-336",null,"West","Brothford","",null,null,null,null,null,null,null,null,null,null," "]
[null,0,75,"DR - Demand Response",null,"Medium-Duty Van"," ","52523 - Vehicles, Revenue Vehicles, Vans, Cutaways and Autos, Medium-Duty Van"," ",1,"Each"," ","No",2006,null,95325.136899999998,null,95325.136899999998,0.1,null,2010,113846.91990378927,null,5,"9 Yrs    ","Normal",null,null,null," ",null,null,null,null,null,null,"41-096-100",null,"South","Archer's Line","",null,null,null,null,null,null,null,null,null,null," "]
[null,0,76,"DR - Demand Response",null,"Medium-Duty Van"," ","52523 - Vehicles, Revenue Vehicles, Vans, Cutaways and Autos, Medium-Duty Van"," ",1,"Each"," ","No",2008,null,95325.136899999998,null,95325.136899999998,0.1,null,2010,113846.91990378927,null,5,"9 Yrs    ","Normal",null,null,null," ",null,null,null,null,null,null,"90-831-652",null,"South","Archer's Line","",null,null,null,null,null,null,null,null,null,null," "]
[null,0,77,"LR - Light Rail",null,"Rail Light Rail"," ","21223 - Facilities, Buildings, Maintenance, Rail Light Rail"," ",2,"Each"," ","No",2009,null,10247980.6106,null,20495961.2212,0.1,null,1998,31290284.49382519,null,60,"80 Yrs    ","Normal",null,null,null," ",null,null,null,null,null,null,"16-966-628",null,"Red Line","","",null,null,null,null,null,null,null,null,null,null," "]
[null,0,78,"LR - Light Rail",null,"Rail Light Rail"," ","21223 - Facilities, Buildings, Maintenance, Rail Light Rail"," ",1,"Each"," ","No",2014,null,5703663.3134000003,null,5703663.3134000003,0.1,null,2003,7928777.8732503653,null,60,"80 Yrs    ","Normal",null,null,null," ",null,null,null,null,null,null,"54-639-086",null,"Yellow Line","","",null,null,null,null,null,null,null,null,null,null," "]
[null,0,79,"LR - Light Rail",null,"Rail Light Rail"," ","21223 - Facilities, Buildings, Maintenance, Rail Light Rail"," ",1,"Each"," ","No",2018,null,1076915.4508,null,1076915.4508,0.1,null,2007,1335061.372002664,null,60,"80 Yrs    ","Normal",null,null,null," ",null,null,null,null,null,null,"64-714-723",null,"Blue Line","","",null,null,null,null,null,null,null,null,null,null," "]
[null,0,80,"LR - Light Rail",null,"Rail Light Rail"," ","23313 - Facilities, Equipment, Maintenance, Rail Light Rail"," ",3,"Each"," ","No",2009,null,1083119.9018999999,null,3249359.7056999998,0.1,null,1998,4960654.8586244974,null,15,"15 Yrs    ","Normal",null,null,null," ",null,null,null,null,null,null,"08-350-032",null,"Systemwide","","",null,null,null,null,null,null,null,null,null,null," "]
[null,0,81,"LR - Light Rail",null,"Grade Crossing"," ","10210 - Guideway Elements, Guideway, At Grade-In-Street, Grade Crossing"," ",27,"LF"," ","No",2010,null,501324.57079999999,null,13535763.411599999,0,null,2013,13899255.596788738,null,18,"20 Yrs    ","Normal",null,null,null," ",null,null,null,null,null,null,"30-891-649",null,"Yellow Line","South","",null,null,null,null,null,null,null,null,null,null," "]
[null,0,82,"LR - Light Rail",null,"Bridge"," ","10330 - Guideway Elements, Guideway, Elevated Structure, Bridge"," ",905.2,"LF"," ","No",2010,null,39519.541599999997,null,35773089.056319997,0,null,2013,36733746.975391597,null,null,"100 Yrs    ","Normal",null,null,null," ",null,null,null,null,null,null,"41-691-130",null,"Blue Line","West","",null,null,null,null,null,null,null,null,null,null," "]
[null,0,83,"LR - Light Rail",null,"Bridge"," ","10330 - Guideway Elements, Guideway, Elevated Structure, Bridge"," ",3,"Ea"," ","No",2010,null,248155.66250000001,null,744466.98750000005,0,null,2013,764459.05768167484,null,null,"100 Yrs    ","Normal",null,null,null," ",null,null,null,null,null,null,"08-405-591",null,"Blue Line","East","",null,null,null,null,null,null,null,null,null,null," "]
[null,0,84,"LR - Light Rail",null,"Bridge Light Rail"," ","10333 - Guideway Elements, Guideway, Elevated Structure, Bridge Light Rail"," ",600,"LF"," ","No",2022,null,39928.873699999996,null,23957324.219999999,0,null,2013,24600679.150726698,null,null,"100 Yrs    ","Normal",null,null,null," ",null,null,null,null,null,null,"68-152-469",null,"Blue Line","West","",null,null,null,null,null,null,null,null,null,null," "]
[null,0,85,"LR - Light Rail",null,"Bridge Light Rail"," ","10333 - Guideway Elements, Guideway, Elevated Structure, Bridge Light Rail"," ",900,"LF"," ","No",2022,null,39928.873699999996,null,35935986.329999998,0,null,2013,36901018.726090044,null,null,"100 Yrs    ","Normal",null,null,null," ",null,null,null,null,null,null,"68-152-469",null,"Yellow Line","Central","",null,null,null,null,null,null,null,null,null,null," "]
[null,0,86,"LR - Light Rail",null,"Bridge Light Rail"," ","10333 - Guideway Elements, Guideway, Elevated Structure, Bridge Light Rail"," ",796.75,"LF"," ","No",2024,null,12013.4527,null,9571718.4387250002,0,null,2013,9828759.3418130241,null,null,"100 Yrs    ","Normal",null,null,null," ",null,null,null,null,null,null,"64-109-027",null,"Red Line","North","",null,null,null,null,null,null,null,null,null,null," "]
[null,0,87,"LR - Light Rail",null,"Fencing"," ","12100 - Guideway Elements, Special Structures, Fencing"," ",34657.919999999998,"LF"," ","No",2010,null,30.686299999999999,null,1063523.3304959999,0,null,2013,1092083.4055834457,null,25,"25 Yrs    ","Normal",null,null,null," ",null,null,null,null,null,null,"75-730-958",null,"Red Line","West","",null,null,null,null,null,null,null,null,null,null," "]
[null,0,88,"LR - Light Rail",null,"Fencing"," ","12100 - Guideway Elements, Special Structures, Fencing"," ",6,"Ea"," ","No",2010,null,27393.8069,null,164362.8414,0,null,2013,168776.67507657828,null,25,"25 Yrs    ","Normal",null,null,null," ",null,null,null,null,null,null,"04-665-628",null,"Yellow Line","East","",null,null,null,null,null,null,null,null,null,null," "]
[null,0,89,"LR - Light Rail",null,"Fencing"," ","12100 - Guideway Elements, Special Structures, Fencing"," ",2,"Ea"," ","No",2019,null,7734.7218999999996,null,15469.443799999999,0,null,2013,15884.863437557902,null,25,"25 Yrs    ","Normal",null,null,null," ",null,null,null,null,null,null,"02-357-851",null,"Red Line","Central","",null,null,null,null,null,null,null,null,null,null," "]
[null,0,90,"LR - Light Rail",null,"Retaining Walls"," ","12200 - Guideway Elements, Special Structures, Retaining Walls"," ",1454.9,"LF"," ","No",2016,null,644.60450000000003,null,937835.08705000009,0,null,2013,963019.90409891005,null,null,"40 Yrs    ","Normal",null,null,null," ",null,null,null,null,null,null,"05-151-446",null,"Blue Line","East","",null,null,null,null,null,null,null,null,null,null," "]
[null,0,91,"LR - Light Rail",null,"Retaining Walls"," ","12200 - Guideway Elements, Special Structures, Retaining Walls"," ",1778,"LF"," ","No",2010,null,42.4148,null,75413.5144,0,null,2013,77438.684485237056,null,null,"40 Yrs    ","Normal",null,null,null," ",null,null,null,null,null,null,"21-009-085",null,"Red Line","North","",null,null,null,null,null,null,null,null,null,null," "]
[null,0,92,"LR - Light Rail",null,"Curve"," ","11202 - Guideway Elements, Trackwork, Ballasted, Curve"," ",52179.839999999997,"LF"," ","No",2022,null,481.75400000000002,null,25137846.639359999,0,null,2013,25812903.562861614,null,20,"36 Yrs    ","Normal",null,null,null," ",null,null,null,null,null,null,"55-798-009",null,"Red Line","West","A-00559",null,null,null,null,null,null,null,null,null,null," "]
[null,0,93,"LR - Light Rail",null,"Curve"," ","11202 - Guideway Elements, Trackwork, Ballasted, Curve"," ",37864.49,"LF"," ","No",2010,null,459.61599999999999,null,17403125.435839999,0,null,2013,17870472.559266079,null,20,"36 Yrs    ","Normal",null,null,null," ",null,null,null,null,null,null,"72-926-734",null,"Yellow Line","Central","B-01253",null,null,null,null,null,null,null,null,null,null," "]
[null,0,94,"LR - Light Rail",null,"Curve"," ","11202 - Guideway Elements, Trackwork, Ballasted, Curve"," ",6027,"LF"," ","No",2024,null,465.21269999999998,null,2803836.9428999997,0,null,2013,2879131.7590323663,null,20,"36 Yrs    ","Normal",null,null,null," ",null,null,null,null,null,null,"38-847-630",null,"Red Line","North","C-09061",null,null,null,null,null,null,null,null,null,null," "]
[null,0,95,"LR - Light Rail",null,"Curve"," ","11202 - Guideway Elements, Trackwork, Ballasted, Curve"," ",1267.47,"LF"," ","No",2019,null,480.57100000000003,null,609109.32537000009,0,null,2013,625466.47294749378,null,20,"36 Yrs    ","Normal",null,null,null," ",null,null,null,null,null,null,"28-023-533",null,"Yellow Line","East","C-09874",null,null,null,null,null,null,null,null,null,null," "]
[null,0,96,"LR - Light Rail",null,"Guarded"," ","11203 - Guideway Elements, Trackwork, Ballasted, Guarded"," ",10065.75,"LF"," ","No",2022,null,124.8682,null,1256892.08415,0,null,2013,1290644.9236701247,null,10,"44 Yrs    ","Normal",null,null,null," ",null,null,null,null,null,null,"02-980-896",null,"Red Line","Central","C-08734",null,null,null,null,null,null,null,null,null,null," "]
[null,0,97,"LR - Light Rail",null,"Guarded"," ","11203 - Guideway Elements, Trackwork, Ballasted, Guarded"," ",4016.88,"LF"," ","No",2024,null,120.3472,null,483420.26073600003,0,null,2013,496402.12822260585,null,10,"44 Yrs    ","Normal",null,null,null," ",null,null,null,null,null,null,"98-227-997",null,"Blue Line","East","C-09874",null,null,null,null,null,null,null,null,null,null," "]
[null,0,98,"LR - Light Rail",null,"Guarded"," ","11203 - Guideway Elements, Trackwork, Ballasted, Guarded"," ",1892,"LF"," ","No",2010,null,122.64360000000001,null,232041.6912,0,null,2013,238272.98668178241,null,10,"44 Yrs    ","Normal",null,null,null," ",null,null,null,null,null,null,"90-247-100",null,"Red Line","South","A-07864",null,null,null,null,null,null,null,null,null,null," "]
[null,0,99,"LR - Light Rail",null,"Platform Curved"," ","11205 - Guideway Elements, Trackwork, Ballasted, Platform Curved"," ",277.8,"LF"," ","No",2016,null,487.24849999999998,null,135357.63329999999,0,null,2013,138992.55512997435,null,null,"36 Yrs    ","Normal",null,null,null," ",null,null,null,null,null,null,"29-937-917",null,"Yellow Line","Central","B-09077",null,null,null,null,null,null,null,null,null,null," "]
[null,0,100,"LR - Light Rail",null,"Platform Curved"," ","11205 - Guideway Elements, Trackwork, Ballasted, Platform Curved"," ",87.789000000000001,"LF"," ","No",2010,null,484.58199999999999,null,42540.969197999999,0,null,2013,43683.373167662765,null,null,"36 Yrs    ","Normal",null,null,null," ",null,null,null,null,null,null,"81-805-486",null,"Red Line","North","C-02992",null,null,null,null,null,null,null,null,null,null," "]
[null,0,101,"LR - Light Rail",null,"Platform Curved"," ","11205 - Guideway Elements, Trackwork, Ballasted, Platform Curved"," ",37.159999999999997,"LF"," ","No",2014,null,494.34780000000001,null,18369.964248,0,null,2013,18863.275060497072,null,null,"36 Yrs    ","Normal",null,null,null," ",null,null,null,null,null,null,"46-857-468",null,"Yellow Line","South","B-00170",null,null,null,null,null,null,null,null,null,null," "]
[null,0,102,"LR - Light Rail",null,"Platform Curved"," ","11205 - Guideway Elements, Trackwork, Ballasted, Platform Curved"," ",24.49,"LF"," ","No",2019,null,513.22680000000003,null,12568.924332000001,0,null,2013,12906.452820935858,null,null,"36 Yrs    ","Normal",null,null,null," ",null,null,null,null,null,null,"54-622-238",null,"Red Line","West","A-09167",null,null,null,null,null,null,null,null,null,null," "]
[null,0,103,"LR - Light Rail",null,"Platform Curved"," ","11205 - Guideway Elements, Trackwork, Ballasted, Platform Curved"," ",17.25,"LF"," ","No",2017,null,493.22859999999997,null,8508.1933499999996,0,null,2013,8736.6741307847333,null,null,"36 Yrs    ","Normal",null,null,null," ",null,null,null,null,null,null,"58-003-460",null,"Yellow Line","East","C-03006",null,null,null,null,null,null,null,null,null,null," "]
[null,0,104,"LR - Light Rail",null,"Platform Tangent"," ","11204 - Guideway Elements, Trackwork, Ballasted, Platform Tangent"," ",11734.75,"LF"," ","No",2010,null,280.13010000000003,null,3287256.6909750002,0,null,2013,3375533.3608268681,null,10,"44 Yrs    ","Normal",null,null,null," ",null,null,null,null,null,null,"78-698-603",null,"Red Line","Central","B-02211",null,null,null,null,null,null,null,null,null,null," "]
[null,0,105,"LR - Light Rail",null,"Platform Tangent"," ","11204 - Guideway Elements, Trackwork, Ballasted, Platform Tangent"," ",6035.98,"LF"," ","No",2014,null,432.4846,null,2610468.3959079999,0,null,2013,2680570.4531574314,null,10,"44 Yrs    ","Normal",null,null,null," ",null,null,null,null,null,null,"94-266-824",null,"Blue Line","East","A-06288",null,null,null,null,null,null,null,null,null,null," "]
[null,0,106,"LR - Light Rail",null,"Platform Tangent"," ","11204 - Guideway Elements, Trackwork, Ballasted, Platform Tangent"," ",3865.56,"LF"," ","No",2016,null,350.16309999999999,null,1353576.4728359999,0,null,2013,1389925.6948909282,null,10,"44 Yrs    ","Normal",null,null,null," ",null,null,null,null,null,null,"99-485-460",null,"Blue Line","West","C-01910",null,null,null,null,null,null,null,null,null,null," "]
[41500,0,107,"LR - Light Rail",null,"Platform Tangent"," ","11204 - Guideway Elements, Trackwork, Ballasted, Platform Tangent"," ",2878,"LF"," ","No",2022,null,251.9563,null,725130.23140000005,0,null,2013,744603.0283411846,null,10,"44 Yrs    ","Normal",null,null,null," ",null,null,null,null,null,null,"04-823-309",null,"Yellow Line","Central","C-03759",null,null,null,null,null,null,null,null,null,null," "]
[41500,0,108,"LR - Light Rail",null,"Platform Tangent"," ","11204 - Guideway Elements, Trackwork, Ballasted, Platform Tangent"," ",1696.13,"LF"," ","No",2024,null,364.81740000000002,null,618777.73666200007,0,null,2013,635394.5217524264,null,10,"44 Yrs    ","Normal",null,null,null," ",null,null,null,null,null,null,"07-819-296",null,"Yellow Line","East","A-04645",null,null,null,null,null,null,null,null,null,null," "]
[41500,0,109,"LR - Light Rail",null,"Platform Tangent"," ","11204 - Guideway Elements, Trackwork, Ballasted, Platform Tangent"," ",2432,"LF"," ","No",2019,null,230.5787,null,560767.39839999995,0,null,2013,575826.36189018155,null,10,"44 Yrs    ","Normal",null,null,null," ",null,null,null,null,null,null,"82-200-100",null,"Yellow Line","South","B-09077",null,null,null,null,null,null,null,null,null,null," "]
[41500,0,110,"LR - Light Rail",null,"Platform Tangent"," ","11204 - Guideway Elements, Trackwork, Ballasted, Platform Tangent"," ",1492.75,"LF"," ","No",2017,null,317.36840000000001,null,473751.67910000001,0,null,2013,486473.9044992202,null,10,"44 Yrs    ","Normal",null,null,null," ",null,null,null,null,null,null,"56-894-972",null,"Red Line","North","B-00170",null,null,null,null,null,null,null,null,null,null," "]
[41500,0,111,"LR - Light Rail",null,"Platform Tangent"," ","11204 - Guideway Elements, Trackwork, Ballasted, Platform Tangent"," ",1,"Ea"," ","No",2024,null,338.39409999999998,null,338.39409999999998,0,null,2013,347.48140502474382,null,10,"44 Yrs    ","Normal",null,null,null," ",null,null,null,null,null,null,"18-369-386",null,"Red Line","South","B-08260",null,null,null,null,null,null,null,null,null,null," "]
[41500,0,112,"LR - Light Rail",null,"Tangent"," ","11201 - Guideway Elements, Trackwork, Ballasted, Tangent"," ",110067.4,"LF"," ","No",2022,null,114.193,null,12568926.608199999,0,null,2013,12906455.1582614,null,40,"44 Yrs    ","Normal",null,null,null," ",null,null,null,null,null,null,"79-744-131",null,"Red Line","North","B-09077",null,null,null,null,null,null,null,null,null,null," "]
[41500,0,113,"LR - Light Rail",null,"Tangent"," ","11201 - Guideway Elements, Trackwork, Ballasted, Tangent"," ",82714.58,"LF"," ","No",2010,null,115.71980000000001,null,9571714.6546840016,0,null,2013,9828755.4561546072,null,40,"44 Yrs    ","Normal",null,null,null," ",null,null,null,null,null,null,"68-381-742",null,"Blue Line","East","B-08969",null,null,null,null,null,null,null,null,null,null," "]
[41500,0,114,"LR - Light Rail",null,"Tangent"," ","11201 - Guideway Elements, Trackwork, Ballasted, Tangent"," ",2842.54,"LF"," ","No",2019,null,115.6451,null,328725.82255400001,0,null,2013,337553.49366013939,null,40,"44 Yrs    ","Normal",null,null,null," ",null,null,null,null,null,null,"90-350-745",null,"Blue Line","West","B-00170",null,null,null,null,null,null,null,null,null,null," "]
[41500,0,115,"LR - Light Rail",null,"Tangent"," ","11201 - Guideway Elements, Trackwork, Ballasted, Tangent"," ",2387.16,"LF"," ","No",2024,null,117.45489999999999,null,280383.63908399997,0,null,2013,287913.11921472329,null,40,"44 Yrs    ","Normal",null,null,null," ",null,null,null,null,null,null,"23-380-210",null,"Yellow Line","South","B-01876",null,null,null,null,null,null,null,null,null,null," "]
[41500,0,116,"LR - Light Rail",null,"Tangent"," ","11201 - Guideway Elements, Trackwork, Ballasted, Tangent"," ",419.79,"LF"," ","No",2019,null,115.1576,null,48342.008904000002,0,null,2013,49640.195191584608,null,40,"44 Yrs    ","Normal",null,null,null," ",null,null,null,null,null,null,"94-993-839",null,"Red Line","Central","B-09077",null,null,null,null,null,null,null,null,null,null," "]
[41500,0,117,"LR - Light Rail",null,"Curve"," ","11102 - Guideway Elements, Trackwork, Direct Fixation, Curve"," ",1856.95,"LF"," ","No",2022,null,572.72640000000001,null,1063524.2884800001,0,null,2013,1092084.3892933459,null,20,"36 Yrs    ","Normal",null,null,null," ",null,null,null,null,null,null,"03-199-644",null,"Yellow Line","Central","C-05198",null,null,null,null,null,null,null,null,null,null," "]
[41500,0,118,"LR - Light Rail",null,"Curve"," ","11102 - Guideway Elements, Trackwork, Direct Fixation, Curve"," ",170.47,"LF"," ","No",2024,null,567.16150000000005,null,96684.020905000012,0,null,2013,99280.393563336693,null,20,"36 Yrs    ","Normal",null,null,null," ",null,null,null,null,null,null,"11-829-632",null,"Yellow Line","East","B-00405",null,null,null,null,null,null,null,null,null,null," "]
[41500,0,119,"LR - Light Rail",null,"Guarded"," ","11103 - Guideway Elements, Trackwork, Direct Fixation, Guarded"," ",2071.16,"LF"," ","No",2022,null,606.85429999999997,null,1256892.3519879999,0,null,2013,1290645.1987007016,null,10,"44 Yrs    ","Normal",null,null,null," ",null,null,null,null,null,null,"84-678-846",null,"Red Line","West","B-00002",null,null,null,null,null,null,null,null,null,null," "]
[41500,0,120,"LR - Light Rail",null,"Tangent"," ","11101 - Guideway Elements, Trackwork, Direct Fixation, Tangent"," ",126.48,"LF"," ","No",2024,null,389.85489999999999,null,49308.847752000001,0,null,2013,50632.997729618051,null,40,"44 Yrs    ","Normal",null,null,null," ",null,null,null,null,null,null,"51-822-253",null,"Red Line","South","C-01337",null,null,null,null,null,null,null,null,null,null," "]
[41500,0,121,"LR - Light Rail",null,"Tangent"," ","11101 - Guideway Elements, Trackwork, Direct Fixation, Tangent"," ",14.71,"LF"," ","No",2022,null,387.78769999999997,null,5704.3570669999999,0,null,2013,5857.5430493734584,null,40,"44 Yrs    ","Normal",null,null,null," ",null,null,null,null,null,null,"89-411-195",null,"Red Line","North","B-09620",null,null,null,null,null,null,null,null,null,null," "]
[41500,0,122,"LR - Light Rail",null,"At-Grade Crossings"," ","11303 - Guideway Elements, Trackwork, Embedded, At-Grade Crossings"," ",84,"LF"," ","No",2022,null,506440.12760000001,null,42540970.718400002,0,null,2013,43683374.728891902,null,20,"12 Yrs    ","Normal",null,null,null," ",null,null,null,null,null,null,"21-741-684",null,"Blue Line","West","B-01838",null,null,null,null,null,null,null,null,null,null," "]
[41500,0,123,"LR - Light Rail",null,"At-Grade Crossings"," ","11303 - Guideway Elements, Trackwork, Embedded, At-Grade Crossings"," ",2137.7600000000002,"LF"," ","No",2010,null,189.95249999999999,null,406072.85639999999,0,null,2013,416977.6207217651,null,20,"12 Yrs    ","Normal",null,null,null," ",null,null,null,null,null,null,"49-182-278",null,"Blue Line","East","A-03338",null,null,null,null,null,null,null,null,null,null," "]
[41500,0,124,"LR - Light Rail",null,"Curve"," ","11302 - Guideway Elements, Trackwork, Embedded, Curve"," ",19100.900000000001,"LF"," ","No",2014,null,607.41030000000001,null,11602083.399270002,0,null,2013,11913648.142188638,null,20,"36 Yrs    ","Normal",null,null,null," ",null,null,null,null,null,null,"50-565-309",null,"Yellow Line","East","C-06989",null,null,null,null,null,null,null,null,null,null," "]
[41500,0,125,"LR - Light Rail",null,"Curve"," ","11302 - Guideway Elements, Trackwork, Embedded, Curve"," ",21246.639999999999,"LF"," ","No",2024,null,500.56119999999999,null,10635243.614367999,0,null,2013,10920844.642093427,null,20,"36 Yrs    ","Normal",null,null,null," ",null,null,null,null,null,null,"40-693-360",null,"Red Line","Central","C-04974",null,null,null,null,null,null,null,null,null,null," "]
[41500,0,126,"LR - Light Rail",null,"Curve"," ","11302 - Guideway Elements, Trackwork, Embedded, Curve"," ",14019.74,"LF"," ","No",2016,null,496.53199999999998,null,6961249.5416799998,0,null,2013,7148188.3740609568,null,20,"36 Yrs    ","Normal",null,null,null," ",null,null,null,null,null,null,"10-146-402",null,"Red Line","West","C-09633",null,null,null,null,null,null,null,null,null,null," "]
[41500,0,127,"LR - Light Rail",null,"Curve"," ","11302 - Guideway Elements, Trackwork, Embedded, Curve"," ",8953.85,"LF"," ","No",2010,null,485.91180000000003,null,4350781.3704300001,0,null,2013,4467618.1515945373,null,20,"36 Yrs    ","Normal",null,null,null," ",null,null,null,null,null,null,"53-847-195",null,"Yellow Line","South","A-04064",null,null,null,null,null,null,null,null,null,null," "]
[41500,0,128,"LR - Light Rail",null,"Curve"," ","11302 - Guideway Elements, Trackwork, Embedded, Curve"," ",4644.42,"LF"," ","No",2019,null,499.6139,null,2320416.7894379999,0,null,2013,2382729.7409645184,null,20,"36 Yrs    ","Normal",null,null,null," ",null,null,null,null,null,null,"17-051-279",null,"Red Line","North","B-03083",null,null,null,null,null,null,null,null,null,null," "]
[41500,{"$f":"1-NOT(ISBLANK(D138))*NOT(ISBLANK(F138))*NOT(ISBLANK(H138))*NOT(ISBLANK(J138))*NOT(ISBLANK(N138))*NOT(ISBLANK(U138))*NOT(ISBLANK(M138))*NOT(AND(ISBLANK(P138),ISBLANK(Q138)))*NOT(ISBLANK(Z138))","v":0},{"$f":"OFFSET(C138,-1,0)+1","v":129},"LR - Light Rail",null,"Curve"," ","11302 - Guideway Elements, Trackwork, Embedded, Curve"," ",4814.38,"LF"," ","No",2022,null,481.97620000000001,null,{"$f":"IF(P138=\"\",Q138,J138*P138)","v":2320416.5777560002},0,null,2013,{"$f":"IFERROR(R138*INDEX(rng.CostIndexMeans,MATCH(rng.ConstantYear,rng.CostIndexYear,0))/INDEX(rng.CostIndexMeans,MATCH(U138,rng.CostIndexYear,0))*(1+S138),\"\")","v":2382729.5235979669},null,20,{"$f":"IFERROR(TEXT(INDEX(rng.ClassEDL,MATCH(H138,rng.ClassChoice,0)),\"0\")&\" Yrs    \",\"\")","v":"36 Yrs    "},"Normal",null,null,null," ",null,null,null,null,null,null,"43-444-191",null,"Red Line","South","B-06040",null,null,null,null,null,null,null,null,null,null," "]
[41500,0,130,"LR - Light Rail",null,"Curve"," ","11302 - Guideway Elements, Trackwork, Embedded, Curve"," ",569.21,"LF"," ","No",2014,null,492.58390000000003,null,280383.68171900004,0,null,2013,287913.16299465246,null,20,"36 Yrs    ","Normal",null,null,null," ",null,null,null,null,null,null,"69-632-217",null,"Yellow Line","Central","C-02088",null,null,null,null,null,null,null,null,null,null," "]
[41500,0,131,"LR - Light Rail",null,"Curve"," ","11302 - Guideway Elements, Trackwork, Embedded, Curve"," ",8,"Ea"," ","No",2014,null,495.50560000000002,null,3964.0448000000001,0,null,2013,4070.4960774582942,null,20,"36 Yrs    ","Normal",null,null,null," ",null,null,null,null,null,null,"96-908-650",null,"Red Line","North","C-00386",null,null,null,null,null,null,null,null,null,null," "]
[41500,0,132,"LR - Light Rail",null,"Tangent"," ","11301 - Guideway Elements, Trackwork, Embedded, Tangent"," ",18621.62,"LF"," ","No",2010,null,342.67399999999998,null,6381145.0118799992,0,null,2013,6552505.5974519001,null,40,"44 Yrs    ","Normal",null,null,null," ",null,null,null,null,null,null,"10-033-115",null,"Red Line","North","C-07278",null,null,null,null,null,null,null,null,null,null," "]
[41500,0,133,"LR - Light Rail",null,"Tangent"," ","11301 - Guideway Elements, Trackwork, Embedded, Tangent"," ",21721.75,"LF"," ","No",2024,null,244.80629999999999,null,5317621.2470249999,0,null,2013,5460421.7458450887,null,40,"44 Yrs    ","Normal",null,null,null," ",null,null,null,null,null,null,"69-018-424",null,"Red Line","Central","C-04044",null,null,null,null,null,null,null,null,null,null," "]
[41500,0,134,"LR - Light Rail",null,"Tangent"," ","11301 - Guideway Elements, Trackwork, Embedded, Tangent"," ",7961.04,"LF"," ","No",2016,null,352.19479999999999,null,2803836.890592,0,null,2013,2879131.705319677,null,40,"44 Yrs    ","Normal",null,null,null," ",null,null,null,null,null,null,"32-712-614",null,"Red Line","West","A-04137",null,null,null,null,null,null,null,null,null,null," "]
[41500,0,135,"LR - Light Rail",null,"Tangent"," ","11301 - Guideway Elements, Trackwork, Embedded, Tangent"," ",5095.41,"LF"," ","No",2014,null,455.39350000000002,null,2320416.5938349999,0,null,2013,2382729.5401087552,null,40,"44 Yrs    ","Normal",null,null,null," ",null,null,null,null,null,null,"23-153-623",null,"Yellow Line","East","C-07411",null,null,null,null,null,null,null,null,null,null," "]
[41500,0,136,"LR - Light Rail",null,"Tangent"," ","11301 - Guideway Elements, Trackwork, Embedded, Tangent"," ",3868.68,"LF"," ","No",2019,null,349.88069999999999,null,1353576.4664759999,0,null,2013,1389925.6883601355,null,40,"44 Yrs    ","Normal",null,null,null," ",null,null,null,null,null,null,"83-997-204",null,"Red Line","North","A-05703",null,null,null,null,null,null,null,null,null,null," "]
[41500,0,137,"LR - Light Rail",null,"Tangent"," ","11301 - Guideway Elements, Trackwork, Embedded, Tangent"," ",3798.26,"LF"," ","No",2014,null,356.36750000000001,null,1353576.4205500002,0,null,2013,1389925.6412008295,null,20,"44 Yrs    ","Normal",null,null,null," ",null,null,null,null,null,null,"35-626-888",null,"Yellow Line","South","B-00014",null,null,null,null,null,null,null,null,null,null," "]
[41500,0,138,"LR - Light Rail",null,"Tangent"," ","11301 - Guideway Elements, Trackwork, Embedded, Tangent"," ",3252.76,"LF"," ","No",2014,null,356.68430000000001,null,1160208.4236680001,0,null,2013,1191364.900208662,null,32,"44 Yrs    ","Normal",null,null,null," ",null,null,null,null,null,null,"40-069-837",null,"Yellow Line","Central","C-04430",null,null,null,null,null,null,null,null,null,null," "]
[41500,0,139,"LR - Light Rail",null,"Tangent"," ","11301 - Guideway Elements, Trackwork, Embedded, Tangent"," ",1289.2,"LF"," ","No",2022,null,367.47730000000001,null,473751.73516000004,0,null,2013,486473.96206466708,null,40,"44 Yrs    ","Normal",null,null,null," ",null,null,null,null,null,null,"79-264-658",null,"Red Line","South","B-03181",null,null,null,null,null,null,null,null,null,null," "]
[41500,0,140,"LR - Light Rail",null,"Tangent"," ","11301 - Guideway Elements, Trackwork, Embedded, Tangent"," ",122.91,"LF"," ","No",1911,null,346.1148,null,42540.970068000002,0,null,2013,43683.374061025926,null,40,"44 Yrs    ","Normal",null,null,null," ",null,null,null,null,null,null,"51-323-630",null,"Blue Line","West","C-01058",null,null,null,null,null,null,null,null,null,null," "]
[41500,0,141,"LR - Light Rail",null,"Tangent"," ","11301 - Guideway Elements, Trackwork, Embedded, Tangent"," ",10,"Ea"," ","No",2014,null,338.39409999999998,null,3383.9409999999998,0,null,2013,3474.8140502474384,null,41,"44 Yrs    ","Normal",null,null,null," ",null,null,null,null,null,null,"47-936-868",null,"Blue Line","East","C-04386",null,null,null,null,null,null,null,null,null,null," "]
[41500,0,142,"LR - Light Rail",null,"Special"," ","11400 - Guideway Elements, Trackwork, Special"," ",44625.34,"LF"," ","No",2022,null,368.31729999999999,null,16436284.740381999,0,null,2013,16877668.124162611,null,20,"29 Yrs    ","Normal",null,null,null," ",null,null,null,null,null,null,"07-357-137",null,"Yellow Line","Central","C-02916",null,null,null,null,null,null,null,null,null,null," "]
[41500,0,143,"LR - Light Rail",null,"Special"," ","11400 - Guideway Elements, Trackwork, Special"," ",9493.89,"LF"," ","No",2014,null,1527.5723,null,14502603.383246999,0,null,2013,14892059.288643835,null,20,"29 Yrs    ","Normal",null,null,null," ",null,null,null,null,null,null,"05-526-999",null,"Blue Line","West","C-09012",null,null,null,null,null,null,null,null,null,null," "]
[41500,0,144,"LR - Light Rail",null,"Special"," ","11400 - Guideway Elements, Trackwork, Special"," ",16367.93,"LF"," ","No",2024,null,649.76099999999997,null,10635242.56473,0,null,2013,10920843.564268231,null,20,"29 Yrs    ","Normal",null,null,null," ",null,null,null,null,null,null,"45-887-091",null,"Yellow Line","East","C-02540",null,null,null,null,null,null,null,null,null,null," "]
[null,0,145,"LR - Light Rail",null,"Special"," ","11400 - Guideway Elements, Trackwork, Special"," ",9483.93,"LF"," ","No",2019,null,1019.4511,null,9668402.8708229996,0,null,2013,9928040.1576116215,null,20,"29 Yrs    ","Normal",null,null,null," ",null,"CRS-TC-INT-SEH-1.1-S",null,null,null,null,"67-902-418",null,"Yellow Line","South","C-03868",null,null,null,null,null,null,null,null,null,null," "]
[null,0,146,"LR - Light Rail",null,"Special"," ","11400 - Guideway Elements, Trackwork, Special"," ",222.42,"LF"," ","No",2010,null,12606.0458,null,2803836.7068359996,0,null,2013,2879131.5166290547,null,20,"29 Yrs    ","Normal",null,null,null," ",null,"CRS-TC-SH-SEH-0.7-S",null,null,null,null,"00-681-738",null,"Blue Line","East","C-08479",null,null,null,null,null,null,null,null,null,null," "]
[null,0,147,"LR - Light Rail",null,"Special"," ","11400 - Guideway Elements, Trackwork, Special"," ",22,"Ea"," ","No",2024,null,92289.296000000002,null,2030364.5120000001,0,null,2013,2084888.339785293,null,20,"29 Yrs    ","Normal",null,null,null," ",null,"CRS-TC-GC-GCEH-31.1-S",null,null,null,null,"35-967-750",null,"Red Line","Central","B-04731",null,null,null,null,null,null,null,null,null,null," "]
[null,0,148,"LR - Light Rail",null,"Special"," ","11400 - Guideway Elements, Trackwork, Special"," ",64,"Ea"," ","No",2010,null,24171.006099999999,null,1546944.3903999999,0,null,2013,1588486.3544350739,null,20,"29 Yrs    ","Normal",null,null,null," ",null,"WV-TC-CC18992-1.5-Z",null,null,null,null,"44-617-774",null,"Yellow Line","Central","C-05761",null,null,null,null,null,null,null,null,null,null," "]
[null,0,149,"LR - Light Rail",null,"Special"," ","11400 - Guideway Elements, Trackwork, Special"," ",51,"Ea"," ","No",2022,null,28436.477800000001,null,1450260.3678000001,0,null,2013,1489205.9591312197,null,20,"29 Yrs    ","Normal",null,null,null," ",null,"MJE-TC-CC115790-8.7-Z",null,null,null,null,"87-532-510",null,"Red Line","South","B-03524",null,null,null,null,null,null,null,null,null,null," "]
[null,0,150,"LR - Light Rail",null,"Special"," ","11400 - Guideway Elements, Trackwork, Special"," ",3038.56,"LF"," ","No",2016,null,445.46640000000002,null,1353576.384384,0,null,2013,1389925.6040636201,null,20,"29 Yrs    ","Normal",null,null,null," ",null,"MJE-TC-CC142759-3.6-Z",null,null,null,null,"06-601-947",null,"Red Line","North","C-09538",null,null,null,null,null,null,null,null,null,null," "]
[null,0,151,"LR - Light Rail",null,"Special"," ","11400 - Guideway Elements, Trackwork, Special"," ",16,"Ea"," ","No",2014,null,41090.710400000004,null,657451.36640000006,0,null,2013,675106.70112779655,null,20,"29 Yrs    ","Normal",null,null,null," ",null,"MJE-TC-CC135394-5.0-Z",null,null,null,null,"64-162-081",null,"Yellow Line","East","B-04731",null,null,null,null,null,null,null,null,null,null," "]
[null,0,152,"LR - Light Rail",null,"Special"," ","11400 - Guideway Elements, Trackwork, Special"," ",9,"Ea"," ","No",2019,null,48342.012199999997,null,435078.10979999998,0,null,2013,446761.78718486457,null,20,"29 Yrs    ","Normal",null,null,null," ",null,"AP-TC-TS-SHPE-1.0-Z",null,null,null,null,"01-131-582",null,"Red Line","North","C-05937",null,null,null,null,null,null,null,null,null,null," "]
[null,0,153,"LR - Light Rail",null,"Special"," ","11400 - Guideway Elements, Trackwork, Special"," ",2,"Ea"," ","No",2016,null,116020.82919999999,null,232041.65839999999,0,null,2013,238272.95300096442,null,20,"29 Yrs    ","Normal",null,null,null," ",null,"WV-TC-TS-SHP-3.4-Z",null,null,null,null,"70-509-099",null,"Red Line","West","B-03836",null,null,null,null,null,null,null,null,null,null," "]
[null,0,154,"LR - Light Rail",null,"Special"," ","11400 - Guideway Elements, Trackwork, Special"," ",1,"Ea"," ","No",1911,null,75413.539000000004,null,75413.539000000004,0,null,2013,77438.70974585053,null,20,"29 Yrs    ","Normal",null,null,null," ",null,"WV-TC-TS-SHP-3.6-Z",null,null,null,null,"44-717-926",null,"Yellow Line","South","B-00163",null,null,null,null,null,null,null,null,null,null," "]
[null,0,155,"LR - Light Rail",null,"Ballasted Single Crossover"," ","11406 - Guideway Elements, Trackwork, Special, Ballasted Single Crossover"," ",10,"Ea"," ","No",2010,null,290052.07309999998,null,2900520.7309999997,0,null,2013,2978411.9135389091,null,32,"29 Yrs    ","Normal",null,null,null," ",null,"CRS-TC-GC-GCIEG-40.3-S",null,null,null,null,"51-992-350",null,"Red Line","Central","B-05446",null,null,null,null,null,null,null,null,null,null," "]
[null,0,156,"LR - Light Rail",null,"Ballasted Single Crossover"," ","11406 - Guideway Elements, Trackwork, Special, Ballasted Single Crossover"," ",8,"Ea"," ","No",1911,null,87015.621899999998,null,696124.97519999999,0,null,2013,714818.85900289332,null,32,"29 Yrs    ","Normal",null,null,null," ",null,"CRS-TC-GC-GCI-28.2-S",null,null,null,null,"69-390-842",null,"Red Line","South","A-04836",null,null,null,null,null,null,null,null,null,null," "]
[null,0,157,"LR - Light Rail",null,"Ballasted Single Crossover"," ","11406 - Guideway Elements, Trackwork, Special, Ballasted Single Crossover"," ",2,"Ea"," ","No",2022,null,87015.621899999998,null,174031.2438,0,null,2013,178704.71475072333,null,32,"29 Yrs    ","Normal",null,null,null," ",null,"CRS-TC-GC-FL-31.1-S",null,null,null,null,"41-685-075",null,"Blue Line","East","A-03440",null,null,null,null,null,null,null,null,null,null," "]
[null,0,158,"LR - Light Rail",null,"Diamond Crossover"," ","11401 - Guideway Elements, Trackwork, Special, Diamond Crossover"," ",2,"Ea"," ","No",2024,null,149860.2378,null,299720.47560000001,0,null,2013,307769.23113072145,null,32,"29 Yrs    ","Normal",null,null,null," ",null,"CRS-TC-GC-FLWG-41.7-S",null,null,null,null,"04-453-751",null,"Yellow Line","Central","C-08687",null,null,null,null,null,null,null,null,null,null," "]
[null,0,159,"LR - Light Rail",null,"Diamond Crossover"," ","11401 - Guideway Elements, Trackwork, Special, Diamond Crossover"," ",2,"Ea"," ","No",2019,null,37706.769500000002,null,75413.539000000004,0,null,2013,77438.70974585053,null,32,"29 Yrs    ","Normal",null,null,null," ",null,"CRS-TC-GC-GMEG-41.7-S",null,null,null,null,"60-613-887",null,"Red Line","North","B-05446",null,null,null,null,null,null,null,null,null,null," "]
[null,0,160,"LR - Light Rail",null,"Diamond Crossover"," ","11401 - Guideway Elements, Trackwork, Special, Diamond Crossover"," ",2,"Ea"," ","No",2022,null,37706.769500000002,null,75413.539000000004,0,null,2013,77438.70974585053,null,32,"29 Yrs    ","Normal",null,null,null," ",null,"CRS-TC-GC-GCI-43.5-S",null,null,null,null,"95-022-597",null,"Yellow Line","South","B-04731",null,null,null,null,null,null,null,null,null,null," "]
[null,0,161,"LR - Light Rail",null,"Single Crossover"," ","11404 - Guideway Elements, Trackwork, Special, Single Crossover"," ",239.61,"LF"," ","No",2022,null,129121.85550000001,null,30938887.796355002,0,null,2013,31769727.076743767,null,32,"29 Yrs    ","Normal",null,null,null," ",null,"MJ-TC-GC-6.1-Z",null,null,null,null,"74-884-112",null,"Blue Line","East","C-06156",null,null,null,null,null,null,null,null,null,null," "]
[null,0,162,"LR - Light Rail",null,"Single Crossover"," ","11404 - Guideway Elements, Trackwork, Special, Single Crossover"," ",4,"Ea"," ","No",2022,null,132940.53349999999,null,531762.13399999996,0,null,2013,546042.18413168576,null,32,"29 Yrs    ","Normal",null,null,null," ",null,"APE-TC-GC-GM-G2-5.5-Z",null,null,null,null,"78-701-200",null,"Red Line","South","C-05418",null,null,null,null,null,null,null,null,null,null," "]
[null,0,163,"LR - Light Rail",null,"Single Crossover"," ","11404 - Guideway Elements, Trackwork, Special, Single Crossover"," ",4,"Ea"," ","No",2019,null,118437.9299,null,473751.71960000001,0,null,2013,486473.94608681556,null,32,"29 Yrs    ","Normal",null,null,null," ",null,"UNW-TC-GC-FL-G1-3.3-SG",null,null,null,null,"06-322-457",null,"Red Line","North","A-01515",null,null,null,null,null,null,null,null,null,null," "]
[null,0,164,"LR - Light Rail",null,"Single Crossover"," ","11404 - Guideway Elements, Trackwork, Special, Single Crossover"," ",2,"Ea"," ","No",2024,null,120855.03049999999,null,241710.06099999999,0,null,2013,248200.99288048031,null,32,"29 Yrs    ","Normal",null,null,null," ",null,"WVE-ES-OCS0195-FD-JA-2.2-Y",null,null,null,null,"77-721-610",null,"Red Line","Central","C-08820",null,null,null,null,null,null,null,null,null,null," "]
[null,0,165,"LR - Light Rail",null,"Turnout"," ","11407 - Guideway Elements, Trackwork, Special, Turnout"," ",7,"Ea"," ","No",2010,null,303864.07659999997,null,2127048.5362,0,null,2013,2184168.7367321141,null,42,"30 Yrs    ","Normal",null,null,null," ",null,"MJW-TC-GC-FL-G1-6.9-Z",null,null,null,null,"43-141-882",null,"Yellow Line","Central","A-08016",null,null,null,null,null,null,null,null,null,null," "]
[null,0,166,"LR - Light Rail",null,"Turnout"," ","11407 - Guideway Elements, Trackwork, Special, Turnout"," ",34,"Ea"," ","No",2022,null,39811.068899999998,null,1353576.3425999999,0,null,2013,1389925.5611575439,null,42,"30 Yrs    ","Normal",null,null,null," ",null,"MJ-TC-GC-2.8-Z",null,null,null,null,"09-990-775",null,"Red Line","West","C-00235",null,null,null,null,null,null,null,null,null,null," "]
[null,0,167,"LR - Light Rail",null,"Turnout"," ","11407 - Guideway Elements, Trackwork, Special, Turnout"," ",6,"Ea"," ","No",1911,null,25782.406500000001,null,154694.43900000001,0,null,2013,158848.63540243325,null,42,"30 Yrs    ","Normal",null,null,null," ",null,"MJW-TC-GC-FL-G4-3.5-Z",null,null,null,null,"34-732-621",null,"Yellow Line","South","B-02307",null,null,null,null,null,null,null,null,null,null," "]
[null,0,168,"LR - Light Rail",null,"Turnout"," ","11407 - Guideway Elements, Trackwork, Special, Turnout"," ",2,"Ea"," ","No",2024,null,58010.414599999996,null,116020.82919999999,0,null,2013,119136.47650048221,null,42,"30 Yrs    ","Normal",null,null,null," ",null,"WVE-ES-OCS0195-FD-JA-2.2-Y",null,null,null,null,"27-534-601",null,"Red Line","North","C-08816",null,null,null,null,null,null,null,null,null,null," "]
[null,0,169,"LR - Light Rail",null,"Turnout"," ","11407 - Guideway Elements, Trackwork, Special, Turnout"," ",1,"Ea"," ","No",2019,null,31905.727999999999,null,31905.727999999999,0,null,2013,32762.531006826979,null,42,"30 Yrs    ","Normal",null,null,null," ",null,"NSW-TC-GC-GM-G1-4.2-NSSL",null,null,null,null,"91-748-105",null,"Yellow Line","East","C-07357",null,null,null,null,null,null,null,null,null,null," "]
[null,0,170,"LR - Light Rail",null,"Stations"," ","40000 - Stations"," ",2.3140000000000001,"Each"," ","No",2010,null,7102974.9967999998,null,16436284.1425952,0,null,2013,16877667.51032272,null,60,"50 Yrs    ","Normal",null,null,null," ",null,"WVE-ES-OCS0195-FD-JA-2.2-Y",null,null,null,null,"43-078-155",null,"Red Line","North","",null,null,null,null,null,null,null,null,null,null," "]
[null,0,171,"LR - Light Rail",null,"Stations"," ","41203 - Stations, Building, Light Rail"," ",10,"Each"," ","No",2019,null,1598984.4081999999,null,15989844.081999999,0.1,null,2008,19447972.837561529,null,60,"100 Yrs    ","Normal",null,null,null," ",null,"CRS-TC-INT-SHPB6-16.7-S",null,null,null,null,"90-661-470",null,"Blue Line","West","",null,null,null,null,null,null,null,null,null,null," "]
[null,0,172,"LR - Light Rail",null,"Stations"," ","41203 - Stations, Building, Light Rail"," ",10,"Each"," ","No",2019,null,1598984.4081999999,null,15989844.081999999,0.1,null,2008,19447972.837561529,null,60,"100 Yrs    ","Normal",null,null,null," ",null,"MJW-TC-INT-SHPSSI1-0.1-Z",null,null,null,null,"90-661-470",null,"Red Line","North","",null,null,null,null,null,null,null,null,null,null," "]
[null,0,173,"LR - Light Rail",null,"Stations"," ","41203 - Stations, Building, Light Rail"," ",10,"Each"," ","No",2019,null,1598984.4081999999,null,15989844.081999999,0.1,null,2008,19447972.837561529,null,60,"100 Yrs    ","Normal",null,null,null," ",null,"APW-TC-INT-SHP-9.1-Z",null,null,null,null,"90-661-470",null,"Yellow Line","Central","",null,null,null,null,null,null,null,null,null,null," "]
[null,0,174,"LR - Light Rail",null,"Stations"," ","41203 - Stations, Building, Light Rail"," ",10,"Each"," ","No",2019,null,1598984.4081999999,null,15989844.081999999,0.1,null,2008,19447972.837561529,null,60,"100 Yrs    ","Normal",null,null,null," ",null,"APE-TC-INT-RSJ2-0.3-Z",null,null,null,null,"90-661-470",null,"Red Line","West","",null,null,null,null,null,null,null,null,null,null," "]
[null,0,175,"LR - Light Rail",null,"Stations"," ","41203 - Stations, Building, Light Rail"," ",11,"Each"," ","No",2019,null,1598984.4081999999,null,17588828.490199998,0.1,null,2008,21392770.121317681,null,60,"100 Yrs    ","Normal",null,null,null," ",null,"MJE-TC-INT-SM1A-1.4-Z",null,null,null,null,"90-661-470",null,"Yellow Line","South","",null,null,null,null,null,null,null,null,null,null," "]
[null,0,176,"LR - Light Rail",null,"Stations"," ","41203 - Stations, Building, Light Rail"," ",11,"Each"," ","No",2019,null,1598984.4081999999,null,17588828.490199998,0.1,null,2008,21392770.121317681,null,60,"100 Yrs    ","Normal",null,null,null," ",null,"CRN1-TC-INT-SHPR3-34.1-CL",null,null,null,null,"90-661-470",null,"Red Line","North","",null,null,null,null,null,null,null,null,null,null," "]
[null,0,177,"LR - Light Rail",null,"Stations"," ","41203 - Stations, Building, Light Rail"," ",10,"Each"," ","No",2019,null,1598984.4081999999,null,15989844.081999999,0.1,null,2008,19447972.837561529,null,60,"100 Yrs    ","Normal",null,null,null," ",null,"UNE-TC-INT-SMR1A-2.2-SG",null,null,null,null,"90-661-470",null,"Yellow Line","East","",null,null,null,null,null,null,null,null,null,null," "]
[null,0,178,"LR - Light Rail",null,"Stations"," ","41203 - Stations, Building, Light Rail"," ",10,"Each"," ","No",2019,null,1598984.4081999999,null,15989844.081999999,0.1,null,2008,19447972.837561529,null,60,"100 Yrs    ","Normal",null,null,null," ",null,"CRN1-TC-INT-SHPI3-0.6-CL",null,null,null,null,"90-661-470",null,"Blue Line","West","",null,null,null,null,null,null,null,null,null,null," "]
[null,0,179,"LR - Light Rail",null,"Light Rail"," ","32003 - Systems, Electrification, Light Rail"," ",28,"Ea"," ","No",2010,null,725.13019999999995,null,20303.6456,0,null,2013,20848.883890742949,null,null,"40 Yrs    ","Normal",null,null,null," ",null,"NSE-TC-INT-SHPSC8-10.9-NSSL",null,null,null,null,"92-313-054",null,"Yellow Line","South","",null,null,null,null,null,null,null,null,null,null," "]
[null,0,180,"LR - Light Rail",null,"Light Rail"," ","32003 - Systems, Electrification, Light Rail"," ",1,"Ea"," ","No",2019,null,1256.8923,null,1256.8923,0,null,2013,1290.6451453166053,null,null,"40 Yrs    ","Normal",null,null,null," ",null,"CRS-TC-INT-SHPS6-1.1-S",null,null,null,null,"69-608-611",null,"Red Line","North","",null,null,null,null,null,null,null,null,null,null," "]
[null,0,181,"LR - Light Rail",null,"Light Rail"," ","32003 - Systems, Electrification, Light Rail"," ",4,"EA"," ","No",2016,null,195.7851,null,783.1404,0,null,2013,804.17101398529087,null,null,"40 Yrs    ","Normal",null,null,null," ",null,"CRS-TC-INT-SHPU2-43.1-S",null,null,null,null,"17-805-430",null,"Red Line","West","",null,null,null,null,null,null,null,null,null,null," "]
[null,0,182,"LR - Light Rail",null,"Light Rail"," ","32003 - Systems, Electrification, Light Rail"," ",1,"Ea"," ","No",2017,null,193.36799999999999,null,193.36799999999999,0,null,2013,198.56074419389896,null,null,"40 Yrs    ","Normal",null,null,null," ",null,"NSW-TC-INT-SHPY4-3.4-Z",null,null,null,null,"06-606-900",null,"Yellow Line","Central","",null,null,null,null,null,null,null,null,null,null," "]
[null,0,183,"LR - Light Rail",null,"Light Rail"," ","32103 - Systems, Electrification, Catenary, Light Rail"," ",587263,"LF"," ","No",2022,null,27.9879,null,16436258.117699999,0,null,2013,16877640.786549609,null,null,"40 Yrs    ","Normal",null,null,null," ",null,"APE-TC-INT-SM11-0.1-Z",null,null,null,null,"88-745-770",null,"Red Line","North","",null,null,null,null,null,null,null,null,null,null," "]
[null,0,184,"LR - Light Rail",null,"Light Rail"," ","32103 - Systems, Electrification, Catenary, Light Rail"," ",355114.4,"LF"," ","No",2010,null,27.226199999999999,null,9668415.6772799995,0,null,2013,9928053.3079758622,null,null,"40 Yrs    ","Normal",null,null,null," ",null,"CRS-TC-INT-SMA11-30.7-S",null,null,null,null,"65-317-334",null,"Yellow Line","East","",null,null,null,null,null,null,null,null,null,null," "]
[null,0,185,"LR - Light Rail",null,"Light Rail"," ","32103 - Systems, Electrification, Catenary, Light Rail"," ",223888.1,"LF"," ","No",2024,null,27.637799999999999,null,6187774.5301799998,0,null,2013,6353942.3049139166,null,null,"40 Yrs    ","Normal",null,null,null," ",null,"WVW-TC-INT-SHPW6-4.8-Z",null,null,null,null,"49-646-694",null,"Blue Line","West","",null,null,null,null,null,null,null,null,null,null," "]
[null,0,186,"LR - Light Rail",null,"Light Rail"," ","32103 - Systems, Electrification, Catenary, Light Rail"," ",89172,"LF"," ","No",2014,null,28.190300000000001,null,2513785.4316000002,0,null,2013,2581291.1445651688,null,null,"40 Yrs    ","Normal",null,null,null," ",null,"CRS-TC-INT-SHPV1-36.8-S",null,null,null,null,"05-011-821",null,"Blue Line","East","",null,null,null,null,null,null,null,null,null,null," "]
[null,0,187,"LR - Light Rail",null,"Light Rail"," ","32103 - Systems, Electrification, Catenary, Light Rail"," ",57714,"LF"," ","No",2016,null,26.803599999999999,null,1546942.9704,0,null,2013,1588484.896302101,null,null,"40 Yrs    ","Normal",null,null,null," ",null,"NSW-ES-TPSS-IM-1.5M-IB-0.0-TP",null,null,null,null,"88-198-372",null,"Red Line","Central","",null,null,null,null,null,null,null,null,null,null," "]
[null,0,188,"LR - Light Rail",null,"Light Rail"," ","32103 - Systems, Electrification, Catenary, Light Rail"," ",11056.2,"LF"," ","No",2017,null,25.3599,null,280384.12638000003,0,null,2013,287913.61959667073,null,null,"40 Yrs    ","Normal",null,null,null," ",null,"IME-ES-OCS3189-LP-JAX-1.6-TP",null,null,null,null,"25-201-967",null,"Blue Line","East","",null,null,null,null,null,null,null,null,null,null," "]
[null,0,189,"LR - Light Rail",null,"Light Rail"," ","32103 - Systems, Electrification, Catenary, Light Rail"," ",32,"Ea"," ","No",2010,null,1480.4740999999999,null,47375.171199999997,0,null,2013,48647.393828272354,null,null,"40 Yrs    ","Normal",null,null,null," ",null,"UNE-ES-TPSS-IM-1.5M-DCB-3.3-TP",null,null,null,null,"21-887-343",null,"Red Line","South","",null,null,null,null,null,null,null,null,null,null," "]
[41500,0,190,"LR - Light Rail",null,"Light Rail"," ","32103 - Systems, Electrification, Catenary, Light Rail"," ",2,"Ea"," ","No",2019,null,3142.2307999999998,null,6284.4615999999996,0,null,2013,6453.2258292684464,null,null,"40 Yrs    ","Normal",null,null,null," ",null,null,null,null,null,null,"99-587-927",null,"Blue Line","West","",null,null,null,null,null,null,null,null,null,null," "]
[41500,0,191,"LR - Light Rail",null,"Light Rail"," ","32103 - Systems, Electrification, Catenary, Light Rail"," ",2,"Ea"," ","No",2017,null,159.52860000000001,null,319.05720000000002,0,null,2013,327.62522791993337,null,39,"40 Yrs    ","Normal",null,null,null," ",null,null,null,null,null,null,"73-488-938",null,"Yellow Line","Central","",null,null,null,null,null,null,null,null,null,null," "]
[41500,0,192,"LR - Light Rail",null,"Light Rail"," ","32103 - Systems, Electrification, Catenary, Light Rail"," ",1,"Ea"," ","No",2022,null,154.6944,null,154.6944,0,null,2013,158.84859535511919,null,null,"40 Yrs    ","Normal",null,null,null," ",null,null,null,null,null,null,"69-480-212",null,"Red Line","North","",null,null,null,null,null,null,null,null,null,null," "]
[41500,{"$f":"1-NOT(ISBLANK(D202))*NOT(ISBLANK(F202))*NOT(ISBLANK(H202))*NOT(ISBLANK(J202))*NOT(ISBLANK(N202))*NOT(ISBLANK(U202))*NOT(ISBLANK(M202))*NOT(AND(ISBLANK(P202),ISBLANK(Q202)))*NOT(ISBLANK(Z202))","v":0},{"$f":"OFFSET(C202,-1,0)+1","v":193},"LR - Light Rail",null,"Light Rail"," ","32104 - Systems, Electrification, Catenary Poles, Light Rail"," ",8704,"EA"," ","No",2016,null,4665.3595999999998,null,{"$f":"IF(P202=\"\",Q202,J202*P202)","v":40607289.958399996},0,null,2013,{"$f":"IFERROR(R202*INDEX(rng.CostIndexMeans,MATCH(rng.ConstantYear,rng.CostIndexYear,0))/INDEX(rng.CostIndexMeans,MATCH(U202,rng.CostIndexYear,0))*(1+S202),\"\")","v":41697766.506543711},null,null,{"$f":"IFERROR(TEXT(INDEX(rng.ClassEDL,MATCH(H202,rng.ClassChoice,0)),\"0\")&\" Yrs    \",\"\")","v":"40 Yrs    "},"Normal",null,null,null," ",null,null,null,null,null,null,"25-122-028",null,"Yellow Line","South","",null,null,null,null,null,null,null,null,null,null," "]
[41500,0,194,"LR - Light Rail",null,"Light Rail"," ","32104 - Systems, Electrification, Catenary Poles, Light Rail"," ",5937,"EA"," ","No",2014,null,4559.799,null,27071526.662999999,0,null,2013,27798511.029075433,null,null,"40 Yrs    ","Normal",null,null,null," ",null,null,null,null,null,null,"76-828-650",null,"Red Line","West","",null,null,null,null,null,null,null,null,null,null," "]
[41500,0,195,"LR - Light Rail",null,"Light Rail"," ","32104 - Systems, Electrification, Catenary Poles, Light Rail"," ",2553,"Ea"," ","No",2010,null,6059.32,null,15469443.959999999,0,null,2013,15884863.601854576,null,null,"40 Yrs    ","Normal",null,null,null," ",null,null,null,null,null,null,"94-475-854",null,"Yellow Line","East","",null,null,null,null,null,null,null,null,null,null," "]
[null,0,196,"LR - Light Rail",null,"Light Rail"," ","32104 - Systems, Electrification, Catenary Poles, Light Rail"," ",2730,"Ea"," ","No",2022,null,4604.0011999999997,null,12568923.275999999,0,null,2013,12906451.736577814,null,null,"40 Yrs    ","Normal",null,null,null," ",null,"MJE-ES-OCS-X0X2-FP-6.1-Y",null,null,null,null,"15-491-678",null,"Red Line","Central","",null,null,null,null,null,null,null,null,null,null," "]
[null,0,197,"LR - Light Rail",null,"Light Rail"," ","32104 - Systems, Electrification, Catenary Poles, Light Rail"," ",1166,"Ea"," ","No",2024,null,4643.4866000000002,null,5414305.3755999999,0,null,2013,5559702.2499698177,null,null,"40 Yrs    ","Normal",null,null,null," ",null,"AP-ES-OCS-XOA8-FD-MW-5.2-Y",null,null,null,null,"96-542-605",null,"Blue Line","East","",null,null,null,null,null,null,null,null,null,null," "]
[null,0,198,"LR - Light Rail",null,"Light Rail"," ","32104 - Systems, Electrification, Catenary Poles, Light Rail"," ",181660,"LF"," ","No",2010,null,26.6113,null,4834208.7580000004,0,null,2013,4964027.5980366152,null,null,"40 Yrs    ","Normal",null,null,null," ",null,"NSE-ES-OCS-WR110-FD-MW-10.2-TP",null,null,null,null,"43-932-560",null,"Blue Line","West","",null,null,null,null,null,null,null,null,null,null," "]
[null,0,199,"LR - Light Rail",null,"Light Rail"," ","32104 - Systems, Electrification, Catenary Poles, Light Rail"," ",277,"Ea"," ","No",2019,null,4537.5173999999997,null,1256892.3197999999,0,null,2013,1290645.1656483186,null,null,"40 Yrs    ","Normal",null,null,null," ",null,"WVE-ES-YS-WR5EC-4.7-Y",null,null,null,null,"94-325-675",null,"Red Line","North","",null,null,null,null,null,null,null,null,null,null," "]
[null,0,200,"LR - Light Rail",null,"Light Rail"," ","32104 - Systems, Electrification, Catenary Poles, Light Rail"," ",17553.599999999999,"LF"," ","No",2017,null,24.785699999999999,null,435078.26351999992,0,null,2013,446761.9450328931,null,null,"40 Yrs    ","Normal",null,null,null," ",null,"MJE-ES-OCS-WR29-2.0-Y",null,null,null,null,"47-541-755",null,"Yellow Line","South","",null,null,null,null,null,null,null,null,null,null," "]
[null,0,201,"LR - Light Rail",null,"AC Switchgear"," ","32204 - Systems, Electrification, Substations, AC Switchgear"," ",17,"Ea"," ","No",2022,null,1194332.0656999999,null,20303645.116899997,0,null,2013,20848883.394669678,null,40,"45 Yrs    ","Normal",null,null,null," ",null,"MJE-ES-OCS-WR7-8.7-Y",null,null,null,null,"78-344-450",null,"Red Line","North","",null,null,null,null,null,null,null,null,null,null," "]
[null,0,202,"LR - Light Rail",null,"AC Switchgear"," ","32204 - Systems, Electrification, Substations, AC Switchgear"," ",13,"Ea"," ","No",2010,null,1041212.5701,null,13535763.4113,0,null,2013,13899255.596480684,null,40,"45 Yrs    ","Normal",null,null,null," ",null,"MJE-ES-OCS-X0X2-FP-6.1-Y",null,null,null,null,"23-790-909",null,"Red Line","West","",null,null,null,null,null,null,null,null,null,null," "]
[null,0,203,"LR - Light Rail",null,"AC Switchgear"," ","32204 - Systems, Electrification, Substations, AC Switchgear"," ",6,"Ea"," ","No",2024,null,1401918.3533000001,null,8411510.1198000014,0,null,2013,8637394.5491601545,null,40,"45 Yrs    ","Normal",null,null,null," ",null,"MJ-ES-OCS1004-FD-TT-0.1-Y",null,null,null,null,"07-447-002",null,"Yellow Line","Central","",null,null,null,null,null,null,null,null,null,null," "]
[null,0,204,"LR - Light Rail",null,"AC Switchgear"," ","32204 - Systems, Electrification, Substations, AC Switchgear"," ",3,"EA"," ","No",2014,null,1418032.3574000001,null,4254097.0722000003,0,null,2013,4368337.4732588585,null,40,"45 Yrs    ","Normal",null,null,null," ",null,"IM-ES-OCS3091-LP-TT-0.1-TP",null,null,null,null,"73-778-281",null,"Red Line","North","",null,null,null,null,null,null,null,null,null,null," "]
[null,0,205,"LR - Light Rail",null,"AC Switchgear"," ","32204 - Systems, Electrification, Substations, AC Switchgear"," ",2,"EA"," ","No",2016,null,1401918.3533000001,null,2803836.7066000002,0,null,2013,2879131.5163867176,null,40,"45 Yrs    ","Normal",null,null,null," ",null,"APE-ES-OCS230-FD-CA-5.5-Y",null,null,null,null,"58-897-339",null,"Yellow Line","East","",null,null,null,null,null,null,null,null,null,null," "]
[null,0,206,"LR - Light Rail",null,"AC Switchgear"," ","32204 - Systems, Electrification, Substations, AC Switchgear"," ",1,"Ea"," ","No",2017,null,966840.24369999999,null,966840.24369999999,0,null,2013,992803.97121386498,null,40,"45 Yrs    ","Normal",null,null,null," ",null,"IMW-ES-OCS3103-LP-CA-0.3-TP",null,null,null,null,"32-370-808",null,"Blue Line","West","",null,null,null,null,null,null,null,null,null,null," "]
[null,0,207,"LR - Light Rail",null,"DC Switchgear"," ","32205 - Systems, Electrification, Substations, DC Switchgear"," ",8,"Ea"," ","No",2022,null,2685667.3435,null,21485338.748,0,null,2013,22062310.470506463,null,40,"45 Yrs    ","Normal",null,null,null," ",null,"NSE-ES-OCS2223-FD-CA-9.2-TP",null,null,null,null,"07-175-861",null,"Blue Line","East","",null,null,null,null,null,null,null,null,null,null," "]
[null,0,208,"LR - Light Rail",null,"DC Switchgear"," ","32205 - Systems, Electrification, Substations, DC Switchgear"," ",8,"Ea"," ","No",2022,null,2685667.3435,null,21485338.748,0,null,2013,22062310.470506463,null,40,"45 Yrs    ","Normal",null,null,null," ",null,"APE-ES-OCS060-FD-JA-1.2-Y",null,null,null,null,"07-175-861",null,"Red Line","Central","",null,null,null,null,null,null,null,null,null,null," "]
[null,0,209,"LR - Light Rail",null,"DC Switchgear"," ","32205 - Systems, Electrification, Substations, DC Switchgear"," ",8,"Ea"," ","No",2022,null,2685667.3435,null,21485338.748,0,null,2013,22062310.470506463,null,40,"45 Yrs    ","Normal",null,null,null," ",null,"WVW-ES-OCS0080-FD-JA-4.1-Y",null,null,null,null,"07-175-861",null,"Blue Line","East","",null,null,null,null,null,null,null,null,null,null," "]
[null,0,210,"LR - Light Rail",null,"DC Switchgear"," ","32205 - Systems, Electrification, Substations, DC Switchgear"," ",8,"Ea"," ","No",2022,null,2685667.3435,null,21485338.748,0,null,2013,22062310.470506463,null,40,"45 Yrs    ","Normal",null,null,null," ",null,"WVE-ES-OCS0226-FD-CA-1.8-Y",null,null,null,null,"07-175-861",null,"Red Line","South","",null,null,null,null,null,null,null,null,null,null," "]
[null,0,211,"LR - Light Rail",null,"DC Switchgear"," ","32205 - Systems, Electrification, Substations, DC Switchgear"," ",7,"Ea"," ","No",2010,null,2788962.2414000002,null,19522735.689800002,0,null,2013,20047003.264591247,null,40,"45 Yrs    ","Normal",null,null,null," ",null,"WVE-ES-OCS0195-FD-JA-2.2-Y",null,null,null,null,"26-622-153",null,"Blue Line","West","",null,null,null,null,null,null,null,null,null,null," "]
[null,0,212,"LR - Light Rail",null,"DC Switchgear"," ","32205 - Systems, Electrification, Substations, DC Switchgear"," ",7,"Ea"," ","No",2010,null,2788962.2414000002,null,19522735.689800002,0,null,2013,20047003.264591247,null,40,"45 Yrs    ","Normal",null,null,null," ",null,"UN-ES-OCS4005-LP-PF-0.0-OC",null,null,null,null,"26-622-153",null,"Yellow Line","Central","",null,null,null,null,null,null,null,null,null,null," "]
[null,0,213,"LR - Light Rail",null,"DC Switchgear"," ","32205 - Systems, Electrification, Substations, DC Switchgear"," ",7,"Ea"," ","No",2010,null,2788962.2414000002,null,19522735.689800002,0,null,2013,20047003.264591247,null,40,"45 Yrs    ","Normal",null,null,null," ",null,"MJ-ES-OCS1021-FD-TT-0.1-Y",null,null,null,null,"26-622-153",null,"Red Line","North","",null,null,null,null,null,null,null,null,null,null," "]
[null,0,214,"LR - Light Rail",null,"DC Switchgear"," ","32205 - Systems, Electrification, Substations, DC Switchgear"," ",7,"Ea"," ","No",2010,null,2788962.2414000002,null,19522735.689800002,0,null,2013,20047003.264591247,null,40,"45 Yrs    ","Normal",null,null,null," ",null,"NSE-ES-OCS2259-FD-JA-8.3-TP",null,null,null,null,"26-622-153",null,"Yellow Line","South","",null,null,null,null,null,null,null,null,null,null," "]
[null,0,215,"LR - Light Rail",null,"DC Switchgear"," ","32205 - Systems, Electrification, Substations, DC Switchgear"," ",12,"Ea"," ","No",2024,null,2739380.6904000002,null,32872568.2848,0,null,2013,33755335.020244561,null,40,"45 Yrs    ","Normal",null,null,null," ",null,"NS-ES-OCS2224-DGF-9.2-TP",null,null,null,null,"55-623-634",null,"Red Line","West","",null,null,null,null,null,null,null,null,null,null," "]
[null,0,216,"LR - Light Rail",null,"DC Switchgear"," ","32205 - Systems, Electrification, Substations, DC Switchgear"," ",7,"EA"," ","No",2014,null,2762400.6962000001,null,19336804.873400003,0,null,2013,19856079.423661191,null,40,"45 Yrs    ","Normal",null,null,null," ",null,"APW-ES-OCS168-FD-JA-4.1-Y",null,null,null,null,"19-955-401",null,"Yellow Line","East","",null,null,null,null,null,null,null,null,null,null," "]
[null,0,217,"LR - Light Rail",null,"DC Switchgear"," ","32205 - Systems, Electrification, Substations, DC Switchgear"," ",4,"EA"," ","No",2016,null,2900520.7310000001,null,11602082.924000001,0,null,2013,11913647.65415564,null,40,"45 Yrs    ","Normal",null,null,null," ",null,"NS-ES-OCS2415-FD-WF-5.5-TP",null,null,null,null,"19-099-055",null,"Red Line","Central","",null,null,null,null,null,null,null,null,null,null," "]
[null,0,218,"LR - Light Rail",null,"DC Switchgear"," ","32205 - Systems, Electrification, Substations, DC Switchgear"," ",2,"Ea"," ","No",2017,null,2803836.7067,null,5607673.4134,0,null,2013,5758263.0329788057,null,40,"45 Yrs    ","Normal",null,null,null," ",null,"NS-ES-OCS2306-FD-WF-7.6-TP",null,null,null,null,"55-712-240",null,"Blue Line","East","",null,null,null,null,null,null,null,null,null,null," "]
[null,0,219,"LR - Light Rail",null,"Light Rail"," ","32203 - Systems, Electrification, Substations, Light Rail"," ",48,"Ea"," ","No",2022,null,1067552.7690999999,null,51242532.916799992,0,null,2013,52618610.475053638,null,null,"40 Yrs    ","Normal",null,null,null," ",null,"APW-ES-OCS028-FD-JA-0.5-Y",null,null,null,null,"23-344-088",null,"Blue Line","West","",null,null,null,null,null,null,null,null,null,null," "]
[null,0,220,"LR - Light Rail",null,"Light Rail"," ","32203 - Systems, Electrification, Substations, Light Rail"," ",18,"Ea"," ","No",2024,null,1074266.9373999999,null,19336804.873199999,0,null,2013,19856079.423455816,null,null,"40 Yrs    ","Normal",null,null,null," ",null,"AP-ES-OCS207-FD-TT-5.0-Y",null,null,null,null,"51-322-410",null,"Red Line","North","",null,null,null,null,null,null,null,null,null,null," "]
[null,0,221,"LR - Light Rail",null,"Light Rail"," ","32203 - Systems, Electrification, Substations, Light Rail"," ",13,"Ea"," ","No",2010,null,818095.59080000001,null,10635242.680400001,0,null,2013,10920843.68304446,null,null,"40 Yrs    ","Normal",null,null,null," ",null,"APE-ES-OCS247-FD-CA-5.8-Y",null,null,null,null,"80-578-450",null,"Yellow Line","Central","",null,null,null,null,null,null,null,null,null,null," "]
[null,0,222,"LR - Light Rail",null,"Light Rail"," ","32203 - Systems, Electrification, Substations, Light Rail"," ",9,"EA"," ","No",2014,null,1074266.9373999999,null,9668402.4365999997,0,null,2013,9928039.7117279079,null,null,"40 Yrs    ","Normal",null,null,null," ",null,"APW-ES-OCS187-FD-CA-4.5-Y",null,null,null,null,"21-163-552",null,"Yellow Line","East","",null,null,null,null,null,null,null,null,null,null," "]
[null,0,223,"LR - Light Rail",null,"Light Rail"," ","32203 - Systems, Electrification, Substations, Light Rail"," ",2,"EA"," ","No",2016,null,966840.24369999999,null,1933680.4874,0,null,2013,1985607.94242773,null,null,"40 Yrs    ","Normal",null,null,null," ",null,"NSE-ES-OCS2175-FD-CA-10.2-TP",null,null,null,null,"98-855-444",null,"Yellow Line","South","",null,null,null,null,null,null,null,null,null,null," "]
[null,0,224,"LR - Light Rail",null,"Light Rail"," ","32203 - Systems, Electrification, Substations, Light Rail"," ",2,"Ea"," ","No",2019,null,1305.2343000000001,null,2610.4686000000002,0,null,2013,2680.5706627301602,null,null,"40 Yrs    ","Normal",null,null,null," ",null,"APW-ES-OCS053-FD-CA-1.0-Y",null,null,null,null,"62-370-612",null,"Red Line","North","",null,null,null,null,null,null,null,null,null,null," "]
[null,0,225,"LR - Light Rail",null,"Coin Counters - Light Rail"," ","34103 - Systems, Revenue Collection, Central Revenue Collection, Coin Counters - Light Rail"," ",2,"Ea"," ","No",2010,null,159528.64019999999,null,319057.28039999999,0,null,2013,327625.3104790115,null,20,"12 Yrs    ","Normal",null,null,null," ",null,"UNW-ES-OCS4005-LP-JA-0.0-OC",null,null,null,null,"31-938-732",null,"Systemwide","","",null,null,null,null,null,null,null,null,null,null," "]
[null,0,226,"LR - Light Rail",null,"Fare Control System Light Rail"," ","35123 - Systems, Revenue Collection, In-Station, Fare Control System Light Rail"," ",129,"Each"," ","No",2020,null,3989.0180999999998,null,514583.33489999996,0.1,null,2009,622034.76897151221,null,null,"20 Yrs    ","Normal",null,null,null," ",null,"NS-ES-OCS2485-DGF-4.2-TP",null,null,null,null,"78-944-186",null,"Yellow Line","South","",null,null,null,null,null,null,null,null,null,null," "]
[null,0,227,"LR - Light Rail",null,"System Light Rail"," ","35113 - Systems, Revenue Collection, In-Station, System Light Rail"," ",44,"Each"," ","No",2010,null,54487.369200000001,null,2397444.2448,0.1,null,1999,3609014.8154245103,null,null,"20 Yrs    ","Normal",null,null,null," ",null,"MJE-ES-OCS1273-FD-CA-4.9-Y",null,null,null,null,"28-568-985",null,"Yellow Line","East","",null,null,null,null,null,null,null,null,null,null," "]
[null,0,228,"LR - Light Rail",null,"System Light Rail"," ","35113 - Systems, Revenue Collection, In-Station, System Light Rail"," ",11,"Each"," ","No",2012,null,58450.764499999997,null,642958.40949999995,0.1,null,2001,925593.7955458872,null,null,"20 Yrs    ","Normal",null,null,null," ",null,"NSW-ES-OCS2490-FD-CA-4.0-TP",null,null,null,null,"99-200-501",null,"Red Line","West","",null,null,null,null,null,null,null,null,null,null," "]
[null,0,229,"LR - Light Rail",null,"System Light Rail"," ","35113 - Systems, Revenue Collection, In-Station, System Light Rail"," ",7,"Each"," ","No",2014,null,54592.205999999998,null,382145.44199999998,0.1,null,2003,531228.11751083273,null,null,"20 Yrs    ","Normal",null,null,null," ",null,"UNW-ES-OCS4103-LP-CA-2.0-OC",null,null,null,null,"43-435-524",null,"Red Line","South","",null,null,null,null,null,null,null,null,null,null," "]
[null,0,230,"LR - Light Rail",null,"System Light Rail"," ","35113 - Systems, Revenue Collection, In-Station, System Light Rail"," ",6,"Each"," ","No",2019,null,55692.523000000001,null,334155.13800000004,0.1,null,2008,406422.97786200675,null,null,"20 Yrs    ","Normal",null,null,null," ",null,"NSW-ES-OCS2300-FD-JA-7.7-TP",null,null,null,null,"16-861-607",null,"Red Line","North","",null,null,null,null,null,null,null,null,null,null," "]
[null,0,231,"LR - Light Rail",null,"System Light Rail"," ","35113 - Systems, Revenue Collection, In-Station, System Light Rail"," ",2,"Each"," ","No",2015,null,55574.155400000003,null,111148.31080000001,0.1,null,2004,150462.96540326616,null,null,"20 Yrs    ","Normal",null,null,null," ",null,"WVE-ES-OCS0273-FD-CA-1.1-Y",null,null,null,null,"47-716-809",null,"Blue Line","West","",null,null,null,null,null,null,null,null,null,null," "]
[null,0,232,"LR - Light Rail",null,"Interlockings"," ","31500 - Systems, Train Control, Interlockings"," ",90,"Ea"," ","No",2010,null,343765.42,null,30938887.799999997,0,null,2013,31769727.080486644,null,null,"40 Yrs    ","Normal",null,null,null," ",null,"NS-ES-OCS2459-FD-WF-4.7-TP",null,null,null,null,"03-804-127",null,"Red Line","West","",null,null,null,null,null,null,null,null,null,null," "]
[null,0,233,"LR - Light Rail",null,"Interlockings"," ","31500 - Systems, Train Control, Interlockings"," ",152,"Ea"," ","No",2022,null,139937.4037,null,21270485.362399999,0,null,2013,21841687.367731884,null,null,"40 Yrs    ","Normal",null,null,null," ",null,"NSW-ES-OCS2011-FD-CA-13.6-TP",null,null,null,null,"60-793-260",null,"Yellow Line","South","",null,null,null,null,null,null,null,null,null,null," "]
[null,0,234,"LR - Light Rail",null,"Interlockings"," ","31500 - Systems, Train Control, Interlockings"," ",50,"Ea"," ","No",2014,null,328725.68290000001,null,16436284.145000001,0,null,2013,16877667.512792103,null,null,"40 Yrs    ","Normal",null,null,null," ",null,"MJE-ES-OCS1039-FD-CA-0.2-Y",null,null,null,null,"37-449-862",null,"Red Line","North","",null,null,null,null,null,null,null,null,null,null," "]
[null,0,235,"LR - Light Rail",null,"Interlockings"," ","31500 - Systems, Train Control, Interlockings"," ",56,"Ea"," ","No",2024,null,155385.0392,null,8701562.1952,0,null,2013,8935235.7428758088,null,null,"40 Yrs    ","Normal",null,null,null," ",null,"APE-ES-OCS031-FD-CA-0.5-Y",null,null,null,null,"72-772-936",null,"Red Line","South","",null,null,null,null,null,null,null,null,null,null," "]
[null,0,236,"LR - Light Rail",null,"Interlockings"," ","31500 - Systems, Train Control, Interlockings"," ",31,"Ea"," ","No",2019,null,152823.13529999999,null,4737517.1942999996,0,null,2013,4864739.4591225032,null,null,"40 Yrs    ","Normal",null,null,null," ",null,"NSW-ES-OCS2049-FD-CA-12.9-TP",null,null,null,null,"36-601-896",null,"Yellow Line","Central","",null,null,null,null,null,null,null,null,null,null," "]
[null,0,237,"LR - Light Rail",null,"Interlockings"," ","31500 - Systems, Train Control, Interlockings"," ",8,"Ea"," ","No",1911,null,568018.64320000005,null,4544149.1456000004,0,null,2013,4666178.664920805,null,null,"40 Yrs    ","Normal",null,null,null," ",null,"UNE-ES-OCS5036-LP-CA-3.1-TP",null,null,null,null,"83-833-238",null,"Red Line","North","",null,null,null,null,null,null,null,null,null,null," "]
[null,0,238,"LR - Light Rail",null,"Interlockings"," ","31500 - Systems, Train Control, Interlockings"," ",2,"Ea"," ","No",1911,null,580104.14619999996,null,1160208.2923999999,0,null,2013,1191364.7654155637,null,null,"40 Yrs    ","Normal",null,null,null," ",null,"UNW-ES-OCS5016-LP-CA-2.6-TP",null,null,null,null,"93-742-921",null,"Red Line","North","",null,null,null,null,null,null,null,null,null,null," "]
[null,0,239,"LR - Light Rail",null,"Interlockings"," ","31500 - Systems, Train Control, Interlockings"," ",3,"Ea"," ","No",2013,null,3545.0808999999999,null,10635.242699999999,0,null,2013,10920.8437031708,null,null,"40 Yrs    ","Normal",null,null,null," ",null,"APW-ES-OCS225-FD-JA-5.4-Y",null,null,null,null,"89-085-300",null,"Red Line","Central","",null,null,null,null,null,null,null,null,null,null," "]
[null,0,240,"LR - Light Rail",null,"Light Rail"," ","31003 - Systems, Train Control, Light Rail"," ",127,"Ea"," ","No",2022,null,129419.56020000001,null,16436284.145400001,0,null,2013,16877667.513202842,null,null,"40 Yrs    ","Normal",null,null,null," ",null,"NSE-ES-OCS2193-FD-JA-9.9-TP",null,null,null,null,"67-477-238",null,"Red Line","West","",null,null,null,null,null,null,null,null,null,null," "]
[null,0,241,"LR - Light Rail",null,"Light Rail"," ","31003 - Systems, Train Control, Light Rail"," ",197,"Ea"," ","No",2010,null,78525.0959,null,15469443.8923,0,null,2013,15884863.532336548,null,null,"40 Yrs    ","Normal",null,null,null," ",null,"AP-ES-OCS170-FD-TT-4.1-Y",null,null,null,null,"82-355-361",null,"Yellow Line","East","",null,null,null,null,null,null,null,null,null,null," "]
[null,0,242,"LR - Light Rail",null,"Light Rail"," ","31003 - Systems, Train Control, Light Rail"," ",46,"Ea"," ","No",2024,null,193368.04870000001,null,8894930.2401999999,0,null,2013,9133796.5332781468,null,null,"40 Yrs    ","Normal",null,null,null," ",null,"AP-ES-OCS195-FD-TT-4.7-Y",null,null,null,null,"67-418-393",null,"Red Line","North","",null,null,null,null,null,null,null,null,null,null," "]
[null,0,243,"LR - Light Rail",null,"Light Rail"," ","31003 - Systems, Train Control, Light Rail"," ",13,"Ea"," ","No",2014,null,141307.42019999999,null,1836996.4626,0,null,2013,1886327.5448647961,null,null,"40 Yrs    ","Normal",null,null,null," ",null,"NSE-ES-OCS2210-FD-CA-9.4-TP",null,null,null,null,"99-749-440",null,"Yellow Line","South","",null,null,null,null,null,null,null,null,null,null," "]
[null,0,244,"LR - Light Rail",null,"Light Rail"," ","31003 - Systems, Train Control, Light Rail"," ",7,"Ea"," ","No",2019,null,100827.6254,null,705793.37780000002,0,null,2013,724746.89888240921,null,null,"40 Yrs    ","Normal",null,null,null," ",null,"NSE-ES-OCS2380-FD-CA-6.1-TP",null,null,null,null,"97-606-504",null,"Yellow Line","Central","",null,null,null,null,null,null,null,null,null,null," "]
[null,0,245,"LR - Light Rail",null,"Light Rail"," ","31403 - Systems, Train Control, Roadway Crossings, Light Rail"," ",233,"Ea"," ","No",2010,null,70541.991999999998,null,16436284.136,0,null,2013,16877667.50355041,null,40,"40 Yrs    ","Normal",null,null,null," ",null,"WVW-ES-OCS0344-FD-CA-0.1-Y",null,null,null,null,"00-833-173",null,"Blue Line","East","",null,null,null,null,null,null,null,null,null,null," "]
[null,0,246,"LR - Light Rail",null,"Light Rail"," ","31403 - Systems, Train Control, Roadway Crossings, Light Rail"," ",173,"Ea"," ","No",2022,null,41915.039499999999,null,7251301.8334999997,0,null,2013,7446029.7900083996,null,40,"40 Yrs    ","Normal",null,null,null," ",null,"APW-ES-OCS155-FD-JA-3.6-Y",null,null,null,null,"74-238-326",null,"Yellow Line","Central","",null,null,null,null,null,null,null,null,null,null," "]
[null,0,247,"LR - Light Rail",null,"Light Rail"," ","31403 - Systems, Train Control, Roadway Crossings, Light Rail"," ",43,"Ea"," ","No",2014,null,101180.95570000001,null,4350781.0951000005,0,null,2013,4467617.8688707696,null,40,"40 Yrs    ","Normal",null,null,null," ",null,"MJE-ES-OCS1423-FD-CA-8.7-Y",null,null,null,null,"70-743-322",null,"Blue Line","West","",null,null,null,null,null,null,null,null,null,null," "]
[null,0,248,"LR - Light Rail",null,"Light Rail"," ","31403 - Systems, Train Control, Roadway Crossings, Light Rail"," ",27,"Ea"," ","No",2024,null,42970.677499999998,null,1160208.2925,0,null,2013,1191364.7655182492,null,40,"40 Yrs    ","Normal",null,null,null," ",null,"MJW-ES-OCS1305-FD-CA-5.7-Y",null,null,null,null,"73-935-852",null,"Yellow Line","East","",null,null,null,null,null,null,null,null,null,null," "]
[null,0,249,"LR - Light Rail",null,"Light Rail"," ","31403 - Systems, Train Control, Roadway Crossings, Light Rail"," ",2,"Ea"," ","No",1911,null,159528.64019999999,null,319057.28039999999,0,null,2013,327625.3104790115,null,40,"40 Yrs    ","Normal",null,null,null," ",null,"NSE-ES-OCS2426-FD-JA-5.4-TP",null,null,null,null,"83-157-455",null,"Yellow Line","South","",null,null,null,null,null,null,null,null,null,null," "]
[null,0,250,"LR - Light Rail",null,"Light Rail"," ","31403 - Systems, Train Control, Roadway Crossings, Light Rail"," ",3,"Ea"," ","No",1911,null,83792.821100000001,null,251378.4633,0,null,2013,258129.03245193994,null,40,"40 Yrs    ","Normal",null,null,null," ",null,"WVE-ES-OCS0181-FD-JA-2.4-Y",null,null,null,null,"81-398-841",null,"Blue Line","East","",null,null,null,null,null,null,null,null,null,null," "]
[null,0,251,"LR - Light Rail",null,"Signals & Train Stops Light Rail"," ","31113 - Systems, Train Control, Wayside Train Control, Signals & Train Stops Light Rail"," ",64,"Ea"," ","No",2014,null,3776.7197000000001,null,241710.06080000001,0,null,2013,248200.99267510948,null,null,"40 Yrs    ","Normal",null,null,null," ",null,"NSE-ES-OCS2623-LP-CA-1.7-TP",null,null,null,null,"16-835-096",null,"Red Line","Central","",null,null,null,null,null,null,null,null,null,null," "]
[null,0,252,"LR - Light Rail",null,"Signals & Train Stops Light Rail"," ","31113 - Systems, Train Control, Wayside Train Control, Signals & Train Stops Light Rail"," ",38,"Ea"," ","No",2024,null,3816.4746,null,145026.03479999999,0,null,2013,148920.59387995061,null,null,"40 Yrs    ","Normal",null,null,null," ",null,"IMW-ES-OCS3198-LP-JA-1.7-TP",null,null,null,null,"36-419-424",null,"Yellow Line","Central","",null,null,null,null,null,null,null,null,null,null," "]
[null,0,253,"LR - Light Rail",null,"Signals & Train Stops Light Rail"," ","31113 - Systems, Train Control, Wayside Train Control, Signals & Train Stops Light Rail"," ",31,"Ea"," ","No",2010,null,3742.6073999999999,null,116020.8294,0,null,2013,119136.47670585306,null,null,"40 Yrs    ","Normal",null,null,null," ",null,"NSW-ES-OCS3014-LP-JA-1.2-TP",null,null,null,null,"82-299-835",null,"Red Line","South","",null,null,null,null,null,null,null,null,null,null," "]
[null,0,254,"LR - Light Rail",null,"Signals & Train Stops Light Rail"," ","31113 - Systems, Train Control, Wayside Train Control, Signals & Train Stops Light Rail"," ",42,"Ea"," ","No",2022,null,2762.4007000000001,null,116020.8294,0,null,2013,119136.47670585306,null,null,"40 Yrs    ","Normal",null,null,null," ",null,"APW-ES-OCS011-LP-JA-0.2-Y",null,null,null,null,"46-503-968",null,"Red Line","North","",null,null,null,null,null,null,null,null,null,null," "]
[null,0,255,"LR - Light Rail",null,"Drainage"," ","36200 - Systems, Utilities, Drainage"," ",1000,"LF"," ","No",2024,null,16310.8213,null,16310821.299999999,0,null,2013,16748835.462649968,null,45,"40 Yrs    ","Normal",null,null,null," ",null,"WVW-ES-OCS0317-FD-JA-0.4-Y",null,null,null,null,"06-943-948",null,"Red Line","North","",null,null,null,null,null,null,null,null,null,null," "]
[null,0,256,"LR - Light Rail",null,"Drainage"," ","36200 - Systems, Utilities, Drainage"," ",133895,"LF"," ","No",2010,null,194.9639,null,26104691.390499998,0,null,2013,26805712.1625592,null,45,"40 Yrs    ","Normal",null,null,null," ",null,"NS-ES-OCS2204-FD-WF-9.6-TP",null,null,null,null,"44-179-882",null,"Blue Line","West","",null,null,null,null,null,null,null,null,null,null," "]
[null,{"$f":"1-NOT(ISBLANK(D266))*NOT(ISBLANK(F266))*NOT(ISBLANK(H266))*NOT(ISBLANK(J266))*NOT(ISBLANK(N266))*NOT(ISBLANK(U266))*NOT(ISBLANK(M266))*NOT(AND(ISBLANK(P266),ISBLANK(Q266)))*NOT(ISBLANK(Z266))","v":0},{"$f":"OFFSET(C266,-1,0)+1","v":257},"LR - Light Rail",null,"Drainage"," ","36200 - Systems, Utilities, Drainage"," ",140,"Ea"," ","No",2010,null,17955.604500000001,null,{"$f":"IF(P266=\"\",Q266,J266*P266)","v":2513784.6300000004},0,null,2013,{"$f":"IFERROR(R266*INDEX(rng.CostIndexMeans,MATCH(rng.ConstantYear,rng.CostIndexYear,0))/INDEX(rng.CostIndexMeans,MATCH(U266,rng.CostIndexYear,0))*(1+S266),\"\")","v":2581290.3214388373},null,45,{"$f":"IFERROR(TEXT(INDEX(rng.ClassEDL,MATCH(H266,rng.ClassChoice,0)),\"0\")&\" Yrs    \",\"\")","v":"40 Yrs    "},"Normal",null,null,null," ",null,"MJ-ES-OCS1365-FD-TT-7.1-Y",null,null,null,null,"39-532-999",null,"Yellow Line","Central","",null,null,null,null,null,null,null,null,null,null," "]
[null,0,258,"LR - Light Rail",null,"Drainage"," ","36200 - Systems, Utilities, Drainage"," ",24,"Ea"," ","No",2022,null,64456.016199999998,null,1546944.3887999998,0,null,2013,1588486.3527921073,null,45,"40 Yrs    ","Normal",null,null,null," ",null,"IMW-ES-OCS3094-LP-CA-0.2-TP",null,null,null,null,"74-006-156",null,"Red Line","South","",null,null,null,null,null,null,null,null,null,null," "]
[null,0,259,"LR - Light Rail",null,"Drainage"," ","36200 - Systems, Utilities, Drainage"," ",26657.14,"LF"," ","No",2022,null,22.849799999999998,null,609110.31757199997,0,null,2013,625467.49179429095,null,45,"40 Yrs    ","Normal",null,null,null," ",null,"NSW-ES-OCS2589-FD-CA-2.3-TP",null,null,null,null,"44-703-245",null,"Yellow Line","Central","",null,null,null,null,null,null,null,null,null,null," "]
[null,0,260,"LR - Light Rail",null,"Drainage"," ","36200 - Systems, Utilities, Drainage"," ",813.67,"LF"," ","No",2014,null,54.659300000000002,null,44474.632631,0,null,2013,45668.96359770812,null,45,"40 Yrs    ","Normal",null,null,null," ",null,"UN-ES-OCS4024-LP-PF-0.3-OC",null,null,null,null,"26-829-323",null,"Red Line","South","",null,null,null,null,null,null,null,null,null,null," "]
[null,0,261,"LR - Light Rail",null,"Drainage"," ","36200 - Systems, Utilities, Drainage"," ",984.06,"LF"," ","No",2016,null,44.212600000000002,null,43507.851155999997,0,null,2013,44676.219973381056,null,45,"40 Yrs    ","Normal",null,null,null," ",null,"IM-ES-OCS3208-LP-TT-1.8-TP",null,null,null,null,"57-123-135",null,"Blue Line","West","",null,null,null,null,null,null,null,null,null,null," "]
[null,0,262,"LR - Light Rail",null,"Drainage"," ","36200 - Systems, Utilities, Drainage"," ",50,"Ea"," ","No",2016,null,599.44100000000003,null,29972.050000000003,0,null,2013,30776.925618596411,null,45,"40 Yrs    ","Normal",null,null,null," ",null,"NSW-ES-OCS2530A-FD-CA-3.3-TP",null,null,null,null,"32-035-007",null,"Blue Line","East","",null,null,null,null,null,null,null,null,null,null," "]
[null,0,263,"LR - Light Rail",null,"Drainage"," ","36200 - Systems, Utilities, Drainage"," ",40,"Ea"," ","No",2024,null,725.13019999999995,null,29005.207999999999,0,null,2013,29784.119843918499,null,45,"40 Yrs    ","Normal",null,null,null," ",null,"MJW-ES-OCS1306-FD-CA-5.7-Y",null,null,null,null,"22-884-833",null,"Yellow Line","Central","",null,null,null,null,null,null,null,null,null,null," "]
[null,0,264,"LR - Light Rail",null,"Drainage"," ","36200 - Systems, Utilities, Drainage"," ",59,"Ea"," ","No",2014,null,327.74250000000001,null,19336.807499999999,0,null,2013,19856.082120796444,null,45,"40 Yrs    ","Normal",null,null,null," ",null,"NS-ES-OCS2274-FD-WF-8.0-TP",null,null,null,null,"88-064-156",null,"Blue Line","West","",null,null,null,null,null,null,null,null,null,null," "]
[null,0,265,"LR - Light Rail",null,"LRV"," ","52001 - Vehicles, Revenue Vehicles, Light Rail, LRV"," ",7,"EA"," ","No",2022,null,3414528.3698999998,null,23901698.589299999,0.1,null,2011,27968862.05778195,null,28,"30 Yrs    ","Normal",null,null,null," ",null,"IME-ES-OCS3086-LP-CA-0.0-TP",null,null,null,null,"09-388-394",null,"Blue Line","","",null,null,null,null,null,null,null,null,null,null," "]
[null,0,266,"LR - Light Rail",null,"LRV"," ","52001 - Vehicles, Revenue Vehicles, Light Rail, LRV"," ",7,"EA"," ","No",2022,null,3414528.3698999998,null,23901698.589299999,0.1,null,2011,27968862.05778195,null,28,"30 Yrs    ","Normal",null,null,null," ",null,"WV-ES-OCS0277-FD-WF-1.0-Y",null,null,null,null,"09-388-394",null,"Yellow Line","","",null,null,null,null,null,null,null,null,null,null," "]
[null,0,267,"LR - Light Rail",null,"LRV"," ","52001 - Vehicles, Revenue Vehicles, Light Rail, LRV"," ",7,"EA"," ","No",2022,null,3414528.3698999998,null,23901698.589299999,0.1,null,2011,27968862.05778195,null,28,"30 Yrs    ","Normal",null,null,null," ",null,"UNE-ES-OCS4036-LP-CA-0.6-OC",null,null,null,null,"09-388-394",null,"Red Line","","",null,null,null,null,null,null,null,null,null,null," "]
[null,0,268,"LR - Light Rail",null,"LRV"," ","52001 - Vehicles, Revenue Vehicles, Light Rail, LRV"," ",7,"EA"," ","No",2022,null,3414528.3698999998,null,23901698.589299999,0.1,null,2011,27968862.05778195,null,28,"30 Yrs    ","Normal",null,null,null," ",null,"WVE-ES-OCS0065-FD-CA-4.4-Y",null,null,null,null,"09-388-394",null,"Blue Line","","",null,null,null,null,null,null,null,null,null,null," "]
[null,0,269,"LR - Light Rail",null,"LRV"," ","52001 - Vehicles, Revenue Vehicles, Light Rail, LRV"," ",7,"EA"," ","No",2022,null,3414528.3698999998,null,23901698.589299999,0.1,null,2011,27968862.05778195,null,28,"30 Yrs    ","Normal",null,null,null," ",null,"APE-ES-OCS113-FD-CA-2.7-Y",null,null,null,null,"09-388-394",null,"Yellow Line","","",null,null,null,null,null,null,null,null,null,null," "]
[null,0,270,"LR - Light Rail",null,"LRV"," ","52001 - Vehicles, Revenue Vehicles, Light Rail, LRV"," ",7,"EA"," ","No",2022,null,3414528.3698999998,null,23901698.589299999,0.1,null,2011,27968862.05778195,null,28,"30 Yrs    ","Normal",null,null,null," ",null,"NSE-ES-OCS2191-FD-CA-10.0-TP",null,null,null,null,"09-388-394",null,"Blue Line","","",null,null,null,null,null,null,null,null,null,null," "]
[null,0,271,"LR - Light Rail",null,"LRV"," ","52001 - Vehicles, Revenue Vehicles, Light Rail, LRV"," ",7,"EA"," ","No",2022,null,3414528.3698999998,null,23901698.589299999,0.1,null,2011,27968862.05778195,null,28,"30 Yrs    ","Normal",null,null,null," ",null,"AP-ES-OCS155-FD-TT-3.6-Y",null,null,null,null,"09-388-394",null,"Yellow Line","","",null,null,null,null,null,null,null,null,null,null," "]
[null,0,272,"LR - Light Rail",null,"LRV"," ","52001 - Vehicles, Revenue Vehicles, Light Rail, LRV"," ",7,"EA"," ","No",2022,null,3414528.3698999998,null,23901698.589299999,0.1,null,2011,27968862.05778195,null,28,"30 Yrs    ","Normal",null,null,null," ",null,"APE-ES-OCS111-FD-CA-2.6-Y",null,null,null,null,"09-388-394",null,"Red Line","","",null,null,null,null,null,null,null,null,null,null," "]
[null,0,273,"LR - Light Rail",null,"LRV"," ","52001 - Vehicles, Revenue Vehicles, Light Rail, LRV"," ",7,"EA"," ","No",2022,null,3414528.3698999998,null,23901698.589299999,0.1,null,2011,27968862.05778195,null,28,"30 Yrs    ","Normal",null,null,null," ",null,"MJ-ES-OCS1161-FD-TT-2.0-Y",null,null,null,null,"09-388-394",null,"Blue Line","","",null,null,null,null,null,null,null,null,null,null," "]
[null,0,274,"LR - Light Rail",null,"LRV"," ","52001 - Vehicles, Revenue Vehicles, Light Rail, LRV"," ",17,"EA"," ","No",2012,null,2615958.2363,null,44471290.017099999,0.1,null,2001,64020237.563670143,null,28,"30 Yrs    ","Normal",null,null,null," ",null,"WVE-ES-OCS0100-FD-JA-3.8-Y",null,null,null,null,"85-529-714",null,"Yellow Line","","",null,null,null,null,null,null,null,null,null,null," "]
[null,0,275,"LR - Light Rail",null,"LRV"," ","52001 - Vehicles, Revenue Vehicles, Light Rail, LRV"," ",23,"EA"," ","No",2010,null,1907309.9447000001,null,43868128.728100002,0.1,null,1999,66037292.357499607,null,28,"30 Yrs    ","Normal",null,null,null," ",null,"UNE-ES-OCS4062-LP-JA-1.2-OC",null,null,null,null,"02-438-101",null,"Blue Line","","",null,null,null,null,null,null,null,null,null,null," "]
[null,0,276,"LR - Light Rail",null,"LRV"," ","52001 - Vehicles, Revenue Vehicles, Light Rail, LRV"," ",7,"EA"," ","No",2014,null,2607388.9432999999,null,18251722.603099998,0.1,null,2003,25372089.194706991,null,28,"30 Yrs    ","Normal",null,null,null," ",null,"WV-ES-OCS0045-FD-WF-4.7-Y",null,null,null,null,"71-217-213",null,"Yellow Line","","",null,null,null,null,null,null,null,null,null,null," "]
[null,0,277,"LR - Light Rail",null,"LRV"," ","52001 - Vehicles, Revenue Vehicles, Light Rail, LRV"," ",29,"EA"," ","No",1987,null,235572.97099999999,null,6831616.159,0.1,null,2008,8309091.9971159752,null,28,"30 Yrs    ","Normal",null,null,null," ",null,"IMW-ES-OCS3190-LP-JAX-1.6-TP",null,null,null,null,"05-065-301",null,"Red Line","","",null,null,null,null,null,null,null,null,null,null," "]
[null,0,278,"MB - Motor Bus",null,"Bus"," ","21210 - Facilities, Buildings, Maintenance, Bus"," ",8,"Each"," ","No",1992,null,2892105.1923000002,null,23136841.538400002,0.1,null,1981,57469043.2806466,null,60,"80 Yrs    ","Normal",null,null,null," ",null,"NS-ES-OCS2313A-FD-WF-7.4-TP",null,null,null,null,"52-685-020",null,"South","Archer's Line","",null,null,null,null,null,null,null,null,null,null," "]
[null,0,279,"MB - Motor Bus",null,"Bus"," ","21210 - Facilities, Buildings, Maintenance, Bus"," ",9,"Each"," ","No",1998,null,870691.31229999999,null,7836221.8107000003,0.1,null,1987,15787419.315374123,null,60,"80 Yrs    ","Normal",null,null,null," ",null,"IM-ES-OCS3182-LP-TT-1.5-TP",null,null,null,null,"43-925-666",null,"South","Archer's Line","",null,null,null,null,null,null,null,null,null,null," "]
[null,0,280,"MB - Motor Bus",null,"Bus"," ","21210 - Facilities, Buildings, Maintenance, Bus"," ",5,"Each"," ","No",2008,null,1367461.0349999999,null,6837305.1749999998,0.1,null,1997,10555481.820757568,null,60,"80 Yrs    ","Normal",null,null,null," ",null,"AP-ES-OCS103-FD-TT-2.5-Y",null,null,null,null,"58-628-939",null,"North","Wingston","",null,null,null,null,null,null,null,null,null,null," "]
[null,0,281,"MB - Motor Bus",null,"Bus"," ","21210 - Facilities, Buildings, Maintenance, Bus"," ",6,"Each"," ","No",1999,null,971661.36869999999,null,5829968.2122,0.1,null,1988,11345333.50044176,null,60,"80 Yrs    ","Normal",null,null,null," ",null,"NSW-ES-OCS2189-FD-JA-10.0-TP",null,null,null,null,"15-272-464",null,"North","Wingston","",null,null,null,null,null,null,null,null,null,null," "]
[null,0,282,"MB - Motor Bus",null,"Bus"," ","21210 - Facilities, Buildings, Maintenance, Bus"," ",11,"Each"," ","No",2001,null,371058.41009999998,null,4081642.5110999998,0.1,null,1990,7367507.543566783,null,60,"80 Yrs    ","Normal",null,null,null," ",null,"NSE-ES-OCS2194-FD-CA-9.9-TP",null,null,null,null,"16-048-990",null,"South","Archer's Line","",null,null,null,null,null,null,null,null,null,null," "]
[null,0,283,"MB - Motor Bus",null,"Bus"," ","21210 - Facilities, Buildings, Maintenance, Bus"," ",12,"Each"," ","No",2010,null,255047.26010000001,null,3060567.1211999999,0.1,null,1999,4607252.956130119,null,60,"80 Yrs    ","Normal",null,null,null," ",null,"NSE-ES-OCS2055-FD-CA-12.7-TP",null,null,null,null,"02-274-745",null,"North","Wingston","",null,null,null,null,null,null,null,null,null,null," "]
[null,0,284,"MB - Motor Bus",null,"Bus"," ","21210 - Facilities, Buildings, Maintenance, Bus"," ",8,"Each"," ","No",2013,null,277206.01419999998,null,2217648.1135999998,0.1,null,2002,3143665.6055804444,null,60,"80 Yrs    ","Normal",null,null,null," ",null,"NSE-ES-OCS2228-FD-JA-9.1-TP",null,null,null,null,"42-121-086",null,"North","Wingston","",null,null,null,null,null,null,null,null,null,null," "]
[null,0,285,"MB - Motor Bus",null,"Bus"," ","21210 - Facilities, Buildings, Maintenance, Bus"," ",1,"Each"," ","No",1983,null,1991628.8213,null,1991628.8213,0.1,null,1972,9633939.693221584,null,60,"80 Yrs    ","Normal",null,null,null," ",null,"UN-ES-OCS4015-LP-PF-0.1-OC",null,null,null,null,"33-763-012",null,"North","Wingston","",null,null,null,null,null,null,null,null,null,null," "]
[null,0,286,"MB - Motor Bus",null,"Bus"," ","21210 - Facilities, Buildings, Maintenance, Bus"," ",2,"Each"," ","No",2019,null,891080.36849999998,null,1782160.737,0.1,null,2008,2167589.2164803059,null,60,"80 Yrs    ","Normal",null,null,null," ",null,"NSW-ES-OCS2069-FD-CA-12.4-TP",null,null,null,null,"34-890-827",null,"South","Archer's Line","",null,null,null,null,null,null,null,null,null,null," "]
[null,0,287,"MB - Motor Bus",null,"Bus"," ","21210 - Facilities, Buildings, Maintenance, Bus"," ",2,"Each"," ","No",1997,null,585700.18920000002,null,1171400.3784,0.1,null,1986,2418476.7140506422,null,60,"80 Yrs    ","Normal",null,null,null," ",null,"NS-ES-OCS2210A-DGF-9.4-TP",null,null,null,null,"94-904-310",null,"North","Wingston","",null,null,null,null,null,null,null,null,null,null," "]
[null,0,288,"MB - Motor Bus",null,"Bus"," ","21210 - Facilities, Buildings, Maintenance, Bus"," ",3,"Each"," ","No",2002,null,362192.22249999997,null,1086576.6675,0.1,null,1991,1897168.8871615224,null,60,"80 Yrs    ","Normal",null,null,null," ",null,"MJE-ES-OCS1393-FD-CA-8.0-Y",null,null,null,null,"34-021-381",null,"South","Archer's Line","",null,null,null,null,null,null,null,null,null,null," "]
[null,0,289,"MB - Motor Bus",null,"Bus"," ","21210 - Facilities, Buildings, Maintenance, Bus"," ",13,"Each"," ","No",1994,null,38914.181299999997,null,505884.35689999996,0.1,null,1983,1138831.3064369194,null,60,"80 Yrs    ","Normal",null,null,null," ",null,"WV-ES-OCS0317-FD-TT-0.4-Y",null,null,null,null,"74-355-418",null,"North","Wingston","",null,null,null,null,null,null,null,null,null,null," "]
[null,0,290,"MB - Motor Bus",null,"Utilities"," ","21230 - Facilities, Buildings, Maintenance, Utilities"," ",1,"Each"," ","No",1992,null,306632.83970000001,null,306632.83970000001,0.1,null,1981,761637.92308211001,null,60,"70 Yrs    ","Normal",null,null,null," ",null,"WV-ES-OCS0024-FD-WF-5.0-Y",null,null,null,null,"71-994-649",null,"North","Wingston","",null,null,null,null,null,null,null,null,null,null," "]
[null,0,291,"MB - Motor Bus",null,"Bus"," ","23301 - Facilities, Equipment, Maintenance, Bus"," ",2,"Each"," ","No",2008,null,830244.19979999994,null,1660488.3995999999,0.1,null,1997,2563474.1564035313,null,15,"15 Yrs    ","Normal",null,null,null," ",null,"MJW-ES-OCS1364-FD-CA-7.2-Y",null,null,null,null,"71-812-435",null,"South","Archer's Line","",null,null,null,null,null,null,null,null,null,null," "]
[null,0,292,"MB - Motor Bus",null,"Bus"," ","23301 - Facilities, Equipment, Maintenance, Bus"," ",5,"Each"," ","No",1992,null,167254.27619999999,null,836271.38099999994,0.1,null,1981,2077194.3356784817,null,15,"15 Yrs    ","Normal",null,null,null," ",null,"AP-ES-OCS120-FD-TT-2.8-Y",null,null,null,null,"27-821-330",null,"South","Archer's Line","",null,null,null,null,null,null,null,null,null,null," "]
[null,0,293,"MB - Motor Bus",null,"Bus"," ","23301 - Facilities, Equipment, Maintenance, Bus"," ",3,"Each"," ","No",2011,null,260586.9486,null,781760.84580000001,0.1,null,2000,1150760.7370102592,null,15,"15 Yrs    ","Normal",null,null,null," ",null,"NSW-ES-OCS2023-FD-JA-13.4-TP",null,null,null,null,"48-964-998",null,"North","Wingston","",null,null,null,null,null,null,null,null,null,null," "]
[null,0,294,"MB - Motor Bus",null,"Bus"," ","23301 - Facilities, Equipment, Maintenance, Bus"," ",3,"Each"," ","No",2010,null,108820.1643,null,326460.49290000001,0.1,null,1999,491440.31527839601,null,15,"15 Yrs    ","Normal",null,null,null," ",null,"MJE-ES-OCS1080-FD-CA-0.6-Y",null,null,null,null,"11-484-882",null,"West","Brothford","",null,null,null,null,null,null,null,null,null,null," "]
[null,0,295,"MB - Motor Bus",null,"Bus"," ","23301 - Facilities, Equipment, Maintenance, Bus"," ",3,"Each"," ","No",2016,null,89157.963099999994,null,267473.88929999998,0.1,null,2005,351077.02575200686,null,15,"15 Yrs    ","Normal",null,null,null," ",null,"IMW-ES-OCS3229-LP-JA-2.1-TP",null,null,null,null,"29-756-722",null,"South","Archer's Line","",null,null,null,null,null,null,null,null,null,null," "]
[null,0,296,"MB - Motor Bus",null,"Bus"," ","23301 - Facilities, Equipment, Maintenance, Bus"," ",2,"Each"," ","No",2017,null,97418.746700000003,null,194837.49340000001,0.1,null,2006,248086.57038081903,null,15,"15 Yrs    ","Normal",null,null,null," ",null,"WVW-ES-OCS0323-FD-JA-0.3-Y",null,null,null,null,"31-260-145",null,"North","Wingston","",null,null,null,null,null,null,null,null,null,null," "]
[null,0,297,"MB - Motor Bus",null,"Bus"," ","23301 - Facilities, Equipment, Maintenance, Bus"," ",1,"Each"," ","No",2014,null,85554.949699999997,null,85554.949699999997,0.1,null,2003,118931.66809736534,null,15,"15 Yrs    ","Normal",null,null,null," ",null,"NSE-ES-OCS2387-FD-CA-6.0-TP",null,null,null,null,"30-549-906",null,"North","Wingston","",null,null,null,null,null,null,null,null,null,null," "]
[null,0,298,"MB - Motor Bus",null,"Bus"," ","23301 - Facilities, Equipment, Maintenance, Bus"," ",1,"Each"," ","No",1998,null,78362.218099999998,null,78362.218099999998,0.1,null,1987,157874.19313963855,null,15,"15 Yrs    ","Normal",null,null,null," ",null,"AP-ES-OCS153-FD-TT-3.6-Y",null,null,null,null,"11-446-116",null,"North","Wingston","",null,null,null,null,null,null,null,null,null,null," "]
[null,0,299,"MB - Motor Bus",null,"Bus"," ","23301 - Facilities, Equipment, Maintenance, Bus"," ",2,"Each"," ","No",1994,null,32039.3426,null,64078.6852,0.1,null,1983,144251.96546550124,null,15,"15 Yrs    ","Normal",null,null,null," ",null,"AP-ES-OCS199-FD-TT-4.8-Y",null,null,null,null,"85-946-011",null,"South","Archer's Line","",null,null,null,null,null,null,null,null,null,null," "]
[null,0,300,"MB - Motor Bus",null,"Bus"," ","23301 - Facilities, Equipment, Maintenance, Bus"," ",1,"Each"," ","No",2013,null,43798.550199999998,null,43798.550199999998,0.1,null,2002,62087.395648407844,null,15,"15 Yrs    ","Normal",null,null,null," ",null,"IMW-ES-OCS3132-LP-CA-0.7-TP",null,null,null,null,"78-320-098",null,"North","Wingston","",null,null,null,null,null,null,null,null,null,null," "]
[null,0,301,"MB - Motor Bus",null,"Bus"," ","23301 - Facilities, Equipment, Maintenance, Bus"," ",1,"Each"," ","No",2000,null,30279.494299999998,null,30279.494299999998,0.1,null,1989,56701.604023942578,null,15,"15 Yrs    ","Normal",null,null,null," ",null,"NSW-ES-OCS2294-FD-JA-7.7-TP",null,null,null,null,"87-377-475",null,"South","Archer's Line","",null,null,null,null,null,null,null,null,null,null," "]
[null,0,302,"MB - Motor Bus",null,"Bus"," ","23301 - Facilities, Equipment, Maintenance, Bus"," ",1,"Each"," ","No",2002,null,10865.7667,null,10865.7667,0.1,null,1991,18971.688915265364,null,15,"15 Yrs    ","Normal",null,null,null," ",null,"NSW-ES-OCS4003-FD-JA-9.1-TP",null,null,null,null,"58-329-827",null,"North","Wingston","",null,null,null,null,null,null,null,null,null,null," "]
[null,0,303,"MB - Motor Bus",null,"Bus"," ","23301 - Facilities, Equipment, Maintenance, Bus"," ",1,"Each"," ","No",2003,null,6434.9022000000004,null,6434.9022000000004,0.1,null,1992,10985.070833315576,null,15,"15 Yrs    ","Normal",null,null,null," ",null,"IM-ES-OCS3215-LP-TT-1.9-TP",null,null,null,null,"85-340-582",null,"North","Wingston","",null,null,null,null,null,null,null,null,null,null," "]
[null,0,304,"MB - Motor Bus",null,"Bus"," ","23301 - Facilities, Equipment, Maintenance, Bus"," ",1,"Each"," ","No",1993,null,6204.4512000000004,null,6204.4512000000004,0.1,null,1982,14514.556923820879,null,15,"15 Yrs    ","Normal",null,null,null," ",null,"NSE-ES-OCS3084-LP-CA-0.0-TP",null,null,null,null,"37-357-558",null,"North","Wingston","",null,null,null,null,null,null,null,null,null,null," "]
[null,0,305,"MB - Motor Bus",null,"Bus"," ","23301 - Facilities, Equipment, Maintenance, Bus"," ",1,"Each"," ","No",2015,null,5498.9164000000001,null,5498.9164000000001,0.1,null,2004,7443.9571964115967,null,15,"15 Yrs    ","Normal",null,null,null," ",null,"MJ-ES-OCS1108-FD-TT-1.1-Y",null,null,null,null,"63-900-178",null,"West","Brothford","",null,null,null,null,null,null,null,null,null,null," "]
[null,0,306,"MB - Motor Bus",null,"Bus"," ","23301 - Facilities, Equipment, Maintenance, Bus"," ",1,"Each"," ","No",1990,null,4267.7759999999998,null,4267.7759999999998,0.1,null,1979,12651.763448839647,null,15,"15 Yrs    ","Normal",null,null,null," ",null,"WV-ES-OCS0240-FD-WF-1.6-Y",null,null,null,null,"91-703-440",null,"West","Brothford","",null,null,null,null,null,null,null,null,null,null," "]
[null,0,307,"MB - Motor Bus",null,"Pollution Treatment"," ","23400 - Facilities, Equipment, Maintenance, Pollution Treatment"," ",2,"Each"," ","No",2019,null,107672.21120000001,null,215344.42240000001,0.1,null,2008,261917.03033990704,null,15,"15 Yrs    ","Normal",null,null,null," ",null,"WVW-ES-OCS0338-FD-CA-0.1-Y",null,null,null,null,"31-911-972",null,"North","Wingston","",null,null,null,null,null,null,null,null,null,null," "]
[null,0,308,"MB - Motor Bus",null,"Pollution Treatment"," ","23400 - Facilities, Equipment, Maintenance, Pollution Treatment"," ",1,"Each"," ","No",1993,null,8686.2315999999992,null,8686.2315999999992,0.1,null,1982,20320.379506198984,null,15,"15 Yrs    ","Normal",null,null,null," ",null,"UN-ES-OCS5052-LP-PF-3.4-TP",null,null,null,null,"73-373-845",null,"North","Wingston","",null,null,null,null,null,null,null,null,null,null," "]
[null,0,309,"MB - Motor Bus",null,"Storage Yard"," ","22000 - Facilities, Storage Yard"," ",3,"Each"," ","No",2005,null,91644.175300000003,null,274932.52590000001,0.1,null,1994,448887.60691130545,null,80,"50 Yrs    ","Normal",null,null,null," ",null,"MJE-ES-OCS1047-FD-CA-0.2-Y",null,null,null,null,"27-093-502",null,"West","Brothford","",null,null,null,null,null,null,null,null,null,null," "]
[null,0,310,"MB - Motor Bus",null,"Storage Yard"," ","22000 - Facilities, Storage Yard"," ",3,"Each"," ","No",2006,null,13263.3439,null,39790.0317,0.1,null,1995,63631.476380120985,null,80,"50 Yrs    ","Normal",null,null,null," ",null,"NS-ES-OCS2503-DGF-3.7-TP",null,null,null,null,"58-691-045",null,"South","Archer's Line","",null,null,null,null,null,null,null,null,null,null," "]
[null,0,311,"MB - Motor Bus",null,"Storage Yard"," ","22000 - Facilities, Storage Yard"," ",1,"Each"," ","No",2004,null,7929.2885999999999,null,7929.2885999999999,0.1,null,1993,13222.595793023642,null,80,"50 Yrs    ","Normal",null,null,null," ",null,"IMW-ES-OCS3231-LP-CA-2.1-TP",null,null,null,null,"72-095-563",null,"North","Wingston","",null,null,null,null,null,null,null,null,null,null," "]
[null,0,312,"MB - Motor Bus",null,"Bus Parking"," ","22300 - Facilities, Storage Yard, Bus, Bus Parking"," ",2,"Each"," ","No",2010,null,612113.42409999995,null,1224226.8481999999,0.1,null,1999,1842901.1820305472,null,60,"40 Yrs    ","Normal",null,null,null," ",null,"IMW-ES-OCS3222-LP-CA-2.0-TP",null,null,null,null,"78-186-981",null,"North","Wingston","",null,null,null,null,null,null,null,null,null,null," "]
[null,0,313,"MB - Motor Bus",null,"Stations"," ","40000 - Stations"," ",3,"Each"," ","No",2013,null,4804904.2457999997,null,14414712.737399999,0.1,null,2002,20433826.434855323,null,60,"50 Yrs    ","Normal",null,null,null," ",null,"WVW-ES-OCS0245-FD-JA-1.5-Y",null,null,null,null,"50-700-831",null,"Yellow Line","Central","",null,null,null,null,null,null,null,null,null,null," "]
[null,0,314,"MB - Motor Bus",null,"Park & Ride"," ","41603 - Stations, Access, Parking, Park & Ride"," ",1,"Each"," ","No",2003,null,137277.9136,null,137277.9136,0.1,null,1992,234348.17777739893,null,null,"40 Yrs    ","Normal",null,null,null," ",null,"IME-ES-OCS3223-LP-CA-2.0-TP",null,null,null,null,"18-901-282",null,"Yellow Line","South","",null,null,null,null,null,null,null,null,null,null," "]
[null,0,315,"MB - Motor Bus",null,"Bus"," ","41204 - Stations, Building, Bus, Bus"," ",1,"Each"," ","No",2020,null,230410.44639999999,null,230410.44639999999,0.1,null,2009,278523.02838936541,null,60,"40 Yrs    ","Normal",null,null,null," ",null,"MJ-ES-OCS1403-FD-TT-8.3-Y",null,null,null,null,"74-093-101",null,"Yellow Line","East","",null,null,null,null,null,null,null,null,null,null," "]
[null,0,316,"MB - Motor Bus",null,"Bus"," ","41004 - Stations, Complete Station, Bus"," ",923,"Each"," ","No",2011,null,542.06600000000003,null,500326.91800000001,0.1,null,2000,736486.83737104025,null,null,"40 Yrs    ","Normal",null,null,null," ",null,"NS-ES-OCS3066-LP-TT-0.3-TP",null,null,null,null,"98-193-849",null,"Blue Line","West","",null,null,null,null,null,null,null,null,null,null," "]
[null,0,317,"MB - Motor Bus",null,"Bus"," ","41006 - Stations, Complete Station, Bus Stop Shelters, Bus"," ",113,"Each"," ","No",2011,null,7840.6692000000003,null,885995.61959999998,0.1,null,2000,1304195.493642817,null,15,"40 Yrs    ","Normal",null,null,null," ",null,"APE-ES-OCS191-FD-JA-4.6-Y",null,null,null,null,"81-618-447",null,"Red Line","West","",null,null,null,null,null,null,null,null,null,null," "]
[null,0,318,"MB - Motor Bus",null,"Bus"," ","41006 - Stations, Complete Station, Bus Stop Shelters, Bus"," ",19,"Each"," ","No",2019,null,32438.452000000001,null,616330.58799999999,0.1,null,2008,749624.6037743151,null,15,"40 Yrs    ","Normal",null,null,null," ",null,"NSW-ES-OCS3028-LP-CA-0.8-TP",null,null,null,null,"24-102-861",null,"Red Line","Central","",null,null,null,null,null,null,null,null,null,null," "]
[null,0,319,"MB - Motor Bus",null,"Bus"," ","41006 - Stations, Complete Station, Bus Stop Shelters, Bus"," ",142,"Each"," ","No",2006,null,2802.1149,null,397900.31579999998,0.1,null,1995,636314.76188219222,null,15,"40 Yrs    ","Normal",null,null,null," ",null,"UN-ES-OCS4001-LP-PF-0.0-OC",null,null,null,null,"98-304-886",null,"Yellow Line","East","",null,null,null,null,null,null,null,null,null,null," "]
[null,0,320,"MB - Motor Bus",null,"Base Radio Stations"," ","33700 - Systems, Communications, Radio, Base Radio Stations"," ",1,"Each"," ","No",2013,null,9979.4164999999994,null,9979.4164999999994,0.1,null,2002,14146.495209235245,null,10,"40 Yrs    ","Normal",null,null,null," ",null,"UNW-ES-OCS5049-LP-JA-3.3-TP",null,null,null,null,"50-119-591",null,"Systemwide","","",null,null,null,null,null,null,null,null,null,null," "]
[null,{"$f":"1-NOT(ISBLANK(D330))*NOT(ISBLANK(F330))*NOT(ISBLANK(H330))*NOT(ISBLANK(J330))*NOT(ISBLANK(N330))*NOT(ISBLANK(U330))*NOT(ISBLANK(M330))*NOT(AND(ISBLANK(P330),ISBLANK(Q330)))*NOT(ISBLANK(Z330))","v":0},{"$f":"OFFSET(C330,-1,0)+1","v":321},"MB - Motor Bus",null,"Base Radio Stations"," ","33700 - Systems, Communications, Radio, Base Radio Stations"," ",1,"Each"," ","No",2014,null,9696.2276000000002,null,{"$f":"IF(P330=\"\",Q330,J330*P330)","v":9696.2276000000002},0.1,null,2003,{"$f":"IFERROR(R330*INDEX(rng.CostIndexMeans,MATCH(rng.ConstantYear,rng.CostIndexYear,0))/INDEX(rng.CostIndexMeans,MATCH(U330,rng.CostIndexYear,0))*(1+S330),\"\")","v":13478.92233895748},null,10,{"$f":"IFERROR(TEXT(INDEX(rng.ClassEDL,MATCH(H330,rng.ClassChoice,0)),\"0\")&\" Yrs    \",\"\")","v":"40 Yrs    "},"Normal",null,null,null," ",null,"MJE-ES-OCS1199-FD-CA-2.7-Y",null,null,null,null,"47-974-331",null,"Systemwide","","",null,null,null,null,null,null,null,null,null,null," "]
[null,0,322,"MB - Motor Bus",null,"Base Radio Stations"," ","33700 - Systems, Communications, Radio, Base Radio Stations"," ",2,"Each"," ","No",2010,null,4845.8978999999999,null,9691.7957999999999,0.1,null,1999,14589.634234929608,null,10,"40 Yrs    ","Normal",null,null,null," ",null,"WVW-ES-OCS0198-FD-JA-2.1-Y",null,null,null,null,"32-798-399",null,"Systemwide","","",null,null,null,null,null,null,null,null,null,null," "]
[null,0,323,"MB - Motor Bus",null,"Base Radio Stations"," ","33700 - Systems, Communications, Radio, Base Radio Stations"," ",1,"Each"," ","No",2011,null,5003.2694000000001,null,5003.2694000000001,0.1,null,2000,7364.8686975528708,null,10,"40 Yrs    ","Normal",null,null,null," ",null,"NS-ES-OCS2554-FD-WF-2.8-TP",null,null,null,null,"64-347-991",null,"Systemwide","","",null,null,null,null,null,null,null,null,null,null," "]
[null,0,324,"MB - Motor Bus",null,"Base Radio Stations"," ","33700 - Systems, Communications, Radio, Base Radio Stations"," ",1,"Each"," ","No",2009,null,4949.0248000000001,null,4949.0248000000001,0.1,null,1998,7555.4589651945953,null,10,"40 Yrs    ","Normal",null,null,null," ",null,"MJW-ES-OCS1425-FD-JA-8.9-Y",null,null,null,null,"66-955-491",null,"Systemwide","","",null,null,null,null,null,null,null,null,null,null," "]
[null,0,325,"MB - Motor Bus",null,"Base Radio Stations"," ","33700 - Systems, Communications, Radio, Base Radio Stations"," ",1,"Each"," ","No",2008,null,4004.7073,null,4004.7073,0.1,null,1997,6182.4964691012374,null,10,"40 Yrs    ","Normal",null,null,null," ",null,"APE-ES-OCS107-FD-JA-2.6-Y",null,null,null,null,"81-221-364",null,"Systemwide","","",null,null,null,null,null,null,null,null,null,null," "]
[null,0,326,"MB - Motor Bus",null,"Base Radio Stations"," ","33700 - Systems, Communications, Radio, Base Radio Stations"," ",1,"Each"," ","No",2004,null,1497.7545,null,1497.7545,0.1,null,1993,2497.6014053369463,null,10,"40 Yrs    ","Normal",null,null,null," ",null,"NSW-ES-OCS2511-FD-JA-3.5-TP",null,null,null,null,"85-645-719",null,"Systemwide","","",null,null,null,null,null,null,null,null,null,null," "]
[null,0,327,"MB - Motor Bus",null,"Bus Radio"," ","33600 - Systems, Communications, Radio, Bus Radio"," ",2,"Each"," ","No",2017,null,4031120.5515999999,null,8062241.1031999998,0.1,null,2006,10265651.184343141,null,null,"20 Yrs    ","Normal",null,null,null," ",null,"WV-ES-OCS0136-FD-WF-3.2-Y",null,null,null,null,"26-420-119",null,"Systemwide","","",null,null,null,null,null,null,null,null,null,null," "]
[null,0,328,"MB - Motor Bus",null,"Bus Radio"," ","33600 - Systems, Communications, Radio, Bus Radio"," ",4,"Each"," ","No",2018,null,574354.90709999995,null,2297419.6283999998,0.1,null,2007,2848130.9269720754,null,null,"20 Yrs    ","Normal",null,null,null," ",null,"MJ-ES-OCS1509-LP-CA-10.6-Y",null,null,null,null,"52-785-185",null,"Systemwide","","",null,null,null,null,null,null,null,null,null,null," "]
[null,0,329,"MB - Motor Bus",null,"Bus Radio"," ","33600 - Systems, Communications, Radio, Bus Radio"," ",1,"Each"," ","No",2016,null,1910527.7812000001,null,1910527.7812000001,0.1,null,2005,2507693.0417232956,null,null,"20 Yrs    ","Normal",null,null,null," ",null,"WVE-ES-OCS0169-FD-JA-2.7-Y",null,null,null,null,"21-743-960",null,"Systemwide","","",null,null,null,null,null,null,null,null,null,null," "]
[null,0,330,"MB - Motor Bus",null,"Bus Radio"," ","33600 - Systems, Communications, Radio, Bus Radio"," ",1,"Each"," ","No",2019,null,408411.83559999999,null,408411.83559999999,0.1,null,2008,496739.19548901357,null,null,"20 Yrs    ","Normal",null,null,null," ",null,"APE-ES-OCS087-FD-CA-2.0-Y",null,null,null,null,"44-632-859",null,"Systemwide","","",null,null,null,null,null,null,null,null,null,null," "]
[null,0,331,"MB - Motor Bus",null,"SCADA"," ","33800 - Systems, Communications, SCADA"," ",1,"Each"," ","No",2019,null,371283.48690000002,null,371283.48690000002,0.1,null,2008,451581.08679713716,null,5,"16 Yrs    ","Normal",null,null,null," ",null,"MJ-ES-OCS1340-FD-TT-6.3-Y",null,null,null,null,"19-713-678",null,"Systemwide","","",null,null,null,null,null,null,null,null,null,null," "]
[null,0,332,"MB - Motor Bus",null,"SCADA"," ","33800 - Systems, Communications, SCADA"," ",1,"Each"," ","No",2017,null,114215.08229999999,null,114215.08229999999,0.1,null,2006,145430.05845080322,null,5,"16 Yrs    ","Normal",null,null,null," ",null,"NSE-ES-OCS2500-FD-CA-3.8-TP",null,null,null,null,"72-135-772",null,"Systemwide","","",null,null,null,null,null,null,null,null,null,null," "]
[null,0,333,"MB - Motor Bus",null,"Fare Control System"," ","35120 - Systems, Revenue Collection, In-Station, Fare Control System"," ",1,"Each"," ","No",2020,null,2150497.4996000002,null,2150497.4996000002,0.1,null,2009,2599548.2648062357,null,null,"15 Yrs    ","Normal",null,null,null," ",null,"NSW-ES-OCS2463-FD-CA-4.6-TP",null,null,null,null,"58-525-570",null,"Systemwide","","",null,null,null,null,null,null,null,null,null,null," "]
[null,0,334,"MB - Motor Bus",null,"System"," ","35110 - Systems, Revenue Collection, In-Station, System"," ",21,"Each"," ","No",2019,null,56576.531300000002,null,1188107.1573000001,0.1,null,2008,1445059.4768021482,null,null,"20 Yrs    ","Normal",null,null,null," ",null,"NSE-ES-OCS2248-FD-JA-8.6-TP",null,null,null,null,"53-595-987",null,"Systemwide","","",null,null,null,null,null,null,null,null,null,null," "]
[null,0,335,"MB - Motor Bus",null,"Bus (30 ft)"," ","51905 - Vehicles, Revenue Vehicles, Bus, Bus (30 ft)"," ",33,"Each"," ","No",2016,null,389994.07270000002,null,12869804.3991,0.1,null,2004,17422027.560391728,null,14,"12 Yrs    ","Normal",null,null,null," ",null,"NSE-ES-OCS2228-FD-CA-9.1-TP",null,null,null,null,"94-657-102",null,"West","Brothford","",null,null,null,null,null,null,null,null,null,null," "]
[null,0,336,"MB - Motor Bus",null,"Bus (30 ft)"," ","51905 - Vehicles, Revenue Vehicles, Bus, Bus (30 ft)"," ",10,"Each"," ","No",2017,null,397793.95419999998,null,3977939.5419999999,0.1,null,2004,5384990.3374710614,null,14,"12 Yrs    ","Normal",null,null,null," ",null,"UN-ES-OCS5009-LP-PF-2.5-TP",null,null,null,null,"36-474-365",null,"West","Brothford","",null,null,null,null,null,null,null,null,null,null," "]
[null,0,337,"MB - Motor Bus",null,"Bus (35 ft)"," ","51904 - Vehicles, Revenue Vehicles, Bus, Bus (35 ft)"," ",28,"Each"," ","No",2010,null,503884.73220000003,null,14108772.501600001,0.1,null,2008,17160081.297561448,null,14,"16 Yrs    ","Normal",null,null,null," ",null,"WVE-ES-OCS0257-FD-CA-1.4-Y",null,null,null,null,"83-049-580",null,"South","Archer's Line","",null,null,null,null,null,null,null,null,null,null," "]
[null,0,338,"MB - Motor Bus",null,"Bus (35 ft)"," ","51904 - Vehicles, Revenue Vehicles, Bus, Bus (35 ft)"," ",20,"Each"," ","No",2008,null,519796.88160000002,null,10395937.632000001,0.1,null,2008,12644270.428860318,null,14,"16 Yrs    ","Normal",null,null,null," ",null,"MJE-ES-OCS1113-FD-CA-1.2-Y",null,null,null,null,"77-977-532",null,"South","Archer's Line","",null,null,null,null,null,null,null,null,null,null," "]
[null,0,339,"MB - Motor Bus",null,"Bus (35 ft)"," ","51904 - Vehicles, Revenue Vehicles, Bus, Bus (35 ft)"," ",15,"Each"," ","No",2007,null,495044.64919999999,null,7425669.7379999999,0.1,null,2008,9031621.7359427437,null,14,"16 Yrs    ","Normal",null,null,null," ",null,"WVE-ES-OCS0009-FD-CA-5.1-Y",null,null,null,null,"30-270-692",null,"West","Brothford","",null,null,null,null,null,null,null,null,null,null," "]
[null,0,340,"MB - Motor Bus",null,"Bus (35 ft)"," ","51904 - Vehicles, Revenue Vehicles, Bus, Bus (35 ft)"," ",11,"Each"," ","No",2012,null,499545.0551,null,5494995.6061000004,0.1,null,2008,6683400.0845733052,null,14,"16 Yrs    ","Normal",null,null,null," ",null,"NSW-ES-OCS2351-FD-CA-6.6-TP",null,null,null,null,"92-965-827",null,"South","Archer's Line","",null,null,null,null,null,null,null,null,null,null," "]
[null,0,341,"MB - Motor Bus",null,"Bus (35 ft)"," ","51904 - Vehicles, Revenue Vehicles, Bus, Bus (35 ft)"," ",9,"Each"," ","No",2018,null,503295.3933,null,4529658.5396999996,0.1,null,2008,5509289.258341263,null,14,"16 Yrs    ","Normal",null,null,null," ",null,"NSW-ES-OCS2453-FD-CA-4.8-TP",null,null,null,null,"39-555-760",null,"South","Archer's Line","",null,null,null,null,null,null,null,null,null,null," "]
[null,0,342,"MB - Motor Bus",null,"Bus (40 ft)"," ","51903 - Vehicles, Revenue Vehicles, Bus, Bus (40 ft)"," ",66,"Each"," ","No",2010,null,630056.82620000001,null,41583750.529200003,0.1,null,2008,50577081.716900796,null,null,"16 Yrs    ","Normal",null,null,null," ",null,"APW-ES-OCS190-FD-CA-4.6-Y",null,null,null,null,"53-221-089",null,"North","Wingston","",null,null,null,null,null,null,null,null,null,null," "]
[null,0,343,"MB - Motor Bus",null,"Bus (40 ft)"," ","51903 - Vehicles, Revenue Vehicles, Bus, Bus (40 ft)"," ",61,"Each"," ","No",2018,null,620834.68299999996,null,37870915.662999995,0.1,null,2008,46061270.852334969,null,null,"16 Yrs    ","Normal",null,null,null," ",null,"UN-ES-OCS5053-LP-PF-3.4-TP",null,null,null,null,"74-522-950",null,"South","Archer's Line","",null,null,null,null,null,null,null,null,null,null," "]
[null,0,344,"MB - Motor Bus",null,"Bus (40 ft)"," ","51903 - Vehicles, Revenue Vehicles, Bus, Bus (40 ft)"," ",57,"Each"," ","No",2021,null,625319.55680000002,null,35643214.737599999,0.1,null,2008,43351784.326687068,null,null,"16 Yrs    ","Normal",null,null,null," ",null,"APE-ES-OCS166-FD-CA-4.0-Y",null,null,null,null,"55-105-543",null,"South","Archer's Line","",null,null,null,null,null,null,null,null,null,null," "]
[null,0,345,"MB - Motor Bus",null,"Bus (40 ft)"," ","51903 - Vehicles, Revenue Vehicles, Bus, Bus (40 ft)"," ",50,"Each"," ","No",2012,null,638607.59739999997,null,31930379.869999997,0.1,null,2008,38835973.460418478,null,null,"16 Yrs    ","Normal",null,null,null," ",null,"NS-ES-OCS2491-FD-WF-4.0-TP",null,null,null,null,"88-203-728",null,"North","Wingston","",null,null,null,null,null,null,null,null,null,null," "]
[null,0,346,"MB - Motor Bus",null,"Bus (40 ft)"," ","51903 - Vehicles, Revenue Vehicles, Bus, Bus (40 ft)"," ",51,"Each"," ","No",2020,null,626085.8798,null,31930379.869800001,0.1,null,2008,38835973.460175231,null,null,"16 Yrs    ","Normal",null,null,null," ",null,"MJE-ES-OCS1055-FD-JA-0.3-Y",null,null,null,null,"30-914-390",null,"South","Archer's Line","",null,null,null,null,null,null,null,null,null,null," "]
[null,0,347,"MB - Motor Bus",null,"Bus (40 ft)"," ","51903 - Vehicles, Revenue Vehicles, Bus, Bus (40 ft)"," ",31,"Each"," ","No",2017,null,646751.88040000002,null,20049308.292400002,0.1,null,2008,24385378.68680216,null,null,"16 Yrs    ","Normal",null,null,null," ",null,"WVW-ES-OCS0076-FD-JA-4.2-Y",null,null,null,null,"70-400-412",null,"South","Archer's Line","",null,null,null,null,null,null,null,null,null,null," "]
[null,0,348,"MB - Motor Bus",null,"Bus (40 ft)"," ","51903 - Vehicles, Revenue Vehicles, Bus, Bus (40 ft)"," ",20,"Each"," ","No",2016,null,631181.9277,null,12623638.554,0.1,null,2008,15353756.950372903,null,null,"16 Yrs    ","Normal",null,null,null," ",null,"NS-ES-OCS2272-DGF-8.0-TP",null,null,null,null,"16-282-833",null,"North","Wingston","",null,null,null,null,null,null,null,null,null,null," "]
[null,0,349,"MB - Motor Bus",null,"Bus (40 ft)"," ","51903 - Vehicles, Revenue Vehicles, Bus, Bus (40 ft)"," ",19,"Each"," ","No",2006,null,625319.55680000002,null,11881071.5792,0.1,null,2008,14450594.775562355,null,null,"16 Yrs    ","Normal",null,null,null," ",null,"MJW-ES-OCS1139-FD-CA-1.6-Y",null,null,null,null,"55-686-450",null,"South","Archer's Line","",null,null,null,null,null,null,null,null,null,null," "]
[null,0,350,"MB - Motor Bus",null,"Bus (40 ft)"," ","51903 - Vehicles, Revenue Vehicles, Bus, Bus (40 ft)"," ",15,"Each"," ","No",2015,null,643558.04390000005,null,9653370.6585000008,0.1,null,2008,11741108.255630923,null,null,"16 Yrs    ","Normal",null,null,null," ",null,"APE-ES-OCS154-FD-JA-3.6-Y",null,null,null,null,"04-273-488",null,"North","Wingston","",null,null,null,null,null,null,null,null,null,null," "]
[null,0,351,"MB - Motor Bus",null,"Bus (40 ft)"," ","51903 - Vehicles, Revenue Vehicles, Bus, Bus (40 ft)"," ",13,"Each"," ","No",2013,null,628325.90090000001,null,8168236.7116999999,0.1,null,2008,9934783.9094153922,null,null,"16 Yrs    ","Normal",null,null,null," ",null,"NS-ES-OCS2360-FD-WF-6.4-TP",null,null,null,null,"57-024-718",null,"North","Wingston","",null,null,null,null,null,null,null,null,null,null," "]
[null,0,352,"MB - Motor Bus",null,"Bus (40 ft)"," ","51903 - Vehicles, Revenue Vehicles, Bus, Bus (40 ft)"," ",11,"Each"," ","No",2008,null,627806.62329999998,null,6905872.8563000001,0.1,null,2008,8399408.2143781018,null,null,"16 Yrs    ","Normal",null,null,null," ",null,"AP-ES-OCS018-LP-TT-0.2-Y",null,null,null,null,"77-583-424",null,"North","Wingston","",null,null,null,null,null,null,null,null,null,null," "]
[null,0,353,"MB - Motor Bus",null,"Bus (40 ft)"," ","51903 - Vehicles, Revenue Vehicles, Bus, Bus (40 ft)"," ",3,"Each"," ","No",2014,null,643558.04390000005,null,1930674.1317000003,0.1,null,2008,2348221.651126185,null,null,"16 Yrs    ","Normal",null,null,null," ",null,"MJ-ES-OCS1210-FD-TT-3.0-Y",null,null,null,null,"70-889-225",null,"North","Wingston","",null,null,null,null,null,null,null,null,null,null," "]
[null,0,354,"SY - Systemwide Assets",null,"Buildings"," ","21000 - Facilities, Buildings"," ",1,"Each"," ","No",2008,null,19046.778699999999,null,19046.778699999999,0.1,null,1997,29404.55649792499,null,60,"80 Yrs    ","Normal",null,null,null," ",null,"MJW-ES-OCS1451-LP-CA-9.6-Y",null,null,null,null,"61-683-088",null,"Systemwide","","",null,null,null,null,null,null,null,null,null,null," "]
[null,0,355,"SY - Systemwide Assets",null,"Administration"," ","21100 - Facilities, Buildings, Administration"," ",2,"Each"," ","No",2019,null,3193037.9871999999,null,6386075.9743999997,0.1,null,2008,7767194.6925702039,null,60,"80 Yrs    ","Normal",null,null,null," ",null,"AP-ES-OCS165-FD-TT-3.9-Y",null,null,null,null,"38-816-924",null,"Systemwide","","",null,null,null,null,null,null,null,null,null,null," "]
[null,0,356,"SY - Systemwide Assets",null,"Administration"," ","21100 - Facilities, Buildings, Administration"," ",3,"Each"," ","No",1992,null,1393785.6348999999,null,4181356.9046999998,0.1,null,1981,10385971.677647246,null,60,"80 Yrs    ","Normal",null,null,null," ",null,"APW-ES-OCS207-FD-JA-5.0-Y",null,null,null,null,"06-460-535",null,"Systemwide","","",null,null,null,null,null,null,null,null,null,null," "]
[null,0,357,"SY - Systemwide Assets",null,"Administration"," ","21100 - Facilities, Buildings, Administration"," ",7,"Each"," ","No",2013,null,586092.71569999994,null,4102649.0098999995,0.1,null,2002,5815781.3699552547,null,60,"80 Yrs    ","Normal",null,null,null," ",null,"NSW-ES-OCS2127-FD-JA-11.3-TP",null,null,null,null,"15-675-931",null,"Systemwide","","",null,null,null,null,null,null,null,null,null,null," "]
[null,0,358,"SY - Systemwide Assets",null,"Administration"," ","21100 - Facilities, Buildings, Administration"," ",2,"Each"," ","No",1999,null,893928.45920000004,null,1787856.9184000001,0.1,null,1988,3479235.6067865719,null,60,"80 Yrs    ","Normal",null,null,null," ",null,"WVE-ES-OCS0152-FD-JA-2.9-Y",null,null,null,null,"25-909-928",null,"Systemwide","","",null,null,null,null,null,null,null,null,null,null," "]
[null,0,359,"SY - Systemwide Assets",null,"Administration"," ","21100 - Facilities, Buildings, Administration"," ",5,"Each"," ","No",2008,null,293027.36459999997,null,1465136.8229999999,0.1,null,1997,2261888.961260091,null,60,"80 Yrs    ","Normal",null,null,null," ",null,"NS-ES-OCS2517-FD-WF-3.4-TP",null,null,null,null,"43-073-392",null,"Systemwide","","",null,null,null,null,null,null,null,null,null,null," "]
[41500,0,360,"SY - Systemwide Assets",null,"Administration"," ","21100 - Facilities, Buildings, Administration"," ",5,"Each"," ","No",2001,null,204082.12549999999,null,1020410.6274999999,0.1,null,1990,1841876.8853953113,null,60,"80 Yrs    ","Normal",null,null,null," ",null,null,null,null,null,null,"98-675-885",null,"Systemwide","","",null,null,null,null,null,null,null,null,null,null," "]
[41500,0,361,"SY - Systemwide Assets",null,"Administration"," ","21100 - Facilities, Buildings, Administration"," ",2,"Each"," ","No",1998,null,503757.1164,null,1007514.2328,0.1,null,1987,2029811.0548251816,null,60,"80 Yrs    ","Normal",null,null,null," ",null,null,null,null,null,null,"23-231-795",null,"Systemwide","","",null,null,null,null,null,null,null,null,null,null," "]
[41500,0,362,"SY - Systemwide Assets",null,"Administration"," ","21100 - Facilities, Buildings, Administration"," ",2,"Each"," ","No",1990,null,391212.80420000001,null,782425.60840000003,0.1,null,1979,2319489.9905222873,null,60,"80 Yrs    ","Normal",null,null,null," ",null,null,null,null,null,null,"35-047-180",null,"Systemwide","","",null,null,null,null,null,null,null,null,null,null," "]
[41500,0,363,"SY - Systemwide Assets",null,"Administration"," ","21100 - Facilities, Buildings, Administration"," ",1,"Each"," ","No",1983,null,640166.40689999994,null,640166.40689999994,0.1,null,1972,3096623.4730803599,null,60,"80 Yrs    ","Normal",null,null,null," ",null,null,null,null,null,null,"51-441-351",null,"Systemwide","","",null,null,null,null,null,null,null,null,null,null," "]
[41500,0,364,"SY - Systemwide Assets",null,"Administration"," ","21100 - Facilities, Buildings, Administration"," ",4,"Each"," ","No",2006,null,138802.43590000001,null,555209.74360000005,0.1,null,1995,887881.06408813025,null,60,"80 Yrs    ","Normal",null,null,null," ",null,null,null,null,null,null,"91-943-895",null,"Systemwide","","",null,null,null,null,null,null,null,null,null,null," "]
[41500,0,365,"SY - Systemwide Assets",null,"Administration"," ","21100 - Facilities, Buildings, Administration"," ",2,"Each"," ","No",2002,null,96120.243700000006,null,192240.48740000001,0.1,null,1991,335652.95708693896,null,60,"80 Yrs    ","Normal",null,null,null," ",null,null,null,null,null,null,"56-216-409",null,"Systemwide","","",null,null,null,null,null,null,null,null,null,null," "]
[null,0,366,"SY - Systemwide Assets",null,"Administration"," ","21100 - Facilities, Buildings, Administration"," ",2,"Each"," ","No",2007,null,52454.202799999999,null,104908.4056,0.1,null,1996,164752.5532437439,null,60,"80 Yrs    ","Normal",null,null,null," ",null,"WV-ES-TPSS-SI-1.5M-2.9-Y",null,null,null,null,"87-784-811",null,"Systemwide","","",null,null,null,null,null,null,null,null,null,null," "]
[null,0,367,"SY - Systemwide Assets",null,"Administration"," ","21100 - Facilities, Buildings, Administration"," ",3,"Each"," ","No",2015,null,21449.673999999999,null,64349.021999999997,0.1,null,2004,87110.137808050349,null,60,"80 Yrs    ","Normal",null,null,null," ",null,"WV-ES-TPSS-SI-1.5M-0.9-Y",null,null,null,null,"52-314-720",null,"Systemwide","","",null,null,null,null,null,null,null,null,null,null," "]
[null,0,368,"SY - Systemwide Assets",null,"Administration"," ","21100 - Facilities, Buildings, Administration"," ",1,"Each"," ","No",1994,null,47215.873299999999,null,47215.873299999999,0.1,null,1983,106290.92191010002,null,60,"80 Yrs    ","Normal",null,null,null," ",null,"NS-ES-TPSS-IM-1.5M-2.2-TP",null,null,null,null,"62-124-440",null,"Systemwide","","",null,null,null,null,null,null,null,null,null,null," "]
[null,0,369,"SY - Systemwide Assets",null,"Administration"," ","21100 - Facilities, Buildings, Administration"," ",5,"Each"," ","No",2009,null,8998.2268999999997,null,44991.1345,0.1,null,1998,68685.99052328468,null,60,"80 Yrs    ","Normal",null,null,null," ",null,"IM-ES-TPSS-IM-1.5M-0.1-TP",null,null,null,null,"84-029-892",null,"Systemwide","","",null,null,null,null,null,null,null,null,null,null," "]
[41500,0,370,"SY - Systemwide Assets",null,"Administration"," ","21100 - Facilities, Buildings, Administration"," ",2,"Each"," ","No",2011,null,20325.781999999999,null,40651.563999999998,0.1,null,2000,59839.558351618478,null,60,"80 Yrs    ","Normal",null,null,null," ",null,null,null,null,null,null,"61-609-150",null,"Systemwide","","",null,null,null,null,null,null,null,null,null,null," "]
[41500,0,371,"SY - Systemwide Assets",null,"Administration"," ","21100 - Facilities, Buildings, Administration"," ",1,"Each"," ","No",2017,null,33592.671300000002,null,33592.671300000002,0.1,null,2006,42773.546648117415,null,60,"80 Yrs    ","Normal",null,null,null," ",null,null,null,null,null,null,"05-524-481",null,"Systemwide","","",null,null,null,null,null,null,null,null,null,null," "]
[41500,0,372,"SY - Systemwide Assets",null,"Administration"," ","21100 - Facilities, Buildings, Administration"," ",2,"Each"," ","No",2000,null,8167.4952000000003,null,16334.990400000001,0.1,null,1989,30589.02332446495,null,60,"80 Yrs    ","Normal",null,null,null," ",null,null,null,null,null,null,"73-870-434",null,"Systemwide","","",null,null,null,null,null,null,null,null,null,null," "]
[41500,0,373,"SY - Systemwide Assets",null,"Administration"," ","21100 - Facilities, Buildings, Administration"," ",1,"Each"," ","No",2003,null,5576.9152000000004,null,5576.9152000000004,0.1,null,1992,9520.3946539225253,null,60,"80 Yrs    ","Normal",null,null,null," ",null,null,null,null,null,null,"97-702-187",null,"Systemwide","","",null,null,null,null,null,null,null,null,null,null," "]
[null,0,374,"SY - Systemwide Assets",null,"Administration"," ","21100 - Facilities, Buildings, Administration"," ",1,"Each"," ","No",1997,null,2782.0758999999998,null,2782.0758999999998,0.1,null,1986,5743.882198554259,null,60,"80 Yrs    ","Normal",null,null,null," ",null,null,null,null,null,null,"16-654-341",null,"Systemwide","","",null,null,null,null,null,null,null,null,null,null," "]
[null,0,375,"SY - Systemwide Assets",null,"Equipment"," ","23000 - Facilities, Equipment"," ",1,"Each"," ","No",2014,null,313701.48220000003,null,313701.48220000003,0.1,null,2003,436082.78297733568,null,null,"15 Yrs    ","Normal",null,null,null," ",null,null,null,null,null,null,"01-574-778",null,"West","Brothford","",null,null,null,null,null,null,null,null,null,null," "]
[null,0,376,"SY - Systemwide Assets",null,"Equipment"," ","23000 - Facilities, Equipment"," ",1,"Each"," ","No",2006,null,120295.44439999999,null,120295.44439999999,0.1,null,1995,192374.23047779972,null,null,"15 Yrs    ","Normal",null,null,null," ",null,null,null,null,null,null,"19-621-929",null,"South","Archer's Line","",null,null,null,null,null,null,null,null,null,null," "]
[null,0,377,"SY - Systemwide Assets",null,"Furniture"," ","23200 - Facilities, Equipment, Furniture"," ",2,"Each"," ","No",2011,null,3648.2172999999998,null,7296.4345999999996,0.1,null,2000,10740.433603131925,null,15,"15 Yrs    ","Normal",null,null,null," ",null,null,null,null,null,null,"18-182-157",null,"South","Archer's Line","",null,null,null,null,null,null,null,null,null,null," "]
[null,0,378,"SY - Systemwide Assets",null,"Furniture"," ","23200 - Facilities, Equipment, Furniture"," ",1,"Each"," ","No",2007,null,4530.1356999999998,null,4530.1356999999998,0.1,null,1996,7114.3148048723651,null,15,"15 Yrs    ","Normal",null,null,null," ",null,null,null,null,null,null,"17-981-678",null,"South","Archer's Line","",null,null,null,null,null,null,null,null,null,null," "]
[null,0,379,"SY - Systemwide Assets",null,"Furniture"," ","23200 - Facilities, Equipment, Furniture"," ",1,"Each"," ","No",1995,null,3056.6671999999999,null,3056.6671999999999,0.1,null,1984,6641.5427722150671,null,15,"15 Yrs    ","Normal",null,null,null," ",null,null,null,null,null,null,"12-335-030",null,"North","Wingston","",null,null,null,null,null,null,null,null,null,null," "]
[null,0,380,"SY - Systemwide Assets",null,"Maintenance"," ","23300 - Facilities, Equipment, Maintenance"," ",4,"Each"," ","No",2014,null,156850.74110000001,null,627402.96440000006,0.1,null,2003,872165.56595467136,null,15,"15 Yrs    ","Normal",null,null,null," ",null,null,null,null,null,null,"05-078-399",null,"North","Wingston","",null,null,null,null,null,null,null,null,null,null," "]
[null,0,381,"SY - Systemwide Assets",null,"Maintenance"," ","23300 - Facilities, Equipment, Maintenance"," ",2,"Each"," ","No",2008,null,163606.94529999999,null,327213.89059999998,0.1,null,1997,505155.201548782,null,15,"15 Yrs    ","Normal",null,null,null," ",null,null,null,null,null,null,"15-427-159",null,"South","Archer's Line","",null,null,null,null,null,null,null,null,null,null," "]
[null,0,382,"SY - Systemwide Assets",null,"Maintenance"," ","23300 - Facilities, Equipment, Maintenance"," ",9,"Each"," ","No",2010,null,22670.867600000001,null,204037.80840000001,0.1,null,1999,307150.19755705626,null,15,"15 Yrs    ","Normal",null,null,null," ",null,null,null,null,null,null,"86-872-518",null,"North","Wingston","",null,null,null,null,null,null,null,null,null,null," "]
[null,0,383,"SY - Systemwide Assets",null,"Maintenance"," ","23300 - Facilities, Equipment, Maintenance"," ",5,"Each"," ","No",2011,null,35439.824999999997,null,177199.125,0.1,null,2000,260839.10031833549,null,15,"15 Yrs    ","Normal",null,null,null," ",null,null,null,null,null,null,"60-422-267",null,"North","Wingston","",null,null,null,null,null,null,null,null,null,null," "]
[null,0,384,"SY - Systemwide Assets",null,"Maintenance"," ","23300 - Facilities, Equipment, Maintenance"," ",3,"Each"," ","No",2015,null,46799.288699999997,null,140397.86609999998,0.1,null,2004,190058.48237953332,null,15,"15 Yrs    ","Normal",null,null,null," ",null,null,null,null,null,null,"14-672-202",null,"North","Wingston","",null,null,null,null,null,null,null,null,null,null," "]
[null,{"$f":"1-NOT(ISBLANK(D394))*NOT(ISBLANK(F394))*NOT(ISBLANK(H394))*NOT(ISBLANK(J394))*NOT(ISBLANK(N394))*NOT(ISBLANK(U394))*NOT(ISBLANK(M394))*NOT(AND(ISBLANK(P394),ISBLANK(Q394)))*NOT(ISBLANK(Z394))","v":0},{"$f":"OFFSET(C394,-1,0)+1","v":385},"SY - Systemwide Assets",null,"Maintenance"," ","23300 - Facilities, Equipment, Maintenance"," ",6,"Each"," ","No",2017,null,20155.602800000001,null,{"$f":"IF(P394=\"\",Q394,J394*P394)","v":120933.6168},0.1,null,2006,{"$f":"IFERROR(R394*INDEX(rng.CostIndexMeans,MATCH(rng.ConstantYear,rng.CostIndexYear,0))/INDEX(rng.CostIndexMeans,MATCH(U394,rng.CostIndexYear,0))*(1+S394),\"\")","v":153984.76808601871},null,15,{"$f":"IFERROR(TEXT(INDEX(rng.ClassEDL,MATCH(H394,rng.ClassChoice,0)),\"0\")&\" Yrs    \",\"\")","v":"15 Yrs    "},"Normal",null,null,null," ",null,null,null,null,null,null,"17-394-660",null,"South","Archer's Line","",null,null,null,null,null,null,null,null,null,null," "]
[null,0,386,"SY - Systemwide Assets",null,"Maintenance"," ","23300 - Facilities, Equipment, Maintenance"," ",1,"Each"," ","No",2016,null,108263.2409,null,108263.2409,0.1,null,2005,142102.60565215113,null,15,"15 Yrs    ","Normal",null,null,null," ",null,null,null,null,null,null,"32-325-270",null,"West","Brothford","",null,null,null,null,null,null,null,null,null,null," "]
[null,0,387,"SY - Systemwide Assets",null,"Maintenance"," ","23300 - Facilities, Equipment, Maintenance"," ",2,"Each"," ","No",2003,null,14156.784799999999,null,28313.569599999999,0.1,null,1992,48334.311530019906,null,15,"15 Yrs    ","Normal",null,null,null," ",null,null,null,null,null,null,"09-543-147",null,"South","Archer's Line","",null,null,null,null,null,null,null,null,null,null," "]
[null,0,388,"SY - Systemwide Assets",null,"Maintenance"," ","23300 - Facilities, Equipment, Maintenance"," ",1,"Each"," ","No",2013,null,23839.717199999999,null,23839.717199999999,0.1,null,2002,33794.405229937351,null,15,"15 Yrs    ","Normal",null,null,null," ",null,null,null,null,null,null,"08-489-429",null,"North","Wingston","",null,null,null,null,null,null,null,null,null,null," "]
[null,0,389,"SY - Systemwide Assets",null,"Maintenance"," ","23300 - Facilities, Equipment, Maintenance"," ",1,"Each"," ","No",2018,null,22974.1963,null,22974.1963,0.1,null,2007,28481.309289556095,null,15,"15 Yrs    ","Normal",null,null,null," ",null,null,null,null,null,null,"86-837-020",null,"West","Brothford","",null,null,null,null,null,null,null,null,null,null," "]
[null,0,390,"SY - Systemwide Assets",null,"MIS/IT/Network Systems"," ","23100 - Facilities, Equipment, MIS/IT/Network Systems"," ",7,"Each"," ","No",2020,null,405961.26270000002,null,2841728.8389000003,0.1,null,2009,3435117.3500952139,null,5,"6 Yrs    ","Normal",null,null,null," ",null,null,null,null,null,null,"45-173-821",null,"Systemwide","","",null,null,null,null,null,null,null,null,null,null," "]
[null,0,391,"SY - Systemwide Assets",null,"MIS/IT/Network Systems"," ","23100 - Facilities, Equipment, MIS/IT/Network Systems"," ",2,"Each"," ","No",2019,null,891080.36849999998,null,1782160.737,0.1,null,2008,2167589.2164803059,null,5,"6 Yrs    ","Normal",null,null,null," ",null,null,null,null,null,null,"87-204-400",null,"Systemwide","","",null,null,null,null,null,null,null,null,null,null," "]
[null,0,392,"SY - Systemwide Assets",null,"MIS/IT/Network Systems"," ","23100 - Facilities, Equipment, MIS/IT/Network Systems"," ",1,"Each"," ","No",2016,null,700526.85309999995,null,700526.85309999995,0.1,null,2005,919487.44862312439,null,5,"6 Yrs    ","Normal",null,null,null," ",null,null,null,null,null,null,"36-207-860",null,"Systemwide","","",null,null,null,null,null,null,null,null,null,null," "]
[null,0,393,"SY - Systemwide Assets",null,"MIS/IT/Network Systems"," ","23100 - Facilities, Equipment, MIS/IT/Network Systems"," ",2,"Each"," ","No",2018,null,290767.17170000001,null,581534.34340000001,0.1,null,2007,720933.14084176801,null,5,"6 Yrs    ","Normal",null,null,null," ",null,null,null,null,null,null,"30-136-111",null,"Systemwide","","",null,null,null,null,null,null,null,null,null,null," "]
[null,0,394,"SY - Systemwide Assets",null,"MIS/IT/Network Systems"," ","23100 - Facilities, Equipment, MIS/IT/Network Systems"," ",2,"Each"," ","No",2017,null,245226.50020000001,null,490453.00040000002,0.1,null,2006,624493.78032400028,null,5,"6 Yrs    ","Normal",null,null,null," ",null,null,null,null,null,null,"35-080-335",null,"Systemwide","","",null,null,null,null,null,null,null,null,null,null," "]
[null,0,395,"SY - Systemwide Assets",null,"MIS/IT/Network Systems"," ","23100 - Facilities, Equipment, MIS/IT/Network Systems"," ",1,"Each"," ","No",1992,null,306632.83970000001,null,306632.83970000001,0.1,null,1981,761637.92308211001,null,5,"6 Yrs    ","Normal",null,null,null," ",null,null,null,null,null,null,"85-707-826",null,"Systemwide","","",null,null,null,null,null,null,null,null,null,null," "]
[null,0,396,"SY - Systemwide Assets",null,"MIS/IT/Network Systems"," ","23100 - Facilities, Equipment, MIS/IT/Network Systems"," ",1,"Each"," ","No",2015,null,157947.59940000001,null,157947.59940000001,0.1,null,2004,213815.79272773926,null,5,"6 Yrs    ","Normal",null,null,null," ",null,null,null,null,null,null,"79-567-001",null,"Systemwide","","",null,null,null,null,null,null,null,null,null,null," "]
[null,0,397,"SY - Systemwide Assets",null,"MIS/IT/Network Systems"," ","23100 - Facilities, Equipment, MIS/IT/Network Systems"," ",1,"Each"," ","No",2012,null,75011.814499999993,null,75011.814499999993,0.1,null,2001,107985.94289766268,null,5,"6 Yrs    ","Normal",null,null,null," ",null,null,null,null,null,null,"35-923-474",null,"Systemwide","","",null,null,null,null,null,null,null,null,null,null," "]
[null,0,398,"SY - Systemwide Assets",null,"Phone System"," ","33400 - Systems, Communications, Phone System"," ",2,"Each"," ","No",2018,null,610252.08880000003,null,1220504.1776000001,0.1,null,2007,1513069.5549694118,null,15,"20 Yrs    ","Normal",null,null,null," ",null,null,null,null,null,null,"33-688-145",null,"Systemwide","","",null,null,null,null,null,null,null,null,null,null," "]
[null,0,399,"SY - Systemwide Assets",null,"Phone System"," ","33400 - Systems, Communications, Phone System"," ",1,"Each"," ","No",2013,null,288294.2548,null,288294.2548,0.1,null,2002,408676.52877082,null,15,"20 Yrs    ","Normal",null,null,null," ",null,null,null,null,null,null,"63-230-439",null,"Systemwide","","",null,null,null,null,null,null,null,null,null,null," "]
[null,0,400,"SY - Systemwide Assets",null,"Phone System"," ","33400 - Systems, Communications, Phone System"," ",2,"Each"," ","No",2019,null,12994.922,null,25989.844000000001,0.1,null,2008,31610.675974849168,null,15,"20 Yrs    ","Normal",null,null,null," ",null,null,null,null,null,null,"58-689-485",null,"Systemwide","","",null,null,null,null,null,null,null,null,null,null," "]
[null,0,401,"SY - Systemwide Assets",null,"Phone System"," ","33400 - Systems, Communications, Phone System"," ",3,"Each"," ","No",2020,null,6656.3018000000002,null,19968.9054,0.1,null,2009,24138.66251521117,null,15,"20 Yrs    ","Normal",null,null,null," ",null,null,null,null,null,null,"68-942-460",null,"Systemwide","","",null,null,null,null,null,null,null,null,null,null," "]
[null,0,402,"SY - Systemwide Assets",null,"Radio"," ","33500 - Systems, Communications, Radio"," ",2,"Each"," ","No",2018,null,25128.0272,null,50256.054400000001,0.1,null,2007,62302.864063155786,null,10,"25 Yrs    ","Normal",null,null,null," ",null,null,null,null,null,null,"26-767-669",null,"Systemwide","","",null,null,null,null,null,null,null,null,null,null," "]
[null,0,403,"SY - Systemwide Assets",null,"Radio"," ","33500 - Systems, Communications, Radio"," ",3,"Each"," ","No",2020,null,11776.5339,null,35329.601699999999,0.1,null,2009,42706.864254719279,null,10,"25 Yrs    ","Normal",null,null,null," ",null,null,null,null,null,null,"55-070-792",null,"Systemwide","","",null,null,null,null,null,null,null,null,null,null," "]
[null,0,404,"SY - Systemwide Assets",null,"Radio"," ","33500 - Systems, Communications, Radio"," ",3,"Each"," ","No",2019,null,5940.5357999999997,null,17821.607400000001,0.1,null,2008,21675.892201291172,null,10,"25 Yrs    ","Normal",null,null,null," ",null,null,null,null,null,null,"43-981-556",null,"Systemwide","","",null,null,null,null,null,null,null,null,null,null," "]
[null,0,405,"SY - Systemwide Assets",null,"Radio"," ","33500 - Systems, Communications, Radio"," ",1,"Each"," ","No",2013,null,12197.0646,null,12197.0646,0.1,null,2002,17290.160795536776,null,10,"25 Yrs    ","Normal",null,null,null," ",null,null,null,null,null,null,"28-354-124",null,"Systemwide","","",null,null,null,null,null,null,null,null,null,null," "]
[null,0,406,"SY - Systemwide Assets",null,"Radio"," ","33500 - Systems, Communications, Radio"," ",1,"Each"," ","No",2015,null,1520.9768999999999,null,1520.9768999999999,0.1,null,2004,2058.9669157965013,null,10,"25 Yrs    ","Normal",null,null,null," ",null,"WVE-ES-OCS0195-FD-JA-2.2-Y",null,null,null,null,"07-497-905",null,"Systemwide","","",null,null,null,null,null,null,null,null,null,null," "]
[null,0,407,"SY - Systemwide Assets",null,"Central Revenue Collection"," ","34000 - Systems, Revenue Collection, Central Revenue Collection"," ",2,"Each"," ","No",2001,null,179592.27050000001,null,359184.54100000003,0.1,null,1990,648340.66387575376,null,null,"15 Yrs    ","Normal",null,null,null," ",null,"UNW-GW-GD-TD-3.9-K",null,null,null,null,"44-493-649",null,"Systemwide","","",null,null,null,null,null,null,null,null,null,null," "]
[null,0,408,"SY - Systemwide Assets",null,"Central Revenue Collection"," ","34000 - Systems, Revenue Collection, Central Revenue Collection"," ",2,"Each"," ","No",1998,null,97019.8891,null,194039.7782,0.1,null,1987,390926.57358456554,null,null,"15 Yrs    ","Normal",null,null,null," ",null,"CRN1-GW-GD-CB-30.9-C",null,null,null,null,"28-051-845",null,"Systemwide","","",null,null,null,null,null,null,null,null,null,null," "]
[null,0,409,"SY - Systemwide Assets",null,"Central Revenue Collection"," ","34000 - Systems, Revenue Collection, Central Revenue Collection"," ",1,"Each"," ","No",1999,null,182672.33730000001,null,182672.33730000001,0.1,null,1988,355487.116316817,null,null,"15 Yrs    ","Normal",null,null,null," ",null,"CRN1-GW-GD-CU-9.8-C",null,null,null,null,"65-256-670",null,"Systemwide","","",null,null,null,null,null,null,null,null,null,null," "]
[null,0,410,"SY - Systemwide Assets",null,"Central Revenue Collection"," ","34000 - Systems, Revenue Collection, Central Revenue Collection"," ",1,"Each"," ","No",1994,null,21247.143,null,21247.143,0.1,null,1983,47830.914893312554,null,null,"15 Yrs    ","Normal",null,null,null," ",null,"CRN1-GW-GD-CB-27.6-C",null,null,null,null,"30-133-234",null,"Systemwide","","",null,null,null,null,null,null,null,null,null,null," "]
[null,0,411,"VP - Vanpool",null,"Light-Duty Van"," ","52524 - Vehicles, Revenue Vehicles, Vans, Cutaways and Autos, Light-Duty Van"," ",141,"Each"," ","No",2017,null,53935.3505,null,7604884.4205,0.1,null,2004,10294834.471362287,null,5,"8 Yrs    ","Normal",null,null,null," ",null,"CRN1-GW-GD-CU-17.1-C",null,null,null,null,"01-879-729",null,"North","Wingston","",null,null,null,null,null,null,null,null,null,null," "]
[null,0,412,"VP - Vanpool",null,"Light-Duty Van"," ","52524 - Vehicles, Revenue Vehicles, Vans, Cutaways and Autos, Light-Duty Van"," ",107,"Each"," ","No",2020,null,54672.066299999999,null,5849911.0940999994,0.1,null,2004,7919103.4414150622,null,5,"8 Yrs    ","Normal",null,null,null," ",null,"WVE-ES-OCS0195-FD-JA-2.2-Y",null,null,null,null,"90-493-666",null,"South","Archer's Line","",null,null,null,null,null,null,null,null,null,null," "]
[null,0,413,"VP - Vanpool",null,"Light-Duty Van"," ","52524 - Vehicles, Revenue Vehicles, Vans, Cutaways and Autos, Light-Duty Van"," ",106,"Each"," ","No",2018,null,54635.962099999997,null,5791411.9825999998,0.1,null,2004,7839912.4062441867,null,5,"8 Yrs    ","Normal",null,null,null," ",null,"CRN1-GW-GD-CU-24.5-C",null,null,null,null,"48-196-672",null,"South","Archer's Line","",null,null,null,null,null,null,null,null,null,null," "]
[null,0,414,"VP - Vanpool",null,"Light-Duty Van"," ","52524 - Vehicles, Revenue Vehicles, Vans, Cutaways and Autos, Light-Duty Van"," ",49,"Each"," ","No",2013,null,54917.532700000003,null,2690959.1023000004,0.1,null,2004,3642787.5817161682,null,5,"8 Yrs    ","Normal",null,null,null," ",null,"WVE-ES-OCS0195-FD-JA-2.2-Y",null,null,null,null,"08-330-608",null,"North","Wingston","",null,null,null,null,null,null,null,null,null,null," "]
[null,0,415,"VP - Vanpool",null,"Light-Duty Van"," ","52524 - Vehicles, Revenue Vehicles, Vans, Cutaways and Autos, Light-Duty Van"," ",47,"Each"," ","No",2015,null,54765.125099999997,null,2573960.8796999999,0.1,null,2004,3484405.5119159003,null,5,"8 Yrs    ","Normal",null,null,null," ",null,"CRN1-GW-GD-CU-4.2-C",null,null,null,null,"59-597-614",null,"North","Wingston","",null,null,null,null,null,null,null,null,null,null," "]
[null,0,416,"VP - Vanpool",null,"Light-Duty Van"," ","52524 - Vehicles, Revenue Vehicles, Vans, Cutaways and Autos, Light-Duty Van"," ",38,"Each"," ","No",2021,null,53880.76,null,2047468.8800000001,0.1,null,2004,2771686.2005221238,null,5,"8 Yrs    ","Normal",null,null,null," ",null,"CRN1-GW-GD-CU-25.6-C",null,null,null,null,"25-500-137",null,"South","Archer's Line","",null,null,null,null,null,null,null,null,null,null," "]
[null,0,417,"VP - Vanpool",null,"Light-Duty Van"," ","52524 - Vehicles, Revenue Vehicles, Vans, Cutaways and Autos, Light-Duty Van"," ",36,"Each"," ","No",2014,null,55249.160300000003,null,1988969.7708000001,0.1,null,2004,2692495.1684647878,null,5,"8 Yrs    ","Normal",null,null,null," ",null,"UNW-GW-GD-IB-2.5-K",null,null,null,null,"11-283-806",null,"North","Wingston","",null,null,null,null,null,null,null,null,null,null," "]
[null,0,418,"VP - Vanpool",null,"Light-Duty Van"," ","52524 - Vehicles, Revenue Vehicles, Vans, Cutaways and Autos, Light-Duty Van"," ",29,"Each"," ","No",2010,null,54464.6895,null,1579475.9955,0.1,null,2004,2138157.9293079623,null,5,"8 Yrs    ","Normal",null,null,null," ",null,"WVE-ES-OCS0195-FD-JA-2.2-Y",null,null,null,null,"77-561-180",null,"North","Wingston","",null,null,null,null,null,null,null,null,null,null," "]
[null,0,419,"VP - Vanpool",null,"Light-Duty Van"," ","52524 - Vehicles, Revenue Vehicles, Vans, Cutaways and Autos, Light-Duty Van"," ",13,"Each"," ","No",2011,null,53999.179300000003,null,701989.33090000006,0.1,null,2004,950292.41243915202,null,5,"8 Yrs    ","Normal",null,null,null," ",null,"UNE-GW-GD-TD-2.1-K",null,null,null,null,"81-738-643",null,"North","Wingston","",null,null,null,null,null,null,null,null,null,null," "]
[null,0,420,"VP - Vanpool",null,"Light-Duty Van"," ","52524 - Vehicles, Revenue Vehicles, Vans, Cutaways and Autos, Light-Duty Van"," ",5,"Each"," ","No",2009,null,54989.164299999997,null,274945.82149999996,0.1,null,2004,372197.86185115005,null,5,"8 Yrs    ","Normal",null,null,null," ",null,"CRN1-GW-GD-UD-25.7-C",null,null,null,null,"88-675-990",null,"South","Archer's Line","",null,null,null,null,null,null,null,null,null,null," "]
[null,0,421,"VP - Vanpool",null,"Light-Duty Van"," ","52524 - Vehicles, Revenue Vehicles, Vans, Cutaways and Autos, Light-Duty Van"," ",5,"Each"," ","No",2016,null,54989.164299999997,null,274945.82149999996,0.1,null,2004,372197.86185115005,null,5,"8 Yrs    ","Normal",null,null,null," ",null,"CRN1-GW-GD-CU-22.4-C",null,null,null,null,"79-195-020",null,"North","Wingston","",null,null,null,null,null,null,null,null,null,null," "]
[null,0,422,"VP - Vanpool",null,"Light-Duty Van"," ","52524 - Vehicles, Revenue Vehicles, Vans, Cutaways and Autos, Light-Duty Van"," ",1,"Each"," ","No",2008,null,54989.164299999997,null,54989.164299999997,0.1,null,2004,74439.572370230017,null,5,"8 Yrs    ","Normal",null,null,null," ",null,"WVE-GW-GD-UD-3.4-D",null,null,null,null,"36-352-688",null,"South","Archer's Line","",null,null,null,null,null,null,null,null,null,null," "]

{"sheet":"Parameters","index":2,"n_rows":634,"n_cols":9,"rows_kept":634,"cut":false,"hidden":true,"merged":[]}
[null,"Paramaters"]
[]
[null,"= list.priority"]
[null,"Funded"]
[null,"Deficient"]
[null,"Normal"]
[null,"Exclude"]
[]
[null,"= rows.mode"]
[null,"= rng.modecode","= rng.modedesc","= rng.modeChoice"]
[null,"ModeCode","Name","Choice List"]
[null,"BRT","Bus Rapid Transit",{"$f":"B12&\" - \"&C12","v":"BRT - Bus Rapid Transit"}]
[null,"CC","Cable Car",{"$f":"B13&\" - \"&C13","v":"CC - Cable Car"}]
[null,"CR","Commuter Rail","CR - Commuter Rail"]
[null,"DR","Demand Response","DR - Demand Response"]
[null,"FB","Ferry Boat","FB - Ferry Boat"]
[null,"HR","Heavy Rail","HR - Heavy Rail"]
[null,"JT","Jitney","JT - Jitney"]
[null,"LR","Light Rail","LR - Light Rail"]
[null,"MB","Motor Bus","MB - Motor Bus"]
[null,"MO","Monorail","MO - Monorail"]
[null,"OR","Other","OR - Other"]
[null,"SY","Systemwide Assets","SY - Systemwide Assets"]
[null,"TB","Trolleybus","TB - Trolleybus"]
[null,"TR","Aerial Tramway","TR - Aerial Tramway"]
[null,"VP","Vanpool","VP - Vanpool"]
[]
[null,"= rows.classification"]
[null,"= rng.ClassType","= rng.ClassCat","= rng.ClassSubCat","= rng.ClassElement","= rng.ClassSubElement","= rng.ClassEDL","= rng.ClassUnit","= rng.ClassChoice"]
[null,"Type","Category","Sub-Category","Element","Sub-Element","Replacement Life","Units","Choice List"]
[null,"[Select","Category","Sub-Category","Element","Sub-Element",null,null,{"$f":"B31&IF(NOT(C31=\"-\"),\" - \"&C31,\"\")&IF(NOT(D31=\"-\"),\", \"&D31,\"\")&IF(NOT(E31=\"-\"),\", \"&E31,\"\")&IF(NOT(F31=\"-\"),\", \"&F31,\"\")","v":"[Select - Category, Sub-Category, Element, Sub-Element"}]
[null,10000,"Guideway Elements","Guideway","-","-",100,"Linear Feet","10000 - Guideway Elements, Guideway"]
[null,10001,"Guideway Elements","Guideway","-","Commuter Rail",100,"Linear Feet",{"$f":"B33&IF(NOT(C33=\"-\"),\" - \"&C33,\"\")&IF(NOT(D33=\"-\"),\", \"&D33,\"\")&IF(NOT(E33=\"-\"),\", \"&E33,\"\")&IF(NOT(F33=\"-\"),\", \"&F33,\"\")","v":"10001 - Guideway Elements, Guideway, Commuter Rail"}]
[null,10002,"Guideway Elements","Guideway","-","Heavy Rail",100,"Linear Feet","10002 - Guideway Elements, Guideway, Heavy Rail"]
[null,10003,"Guideway Elements","Guideway","-","Light Rail",100,"Linear Feet","10003 - Guideway Elements, Guideway, Light Rail"]
[null,10110,"Guideway Elements","Guideway","At Grade Ballast","-",100,"Linear Feet","10110 - Guideway Elements, Guideway, At Grade Ballast"]
[null,10111,"Guideway Elements","Guideway","At Grade Ballast","Commuter Rail",100,"Linear Feet","10111 - Guideway Elements, Guideway, At Grade Ballast, Commuter Rail"]
[null,10112,"Guideway Elements","Guideway","At Grade Ballast","Heavy Rail",100,"Linear Feet","10112 - Guideway Elements, Guideway, At Grade Ballast, Heavy Rail"]
[null,10113,"Guideway Elements","Guideway","At Grade Ballast","Light Rail",100,"Linear Feet","10113 - Guideway Elements, Guideway, At Grade Ballast, Light Rail"]
[null,10120,"Guideway Elements","Guideway","At Grade Ballast","-",100,"Linear Feet","10120 - Guideway Elements, Guideway, At Grade Ballast"]
[null,10121,"Guideway Elements","Guideway","At Grade Ballast","Expressway Commuter Rail",100,"Linear Feet","10121 - Guideway Elements, Guideway, At Grade Ballast, Expressway Commuter Rail"]
[null,10122,"Guideway Elements","Guideway","At Grade Ballast","Expressway Heavy Rail",100,"Linear Feet","10122 - Guideway Elements, Guideway, At Grade Ballast, Expressway Heavy Rail"]
[null,10123,"Guideway Elements","Guideway","At Grade Ballast","Expressway Light Rail",100,"Linear Feet","10123 - Guideway Elements, Guideway, At Grade Ballast, Expressway Light Rail"]
[null,10200,"Guideway Elements","Guideway","At Grade-In-Street","-",20,"Linear Feet","10200 - Guideway Elements, Guideway, At Grade-In-Street"]
[null,10205,"Guideway Elements","Guideway","At Grade-In-Street","Ductbank",80,"Lump Sum","10205 - Guideway Elements, Guideway, At Grade-In-Street, Ductbank"]
[null,10206,"Guideway Elements","Guideway","At Grade-In-Street","Manhole",70,"Lump Sum","10206 - Guideway Elements, Guideway, At Grade-In-Street, Manhole"]
[null,10210,"Guideway Elements","Guideway","At Grade-In-Street","Grade Crossing",20,"Linear Feet","10210 - Guideway Elements, Guideway, At Grade-In-Street, Grade Crossing"]
[null,10211,"Guideway Elements","Guideway","At Grade-In-Street","Grade Crossing Commuter Rail",20,"Linear Feet","10211 - Guideway Elements, Guideway, At Grade-In-Street, Grade Crossing Commuter Rail"]
[null,10212,"Guideway Elements","Guideway","At Grade-In-Street","Grade Crossing Heavy Rail",20,"Linear Feet","10212 - Guideway Elements, Guideway, At Grade-In-Street, Grade Crossing Heavy Rail"]
[null,10213,"Guideway Elements","Guideway","At Grade-In-Street","Grade Crossing Light Rail",20,"Linear Feet","10213 - Guideway Elements, Guideway, At Grade-In-Street, Grade Crossing Light Rail"]
[null,10215,"Guideway Elements","Guideway","At Grade-In-Street","Grade Crossing - Panelled",20,"Linear Feet","10215 - Guideway Elements, Guideway, At Grade-In-Street, Grade Crossing - Panelled"]
[null,10216,"Guideway Elements","Guideway","At Grade-In-Street","Grade Crossing - Embedded",20,"Linear Feet","10216 - Guideway Elements, Guideway, At Grade-In-Street, Grade Crossing - Embedded"]
[null,10310,"Guideway Elements","Guideway","Elevated Structure","-",100,"Linear Feet","10310 - Guideway Elements, Guideway, Elevated Structure"]
[null,10311,"Guideway Elements","Guideway","Elevated Structure","Commuter Rail",100,"Linear Feet","10311 - Guideway Elements, Guideway, Elevated Structure, Commuter Rail"]
[null,10312,"Guideway Elements","Guideway","Elevated Structure","Heavy Rail",100,"Linear Feet","10312 - Guideway Elements, Guideway, Elevated Structure, Heavy Rail"]
[null,10313,"Guideway Elements","Guideway","Elevated Structure","Light Rail",100,"Linear Feet","10313 - Guideway Elements, Guideway, Elevated Structure, Light Rail"]
[null,10320,"Guideway Elements","Guideway","Elevated Structure","Steel Viaducts",100,"Linear Feet","10320 - Guideway Elements, Guideway, Elevated Structure, Steel Viaducts"]
[null,10321,"Guideway Elements","Guideway","Elevated Structure","Steel Viaducts Commuter Rail",100,"Linear Feet","10321 - Guideway Elements, Guideway, Elevated Structure, Steel Viaducts Commuter Rail"]
[null,10322,"Guideway Elements","Guideway","Elevated Structure","Steel Viaducts Heavy Rail",100,"Linear Feet","10322 - Guideway Elements, Guideway, Elevated Structure, Steel Viaducts Heavy Rail"]
[null,10323,"Guideway Elements","Guideway","Elevated Structure","Steel Viaducts Light Rail",100,"Linear Feet","10323 - Guideway Elements, Guideway, Elevated Structure, Steel Viaducts Light Rail"]
[null,10330,"Guideway Elements","Guideway","Elevated Structure","Bridge",100,"Linear Feet","10330 - Guideway Elements, Guideway, Elevated Structure, Bridge"]
[null,10331,"Guideway Elements","Guideway","Elevated Structure","Bridge Commuter Rail",100,"Linear Feet","10331 - Guideway Elements, Guideway, Elevated Structure, Bridge Commuter Rail"]
[null,10332,"Guideway Elements","Guideway","Elevated Structure","Bridge Heavy Rail",100,"Linear Feet","10332 - Guideway Elements, Guideway, Elevated Structure, Bridge Heavy Rail"]
[null,10333,"Guideway Elements","Guideway","Elevated Structure","Bridge Light Rail",100,"Linear Feet","10333 - Guideway Elements, Guideway, Elevated Structure, Bridge Light Rail"]
[null,10340,"Guideway Elements","Guideway","Elevated Structure","Foot Walk",100,"Linear Feet","10340 - Guideway Elements, Guideway, Elevated Structure, Foot Walk"]
[null,10400,"Guideway Elements","Guideway","Elevated Fill","-",80,"Linear Feet","10400 - Guideway Elements, Guideway, Elevated Fill"]
[null,10401,"Guideway Elements","Guideway","Elevated Fill","Commuter Rail",80,"Linear Feet","10401 - Guideway Elements, Guideway, Elevated Fill, Commuter Rail"]
[null,10402,"Guideway Elements","Guideway","Elevated Fill","Heavy Rail",80,"Linear Feet","10402 - Guideway Elements, Guideway, Elevated Fill, Heavy Rail"]
[null,10403,"Guideway Elements","Guideway","Elevated Fill","Light Rail",80,"Linear Feet","10403 - Guideway Elements, Guideway, Elevated Fill, Light Rail"]
[null,10500,"Guideway Elements","Guideway","Underground","-",100,"Linear Feet","10500 - Guideway Elements, Guideway, Underground"]
[null,10501,"Guideway Elements","Guideway","Underground","Commuter Rail",100,"Linear Feet","10501 - Guideway Elements, Guideway, Underground, Commuter Rail"]
[null,10502,"Guideway Elements","Guideway","Underground","Heavy Rail",100,"Linear Feet","10502 - Guideway Elements, Guideway, Underground, Heavy Rail"]
[null,10503,"Guideway Elements","Guideway","Underground","Light Rail",100,"Linear Feet","10503 - Guideway Elements, Guideway, Underground, Light Rail"]
[null,10510,"Guideway Elements","Guideway","Underground","Tunnel",100,"Linear Feet","10510 - Guideway Elements, Guideway, Underground, Tunnel"]
[null,10511,"Guideway Elements","Guideway","Underground","Tunnel Commuter Rail",100,"Linear Feet","10511 - Guideway Elements, Guideway, Underground, Tunnel Commuter Rail"]
[null,10512,"Guideway Elements","Guideway","Underground","Tunnel Heavy Rail",100,"Linear Feet","10512 - Guideway Elements, Guideway, Underground, Tunnel Heavy Rail"]
[null,10513,"Guideway Elements","Guideway","Underground","Tunnel Light Rail",100,"Linear Feet","10513 - Guideway Elements, Guideway, Underground, Tunnel Light Rail"]
[null,10520,"Guideway Elements","Guideway","Underground","Cut & Cover",100,"Linear Feet","10520 - Guideway Elements, Guideway, Underground, Cut & Cover"]
[null,10521,"Guideway Elements","Guideway","Underground","Cut & Cover Commuter Rail",100,"Linear Feet","10521 - Guideway Elements, Guideway, Underground, Cut & Cover Commuter Rail"]
[null,10522,"Guideway Elements","Guideway","Underground","Cut & Cover Heavy Rail",100,"Linear Feet","10522 - Guideway Elements, Guideway, Underground, Cut & Cover Heavy Rail"]
[null,10523,"Guideway Elements","Guideway","Underground","Cut & Cover Light Rail",100,"Linear Feet","10523 - Guideway Elements, Guideway, Underground, Cut & Cover Light Rail"]
[null,10530,"Guideway Elements","Guideway","Underground","Foot Walk",150,"Linear Feet","10530 - Guideway Elements, Guideway, Underground, Foot Walk"]
[null,10540,"Guideway Elements","Guideway","Underground","Tube",100,"Linear Feet","10540 - Guideway Elements, Guideway, Underground, Tube"]
[null,10541,"Guideway Elements","Guideway","Underground","Tube Commuter Rail",100,"Linear Feet","10541 - Guideway Elements, Guideway, Underground, Tube Commuter Rail"]
[null,10542,"Guideway Elements","Guideway","Underground","Tube Heavy Rail",100,"Linear Feet","10542 - Guideway Elements, Guideway, Underground, Tube Heavy Rail"]
[null,10543,"Guideway Elements","Guideway","Underground","Tube Light Rail",100,"Linear Feet","10543 - Guideway Elements, Guideway, Underground, Tube Light Rail"]
[null,10600,"Guideway Elements","Guideway","Retained Cut","-",100,"Linear Feet","10600 - Guideway Elements, Guideway, Retained Cut"]
[null,10601,"Guideway Elements","Guideway","Retained Cut","Commuter Rail",80,"Linear Feet","10601 - Guideway Elements, Guideway, Retained Cut, Commuter Rail"]
[null,10602,"Guideway Elements","Guideway","Retained Cut","Heavy Rail",80,"Linear Feet","10602 - Guideway Elements, Guideway, Retained Cut, Heavy Rail"]
[null,10603,"Guideway Elements","Guideway","Retained Cut","Light Rail",80,"Linear Feet","10603 - Guideway Elements, Guideway, Retained Cut, Light Rail"]
[null,10605,"Guideway Elements","Guideway","Retained Cut","Box Culvert",80,"Linear Feet","10605 - Guideway Elements, Guideway, Retained Cut, Box Culvert"]
[null,11000,"Guideway Elements","Trackwork","-","-",44,"Track Feet","11000 - Guideway Elements, Trackwork"]
[null,11100,"Guideway Elements","Trackwork","Direct Fixation","-",44,"Track Feet","11100 - Guideway Elements, Trackwork, Direct Fixation"]
[null,11101,"Guideway Elements","Trackwork","Direct Fixation","Tangent",44,"Track Feet","11101 - Guideway Elements, Trackwork, Direct Fixation, Tangent"]
[null,11102,"Guideway Elements","Trackwork","Direct Fixation","Curve",36,"Track Feet","11102 - Guideway Elements, Trackwork, Direct Fixation, Curve"]
[null,11103,"Guideway Elements","Trackwork","Direct Fixation","Guarded",44,"Track Feet","11103 - Guideway Elements, Trackwork, Direct Fixation, Guarded"]
[null,11104,"Guideway Elements","Trackwork","Direct Fixation","Platform Tangent",44,"Track Feet",{"$f":"B97&IF(NOT(C97=\"-\"),\" - \"&C97,\"\")&IF(NOT(D97=\"-\"),\", \"&D97,\"\")&IF(NOT(E97=\"-\"),\", \"&E97,\"\")&IF(NOT(F97=\"-\"),\", \"&F97,\"\")","v":"11104 - Guideway Elements, Trackwork, Direct Fixation, Platform Tangent"}]
[null,11105,"Guideway Elements","Trackwork","Direct Fixation","Platform Curved",36,"Track Feet","11105 - Guideway Elements, Trackwork, Direct Fixation, Platform Curved"]
[null,11106,"Guideway Elements","Trackwork","Direct Fixation","Platform Guarded",44,"Track Feet","11106 - Guideway Elements, Trackwork, Direct Fixation, Platform Guarded"]
[null,11200,"Guideway Elements","Trackwork","Ballasted","-",44,"Track Feet","11200 - Guideway Elements, Trackwork, Ballasted"]
[null,11201,"Guideway Elements","Trackwork","Ballasted","Tangent",44,"Track Feet","11201 - Guideway Elements, Trackwork, Ballasted, Tangent"]
[null,11202,"Guideway Elements","Trackwork","Ballasted","Curve",36,"Track Feet","11202 - Guideway Elements, Trackwork, Ballasted, Curve"]
[null,11203,"Guideway Elements","Trackwork","Ballasted","Guarded",44,"Track Feet","11203 - Guideway Elements, Trackwork, Ballasted, Guarded"]
[null,11204,"Guideway Elements","Trackwork","Ballasted","Platform Tangent",44,"Track Feet","11204 - Guideway Elements, Trackwork, Ballasted, Platform Tangent"]
[null,11205,"Guideway Elements","Trackwork","Ballasted","Platform Curved",36,"Track Feet","11205 - Guideway Elements, Trackwork, Ballasted, Platform Curved"]
[null,11206,"Guideway Elements","Trackwork","Ballasted","Platform Guarded",44,"Track Feet","11206 - Guideway Elements, Trackwork, Ballasted, Platform Guarded"]
[null,11211,"Guideway Elements","Trackwork","Ballasted","Tangent - Concrete Tie",70,"Track Feet","11211 - Guideway Elements, Trackwork, Ballasted, Tangent - Concrete Tie"]
[null,11212,"Guideway Elements","Trackwork","Ballasted","Tangent - Wood Tie",70,"Track Feet","11212 - Guideway Elements, Trackwork, Ballasted, Tangent - Wood Tie"]
[null,11213,"Guideway Elements","Trackwork","Ballasted","Curve - Concrete Tie",35,"Track Feet","11213 - Guideway Elements, Trackwork, Ballasted, Curve - Concrete Tie"]
[null,11214,"Guideway Elements","Trackwork","Ballasted","Curve - Wood Tie",35,"Track Feet","11214 - Guideway Elements, Trackwork, Ballasted, Curve - Wood Tie"]
[null,11300,"Guideway Elements","Trackwork","Embedded","-",44,"Track Feet","11300 - Guideway Elements, Trackwork, Embedded"]
[null,11301,"Guideway Elements","Trackwork","Embedded","Tangent",44,"Track Feet","11301 - Guideway Elements, Trackwork, Embedded, Tangent"]
[null,11302,"Guideway Elements","Trackwork","Embedded","Curve",36,"Track Feet","11302 - Guideway Elements, Trackwork, Embedded, Curve"]
[null,11303,"Guideway Elements","Trackwork","Embedded","At-Grade Crossings",12,"Track Feet","11303 - Guideway Elements, Trackwork, Embedded, At-Grade Crossings"]
[null,11400,"Guideway Elements","Trackwork","Special","-",29,"Track Feet","11400 - Guideway Elements, Trackwork, Special"]
[null,11401,"Guideway Elements","Trackwork","Special","Diamond Crossover",29,"Each","11401 - Guideway Elements, Trackwork, Special, Diamond Crossover"]
[null,11402,"Guideway Elements","Trackwork","Special","Direct Fixation Diamond Crossover",29,"Each","11402 - Guideway Elements, Trackwork, Special, Direct Fixation Diamond Crossover"]
[null,11403,"Guideway Elements","Trackwork","Special","Ballasted Diamond Crossover",29,"Each","11403 - Guideway Elements, Trackwork, Special, Ballasted Diamond Crossover"]
[null,11404,"Guideway Elements","Trackwork","Special","Single Crossover",29,"Each","11404 - Guideway Elements, Trackwork, Special, Single Crossover"]
[null,11405,"Guideway Elements","Trackwork","Special","Direct Fixation Single Crossover",29,"Each","11405 - Guideway Elements, Trackwork, Special, Direct Fixation Single Crossover"]
[null,11406,"Guideway Elements","Trackwork","Special","Ballasted Single Crossover",29,"Each","11406 - Guideway Elements, Trackwork, Special, Ballasted Single Crossover"]
[null,11407,"Guideway Elements","Trackwork","Special","Turnout",30,"Each","11407 - Guideway Elements, Trackwork, Special, Turnout"]
[null,11408,"Guideway Elements","Trackwork","Special","Direct Fixation Turnout",30,"Each","11408 - Guideway Elements, Trackwork, Special, Direct Fixation Turnout"]
[null,11409,"Guideway Elements","Trackwork","Special","Ballasted Turnout",30,"Each","11409 - Guideway Elements, Trackwork, Special, Ballasted Turnout"]
[null,11410,"Guideway Elements","Trackwork","Special","Turntable",26,"Each","11410 - Guideway Elements, Trackwork, Special, Turntable"]
[null,11500,"Guideway Elements","Trackwork","Yard","-",53,"Track Feet","11500 - Guideway Elements, Trackwork, Yard"]
[null,11600,"Guideway Elements","Trackwork","Ties","-",15,"Each","11600 - Guideway Elements, Trackwork, Ties"]
[null,11601,"Guideway Elements","Trackwork","Ties","Wood",15,"Each","11601 - Guideway Elements, Trackwork, Ties, Wood"]
[null,11602,"Guideway Elements","Trackwork","Ties","Concrete",15,"Each","11602 - Guideway Elements, Trackwork, Ties, Concrete"]
[null,12000,"Guideway Elements","Special Structures","-","-",30,"Each","12000 - Guideway Elements, Special Structures"]
[null,12100,"Guideway Elements","Special Structures","Fencing","-",25,"Each","12100 - Guideway Elements, Special Structures, Fencing"]
[null,12200,"Guideway Elements","Special Structures","Retaining Walls","-",40,"Linear Feet","12200 - Guideway Elements, Special Structures, Retaining Walls"]
[null,13000,"Guideway Elements","Bus Guideway","-","-",30,"Linear Feet","13000 - Guideway Elements, Bus Guideway"]
[null,13100,"Guideway Elements","Bus Guideway","At Grade","-",30,"Linear Feet","13100 - Guideway Elements, Bus Guideway, At Grade"]
[null,13200,"Guideway Elements","Bus Guideway","Turnaround","-",80,"Linear Feet","13200 - Guideway Elements, Bus Guideway, Turnaround"]
[null,13300,"Guideway Elements","Bus Guideway","Elevated Fill","-",80,"Linear Feet","13300 - Guideway Elements, Bus Guideway, Elevated Fill"]
[null,13400,"Guideway Elements","Bus Guideway","Elevated Structure","-",100,"Linear Feet","13400 - Guideway Elements, Bus Guideway, Elevated Structure"]
[null,13410,"Guideway Elements","Bus Guideway","Elevated Structure","Elevated Roadway",80,"Linear Feet","13410 - Guideway Elements, Bus Guideway, Elevated Structure, Elevated Roadway"]
[null,13420,"Guideway Elements","Bus Guideway","Elevated Structure","Bridge",80,"Linear Feet","13420 - Guideway Elements, Bus Guideway, Elevated Structure, Bridge"]
[null,13500,"Guideway Elements","Bus Guideway","Subway","-",100,"Linear Feet","13500 - Guideway Elements, Bus Guideway, Subway"]
[null,20000,"Facilities","-","-","-",80,"Each","20000 - Facilities"]
[null,21000,"Facilities","Buildings","-","-",80,"Each","21000 - Facilities, Buildings"]
[null,21100,"Facilities","Buildings","Administration","-",80,"Each","21100 - Facilities, Buildings, Administration"]
[null,21120,"Facilities","Buildings","Administration","Police",80,"Each","21120 - Facilities, Buildings, Administration, Police"]
[null,21200,"Facilities","Buildings","Maintenance","-",80,"Each","21200 - Facilities, Buildings, Maintenance"]
[null,21210,"Facilities","Buildings","Maintenance","Bus",80,"Each","21210 - Facilities, Buildings, Maintenance, Bus"]
[null,21211,"Facilities","Buildings","Maintenance","Bus Stratum 1 < 200 Vehicles",80,"Each","21211 - Facilities, Buildings, Maintenance, Bus Stratum 1 < 200 Vehicles"]
[null,21212,"Facilities","Buildings","Maintenance","Bus Stratum 1 200 to 300 Vehicles",80,"Each","21212 - Facilities, Buildings, Maintenance, Bus Stratum 1 200 to 300 Vehicles"]
[null,21213,"Facilities","Buildings","Maintenance","Bus Stratum 1 > 300 Vehicles",80,"Each","21213 - Facilities, Buildings, Maintenance, Bus Stratum 1 > 300 Vehicles"]
[null,21214,"Facilities","Buildings","Maintenance","Bus Stratum 2 < 200 Vehicles",80,"Each","21214 - Facilities, Buildings, Maintenance, Bus Stratum 2 < 200 Vehicles"]
[null,21215,"Facilities","Buildings","Maintenance","Bus Stratum 2 200 to 300 Vehicles",80,"Each","21215 - Facilities, Buildings, Maintenance, Bus Stratum 2 200 to 300 Vehicles"]
[null,21216,"Facilities","Buildings","Maintenance","Bus Stratum 3 < 200 Vehicles",80,"Each","21216 - Facilities, Buildings, Maintenance, Bus Stratum 3 < 200 Vehicles"]
[null,21217,"Facilities","Buildings","Maintenance","Bus Stratum 3 200 to 300 Vehicles",80,"Each","21217 - Facilities, Buildings, Maintenance, Bus Stratum 3 200 to 300 Vehicles"]
[null,21218,"Facilities","Buildings","Maintenance","Bus Stratum 4 < 200 Vehicles",80,"Each","21218 - Facilities, Buildings, Maintenance, Bus Stratum 4 < 200 Vehicles"]
[null,21219,"Facilities","Buildings","Maintenance","Bus Stratum 4 200 to 300 Vehicles",80,"Each","21219 - Facilities, Buildings, Maintenance, Bus Stratum 4 200 to 300 Vehicles"]
[null,21220,"Facilities","Buildings","Maintenance","Rail",80,"Each","21220 - Facilities, Buildings, Maintenance, Rail"]
[null,21221,"Facilities","Buildings","Maintenance","Rail Commuter Rail",80,"Each","21221 - Facilities, Buildings, Maintenance, Rail Commuter Rail"]
[null,21222,"Facilities","Buildings","Maintenance","Rail Heavy Rail",80,"Each","21222 - Facilities, Buildings, Maintenance, Rail Heavy Rail"]
[null,21223,"Facilities","Buildings","Maintenance","Rail Light Rail",80,"Each","21223 - Facilities, Buildings, Maintenance, Rail Light Rail"]
[null,21230,"Facilities","Buildings","Maintenance","Utilities",70,"Each","21230 - Facilities, Buildings, Maintenance, Utilities"]
[null,21500,"Facilities","Buildings","-","-",70,"Linear Feet Guideway",{"$f":"B161&IF(NOT(C161=\"-\"),\" - \"&C161,\"\")&IF(NOT(D161=\"-\"),\", \"&D161,\"\")&IF(NOT(E161=\"-\"),\", \"&E161,\"\")&IF(NOT(F161=\"-\"),\", \"&F161,\"\")","v":"21500 - Facilities, Buildings"}]
[null,21501,"Facilities","Buildings","Building Components","Electrical",40,"Linear Feet Guideway","21501 - Facilities, Buildings, Building Components, Electrical"]
[null,21502,"Facilities","Buildings","Building Components","Fire Alarm",40,"Linear Feet Guideway","21502 - Facilities, Buildings, Building Components, Fire Alarm"]
[null,21503,"Facilities","Buildings","Building Components","Plumbing",40,"Linear Feet Guideway","21503 - Facilities, Buildings, Building Components, Plumbing"]
[null,21504,"Facilities","Buildings","Building Components","Drainage",40,"Linear Feet Guideway","21504 - Facilities, Buildings, Building Components, Drainage"]
[null,21505,"Facilities","Buildings","Building Components","HVAC",40,"Each","21505 - Facilities, Buildings, Building Components, HVAC"]
[null,21506,"Facilities","Buildings","Building Components","Boiler",40,"Each","21506 - Facilities, Buildings, Building Components, Boiler"]
[null,21507,"Facilities","Buildings","Building Components","Roof",40,"Linear Feet Guideway","21507 - Facilities, Buildings, Building Components, Roof"]
[null,21508,"Facilities","Buildings","Building Components","Exterior",40,"Each","21508 - Facilities, Buildings, Building Components, Exterior"]
[null,21509,"Facilities","Buildings","Building Components","Access and Parking",40,"Space","21509 - Facilities, Buildings, Building Components, Access and Parking"]
[null,21510,"Facilities","Buildings","Building Components","Elevators and Conveying Systems",25,"Each","21510 - Facilities, Buildings, Building Components, Elevators and Conveying Systems"]
[null,21511,"Facilities","Buildings","Building Components","Built-in Equipment and Specialties",25,"Each","21511 - Facilities, Buildings, Building Components, Built-in Equipment and Specialties"]
[null,21512,"Facilities","Buildings","Building Components","Generators",15,"Each","21512 - Facilities, Buildings, Building Components, Generators"]
[null,21513,"Facilities","Buildings","Building Components","Interior",15,"Each","21513 - Facilities, Buildings, Building Components, Interior"]
[null,21514,"Facilities","Buildings","Building Components","Fencing",15,"Each","21514 - Facilities, Buildings, Building Components, Fencing"]
[null,21515,"Facilities","Buildings","Building Components","Other",15,"Each","21515 - Facilities, Buildings, Building Components, Other"]
[null,22000,"Facilities","Storage Yard","-","-",50,"Each","22000 - Facilities, Storage Yard"]
[null,22200,"Facilities","Storage Yard","-","-",50,"Each","22200 - Facilities, Storage Yard"]
[null,22210,"Facilities","Storage Yard","Rail","-",50,"Each","22210 - Facilities, Storage Yard, Rail"]
[null,22211,"Facilities","Storage Yard","Rail","Commuter Rail",50,"Each","22211 - Facilities, Storage Yard, Rail, Commuter Rail"]
[null,22212,"Facilities","Storage Yard","Rail","Heavy Rail",50,"Each","22212 - Facilities, Storage Yard, Rail, Heavy Rail"]
[null,22213,"Facilities","Storage Yard","Rail","Light Rail",50,"Each","22213 - Facilities, Storage Yard, Rail, Light Rail"]
[null,22300,"Facilities","Storage Yard","Bus","Bus Parking",40,"Each","22300 - Facilities, Storage Yard, Bus, Bus Parking"]
[null,22400,"Facilities","Buildings","Bus Turnaround Facility","-",80,"Each","22400 - Facilities, Buildings, Bus Turnaround Facility"]
[null,23000,"Facilities","Equipment","-","-",15,"Each","23000 - Facilities, Equipment"]
[null,23100,"Facilities","Equipment","MIS/IT/Network Systems","-",6,"Each","23100 - Facilities, Equipment, MIS/IT/Network Systems"]
[null,23101,"Facilities","Equipment","MIS/IT/Network Systems","Software",6,"Each","23101 - Facilities, Equipment, MIS/IT/Network Systems, Software"]
[null,23102,"Facilities","Equipment","MIS/IT/Network Systems","Computers/Hardware",6,"Each","23102 - Facilities, Equipment, MIS/IT/Network Systems, Computers/Hardware"]
[null,23200,"Facilities","Equipment","Furniture","-",15,"Each","23200 - Facilities, Equipment, Furniture"]
[null,23300,"Facilities","Equipment","Maintenance","-",15,"Each","23300 - Facilities, Equipment, Maintenance"]
[null,23301,"Facilities","Equipment","Maintenance","Bus",15,"Each","23301 - Facilities, Equipment, Maintenance, Bus"]
[null,23310,"Facilities","Equipment","Maintenance","Rail",15,"Each","23310 - Facilities, Equipment, Maintenance, Rail"]
[null,23311,"Facilities","Equipment","Maintenance","Rail Commuter Rail",15,"Each","23311 - Facilities, Equipment, Maintenance, Rail Commuter Rail"]
[null,23312,"Facilities","Equipment","Maintenance","Rail Heavy Rail",15,"Each","23312 - Facilities, Equipment, Maintenance, Rail Heavy Rail"]
[null,23313,"Facilities","Equipment","Maintenance","Rail Light Rail",15,"Each","23313 - Facilities, Equipment, Maintenance, Rail Light Rail"]
[null,23400,"Facilities","Equipment","Maintenance","Pollution Treatment",15,"Each","23400 - Facilities, Equipment, Maintenance, Pollution Treatment"]
[null,23402,"Facilities","Equipment","Maintenance","Bus Washer",80,"Each","23402 - Facilities, Equipment, Maintenance, Bus Washer"]
[null,23403,"Facilities","Equipment","Maintenance","Train Washer",80,"Each","23403 - Facilities, Equipment, Maintenance, Train Washer"]
[null,23404,"Facilities","Equipment","Maintenance","Vehicle Paintbooth",20,"Each","23404 - Facilities, Equipment, Maintenance, Vehicle Paintbooth"]
[null,23405,"Facilities","Equipment","Maintenance","Fuel Island",80,"Each","23405 - Facilities, Equipment, Maintenance, Fuel Island"]
[null,23406,"Facilities","Equipment","Maintenance","Dynamoneters",15,"Each","23406 - Facilities, Equipment, Maintenance, Dynamoneters"]
[null,23407,"Facilities","Equipment","Maintenance","Lifts - Portable",15,"Each","23407 - Facilities, Equipment, Maintenance, Lifts - Portable"]
[null,23408,"Facilities","Equipment","Maintenance","Lifts - Fixed",20,"Each","23408 - Facilities, Equipment, Maintenance, Lifts - Fixed"]
[null,23409,"Facilities","Equipment","Maintenance","Wheel truing machines",25,"Each","23409 - Facilities, Equipment, Maintenance, Wheel truing machines"]
[null,23410,"Facilities","Equipment","Maintenance","Brake Lathe",25,"Each","23410 - Facilities, Equipment, Maintenance, Brake Lathe"]
[null,23411,"Facilities","Equipment","Maintenance","Fuel Tank",25,"Each","23411 - Facilities, Equipment, Maintenance, Fuel Tank"]
[null,23412,"Facilities","Equipment","Maintenance","Lifts - Fixed: In Floor",25,"Each","23412 - Facilities, Equipment, Maintenance, Lifts - Fixed: In Floor"]
[null,23413,"Facilities","Equipment","Maintenance","Lifts - Fixed: Parallelogram",25,"Each","23413 - Facilities, Equipment, Maintenance, Lifts - Fixed: Parallelogram"]
[null,23414,"Facilities","Equipment","Maintenance","Wheel Presses",25,"Each","23414 - Facilities, Equipment, Maintenance, Wheel Presses"]
[null,23415,"Facilities","Equipment","Maintenance","Turntables, Truck",25,"Each","23415 - Facilities, Equipment, Maintenance, Turntables, Truck"]
[null,23416,"Facilities","Equipment","Maintenance","Air Compressor",25,"Each","23416 - Facilities, Equipment, Maintenance, Air Compressor"]
[null,23417,"Facilities","Equipment","Maintenance","Cart",25,"Each","23417 - Facilities, Equipment, Maintenance, Cart"]
[null,23418,"Facilities","Equipment","Maintenance","Hoist",25,"Each","23418 - Facilities, Equipment, Maintenance, Hoist"]
[null,23419,"Facilities","Equipment","Maintenance","Scrubber, Sprayer",25,"Each","23419 - Facilities, Equipment, Maintenance, Scrubber, Sprayer"]
[null,23420,"Facilities","Equipment","Maintenance","Misc Equip",25,"Each","23420 - Facilities, Equipment, Maintenance, Misc Equip"]
[null,23430,"Facilities","Equipment","Maintenance","CNG Refueling Station",25,"Each","23430 - Facilities, Equipment, Maintenance, CNG Refueling Station"]
[null,24000,"Facilities","Major Shops","-","-",80,"Each","24000 - Facilities, Major Shops"]
[null,24100,"Facilities","Major Shops","Rail","-",80,"Each","24100 - Facilities, Major Shops, Rail"]
[null,24101,"Facilities","Major Shops","Rail","Commuter Rail",80,"Each","24101 - Facilities, Major Shops, Rail, Commuter Rail"]
[null,24102,"Facilities","Major Shops","Rail","Heavy Rail",80,"Each","24102 - Facilities, Major Shops, Rail, Heavy Rail"]
[null,24103,"Facilities","Major Shops","Rail","Light Rail",80,"Each","24103 - Facilities, Major Shops, Rail, Light Rail"]
[null,24200,"Facilities","Major Shops","Bus","-",80,"Each","24200 - Facilities, Major Shops, Bus"]
[null,25000,"Facilities","Central Control","-","-",80,"Each","25000 - Facilities, Central Control"]
[null,30000,"Systems","-","-","-",40,"Track Feet","30000 - Systems"]
[null,30001,"Systems","CR","-","-",40,"Track Feet",{"$f":"B225&IF(NOT(C225=\"-\"),\" - \"&C225,\"\")&IF(NOT(D225=\"-\"),\", \"&D225,\"\")&IF(NOT(E225=\"-\"),\", \"&E225,\"\")&IF(NOT(F225=\"-\"),\", \"&F225,\"\")","v":"30001 - Systems, CR"}]
[null,30002,"Systems","HR","-","-",40,"Track Feet","30002 - Systems, HR"]
[null,30003,"Systems","LR","-","-",40,"Track Feet","30003 - Systems, LR"]
[null,31000,"Systems","Train Control","-","-",40,"Track Feet","31000 - Systems, Train Control"]
[null,31001,"Systems","Train Control","Commuter Rail","-",40,"Track Feet","31001 - Systems, Train Control, Commuter Rail"]
[null,31002,"Systems","Train Control","Heavy Rail","-",40,"Track Feet","31002 - Systems, Train Control, Heavy Rail"]
[null,31003,"Systems","Train Control","Light Rail","-",40,"Track Feet","31003 - Systems, Train Control, Light Rail"]
[null,31100,"Systems","Train Control","Wayside Train Control","-",40,"Track Feet Guideway","31100 - Systems, Train Control, Wayside Train Control"]
[null,31101,"Systems","Train Control","Wayside Train Control","Commuter Rail",40,"Track Feet Guideway","31101 - Systems, Train Control, Wayside Train Control, Commuter Rail"]
[null,31102,"Systems","Train Control","Wayside Train Control","Heavy Rail",40,"Track Feet Guideway","31102 - Systems, Train Control, Wayside Train Control, Heavy Rail"]
[null,31103,"Systems","Train Control","Wayside Train Control","Light Rail",40,"Track Feet Guideway","31103 - Systems, Train Control, Wayside Train Control, Light Rail"]
[null,31110,"Systems","Train Control","Wayside Train Control","Signals & Train Stops",40,"Track Feet Guideway","31110 - Systems, Train Control, Wayside Train Control, Signals & Train Stops"]
[null,31111,"Systems","Train Control","Wayside Train Control","Signals & Train Stops Commuter Rail",40,"Track Feet Guideway","31111 - Systems, Train Control, Wayside Train Control, Signals & Train Stops Commuter Rail"]
[null,31112,"Systems","Train Control","Wayside Train Control","Signals & Train Stops Heavy Rail",40,"Track Feet Guideway","31112 - Systems, Train Control, Wayside Train Control, Signals & Train Stops Heavy Rail"]
[null,31113,"Systems","Train Control","Wayside Train Control","Signals & Train Stops Light Rail",40,"Track Feet Guideway","31113 - Systems, Train Control, Wayside Train Control, Signals & Train Stops Light Rail"]
[null,31114,"Systems","Train Control","Wayside Train Control","Automatic Transfer Panel",40,"Each","31114 - Systems, Train Control, Wayside Train Control, Automatic Transfer Panel"]
[null,31115,"Systems","Train Control","Wayside Train Control","Battery Equip",40,"Each","31115 - Systems, Train Control, Wayside Train Control, Battery Equip"]
[null,31116,"Systems","Train Control","Wayside Train Control","Bonds",40,"Each","31116 - Systems, Train Control, Wayside Train Control, Bonds"]
[null,31117,"Systems","Train Control","Wayside Train Control","Control Panel (local)",40,"Each","31117 - Systems, Train Control, Wayside Train Control, Control Panel (local)"]
[null,31118,"Systems","Train Control","Wayside Train Control","Intrusion Detection Warning System",40,"Each","31118 - Systems, Train Control, Wayside Train Control, Intrusion Detection Warning System"]
[null,31119,"Systems","Train Control","Wayside Train Control","Logical Controller",40,"Each","31119 - Systems, Train Control, Wayside Train Control, Logical Controller"]
[null,31120,"Systems","Train Control","Wayside Train Control","Marker Coil",40,"Each","31120 - Systems, Train Control, Wayside Train Control, Marker Coil"]
[null,31121,"Systems","Train Control","Wayside Train Control","Train Control Cable",40,"Track Feet Guideway","31121 - Systems, Train Control, Wayside Train Control, Train Control Cable"]
[null,31122,"Systems","Train Control","Wayside Train Control","Signal Bridge",40,"Each","31122 - Systems, Train Control, Wayside Train Control, Signal Bridge"]
[null,31123,"Systems","Train Control","Wayside Train Control","Power Supplies",40,"Each","31123 - Systems, Train Control, Wayside Train Control, Power Supplies"]
[null,31124,"Systems","Train Control","Wayside Train Control","Power Supplies-UPS",40,"Each","31124 - Systems, Train Control, Wayside Train Control, Power Supplies-UPS"]
[null,31125,"Systems","Train Control","Wayside Train Control","Receiver",40,"Each","31125 - Systems, Train Control, Wayside Train Control, Receiver"]
[null,31126,"Systems","Train Control","Wayside Train Control","Relays",40,"Each","31126 - Systems, Train Control, Wayside Train Control, Relays"]
[null,31127,"Systems","Train Control","Wayside Train Control","Relay Cabinet",40,"Each","31127 - Systems, Train Control, Wayside Train Control, Relay Cabinet"]
[null,31128,"Systems","Train Control","Wayside Train Control","Relay House (Bungalow)",40,"Each","31128 - Systems, Train Control, Wayside Train Control, Relay House (Bungalow)"]
[null,31129,"Systems","Train Control","Wayside Train Control","Repeater Signal",40,"Each","31129 - Systems, Train Control, Wayside Train Control, Repeater Signal"]
[null,31130,"Systems","Train Control","Wayside Train Control","RTU",40,"Each","31130 - Systems, Train Control, Wayside Train Control, RTU"]
[null,31131,"Systems","Train Control","Wayside Train Control","Signals",40,"Track Feet Guideway","31131 - Systems, Train Control, Wayside Train Control, Signals"]
[null,31132,"Systems","Train Control","Wayside Train Control","STAP (Station Processor)",40,"Each","31132 - Systems, Train Control, Wayside Train Control, STAP (Station Processor)"]
[null,31133,"Systems","Train Control","Wayside Train Control","TPSS Feeds",40,"Track Feet Guideway","31133 - Systems, Train Control, Wayside Train Control, TPSS Feeds"]
[null,31134,"Systems","Train Control","Wayside Train Control","Track Circuit",40,"Track Feet Guideway","31134 - Systems, Train Control, Wayside Train Control, Track Circuit"]
[null,31136,"Systems","Train Control","Wayside Train Control","Train Stop",40,"Each","31136 - Systems, Train Control, Wayside Train Control, Train Stop"]
[null,31137,"Systems","Train Control","Wayside Train Control","Programmed Station Stop System",40,"Each","31137 - Systems, Train Control, Wayside Train Control, Programmed Station Stop System"]
[null,31138,"Systems","Train Control","Wayside Train Control","Other",40,"Each","31138 - Systems, Train Control, Wayside Train Control, Other"]
[null,31200,"Systems","Train Control","Onboard Train Control (cab signaling)","-",40,"Track Feet","31200 - Systems, Train Control, Onboard Train Control (cab signaling)"]
[null,31201,"Systems","Train Control","Onboard Train Control (cab signaling)","Onboard Compter Systems",40,"Track Feet","31201 - Systems, Train Control, Onboard Train Control (cab signaling), Onboard Compter Systems"]
[null,31202,"Systems","Train Control","Onboard Train Control (cab signaling)","Receiver",40,"Track Feet","31202 - Systems, Train Control, Onboard Train Control (cab signaling), Receiver"]
[null,31203,"Systems","Train Control","Onboard Train Control (cab signaling)","Other",40,"Vehicle","31203 - Systems, Train Control, Onboard Train Control (cab signaling), Other"]
[null,31250,"Systems","Train Control","Commuunications","-",40,"Track Feet Guideway","31250 - Systems, Train Control, Commuunications"]
[null,31251,"Systems","Train Control","Commuunications","Data Transmission Unit",40,"Each","31251 - Systems, Train Control, Commuunications, Data Transmission Unit"]
[null,31252,"Systems","Train Control","Commuunications","Train Wayside Comm",40,"Track Feet Guideway","31252 - Systems, Train Control, Commuunications, Train Wayside Comm"]
[null,31253,"Systems","Train Control","Commuunications","Transmitter",40,"Each","31253 - Systems, Train Control, Commuunications, Transmitter"]
[null,31300,"Systems","Train Control","Centralized Train Control","-",40,"Each","31300 - Systems, Train Control, Centralized Train Control"]
[null,31301,"Systems","Train Control","Centralized Train Control","Commuter Rail",40,"Each","31301 - Systems, Train Control, Centralized Train Control, Commuter Rail"]
[null,31302,"Systems","Train Control","Centralized Train Control","Heavy Rail",40,"Each","31302 - Systems, Train Control, Centralized Train Control, Heavy Rail"]
[null,31303,"Systems","Train Control","Centralized Train Control","Light Rail",40,"Each","31303 - Systems, Train Control, Centralized Train Control, Light Rail"]
[null,31305,"Systems","Train Control","Centralized Train Control","Control Room (central)",40,"Each","31305 - Systems, Train Control, Centralized Train Control, Control Room (central)"]
[null,31306,"Systems","Train Control","Centralized Train Control","Logical Controller",40,"Each","31306 - Systems, Train Control, Centralized Train Control, Logical Controller"]
[null,31307,"Systems","Train Control","Centralized Train Control","Power Supplies",40,"Each","31307 - Systems, Train Control, Centralized Train Control, Power Supplies"]
[null,31308,"Systems","Train Control","Centralized Train Control","Receiver",40,"Each","31308 - Systems, Train Control, Centralized Train Control, Receiver"]
[null,31400,"Systems","Train Control","Roadway Crossings","-",40,"Each","31400 - Systems, Train Control, Roadway Crossings"]
[null,31401,"Systems","Train Control","Roadway Crossings","Commuter Rail",40,"Each","31401 - Systems, Train Control, Roadway Crossings, Commuter Rail"]
[null,31402,"Systems","Train Control","Roadway Crossings","Heavy Rail",40,"Each","31402 - Systems, Train Control, Roadway Crossings, Heavy Rail"]
[null,31403,"Systems","Train Control","Roadway Crossings","Light Rail",40,"Each","31403 - Systems, Train Control, Roadway Crossings, Light Rail"]
[null,31404,"Systems","Train Control","Roadway Crossings","Grade Crossing System",25,"Each","31404 - Systems, Train Control, Roadway Crossings, Grade Crossing System"]
[null,31405,"Systems","Train Control","Roadway Crossings","Crossing Gate Arm",25,"Each","31405 - Systems, Train Control, Roadway Crossings, Crossing Gate Arm"]
[null,31410,"Systems","Roadway Traffic Signals","-","-",15,"Intersection","31410 - Systems, Roadway Traffic Signals"]
[null,31500,"Systems","Train Control","Interlockings","-",40,"Each","31500 - Systems, Train Control, Interlockings"]
[null,31510,"Systems","Train Control","Interlockings","Switch Machine",40,"Each",{"$f":"B288&IF(NOT(C288=\"-\"),\" - \"&C288,\"\")&IF(NOT(D288=\"-\"),\", \"&D288,\"\")&IF(NOT(E288=\"-\"),\", \"&E288,\"\")&IF(NOT(F288=\"-\"),\", \"&F288,\"\")","v":"31510 - Systems, Train Control, Interlockings, Switch Machine"}]
[null,31511,"Systems","Train Control","Interlockings","Switch Machine - Manual Ballasted",40,"Each","31511 - Systems, Train Control, Interlockings, Switch Machine - Manual Ballasted"]
[null,31512,"Systems","Train Control","Interlockings","Switch Machine - Motorized Ballasted",40,"Each","31512 - Systems, Train Control, Interlockings, Switch Machine - Motorized Ballasted"]
[null,31513,"Systems","Train Control","Interlockings","Switch Machine - Manual Embedded",40,"Each","31513 - Systems, Train Control, Interlockings, Switch Machine - Manual Embedded"]
[null,31514,"Systems","Train Control","Interlockings","Switch Machine - Motorized Embedded",40,"Each","31514 - Systems, Train Control, Interlockings, Switch Machine - Motorized Embedded"]
[null,31515,"Systems","Train Control","Interlockings","Switch Heaters",40,"Each","31515 - Systems, Train Control, Interlockings, Switch Heaters"]
[null,32000,"Systems","Electrification","-","-",40,"Track Feet","32000 - Systems, Electrification"]
[null,32001,"Systems","Electrification","-","Commuter Rail",40,"Track Feet","32001 - Systems, Electrification, Commuter Rail"]
[null,32002,"Systems","Electrification","-","Heavy Rail",40,"Track Feet","32002 - Systems, Electrification, Heavy Rail"]
[null,32003,"Systems","Electrification","-","Light Rail",40,"Track Feet","32003 - Systems, Electrification, Light Rail"]
[null,32100,"Systems","Electrification","Catenary","-",40,"Track Feet","32100 - Systems, Electrification, Catenary"]
[null,32101,"Systems","Electrification","Catenary","Commuter Rail",40,"Track Feet","32101 - Systems, Electrification, Catenary, Commuter Rail"]
[null,32102,"Systems","Electrification","Catenary","Heavy Rail",40,"Track Feet","32102 - Systems, Electrification, Catenary, Heavy Rail"]
[null,32103,"Systems","Electrification","Catenary","Light Rail",40,"Track Feet","32103 - Systems, Electrification, Catenary, Light Rail"]
[null,32104,"Systems","Electrification","Catenary Poles","Light Rail",40,"Each","32104 - Systems, Electrification, Catenary Poles, Light Rail"]
[null,32200,"Systems","Electrification","Substations","-",40,"Each","32200 - Systems, Electrification, Substations"]
[null,32201,"Systems","Electrification","Substations","Commuter Rail",40,"Each","32201 - Systems, Electrification, Substations, Commuter Rail"]
[null,32202,"Systems","Electrification","Substations","Heavy Rail",40,"Each","32202 - Systems, Electrification, Substations, Heavy Rail"]
[null,32203,"Systems","Electrification","Substations","Light Rail",40,"Each","32203 - Systems, Electrification, Substations, Light Rail"]
[null,32204,"Systems","Electrification","Substations","AC Switchgear",45,"Each","32204 - Systems, Electrification, Substations, AC Switchgear"]
[null,32205,"Systems","Electrification","Substations","DC Switchgear",45,"Each","32205 - Systems, Electrification, Substations, DC Switchgear"]
[null,32206,"Systems","Electrification","Substations","Rectifier",35,"Each","32206 - Systems, Electrification, Substations, Rectifier"]
[null,32207,"Systems","Electrification","Substations","Building",65,"Each","32207 - Systems, Electrification, Substations, Building"]
[null,32208,"Systems","Electrification","Substations","Battery",25,"Each","32208 - Systems, Electrification, Substations, Battery"]
[null,32209,"Systems","Electrification","Substations","Charger",25,"Each","32209 - Systems, Electrification, Substations, Charger"]
[null,32210,"Systems","Electrification","Substations","SCADA RTUs",25,"Each","32210 - Systems, Electrification, Substations, SCADA RTUs"]
[null,32211,"Systems","Electrification","Substations","Transformer",40,"Each","32211 - Systems, Electrification, Substations, Transformer"]
[null,32212,"Systems","Electrification","Substations","Generator",15,"Each","32212 - Systems, Electrification, Substations, Generator"]
[null,32213,"Systems","Electrification","Substations","High Tension Towers",50,"Each","32213 - Systems, Electrification, Substations, High Tension Towers"]
[null,32214,"Systems","Electrification","Substations","Building Electrical",40,"Linear Feet Guideway","32214 - Systems, Electrification, Substations, Building Electrical"]
[null,32215,"Systems","Electrification","Substations","Fire Alarm",40,"Linear Feet Guideway","32215 - Systems, Electrification, Substations, Fire Alarm"]
[null,32216,"Systems","Electrification","Substations","Plumbing",40,"Linear Feet Guideway","32216 - Systems, Electrification, Substations, Plumbing"]
[null,32217,"Systems","Electrification","Substations","Drainage",40,"Linear Feet Guideway","32217 - Systems, Electrification, Substations, Drainage"]
[null,32218,"Systems","Electrification","Substations","HVAC",40,"Each","32218 - Systems, Electrification, Substations, HVAC"]
[null,32219,"Systems","Electrification","Substations","Roof",40,"Linear Feet Guideway","32219 - Systems, Electrification, Substations, Roof"]
[null,32220,"Systems","Electrification","Substations","Exterior",40,"Each","32220 - Systems, Electrification, Substations, Exterior"]
[null,32221,"Systems","Electrification","Substations","Access",40,"Each","32221 - Systems, Electrification, Substations, Access"]
[null,32222,"Systems","Electrification","Substations","Elevators and Conveying Systems",25,"Each","32222 - Systems, Electrification, Substations, Elevators and Conveying Systems"]
[null,32223,"Systems","Electrification","Substations","Built-in Equipment and Specialties",25,"Each","32223 - Systems, Electrification, Substations, Built-in Equipment and Specialties"]
[null,32300,"Systems","Electrification","Breaker House","-",40,"Each","32300 - Systems, Electrification, Breaker House"]
[null,32301,"Systems","Electrification","Breaker House","Commuter Rail",40,"Each","32301 - Systems, Electrification, Breaker House, Commuter Rail"]
[null,32302,"Systems","Electrification","Breaker House","Heavy Rail",40,"Each","32302 - Systems, Electrification, Breaker House, Heavy Rail"]
[null,32303,"Systems","Electrification","Breaker House","Light Rail",40,"Each","32303 - Systems, Electrification, Breaker House, Light Rail"]
[null,32400,"Systems","Electrification","Contact Rail","Contact Rail, Chairs, Anchor and Incline",40,"Track Feet Guideway","32400 - Systems, Electrification, Contact Rail, Contact Rail, Chairs, Anchor and Incline"]
[null,32401,"Systems","Electrification","Contact Rail","Contact Rail, Chairs, Anchor and Incline Commuter Rail",40,"Track Feet Guideway","32401 - Systems, Electrification, Contact Rail, Contact Rail, Chairs, Anchor and Incline Commuter Rail"]
[null,32402,"Systems","Electrification","Contact Rail","Contact Rail, Chairs, Anchor and Incline Heavy Rail",40,"Track Feet Guideway","32402 - Systems, Electrification, Contact Rail, Contact Rail, Chairs, Anchor and Incline Heavy Rail"]
[null,32403,"Systems","Electrification","Contact Rail","Contact Rail, Chairs, Anchor and Incline Light Rail",40,"Track Feet Guideway","32403 - Systems, Electrification, Contact Rail, Contact Rail, Chairs, Anchor and Incline Light Rail"]
[null,32404,"Systems","Electrification","Contact Rail","Protection Boards",25,"Track Feet Guideway","32404 - Systems, Electrification, Contact Rail, Protection Boards"]
[null,32405,"Systems","Electrification","Contact Rail","3rd. RAIL DISCONNECT SWITCHES",30,"Each","32405 - Systems, Electrification, Contact Rail, 3rd. RAIL DISCONNECT SWITCHES"]
[null,32406,"Systems","Electrification","Contact Rail","SHORT TIE EXTENSION BRACKETS",30,"Each","32406 - Systems, Electrification, Contact Rail, SHORT TIE EXTENSION BRACKETS"]
[null,32407,"Systems","Electrification","Contact Rail","REACTORS",30,"Each","32407 - Systems, Electrification, Contact Rail, REACTORS"]
[null,32408,"Systems","Electrification","Contact Rail","Heaters",12,"Each","32408 - Systems, Electrification, Contact Rail, Heaters"]
[null,32500,"Systems","Electrification","Power Cable","-",40,"Track Feet Guideway","32500 - Systems, Electrification, Power Cable"]
[null,32501,"Systems","Electrification","Power Cable","Substations",40,"Track Feet Guideway","32501 - Systems, Electrification, Power Cable, Substations"]
[null,32502,"Systems","Electrification","Power Cable","Contact Rail",40,"Track Feet Guideway","32502 - Systems, Electrification, Power Cable, Contact Rail"]
[null,32600,"Systems","Electrification","Building","Electrical Systems",50,"Each","32600 - Systems, Electrification, Building, Electrical Systems"]
[null,32602,"Systems","Electrification","Bridge","Electrical System",25,"Each","32602 - Systems, Electrification, Bridge, Electrical System"]
[null,32603,"Systems","Electrification","SIGNAL LOAD","-",25,"Each","32603 - Systems, Electrification, SIGNAL LOAD"]
[null,32604,"Systems","Electrification","C-Case","-",25,"Each","32604 - Systems, Electrification, C-Case"]
[null,32700,"Systems","Electrification","Overhead Catenary","-",50,"Foot","32700 - Systems, Electrification, Overhead Catenary"]
[null,32701,"Systems","Electrification","Overhead Catenary","Trolley Wire",40,"Foot","32701 - Systems, Electrification, Overhead Catenary, Trolley Wire"]
[null,32702,"Systems","Electrification","Overhead Catenary","Decorative Streetlighting",50,"Lump Sum","32702 - Systems, Electrification, Overhead Catenary, Decorative Streetlighting"]
[null,32703,"Systems","Electrification","Overhead Catenary","Ductbank",80,"Lump Sum","32703 - Systems, Electrification, Overhead Catenary, Ductbank"]
[null,32704,"Systems","Electrification","Overhead Catenary","Feed Span (+ and -)",18,"Lump Sum","32704 - Systems, Electrification, Overhead Catenary, Feed Span (+ and -)"]
[null,32705,"Systems","Electrification","Overhead Catenary","Manhole",70,"Lump Sum",{"$f":"B352&IF(NOT(C352=\"-\"),\" - \"&C352,\"\")&IF(NOT(D352=\"-\"),\", \"&D352,\"\")&IF(NOT(E352=\"-\"),\", \"&E352,\"\")&IF(NOT(F352=\"-\"),\", \"&F352,\"\")","v":"32705 - Systems, Electrification, Overhead Catenary, Manhole"}]
[null,32706,"Systems","Electrification","Overhead Catenary","Poles and Foundation",50,"Lump Sum","32706 - Systems, Electrification, Overhead Catenary, Poles and Foundation"]
[null,32707,"Systems","Electrification","Overhead Catenary","Pulleys",25,"Lump Sum","32707 - Systems, Electrification, Overhead Catenary, Pulleys"]
[null,32708,"Systems","Electrification","Overhead Catenary","Pole Grounding",50,"Lump Sum","32708 - Systems, Electrification, Overhead Catenary, Pole Grounding"]
[null,32709,"Systems","Electrification","Overhead Catenary","Tangent Span",50,"Lump Sum","32709 - Systems, Electrification, Overhead Catenary, Tangent Span"]
[null,33000,"Systems","Communications","-","-",12,"Track Feet","33000 - Systems, Communications"]
[null,33001,"Systems","Communications","-","Commuter Rail",12,"Track Feet","33001 - Systems, Communications, Commuter Rail"]
[null,33002,"Systems","Communications","-","Heavy Rail",12,"Track Feet","33002 - Systems, Communications, Heavy Rail"]
[null,33003,"Systems","Communications","-","Light Rail",12,"Track Feet","33003 - Systems, Communications, Light Rail"]
[null,33100,"Systems","Communications","Cable Transmission System (CTS)","-",40,"Linear Feet Guideway","33100 - Systems, Communications, Cable Transmission System (CTS)"]
[null,33101,"Systems","Communications","Cable Transmission System (CTS)","Fiber Optic Cable Transmission System (FOCS)",40,"Linear Feet Guideway","33101 - Systems, Communications, Cable Transmission System (CTS), Fiber Optic Cable Transmission System (FOCS)"]
[null,33102,"Systems","Communications","Cable Transmission System (CTS)","Cable",12,"Each","33102 - Systems, Communications, Cable Transmission System (CTS), Cable"]
[null,33103,"Systems","Communications","Cable Transmission System (CTS)","Nodes",6,"Each","33103 - Systems, Communications, Cable Transmission System (CTS), Nodes"]
[null,33104,"Systems","Communications","Cable Transmission System (CTS)","MIS/IT/Network Systems",15,"Each","33104 - Systems, Communications, Cable Transmission System (CTS), MIS/IT/Network Systems"]
[null,33200,"Systems","Communications","Passenger Communications Systems","-",30,"Per Station","33200 - Systems, Communications, Passenger Communications Systems"]
[null,33201,"Systems","Communications","Passenger Communications Systems","Public Address (PA)",10,"Per Station","33201 - Systems, Communications, Passenger Communications Systems, Public Address (PA)"]
[null,33202,"Systems","Communications","Passenger Communications Systems","Transit Passenger Information Systems (TPIS)",10,"Each","33202 - Systems, Communications, Passenger Communications Systems, Transit Passenger Information Systems (TPIS)"]
[null,33203,"Systems","Communications","Passenger Communications Systems","Variable Message Signs (VMS)",10,"Each","33203 - Systems, Communications, Passenger Communications Systems, Variable Message Signs (VMS)"]
[null,33204,"Systems","Communications","Passenger Communications Systems","On-board vehicle",10,"Each","33204 - Systems, Communications, Passenger Communications Systems, On-board vehicle"]
[null,33205,"Systems","Communications","Passenger Communications Systems","Passenger Emergency (Blue Light) Phones ",10,"Each","33205 - Systems, Communications, Passenger Communications Systems, Passenger Emergency (Blue Light) Phones "]
[null,33300,"Systems","Communications","Safety and Security","-",20,"Lot","33300 - Systems, Communications, Safety and Security"]
[null,33301,"Systems","Communications","Safety and Security","Emergency Location System",20,"Each","33301 - Systems, Communications, Safety and Security, Emergency Location System"]
[null,33302,"Systems","Communications","Safety and Security","Emergency Management Panel (EMP)",20,"Each","33302 - Systems, Communications, Safety and Security, Emergency Management Panel (EMP)"]
[null,33303,"Systems","Communications","Safety and Security","Fire & Emergency Management System (F&EM)",20,"Each","33303 - Systems, Communications, Safety and Security, Fire & Emergency Management System (F&EM)"]
[null,33304,"Systems","Communications","Safety and Security","Fire Management Panel",20,"Each","33304 - Systems, Communications, Safety and Security, Fire Management Panel"]
[null,33305,"Systems","Communications","Safety and Security","Gas Monitoring System",20,"Each","33305 - Systems, Communications, Safety and Security, Gas Monitoring System"]
[null,33306,"Systems","Communications","Safety and Security","Gas fire suppression system",20,"Each","33306 - Systems, Communications, Safety and Security, Gas fire suppression system"]
[null,33307,"Systems","Communications","Safety and Security","Intrusion Detection System (IDS)",20,"Each","33307 - Systems, Communications, Safety and Security, Intrusion Detection System (IDS)"]
[null,33308,"Systems","Communications","Safety and Security","Seismic Monitoring System",20,"Each","33308 - Systems, Communications, Safety and Security, Seismic Monitoring System"]
[null,33309,"Systems","Communications","Safety and Security","CCTV",20,"Each","33309 - Systems, Communications, Safety and Security, CCTV"]
[null,33310,"Systems","Communications","Safety and Security","CCTV -- Fixed",20,"Each","33310 - Systems, Communications, Safety and Security, CCTV -- Fixed"]
[null,33311,"Systems","Communications","Safety and Security","CCTV -- On-board vehicle",20,"Each","33311 - Systems, Communications, Safety and Security, CCTV -- On-board vehicle"]
[null,33400,"Systems","Communications","Phone System","-",20,"Each","33400 - Systems, Communications, Phone System"]
[null,33401,"Systems","Communications","Phone System","Phone System",12,"Each","33401 - Systems, Communications, Phone System, Phone System"]
[null,33402,"Systems","Communications","Phone System","PBX",12,"Each","33402 - Systems, Communications, Phone System, PBX"]
[null,33403,"Systems","Communications","Phone System","Telephones",12,"Each","33403 - Systems, Communications, Phone System, Telephones"]
[null,33404,"Systems","Communications","Phone System","Fax",12,"Each","33404 - Systems, Communications, Phone System, Fax"]
[null,33500,"Systems","Communications","Radio","-",25,"Each","33500 - Systems, Communications, Radio"]
[null,33600,"Systems","Communications","Radio","Bus Radio",20,"Each","33600 - Systems, Communications, Radio, Bus Radio"]
[null,33700,"Systems","Communications","Radio","Base Radio Stations",40,"Each","33700 - Systems, Communications, Radio, Base Radio Stations"]
[null,33701,"Systems","Communications","Radio","Radio Antenna",40,"Each","33701 - Systems, Communications, Radio, Radio Antenna"]
[null,33702,"Systems","Communications","Radio","Mobile Radios",10,"Each","33702 - Systems, Communications, Radio, Mobile Radios"]
[null,33703,"Systems","Communications","Radio","Mobile Radios, Handpack",10,"Each","33703 - Systems, Communications, Radio, Mobile Radios, Handpack"]
[null,33704,"Systems","Communications","Radio","Transmitter",10,"Each","33704 - Systems, Communications, Radio, Transmitter"]
[null,33800,"Systems","Communications","SCADA","-",16,"Each","33800 - Systems, Communications, SCADA"]
[null,33801,"Systems","Communications","SCADA","Programmable Logic Controller (PLC)",10,"Each","33801 - Systems, Communications, SCADA, Programmable Logic Controller (PLC)"]
[null,33815,"Systems","Communications","SCADA","RTU",7,"Each","33815 - Systems, Communications, SCADA, RTU"]
[null,33816,"Systems","Communications","SCADA","Rectifier",10,"Each","33816 - Systems, Communications, SCADA, Rectifier"]
[null,33817,"Systems","Communications","SCADA","AIM",10,"Each","33817 - Systems, Communications, SCADA, AIM"]
[null,33818,"Systems","Communications","SCADA","ATC",10,"Each","33818 - Systems, Communications, SCADA, ATC"]
[null,33819,"Systems","Communications","SCADA","IDS",10,"Each","33819 - Systems, Communications, SCADA, IDS"]
[null,33820,"Systems","Communications","SCADA","TRACS",10,"Each","33820 - Systems, Communications, SCADA, TRACS"]
[null,33821,"Systems","Communications","SCADA","Other",10,"Each","33821 - Systems, Communications, SCADA, Other"]
[null,33850,"Systems","Communications","Communications Huts","Hut",45,"Each","33850 - Systems, Communications, Communications Huts, Hut"]
[null,33851,"Systems","Communications","Communications Huts","Room",45,"Each","33851 - Systems, Communications, Communications Huts, Room"]
[null,34000,"Systems","Revenue Collection","Central Revenue Collection","-",15,"Total","34000 - Systems, Revenue Collection, Central Revenue Collection"]
[null,34001,"Systems","Revenue Collection","Central Revenue Collection","Commuter Rail",20,"Total","34001 - Systems, Revenue Collection, Central Revenue Collection, Commuter Rail"]
[null,34002,"Systems","Revenue Collection","Central Revenue Collection","Heavy Rail",20,"Total","34002 - Systems, Revenue Collection, Central Revenue Collection, Heavy Rail"]
[null,34003,"Systems","Revenue Collection","Central Revenue Collection","Light Rail",15,"Total","34003 - Systems, Revenue Collection, Central Revenue Collection, Light Rail"]
[null,34100,"Systems","Revenue Collection","Central Revenue Collection","Coin Counters",12,"Total","34100 - Systems, Revenue Collection, Central Revenue Collection, Coin Counters"]
[null,34101,"Systems","Revenue Collection","Central Revenue Collection","Coin Counters - Commuter Rail",12,"Total","34101 - Systems, Revenue Collection, Central Revenue Collection, Coin Counters - Commuter Rail"]
[null,34102,"Systems","Revenue Collection","Central Revenue Collection","Coin Counters - Heavy Rail",12,"Total","34102 - Systems, Revenue Collection, Central Revenue Collection, Coin Counters - Heavy Rail"]
[null,34103,"Systems","Revenue Collection","Central Revenue Collection","Coin Counters - Light Rail",12,"Total","34103 - Systems, Revenue Collection, Central Revenue Collection, Coin Counters - Light Rail"]
[null,34104,"Systems","Revenue Collection","Central Revenue Collection","Bill Counters",5,"Total","34104 - Systems, Revenue Collection, Central Revenue Collection, Bill Counters"]
[null,34105,"Systems","Revenue Collection","Central Revenue Collection","Vault",12,"Total",{"$f":"B416&IF(NOT(C416=\"-\"),\" - \"&C416,\"\")&IF(NOT(D416=\"-\"),\", \"&D416,\"\")&IF(NOT(E416=\"-\"),\", \"&E416,\"\")&IF(NOT(F416=\"-\"),\", \"&F416,\"\")","v":"34105 - Systems, Revenue Collection, Central Revenue Collection, Vault"}]
[null,34106,"Systems","Revenue Collection","Central Revenue Collection","Software",12,"Total","34106 - Systems, Revenue Collection, Central Revenue Collection, Software"]
[null,35000,"Systems","Revenue Collection","-","-",15,"Station","35000 - Systems, Revenue Collection"]
[null,35001,"Systems","Revenue Collection","-","Commuter Rail",20,"Station","35001 - Systems, Revenue Collection, Commuter Rail"]
[null,35002,"Systems","Revenue Collection","-","Heavy Rail",15,"Station","35002 - Systems, Revenue Collection, Heavy Rail"]
[null,35003,"Systems","Revenue Collection","-","Light Rail",20,"Station","35003 - Systems, Revenue Collection, Light Rail"]
[null,35100,"Systems","Revenue Collection","In-Station","-",20,"Station","35100 - Systems, Revenue Collection, In-Station"]
[null,35101,"Systems","Revenue Collection","In-Station","Commuter Rail",20,"Station","35101 - Systems, Revenue Collection, In-Station, Commuter Rail"]
[null,35102,"Systems","Revenue Collection","In-Station","Heavy Rail",15,"Station","35102 - Systems, Revenue Collection, In-Station, Heavy Rail"]
[null,35103,"Systems","Revenue Collection","In-Station","Light Rail",20,"Station","35103 - Systems, Revenue Collection, In-Station, Light Rail"]
[null,35104,"Systems","Revenue Collection","In-Station","Turnstiles",15,"Each","35104 - Systems, Revenue Collection, In-Station, Turnstiles"]
[null,35110,"Systems","Revenue Collection","In-Station","System",20,"Station","35110 - Systems, Revenue Collection, In-Station, System"]
[null,35111,"Systems","Revenue Collection","In-Station","System Commuter Rail",15,"Station","35111 - Systems, Revenue Collection, In-Station, System Commuter Rail"]
[null,35112,"Systems","Revenue Collection","In-Station","System Heavy Rail",20,"Station","35112 - Systems, Revenue Collection, In-Station, System Heavy Rail"]
[null,35113,"Systems","Revenue Collection","In-Station","System Light Rail",20,"Station","35113 - Systems, Revenue Collection, In-Station, System Light Rail"]
[null,35115,"Systems","Revenue Collection","In-Station","TVMs",15,"Each","35115 - Systems, Revenue Collection, In-Station, TVMs"]
[null,35116,"Systems","Revenue Collection","In-Station","Encoding Machine",15,"Each","35116 - Systems, Revenue Collection, In-Station, Encoding Machine"]
[null,35117,"Systems","Revenue Collection","In-Station","Parking Meters",15,"Each","35117 - Systems, Revenue Collection, In-Station, Parking Meters"]
[null,35118,"Systems","Revenue Collection","In-Station","Change Machines",15,"Each","35118 - Systems, Revenue Collection, In-Station, Change Machines"]
[null,35120,"Systems","Revenue Collection","In-Station","Fare Control System",15,"Station","35120 - Systems, Revenue Collection, In-Station, Fare Control System"]
[null,35121,"Systems","Revenue Collection","In-Station","Fare Control System Commuter Rail",20,"Station","35121 - Systems, Revenue Collection, In-Station, Fare Control System Commuter Rail"]
[null,35122,"Systems","Revenue Collection","In-Station","Fare Control System Heavy Rail",20,"Station","35122 - Systems, Revenue Collection, In-Station, Fare Control System Heavy Rail"]
[null,35123,"Systems","Revenue Collection","In-Station","Fare Control System Light Rail",20,"Station","35123 - Systems, Revenue Collection, In-Station, Fare Control System Light Rail"]
[null,35130,"Systems","Revenue Collection","In-Station","Passenger Counters",20,"Each","35130 - Systems, Revenue Collection, In-Station, Passenger Counters"]
[null,35131,"Systems","Revenue Collection","In-Station","Passenger Counters Commuter Rail",20,"Each","35131 - Systems, Revenue Collection, In-Station, Passenger Counters Commuter Rail"]
[null,35132,"Systems","Revenue Collection","In-Station","Passenger Counters Heavy Rail",20,"Each","35132 - Systems, Revenue Collection, In-Station, Passenger Counters Heavy Rail"]
[null,35133,"Systems","Revenue Collection","In-Station","Passenger Counters Light Rail",20,"Each","35133 - Systems, Revenue Collection, In-Station, Passenger Counters Light Rail"]
[null,35200,"Systems","Revenue Collection","On-Vehicle","-",15,"Revenue vehicle","35200 - Systems, Revenue Collection, On-Vehicle"]
[null,35201,"Systems","Revenue Collection","On-Vehicle","Fareboxes",12,"Revenue vehicle","35201 - Systems, Revenue Collection, On-Vehicle, Fareboxes"]
[null,36000,"Systems","Utilities","-","-",40,"Linear Feet Guideway","36000 - Systems, Utilities"]
[null,36100,"Systems","Utilities","Lighting","-",20,"Linear Feet Guideway","36100 - Systems, Utilities, Lighting"]
[null,36101,"Systems","Utilities","Lighting","Subway",20,"Linear Feet Guideway","36101 - Systems, Utilities, Lighting, Subway"]
[null,36102,"Systems","Utilities","Lighting","Yard",25,"Fixture","36102 - Systems, Utilities, Lighting, Yard"]
[null,36103,"Systems","Utilities","Lighting","Station",25,"Fixture","36103 - Systems, Utilities, Lighting, Station"]
[null,36200,"Systems","Utilities","Drainage","-",40,"Linear Feet Guideway","36200 - Systems, Utilities, Drainage"]
[null,36201,"Systems","Utilities","Drainage","Subway",50,"Linear Feet Guideway","36201 - Systems, Utilities, Drainage, Subway"]
[null,36202,"Systems","Utilities","Pump Rooms","Subway",35,"Each","36202 - Systems, Utilities, Pump Rooms, Subway"]
[null,36203,"Systems","Utilities","Deep Wells","Subway",50,"Each","36203 - Systems, Utilities, Deep Wells, Subway"]
[null,36204,"Systems","Utilities","Sump Pumps","Subway",25,"Each","36204 - Systems, Utilities, Sump Pumps, Subway"]
[null,36205,"Systems","Utilities","Sump Pump Discharge Pipes","Subway",35,"Linear Feet Guideway","36205 - Systems, Utilities, Sump Pump Discharge Pipes, Subway"]
[null,36206,"Systems","Utilities","Fire Protection Plumbing","Subway",999,"Each","36206 - Systems, Utilities, Fire Protection Plumbing, Subway"]
[null,36301,"Systems","Utilities","Ventilation","Subway",30,"Linear Feet Guideway","36301 - Systems, Utilities, Ventilation, Subway"]
[null,36302,"Systems","Utilities","Fan Plants","Subway",35,"Each","36302 - Systems, Utilities, Fan Plants, Subway"]
[null,36303,"Systems","Utilities","Compressed Air Pipes","Subway",35,"Foot","36303 - Systems, Utilities, Compressed Air Pipes, Subway"]
[null,36304,"Systems","Utilities","Air Conditioning/HVAC","Subway",25,"Each","36304 - Systems, Utilities, Air Conditioning/HVAC, Subway"]
[null,36400,"Systems","Utilities","Emergency Exits","Subway",100,"Each","36400 - Systems, Utilities, Emergency Exits, Subway"]
[null,36401,"Systems","Utilities","Emergency Exits","Tunnel Handrail",100,"Feet","36401 - Systems, Utilities, Emergency Exits, Tunnel Handrail"]
[null,37000,"Systems","ITS","-","-",16,"Each","37000 - Systems, ITS"]
[null,37001,"Systems","ITS","APC","-",12,"Per vehicle","37001 - Systems, ITS, APC"]
[null,37002,"Systems","ITS","AVL","-",12,"Per vehicle","37002 - Systems, ITS, AVL"]
[null,37003,"Systems","ITS","CAD","-",12,"Per System","37003 - Systems, ITS, CAD"]
[null,37004,"Systems","ITS","GPS","-",12,"Per System","37004 - Systems, ITS, GPS"]
[null,40000,"Stations","-","-","-",50,"Each","40000 - Stations"]
[null,41000,"Stations","Complete Station","-","-",50,"Each","41000 - Stations, Complete Station"]
[null,41001,"Stations","Complete Station","Commuter Rail","-",50,"Each","41001 - Stations, Complete Station, Commuter Rail"]
[null,41002,"Stations","Complete Station","Heavy Rail","-",50,"Each","41002 - Stations, Complete Station, Heavy Rail"]
[null,41003,"Stations","Complete Station","Light Rail","-",150,"Each","41003 - Stations, Complete Station, Light Rail"]
[null,41004,"Stations","Complete Station","Bus","-",40,"Each","41004 - Stations, Complete Station, Bus"]
[null,41005,"Stations","Complete Station","Transfer Center","Bus",40,"Each","41005 - Stations, Complete Station, Transfer Center, Bus"]
[null,41006,"Stations","Complete Station","Bus Stop Shelters","Bus",40,"Each","41006 - Stations, Complete Station, Bus Stop Shelters, Bus"]
[null,41200,"Stations","Building","-","-",50,"Each","41200 - Stations, Building"]
[null,41201,"Stations","Building","Commuter Rail","-",50,"Each","41201 - Stations, Building, Commuter Rail"]
[null,41202,"Stations","Building","Heavy Rail","-",50,"Each","41202 - Stations, Building, Heavy Rail"]
[null,41203,"Stations","Building","Light Rail","-",100,"Each","41203 - Stations, Building, Light Rail"]
[null,41204,"Stations","Building","Bus","Bus",40,"Each",{"$f":"B480&IF(NOT(C480=\"-\"),\" - \"&C480,\"\")&IF(NOT(D480=\"-\"),\", \"&D480,\"\")&IF(NOT(E480=\"-\"),\", \"&E480,\"\")&IF(NOT(F480=\"-\"),\", \"&F480,\"\")","v":"41204 - Stations, Building, Bus, Bus"}]
[null,41210,"Stations","Building","At-Grade / Center Platform","At-Grade / Center Platform",50,"Each","41210 - Stations, Building, At-Grade / Center Platform, At-Grade / Center Platform"]
[null,41211,"Stations","Building","At-Grade / Center Platform","At-Grade / Center Platform Commuter Rail",50,"Each","41211 - Stations, Building, At-Grade / Center Platform, At-Grade / Center Platform Commuter Rail"]
[null,41212,"Stations","Building","At-Grade / Center Platform","At-Grade / Center Platform Heavy Rail",50,"Each","41212 - Stations, Building, At-Grade / Center Platform, At-Grade / Center Platform Heavy Rail"]
[null,41213,"Stations","Building","At-Grade / Center Platform","At-Grade / Center Platform Light Rail",100,"Each","41213 - Stations, Building, At-Grade / Center Platform, At-Grade / Center Platform Light Rail"]
[null,41214,"Stations","Building","At-Grade / Center Platform","At-Grade / Center Platform Bus",40,"Each","41214 - Stations, Building, At-Grade / Center Platform, At-Grade / Center Platform Bus"]
[null,41220,"Stations","Building","At-Grade / Center Platform","At-Grade / Side Platform",50,"Each","41220 - Stations, Building, At-Grade / Center Platform, At-Grade / Side Platform"]
[null,41221,"Stations","Building","At-Grade / Center Platform","At-Grade / Side Platform Commuter Rail",50,"Each","41221 - Stations, Building, At-Grade / Center Platform, At-Grade / Side Platform Commuter Rail"]
[null,41222,"Stations","Building","At-Grade / Center Platform","At-Grade / Side Platform Heavy Rail",50,"Each","41222 - Stations, Building, At-Grade / Center Platform, At-Grade / Side Platform Heavy Rail"]
[null,41223,"Stations","Building","At-Grade / Center Platform","At-Grade / Side Platform Light Rail",100,"Each","41223 - Stations, Building, At-Grade / Center Platform, At-Grade / Side Platform Light Rail"]
[null,41224,"Stations","Building","At-Grade / Center Platform","At-Grade / Side Platform Bus",40,"Each","41224 - Stations, Building, At-Grade / Center Platform, At-Grade / Side Platform Bus"]
[null,41230,"Stations","Building","At-Grade / Center Platform","Elevated / Center Platform",50,"Each","41230 - Stations, Building, At-Grade / Center Platform, Elevated / Center Platform"]
[null,41231,"Stations","Building","At-Grade / Center Platform","Elevated / Center Platform Commuter Rail",50,"Each","41231 - Stations, Building, At-Grade / Center Platform, Elevated / Center Platform Commuter Rail"]
[null,41232,"Stations","Building","At-Grade / Center Platform","Elevated / Center Platform Heavy Rail",50,"Each","41232 - Stations, Building, At-Grade / Center Platform, Elevated / Center Platform Heavy Rail"]
[null,41233,"Stations","Building","At-Grade / Center Platform","Elevated / Center Platform Light Rail",100,"Each","41233 - Stations, Building, At-Grade / Center Platform, Elevated / Center Platform Light Rail"]
[null,41234,"Stations","Building","At-Grade / Center Platform","Elevated / Center Platform Bus",40,"Each","41234 - Stations, Building, At-Grade / Center Platform, Elevated / Center Platform Bus"]
[null,41240,"Stations","Building","At-Grade / Center Platform","Elevated / Side Platform",50,"Each","41240 - Stations, Building, At-Grade / Center Platform, Elevated / Side Platform"]
[null,41241,"Stations","Building","At-Grade / Center Platform","Elevated / Side Platform Commuter Rail",50,"Each","41241 - Stations, Building, At-Grade / Center Platform, Elevated / Side Platform Commuter Rail"]
[null,41242,"Stations","Building","At-Grade / Center Platform","Elevated / Side Platform Heavy Rail",50,"Each","41242 - Stations, Building, At-Grade / Center Platform, Elevated / Side Platform Heavy Rail"]
[null,41243,"Stations","Building","At-Grade / Center Platform","Elevated / Side Platform Light Rail",150,"Each","41243 - Stations, Building, At-Grade / Center Platform, Elevated / Side Platform Light Rail"]
[null,41244,"Stations","Building","At-Grade / Center Platform","Elevated / Side Platform Bus",40,"Each","41244 - Stations, Building, At-Grade / Center Platform, Elevated / Side Platform Bus"]
[null,41250,"Stations","Building","At-Grade / Center Platform","Subway / Center Platform",150,"Each","41250 - Stations, Building, At-Grade / Center Platform, Subway / Center Platform"]
[null,41251,"Stations","Building","At-Grade / Center Platform","Subway / Center Platform Commuter Rail",150,"Each","41251 - Stations, Building, At-Grade / Center Platform, Subway / Center Platform Commuter Rail"]
[null,41252,"Stations","Building","At-Grade / Center Platform","Subway / Center Platform Heavy Rail",150,"Each","41252 - Stations, Building, At-Grade / Center Platform, Subway / Center Platform Heavy Rail"]
[null,41253,"Stations","Building","At-Grade / Center Platform","Subway / Center Platform Light Rail",150,"Each","41253 - Stations, Building, At-Grade / Center Platform, Subway / Center Platform Light Rail"]
[null,41254,"Stations","Building","At-Grade / Center Platform","Subway / Center Platform Bus",80,"Each","41254 - Stations, Building, At-Grade / Center Platform, Subway / Center Platform Bus"]
[null,41260,"Stations","Building","At-Grade / Center Platform","Subway / Side Platform",150,"Each","41260 - Stations, Building, At-Grade / Center Platform, Subway / Side Platform"]
[null,41261,"Stations","Building","At-Grade / Center Platform","Subway / Side Platform Commuter Rail",150,"Each","41261 - Stations, Building, At-Grade / Center Platform, Subway / Side Platform Commuter Rail"]
[null,41262,"Stations","Building","At-Grade / Center Platform","Subway / Side Platform Heavy Rail",150,"Each","41262 - Stations, Building, At-Grade / Center Platform, Subway / Side Platform Heavy Rail"]
[null,41263,"Stations","Building","At-Grade / Center Platform","Subway / Side Platform Light Rail",150,"Each","41263 - Stations, Building, At-Grade / Center Platform, Subway / Side Platform Light Rail"]
[null,41264,"Stations","Building","At-Grade / Center Platform","Subway / Side Platform Bus",80,"Each","41264 - Stations, Building, At-Grade / Center Platform, Subway / Side Platform Bus"]
[null,41270,"Stations","Building","Building Components","Shelter",20,"Each","41270 - Stations, Building, Building Components, Shelter"]
[null,41280,"Stations","Building","Building Components","Token Booth",20,"Each","41280 - Stations, Building, Building Components, Token Booth"]
[null,41281,"Stations","Building","Building Components","-",80,"Linear Feet Guideway","41281 - Stations, Building, Building Components"]
[null,41282,"Stations","Building","Building Components","Lighting",80,"Linear Feet Guideway","41282 - Stations, Building, Building Components, Lighting"]
[null,41283,"Stations","Building","Building Components","Station Attendant Booth",80,"Linear Feet Guideway","41283 - Stations, Building, Building Components, Station Attendant Booth"]
[null,41284,"Stations","Building","Building Components","Interior",80,"Linear Feet Guideway","41284 - Stations, Building, Building Components, Interior"]
[null,41290,"Stations","Building","Building Components","Building Electrical",50,"Linear Feet Guideway","41290 - Stations, Building, Building Components, Building Electrical"]
[null,41291,"Stations","Building","Building Components","Fire Alarm",999,"Linear Feet Guideway","41291 - Stations, Building, Building Components, Fire Alarm"]
[null,41292,"Stations","Building","Building Components","Plumbing",40,"Linear Feet Guideway","41292 - Stations, Building, Building Components, Plumbing"]
[null,41293,"Stations","Building","Building Components","Drainage",40,"Linear Feet Guideway","41293 - Stations, Building, Building Components, Drainage"]
[null,41294,"Stations","Building","Building Components","HVAC",40,"Each","41294 - Stations, Building, Building Components, HVAC"]
[null,41295,"Stations","Building","Building Components","Roof",40,"Linear Feet Guideway","41295 - Stations, Building, Building Components, Roof"]
[null,41296,"Stations","Building","Building Components","Exterior",40,"Each","41296 - Stations, Building, Building Components, Exterior"]
[null,41297,"Stations","Building","Building Components","Emergency backup system: UPS",40,"Each","41297 - Stations, Building, Building Components, Emergency backup system: UPS"]
[null,41298,"Stations","Building","Building Components","Emergency backup system: Generator",40,"Each","41298 - Stations, Building, Building Components, Emergency backup system: Generator"]
[null,41299,"Stations","Building","Building Components","Other",40,"Each","41299 - Stations, Building, Building Components, Other"]
[null,41300,"Stations","Access","-","-",50,"Each","41300 - Stations, Access"]
[null,41301,"Stations","Access","Commuter Rail","-",50,"Each","41301 - Stations, Access, Commuter Rail"]
[null,41302,"Stations","Access","Heavy Rail","-",50,"Each","41302 - Stations, Access, Heavy Rail"]
[null,41303,"Stations","Access","Light Rail","-",50,"Each","41303 - Stations, Access, Light Rail"]
[null,41304,"Stations","Access","Bus","-",25,"Each","41304 - Stations, Access, Bus"]
[null,41400,"Stations","Access","Elevators","-",25,"Each","41400 - Stations, Access, Elevators"]
[null,41500,"Stations","Access","Escalators","-",25,"Each","41500 - Stations, Access, Escalators"]
[null,41600,"Stations","Access","Parking","-",40,"Space","41600 - Stations, Access, Parking"]
[null,41601,"Stations","Access","Parking","Garage",60,"Space","41601 - Stations, Access, Parking, Garage"]
[null,41602,"Stations","Access","Parking","Lot",40,"Space","41602 - Stations, Access, Parking, Lot"]
[null,41603,"Stations","Access","Parking","Park & Ride",40,"Each","41603 - Stations, Access, Parking, Park & Ride"]
[null,41604,"Stations","Access","Parking & Equipment","-",20,"Each","41604 - Stations, Access, Parking & Equipment"]
[null,41605,"Stations","Access","Misc. Parking","-",30,"Each","41605 - Stations, Access, Misc. Parking"]
[null,41650,"Stations","Access","Roadway Access","-",20,"Each","41650 - Stations, Access, Roadway Access"]
[null,41700,"Stations","Access","Pedestrian Walkway","-",80,"Each","41700 - Stations, Access, Pedestrian Walkway"]
[null,41701,"Stations","Access","Pedestrian Walkway","Elevated",50,"Each","41701 - Stations, Access, Pedestrian Walkway, Elevated"]
[null,41702,"Stations","Access","Pedestrian Walkway","Subway",125,"Each","41702 - Stations, Access, Pedestrian Walkway, Subway"]
[null,41800,"Stations","Platform","Platform","-",35,"Sq Foot",{"$f":"B544&IF(NOT(C544=\"-\"),\" - \"&C544,\"\")&IF(NOT(D544=\"-\"),\", \"&D544,\"\")&IF(NOT(E544=\"-\"),\", \"&E544,\"\")&IF(NOT(F544=\"-\"),\", \"&F544,\"\")","v":"41800 - Stations, Platform, Platform"}]
[null,41801,"Stations","Platform","At-Grade","Center Platform",35,"Sq Foot","41801 - Stations, Platform, At-Grade, Center Platform"]
[null,41802,"Stations","Platform","At-Grade","Side Platform",35,"Sq Foot","41802 - Stations, Platform, At-Grade, Side Platform"]
[null,41803,"Stations","Platform","Elevated","Center Platform",35,"Sq Foot","41803 - Stations, Platform, Elevated, Center Platform"]
[null,41804,"Stations","Platform","Elevated","Side Platform",35,"Sq Foot","41804 - Stations, Platform, Elevated, Side Platform"]
[null,41805,"Stations","Platform","Subway","Center Platform",35,"Sq Foot","41805 - Stations, Platform, Subway, Center Platform"]
[null,41806,"Stations","Platform","Subway","Side Platform",35,"Sq Foot","41806 - Stations, Platform, Subway, Side Platform"]
[null,41807,"Stations","Platform","Platform","Concrete",35,"Sq Foot","41807 - Stations, Platform, Platform, Concrete"]
[null,41808,"Stations","Platform","Platform","Asphalt",35,"Sq Foot","41808 - Stations, Platform, Platform, Asphalt"]
[null,41809,"Stations","Platform","Platform","Tile",35,"Sq Foot","41809 - Stations, Platform, Platform, Tile"]
[null,41810,"Stations","Platform","Platform","Wood",35,"Sq Foot","41810 - Stations, Platform, Platform, Wood"]
[null,41811,"Stations","Platform","Platform","Lighting",35,"Sq Foot","41811 - Stations, Platform, Platform, Lighting"]
[null,41812,"Stations","Platform","Canopy","-",50,"Each","41812 - Stations, Platform, Canopy"]
[null,41813,"Stations","Platform","Canopy","Commuter Rail",50,"Each","41813 - Stations, Platform, Canopy, Commuter Rail"]
[null,41814,"Stations","Platform","Canopy","Heavy Rail",50,"Each","41814 - Stations, Platform, Canopy, Heavy Rail"]
[null,41815,"Stations","Platform","Canopy","Light Rail",50,"Each","41815 - Stations, Platform, Canopy, Light Rail"]
[null,41816,"Stations","Platform","Canopy","Bus",50,"Each","41816 - Stations, Platform, Canopy, Bus"]
[null,41900,"Stations","Signage & Graphics","-","-",15,"Each","41900 - Stations, Signage & Graphics"]
[null,41901,"Stations","Signage & Graphics","Electronic","-",15,"Each","41901 - Stations, Signage & Graphics, Electronic"]
[null,41902,"Stations","Signage & Graphics","Static","-",15,"Each","41902 - Stations, Signage & Graphics, Static"]
[null,43000,"Stations","Ferry","-","-",80,"Each","43000 - Stations, Ferry"]
[null,43010,"Stations","Ferry","Building","-",80,"Each","43010 - Stations, Ferry, Building"]
[null,43020,"Stations","Ferry","Dock","-",30,"Each","43020 - Stations, Ferry, Dock"]
[null,50000,"Vehicles","-","-","-",15,"Vehicles","50000 - Vehicles"]
[null,51000,"Vehicles","Revenue Vehicles","-","-",27,"Vehicles","51000 - Vehicles, Revenue Vehicles"]
[null,51100,"Vehicles","Revenue Vehicles","Automated Guideway","-",27,"Vehicles","51100 - Vehicles, Revenue Vehicles, Automated Guideway"]
[null,51101,"Vehicles","Revenue Vehicles","Automated Guideway","AGT",30,"Vehicles","51101 - Vehicles, Revenue Vehicles, Automated Guideway, AGT"]
[null,51102,"Vehicles","Revenue Vehicles","Automated Guideway","Monorail",30,"Vehicles","51102 - Vehicles, Revenue Vehicles, Automated Guideway, Monorail"]
[null,51200,"Vehicles","Revenue Vehicles","Cable Car","-",62,"Vehicles","51200 - Vehicles, Revenue Vehicles, Cable Car"]
[null,51201,"Vehicles","Revenue Vehicles","Cable Car","Cable Car",80,"Vehicles","51201 - Vehicles, Revenue Vehicles, Cable Car, Cable Car"]
[null,51300,"Vehicles","Revenue Vehicles","Commuter Rail","-",35,"Vehicles","51300 - Vehicles, Revenue Vehicles, Commuter Rail"]
[null,51301,"Vehicles","Revenue Vehicles","Commuter Rail","Revenue Locomotive",40,"Vehicles","51301 - Vehicles, Revenue Vehicles, Commuter Rail, Revenue Locomotive"]
[null,51302,"Vehicles","Revenue Vehicles","Commuter Rail","Passenger Car",40,"Vehicles","51302 - Vehicles, Revenue Vehicles, Commuter Rail, Passenger Car"]
[null,51303,"Vehicles","Revenue Vehicles","Commuter Rail","Self-Propelled Passenger Car",40,"Vehicles","51303 - Vehicles, Revenue Vehicles, Commuter Rail, Self-Propelled Passenger Car"]
[null,51500,"Vehicles","Revenue Vehicles","Ferry Boat","-",27,"Vehicles","51500 - Vehicles, Revenue Vehicles, Ferry Boat"]
[null,51501,"Vehicles","Revenue Vehicles","Ferry Boat","Ferry Boat",45,"Vehicles","51501 - Vehicles, Revenue Vehicles, Ferry Boat, Ferry Boat"]
[null,51600,"Vehicles","Revenue Vehicles","Heavy Rail","-",27,"Vehicles","51600 - Vehicles, Revenue Vehicles, Heavy Rail"]
[null,51601,"Vehicles","Revenue Vehicles","Heavy Rail","Heavy Rail",30,"Vehicles","51601 - Vehicles, Revenue Vehicles, Heavy Rail, Heavy Rail"]
[null,51701,"Vehicles","Revenue Vehicles","Inclined Plane","Inclined Plane Vehicle",60,"Vehicles","51701 - Vehicles, Revenue Vehicles, Inclined Plane, Inclined Plane Vehicle"]
[null,51900,"Vehicles","Revenue Vehicles","Bus","-",14,"Vehicles","51900 - Vehicles, Revenue Vehicles, Bus"]
[null,51901,"Vehicles","Revenue Vehicles","Bus","Articulated Bus (60 ft)",14,"Vehicles","51901 - Vehicles, Revenue Vehicles, Bus, Articulated Bus (60 ft)"]
[null,51902,"Vehicles","Revenue Vehicles","Bus","BRT Vehicle",8,"Vehicles","51902 - Vehicles, Revenue Vehicles, Bus, BRT Vehicle"]
[null,51903,"Vehicles","Revenue Vehicles","Bus","Bus (40 ft)",16,"Vehicles","51903 - Vehicles, Revenue Vehicles, Bus, Bus (40 ft)"]
[null,51904,"Vehicles","Revenue Vehicles","Bus","Bus (35 ft)",16,"Vehicles","51904 - Vehicles, Revenue Vehicles, Bus, Bus (35 ft)"]
[null,51905,"Vehicles","Revenue Vehicles","Bus","Bus (30 ft)",12,"Vehicles","51905 - Vehicles, Revenue Vehicles, Bus, Bus (30 ft)"]
[null,51906,"Vehicles","Revenue Vehicles","Bus","Bus (<30 ft)",9,"Vehicles","51906 - Vehicles, Revenue Vehicles, Bus, Bus (<30 ft)"]
[null,51907,"Vehicles","Revenue Vehicles","Bus","Double Decker Bus",16,"Vehicles","51907 - Vehicles, Revenue Vehicles, Bus, Double Decker Bus"]
[null,51908,"Vehicles","Revenue Vehicles","Bus","School Bus",12,"Vehicles","51908 - Vehicles, Revenue Vehicles, Bus, School Bus"]
[null,51911,"Vehicles","Revenue Vehicles","Bus","Motor Bus - Other",14,"Vehicles","51911 - Vehicles, Revenue Vehicles, Bus, Motor Bus - Other"]
[null,51912,"Vehicles","Revenue Vehicles","Bus","Over-the-Road Coach",16,"Vehicles","51912 - Vehicles, Revenue Vehicles, Bus, Over-the-Road Coach"]
[null,51921,"Vehicles","Revenue Vehicles","Bus","Articulated Bus (60 ft) - Diesel",9,"Vehicles","51921 - Vehicles, Revenue Vehicles, Bus, Articulated Bus (60 ft) - Diesel"]
[null,51922,"Vehicles","Revenue Vehicles","Bus","BRT Vehicle - Diesel",8,"Vehicles","51922 - Vehicles, Revenue Vehicles, Bus, BRT Vehicle - Diesel"]
[null,51923,"Vehicles","Revenue Vehicles","Bus","Bus (40 ft) - Diesel",14,"Vehicles","51923 - Vehicles, Revenue Vehicles, Bus, Bus (40 ft) - Diesel"]
[null,51924,"Vehicles","Revenue Vehicles","Bus","Bus (35 ft) - Diesel",12,"Vehicles","51924 - Vehicles, Revenue Vehicles, Bus, Bus (35 ft) - Diesel"]
[null,51925,"Vehicles","Revenue Vehicles","Bus","Bus (30 ft) - Diesel",9,"Vehicles","51925 - Vehicles, Revenue Vehicles, Bus, Bus (30 ft) - Diesel"]
[null,51926,"Vehicles","Revenue Vehicles","Bus","Bus (<30 ft) - Diesel",7,"Vehicles","51926 - Vehicles, Revenue Vehicles, Bus, Bus (<30 ft) - Diesel"]
[null,51931,"Vehicles","Revenue Vehicles","Bus","Articulated Bus (60 ft) - Hybrid",14,"Vehicles","51931 - Vehicles, Revenue Vehicles, Bus, Articulated Bus (60 ft) - Hybrid"]
[null,51932,"Vehicles","Revenue Vehicles","Bus","BRT Vehicle - Hybrid",14,"Vehicles","51932 - Vehicles, Revenue Vehicles, Bus, BRT Vehicle - Hybrid"]
[null,51933,"Vehicles","Revenue Vehicles","Bus","Bus (40 ft) - Hybrid",14,"Vehicles","51933 - Vehicles, Revenue Vehicles, Bus, Bus (40 ft) - Hybrid"]
[null,51934,"Vehicles","Revenue Vehicles","Bus","Bus (35 ft) - Hybrid",12,"Vehicles","51934 - Vehicles, Revenue Vehicles, Bus, Bus (35 ft) - Hybrid"]
[null,51935,"Vehicles","Revenue Vehicles","Bus","Bus (30 ft) - Hybrid",9,"Vehicles","51935 - Vehicles, Revenue Vehicles, Bus, Bus (30 ft) - Hybrid"]
[null,51936,"Vehicles","Revenue Vehicles","Bus","Bus (<30 ft) - Hybrid",7,"Vehicles","51936 - Vehicles, Revenue Vehicles, Bus, Bus (<30 ft) - Hybrid"]
[null,51941,"Vehicles","Revenue Vehicles","Bus","Articulated Bus (60 ft) - CNG",14,"Vehicles","51941 - Vehicles, Revenue Vehicles, Bus, Articulated Bus (60 ft) - CNG"]
[null,51942,"Vehicles","Revenue Vehicles","Bus","BRT Vehicle - CNG",14,"Vehicles","51942 - Vehicles, Revenue Vehicles, Bus, BRT Vehicle - CNG"]
[null,51943,"Vehicles","Revenue Vehicles","Bus","Bus (40 ft) - CNG",14,"Vehicles","51943 - Vehicles, Revenue Vehicles, Bus, Bus (40 ft) - CNG"]
[null,51944,"Vehicles","Revenue Vehicles","Bus","Bus (35 ft) - CNG",12,"Vehicles","51944 - Vehicles, Revenue Vehicles, Bus, Bus (35 ft) - CNG"]
[null,51945,"Vehicles","Revenue Vehicles","Bus","Bus (30 ft) - CNG",9,"Vehicles","51945 - Vehicles, Revenue Vehicles, Bus, Bus (30 ft) - CNG"]
[null,51946,"Vehicles","Revenue Vehicles","Bus","Bus (<30 ft) - CNG",7,"Vehicles","51946 - Vehicles, Revenue Vehicles, Bus, Bus (<30 ft) - CNG"]
[null,52000,"Vehicles","Revenue Vehicles","Light Rail","-",27,"Vehicles","52000 - Vehicles, Revenue Vehicles, Light Rail"]
[null,52001,"Vehicles","Revenue Vehicles","Light Rail","LRV",30,"Vehicles","52001 - Vehicles, Revenue Vehicles, Light Rail, LRV"]
[null,52002,"Vehicles","Revenue Vehicles","Light Rail","Street Car",30,"Vehicles","52002 - Vehicles, Revenue Vehicles, Light Rail, Street Car"]
[null,52003,"Vehicles","Revenue Vehicles","Light Rail","Historic Street Car",30,"Vehicles","52003 - Vehicles, Revenue Vehicles, Light Rail, Historic Street Car"]
[null,52100,"Vehicles","Revenue Vehicles","Trolleybus","-",14,"Vehicles","52100 - Vehicles, Revenue Vehicles, Trolleybus"]
[null,52101,"Vehicles","Revenue Vehicles","Trolleybus","Trolleybus",14,"Vehicles","52101 - Vehicles, Revenue Vehicles, Trolleybus, Trolleybus"]
[null,52201,"Vehicles","Revenue Vehicles","Aerial Tramway","Aerial Tramway Vehicle",12,"Vehicles","52201 - Vehicles, Revenue Vehicles, Aerial Tramway, Aerial Tramway Vehicle"]
[null,52301,"Vehicles","Revenue Vehicles","Vans, Cutaways and Autos","Automobile",6,"Vehicles","52301 - Vehicles, Revenue Vehicles, Vans, Cutaways and Autos, Automobile"]
[null,52521,"Vehicles","Revenue Vehicles","Vans, Cutaways and Autos","Heavy-Duty Van",16,"Vehicles","52521 - Vehicles, Revenue Vehicles, Vans, Cutaways and Autos, Heavy-Duty Van"]
[null,52522,"Vehicles","Revenue Vehicles","Vans, Cutaways and Autos","Super Medium-Duty Van",8,"Vehicles","52522 - Vehicles, Revenue Vehicles, Vans, Cutaways and Autos, Super Medium-Duty Van"]
[null,52523,"Vehicles","Revenue Vehicles","Vans, Cutaways and Autos","Medium-Duty Van",9,"Vehicles","52523 - Vehicles, Revenue Vehicles, Vans, Cutaways and Autos, Medium-Duty Van"]
[null,52524,"Vehicles","Revenue Vehicles","Vans, Cutaways and Autos","Light-Duty Van",8,"Vehicles","52524 - Vehicles, Revenue Vehicles, Vans, Cutaways and Autos, Light-Duty Van"]
[null,52525,"Vehicles","Revenue Vehicles","Vans, Cutaways and Autos","Mini-Van",6,"Vehicles","52525 - Vehicles, Revenue Vehicles, Vans, Cutaways and Autos, Mini-Van"]
[null,52526,"Vehicles","Revenue Vehicles","Vans, Cutaways and Autos","Raised Roof Van",30,"Vehicles","52526 - Vehicles, Revenue Vehicles, Vans, Cutaways and Autos, Raised Roof Van"]
[null,52527,"Vehicles","Revenue Vehicles","Vans, Cutaways and Autos","SUV",30,"Vehicles","52527 - Vehicles, Revenue Vehicles, Vans, Cutaways and Autos, SUV"]
[null,52528,"Vehicles","Revenue Vehicles","Vans, Cutaways and Autos","Cutaway",8,"Vehicles",{"$f":"B627&IF(NOT(C627=\"-\"),\" - \"&C627,\"\")&IF(NOT(D627=\"-\"),\", \"&D627,\"\")&IF(NOT(E627=\"-\"),\", \"&E627,\"\")&IF(NOT(F627=\"-\"),\", \"&F627,\"\")","v":"52528 - Vehicles, Revenue Vehicles, Vans, Cutaways and Autos, Cutaway"}]
[null,53000,"Vehicles","Non-Revenue Vehicles","-","-",6,"Vehicles","53000 - Vehicles, Non-Revenue Vehicles"]
[null,53001,"Vehicles","Non-Revenue Vehicles","Car","-",6,"Vehicles","53001 - Vehicles, Non-Revenue Vehicles, Car"]
[null,53002,"Vehicles","Non-Revenue Vehicles","Truck","-",6,"Vehicles","53002 - Vehicles, Non-Revenue Vehicles, Truck"]
[null,53003,"Vehicles","Non-Revenue Vehicles","Special","-",15,"Vehicles","53003 - Vehicles, Non-Revenue Vehicles, Special"]
[null,53004,"Vehicles","Non-Revenue Vehicles","Locomotive, Switch","-",40,"Vehicles","53004 - Vehicles, Non-Revenue Vehicles, Locomotive, Switch"]
[null,53005,"Vehicles","Non-Revenue","Steel Wheel Vehicle","-",15,"Vehicles","53005 - Vehicles, Non-Revenue, Steel Wheel Vehicle"]
[null,54000,"Vehicles","Equipment/Parts","-","-",20,"Lot","54000 - Vehicles, Equipment/Parts"]

{"sheet":"Inflation","index":3,"n_rows":205,"n_cols":13,"rows_kept":205,"cut":false,"hidden":true,"merged":[]}
[]
[null,"= rows.CostIndex"]
[null,"= rng.CostIndexYear",null,null,"= rng.CostIndexCPI","= rng.CostIndexMeans"]
[null,"Inf_Year","GDP","GDP_Structures","CPI","Means_Augmented"]
[null,1850,null,null,null,0.53172689661195605]
[null,1851,null,null,null,0.55039544223881809,null,null,null,null,null,17.9037882357079,17.9038]
[null,1852,null,null,null,0.56971942696053135,null,null,null,null,null,153.34507670377701,153.3451]
[null,1853,null,null,null,0.58972186276825878]
[null,1854,null,null,null,0.6104265695874862,null,null,null,null,null,{"$f":"L7/L6","v":8.5649514329006973},{"$f":"M7/M6","v":8.5649471062009184}]
[null,1855,null,null,null,0.6318582036440008]
[null,1856,null,null,null,0.65404228682579246]
[null,1857,null,null,null,0.67700523707582627]
[null,1858,null,null,null,0.70077439985187939]
[null,1859,null,null,null,0.7253780806909168]
[null,1860,null,null,null,0.75084557891677206]
[null,1861,null,null,null,0.7772072225312876]
[null,1862,null,null,null,0.80449440433044561]
[null,1863,null,null,null,0.83273961928852924]
[null,1864,null,null,null,0.86197650325479136]
[null,1865,null,null,null,0.89223987300875529]
[null,1866,null,null,null,0.92356576772182042]
[null,1867,null,null,null,0.95599149187454435]
[null,1868,null,null,null,0.98955565968074399]
[null,1869,null,null,null,1.0242982410712662]
[null,1870,null,null,null,1.0602606092922386]
[null,1871,null,null,null,1.0974855901744498]
[null,1872,null,null,null,1.1360175131325416]
[null,1873,null,null,null,1.1759022639547434]
[null,1874,null,null,null,1.2171873394460273]
[null,1875,null,null,null,1.2599219039897336]
[null,1876,null,null,null,1.304156848095037]
[null,1877,null,null,null,1.3499448489999755]
[null,1878,null,null,null,1.3973404334021997]
[null,1879,null,null,null,1.4464000423921641]
[null,1880,null,null,null,1.4971820986660695]
[null,1881,null,null,null,1.549747076098577]
[null,1882,null,null,null,1.604157571758275]
[null,1883,null,null,null,1.6604783804513481]
[null,1884,null,null,null,1.7187765718826877]
[null,1885,null,null,null,1.7791215705258365]
[null,1886,null,null,null,1.8415852382972646]
[null,1887,null,null,null,1.9062419601331662]
[null,1888,null,null,null,1.9731687325709353]
[null,1889,null,null,null,2.0424452554404913]
[null,1890,null,null,null,2.1141540267750183]
[null,1891,null,null,null,2.1883804410537482]
[null,1892,null,null,null,2.2652128908941811]
[null,1893,null,null,null,2.3447428723144692]
[null,1894,null,null,null,2.4270650936916134]
[null,1895,null,null,null,2.5122775885449915]
[null,1896,null,null,null,2.6004818322797636]
[null,1897,null,null,null,2.6917828630289566]
[null,1898,null,null,null,2.7862894067382458]
[null,1899,null,null,null,2.884114006642398]
[null,1900,null,null,null,2.985373157287496]
[null,1901,null,null,null,3.0901874432586371]
[null,1902,null,null,null,3.1986816827782349]
[null,1903,null,null,null,3.3109850763459598]
[null,1904,null,null,null,3.4272313605972835]
[null,1905,null,null,null,3.5475589675639525]
[null,1906,null,null,null,3.6721111895259138]
[null,1907,null,null,null,3.8010363496511221]
[null,1908,null,null,null,3.9344879786263789]
[null,1909,null,null,null,4.0726249974895303]
[null,1910,null,null,null,4.2156119068807714]
[null,1911,null,null,null,4.3636189829384326]
[null,1912,null,null,null,4.5168224800725714]
[null,1913,null,null,4.0389999999999997,4.6754048408577082]
[null,1914,null,null,4.08,4.8395549132948146]
[null,1915,null,null,4.12,4.8884393063583849]
[null,1916,null,null,4.4470000000000001,4.9373236994219711]
[null,1917,null,null,5.2220000000000004,5.2795144508670617]
[null,1918,null,null,6.16,6.2572023121387446]
[null,1919,null,null,7.0579999999999998,7.381543352601172]
[null,1920,null,null,8.1590000000000007,8.5058843930635994]
[null,1921,null,null,7.3029999999999999,10.167953757225462]
[null,1922,null,null,6.8540000000000001,8.6525375722543583]
[null,1923,null,null,6.976,8.212578034682096]
[null,1924,null,null,6.976,8.4081156069364269]
[null,1925,null,null,7.1390000000000002,8.3592312138728548]
[null,1926,null,null,7.2210000000000001,8.6525375722543583]
[null,1927,null,null,7.0990000000000002,8.5547687861271857]
[null,1928,null,null,6.976,8.4570000000000132]
[null,1929,3.2349999999999999,8.7780000000000005,6.976,8.3592312138728548]
[null,1930,3.0619999999999998,8.4570000000000007,6.8129999999999997,8.4570000000000132]
[null,1931,2.802,7.5869999999999997,6.2009999999999996,7.5870000000000122]
[null,1932,2.4319999999999999,6.7,5.5890000000000004,6.7000000000000117]
[null,1933,2.4569999999999999,6.5140000000000002,5.3040000000000003,6.51400000000001]
[null,1934,2.464,6.8710000000000004,5.4669999999999996,6.871000000000012]
[null,1935,2.5790000000000002,7.0119999999999996,5.5890000000000004,7.0120000000000111]
[null,1936,2.5750000000000002,7.0970000000000004,5.6710000000000003,7.097000000000012]
[null,1937,2.9260000000000002,7.4020000000000001,5.875,7.4020000000000126]
[null,1938,2.871,7.19,5.7519999999999998,7.1900000000000128]
[null,1939,2.839,7.12,5.6710000000000003,7.1200000000000125]
[null,1940,2.8849999999999998,7.2050000000000001,5.7110000000000003,7.2050000000000125]
[null,1941,3.0870000000000002,7.6920000000000002,5.9969999999999999,7.6920000000000144]
[null,1942,3.444,8.3040000000000003,6.65,8.3040000000000163]
[null,1943,3.7429999999999999,8.6829999999999998,7.0579999999999998,8.6830000000000158]
[null,1944,3.8260000000000001,8.89,7.18,8.8900000000000166]
[null,1945,3.996,9.1199999999999992,7.343,9.120000000000017]
[null,1946,4.476,10.295999999999999,7.9550000000000001,10.296000000000019]
[null,1947,5.4249999999999998,11.426,9.0980000000000008,11.426000000000021]
[null,1948,6.0350000000000001,12.067,9.8320000000000007,12.067000000000023]
[null,1949,6.0140000000000002,12.045999999999999,9.7100000000000009,12.046000000000022]
[null,1950,6.0890000000000004,12.195,9.8320000000000007,12.195000000000023]
[null,1951,6.7910000000000004,13.06,10.606999999999999,13.060000000000024]
[null,1952,6.9710000000000001,13.286,10.811,13.286000000000023]
[null,1953,7.1079999999999997,13.446999999999999,10.893000000000001,13.447000000000022]
[null,1954,7.0209999999999999,13.571999999999999,10.974,13.572000000000022]
[null,1955,7.1619999999999999,13.801,10.933,13.801000000000025]
[null,1956,7.7750000000000004,14.271000000000001,11.097,14.271000000000026]
[null,1957,8.1080000000000005,14.744,11.464,14.744000000000025]
[null,1958,7.9779999999999998,15.08,11.79,15.080000000000021]
[null,1959,8.0220000000000002,15.287000000000001,11.872,15.287000000000022]
[null,1960,8.0120000000000005,15.494999999999999,12.076000000000001,15.495000000000022]
[null,1961,7.9630000000000001,15.66,12.198,15.660000000000021]
[null,1962,8.0259999999999998,15.85,12.32,15.850000000000023]
[null,1963,8.0950000000000006,16.032,12.484,16.032000000000025]
[null,1964,8.2100000000000009,16.276,12.647,16.276000000000025]
[null,1965,8.4489999999999998,16.574000000000002,12.851000000000001,16.574000000000026]
[null,1966,8.7530000000000001,17.039000000000001,13.218,17.039000000000023]
[null,1967,9.0250000000000004,17.533000000000001,13.625999999999999,17.533000000000026]
[null,1968,9.4789999999999992,18.28,14.196999999999999,18.280000000000026]
[null,1969,10.103,19.175999999999998,14.972,19.176000000000023]
[null,1970,10.766999999999999,20.189,15.829000000000001,20.189000000000025]
[null,1971,11.596,21.212,16.523,21.212000000000028]
[null,1972,12.43,22.13,17.053000000000001,22.130000000000027]
[null,1973,13.393000000000001,23.341999999999999,18.114000000000001,23.342000000000027]
[null,1974,15.244,25.443000000000001,20.113,25.443000000000033]
[null,1975,17.065000000000001,27.8,21.948,27.800000000000029]
[null,1976,17.901,29.33,23.213000000000001,29.330000000000027]
[null,1977,19.454000000000001,31.152000000000001,24.722999999999999,31.152000000000029]
[null,1978,21.332000000000001,33.343000000000004,26.599,33.343000000000032]
[null,1979,23.811,36.11,29.617999999999999,36.110000000000035]
[null,1980,26.024000000000001,39.371000000000002,33.616,39.371000000000045]
[null,1981,29.603000000000002,43.097000000000001,37.084000000000003,43.097000000000044]
[null,1982,31.939,45.759,39.368000000000002,45.759000000000043]
[null,1983,31.125,47.552,40.633000000000003,47.552000000000049]
[null,1984,31.396999999999998,49.267000000000003,42.387,49.267000000000053]
[null,1985,32.143999999999998,50.826000000000001,43.896999999999998,50.82600000000005]
[null,1986,32.76,51.848999999999997,44.713000000000001,51.849000000000046]
[null,1987,33.286000000000001,53.134,46.344999999999999,53.13400000000005]
[null,1988,34.698,55.008000000000003,48.262,55.008000000000045]
[null,1989,36.057000000000002,57.164999999999999,50.587000000000003,57.165000000000056]
[null,1990,37.222000000000001,59.305,53.320999999999998,59.305000000000049]
[null,1991,37.896000000000001,61.31,55.564999999999998,61.310000000000045]
[null,1992,37.905000000000001,62.707000000000001,57.237000000000002,62.707000000000043]
[null,1993,39.015999999999998,64.194000000000003,58.951000000000001,64.194000000000045]
[null,1994,40.393999999999998,65.563999999999993,60.46,65.564000000000036]
[null,1995,42.143000000000001,66.938999999999993,62.173999999999999,66.939000000000036]
[null,1996,43.213999999999999,68.164000000000001,64.009,68.16400000000003]
[null,1997,44.863999999999997,69.34,65.477999999999994,69.340000000000046]
[null,1998,46.914999999999999,70.119,66.498000000000005,70.119000000000042]
[null,1999,48.356999999999999,71.111000000000004,67.966999999999999,71.111000000000061]
[null,2000,50.252000000000002,72.721999999999994,70.251000000000005,72.722000000000037]
[null,2001,52.884,74.36,72.25,74.360000000000042]
[null,2002,55.088999999999999,75.515000000000001,73.393000000000001,75.515000000000043]
[null,2003,57.057000000000002,77.006,75.064999999999998,77.006000000000043]
[null,2004,61.281999999999996,79.076999999999998,77.063999999999993,79.077000000000041]
[null,2005,68.840999999999994,81.555999999999997,79.674999999999997,81.55600000000004]
[null,2006,77.037000000000006,84.070999999999998,82.245000000000005,84.071000000000041]
[null,2007,81.581000000000003,86.349000000000004,84.587999999999994,86.349000000000046]
[null,2008,85.751000000000005,88.013000000000005,87.835999999999999,88.013000000000034]
[null,2009,84.186000000000007,88.555999999999997,87.522999999999996,88.556000000000012]
[null,2010,83.501999999999995,89.632000000000005,88.959000000000003,89.632000000000019]
[null,2011,86.244,91.480999999999995,91.766999999999996,91.481000000000023]
[null,2012,90.209000000000003,93.185000000000002,93.665999999999997,93.185000000000031]
[null,2013,91.474000000000004,94.771000000000001,95.037999999999997,94.771000000000015]
[null,2014,96.212999999999994,96.421000000000006,96.58,96.421000000000035]
[null,2015,97.718999999999994,97.316000000000003,96.694000000000003,97.316000000000017]
[null,2016,97.668000000000006,98.241,97.914000000000001,98.241000000000014]
[null,2017,100,100,100,100]
[null,2018,101.17400000000001,102.291,102.44199999999999,102.291]
[null,2019,105.258,104.008,104.29900000000001,104.00800000000001]
[null,2020,106.81100000000001,105.381,105.58499999999999,105.38100000000001]
[null,2021,110.459,110.21299999999999,110.54600000000001,110.21300000000002]
[null,2022,126.69199999999999,117.973,119.393,117.97300000000004]
[null,2023,null,null,null,122.37999383004829]
[null,2024,null,null,null,125.65105190039435]
[null,2025,null,null,null,128.47274472213928]
[null,2026,null,null,null,131.13314296444142]
[null,2027,null,null,null,133.85030550085708]
[null,2028,null,null,null,136.76085656371765]
[null,2029,null,null,null,139.8339519703124]
[null,2030,null,null,null,142.98380789968243]
[null,2031,null,null,null,146.27698679798556]
[null,2032,null,null,null,149.63962759560241]
[null,2033,null,null,null,153.08215332672293]
[null,2034,null,null,null,156.52710360056869]
[null,2035,null,null,null,159.90459159796688]
[null,2036,null,null,null,163.28330436437062]
[null,2037,null,null,null,166.7150821225855]
[null,2038,null,null,null,170.22669482373237]
[null,2039,null,null,null,173.77834997277438]
[null,2040,null,null,null,177.45135723450738]
[null,2041,null,null,null,181.22659521527356]
[null,2042,null,null,null,185.07264484078817]
[null,2043,null,null,null,188.98370720473929]
[null,2044,null,null,null,192.99515063657233]
[null,2045,null,null,null,197.09622716338168]
[null,2046,null,null,null,201.25989188590228]
[null,2047,null,null,null,205.54463377296975]
[null,2048,null,null,null,209.96574993951037]
[null,2049,null,null,null,214.49572057582839]
[null,2050,null,null,null,219.15609161830679]

{"sheet":"Publish","index":4,"n_rows":424,"n_cols":46,"rows_kept":424,"cut":false,"hidden":true,"merged":[]}
[null,"9999","Metroville Transportation Authority",{"$f":"INDEX(rng.modecode,MATCH(INDEX(rows.input Input!D:D,ROW(D1)-2),rng.modeChoice,0))","v":{"$error":"#VALUE!"}},{"$f":"INDEX(rows.input Input!F:F,ROW(E1)-2)","v":{"$error":"#VALUE!"}},{"$f":"INDEX(rng.ClassType,MATCH(INDEX(rows.input Input!H:H,ROW(F1)-2),rng.ClassChoice,0))","v":{"$error":"#VALUE!"}},{"$f":"INDEX(rng.ClassCat,MATCH(INDEX(rows.input Input!H:H,ROW(G1)-2),rng.ClassChoice,0))","v":{"$error":"#VALUE!"}},{"$f":"INDEX(rng.ClassSubCat,MATCH(INDEX(rows.input Input!H:H,ROW(H1)-2),rng.ClassChoice,0))","v":{"$error":"#VALUE!"}},{"$f":"INDEX(rng.ClassElement,MATCH(INDEX(rows.input Input!H:H,ROW(I1)-2),rng.ClassChoice,0))","v":{"$error":"#VALUE!"}},{"$f":"INDEX(rng.ClassSubElement,MATCH(INDEX(rows.input Input!H:H,ROW(J1)-2),rng.ClassChoice,0))","v":{"$error":"#VALUE!"}},{"$f":"INDEX(rows.input Input!J:J,ROW(K1)-2)","v":{"$error":"#VALUE!"}},{"$f":"INDEX(rows.input Input!K:K,ROW(L1)-2)","v":{"$error":"#VALUE!"}},{"$f":"INDEX(rows.input Input!N:N,ROW(M1)-2)","v":{"$error":"#VALUE!"}},false,{"$f":"INDEX(rows.input Input!U:U,ROW(O1)-2)","v":{"$error":"#VALUE!"}},{"$f":"INDEX(rows.input Input!S:S,ROW(P1)-2)","v":{"$error":"#VALUE!"}},{"$f":"IF(ISBLANK(INDEX(rows.input Input!P:P,ROW(Q1)-2)),\"\",INDEX(rows.input Input!P:P,ROW(Q1)-2))","v":{"$error":"#VALUE!"}},{"$f":"IF(ISBLANK(INDEX(rows.input Input!Q:Q,ROW(R1)-2)),\"\",INDEX(rows.input Input!Q:Q,ROW(R1)-2))","v":{"$error":"#VALUE!"}},{"$f":"IF(ISBLANK((INDEX(rows.input Input!Z:Z,ROW(S1)-2))),\"\",INDEX(rows.input Input!Z:Z,ROW(S1)-2))","v":{"$error":"#VALUE!"}},{"$f":"IF(ISBLANK((INDEX(rows.input Input!AU:AU,ROW(T1)-2))),\"\",INDEX(rows.input Input!AU:AU,ROW(T1)-2))","v":{"$error":"#VALUE!"}},{"$f":"INDEX(rows.input Input!BA:BA,ROW(U1)-2)","v":{"$error":"#VALUE!"}},{"$f":"INDEX(rows.input Input!BB:BB,ROW(V1)-2)","v":{"$error":"#VALUE!"}},{"$f":"IF(ISBLANK((INDEX(rows.input Input!X:X,ROW(W1)-2))),INDEX(rng.ClassEDL,MATCH(F1,rng.ClassType,0)),INDEX(rows.input Input!X:X,ROW(W1)-2))","v":{"$error":"#VALUE!"}},{"$f":"IF(ISBLANK((INDEX(rows.input Input!AA:AA,ROW(X1)-2))),\"\",INDEX(rows.input Input!AA:AA,ROW(X1)-2))","v":{"$error":"#VALUE!"}},{"$f":"IF(INDEX(rows.input Input!M:M,ROW(Y1)-2)=\"Yes\",\"Expansion\",\"Existing\")","v":{"$error":"#VALUE!"}},{"$f":"IF(ISBLANK((INDEX(rows.input Input!AI:AI,ROW(Z1)-2))),\"\",INDEX(rows.input Input!AI:AI,ROW(Z1)-2))","v":{"$error":"#VALUE!"}},{"$f":"IF(ISBLANK((INDEX(rows.input Input!AJ:AJ,ROW(AA1)-2))),\"\",INDEX(rows.input Input!AJ:AJ,ROW(AA1)-2))","v":{"$error":"#VALUE!"}},{"$f":"IF(ISBLANK((INDEX(rows.input Input!AK:AK,ROW(AB1)-2))),\"\",INDEX(rows.input Input!AK:AK,ROW(AB1)-2))","v":{"$error":"#VALUE!"}},{"$f":"IF(ISBLANK((INDEX(rows.input Input!AL:AL,ROW(AC1)-2))),\"\",INDEX(rows.input Input!AL:AL,ROW(AC1)-2))","v":{"$error":"#VALUE!"}},{"$f":"IF(ISBLANK((INDEX(rows.input Input!AM:AM,ROW(AD1)-2))),\"\",INDEX(rows.input Input!AM:AM,ROW(AD1)-2))","v":{"$error":"#VALUE!"}},{"$f":"IF(ISBLANK((INDEX(rows.input Input!AN:AN,ROW(AE1)-2))),\"\",INDEX(rows.input Input!AN:AN,ROW(AE1)-2))","v":{"$error":"#VALUE!"}},{"$f":"IF(ISBLANK((INDEX(rows.input Input!AO:AO,ROW(AF1)-2))),\"\",INDEX(rows.input Input!AO:AO,ROW(AF1)-2))","v":{"$error":"#VALUE!"}},{"$f":"IF(ISBLANK((INDEX(rows.input Input!AP:AP,ROW(AG1)-2))),\"\",INDEX(rows.input Input!AP:AP,ROW(AG1)-2))","v":{"$error":"#VALUE!"}},{"$f":"IF(ISBLANK((INDEX(rows.input Input!AQ:AQ,ROW(AH1)-2))),\"\",INDEX(rows.input Input!AQ:AQ,ROW(AH1)-2))","v":{"$error":"#VALUE!"}},{"$f":"IF(ISBLANK((INDEX(rows.input Input!AR:AR,ROW(AI1)-2))),\"\",INDEX(rows.input Input!AR:AR,ROW(AI1)-2))","v":{"$error":"#VALUE!"}},{"$f":"IF(ISBLANK((INDEX(rows.input Input!AS:AS,ROW(AJ1)-2))),\"\",INDEX(rows.input Input!AS:AS,ROW(AJ1)-2))","v":{"$error":"#VALUE!"}},{"$f":"IF(ISBLANK((INDEX(rows.input Input!AT:AT,ROW(AK1)-2))),\"\",INDEX(rows.input Input!AT:AT,ROW(AK1)-2))","v":{"$error":"#VALUE!"}},{"$f":"IF(ISBLANK((INDEX(rows.input Input!AV:AV,ROW(AL1)-2))),\"\",INDEX(rows.input Input!AV:AV,ROW(AL1)-2))","v":{"$error":"#VALUE!"}},{"$f":"IF(ISBLANK((INDEX(rows.input Input!AW:AW,ROW(AM1)-2))),\"\",INDEX(rows.input Input!AW:AW,ROW(AM1)-2))","v":{"$error":"#VALUE!"}},{"$f":"IF(ISBLANK((INDEX(rows.input Input!AX:AX,ROW(AN1)-2))),\"\",INDEX(rows.input Input!AX:AX,ROW(AN1)-2))","v":{"$error":"#VALUE!"}},{"$f":"IF(ISBLANK((INDEX(rows.input Input!AY:AY,ROW(AO1)-2))),\"\",INDEX(rows.input Input!AY:AY,ROW(AO1)-2))","v":{"$error":"#VALUE!"}},{"$f":"IF(ISBLANK((INDEX(rows.input Input!AE:AE,ROW(AP1)-2))),\"\",INDEX(rows.input Input!AE:AE,ROW(AP1)-2))","v":{"$error":"#VALUE!"}},{"$f":"IF(ISBLANK((INDEX(rows.input Input!AF:AF,ROW(AQ1)-2))),\"\",INDEX(rows.input Input!AF:AF,ROW(AQ1)-2))","v":{"$error":"#VALUE!"}},{"$f":"IF(ISBLANK((INDEX(rows.input Input!AG:AG,ROW(AR1)-2))),\"\",INDEX(rows.input Input!AG:AG,ROW(AR1)-2))","v":{"$error":"#VALUE!"}},{"$f":"IF(ISBLANK((INDEX(rows.input Input!AH:AH,ROW(AS1)-2))),\"\",INDEX(rows.input Input!AH:AH,ROW(AS1)-2))","v":{"$error":"#VALUE!"}},{"$f":"IF(ISBLANK((INDEX(rows.input Input!AI:AI,ROW(AT1)-2))),\"\",INDEX(rows.input Input!AI:AI,ROW(AT1)-2))","v":{"$error":"#VALUE!"}}]
[null,"Agency ID Code","Transit System","Mode Code","Description","Asset Type Code","Category","Sub-Category","Element","Sub-Element","Quantity","Units","Date Built","Rehabed","CostYr","Agency SoftCost","Unit Replacement Cost","Current Dollars Total Cost","Priority Status","Agency Condition Rating","Data Date","Data Source","Agency UsefulLife","Delayed Replacement Age","Existing Expansion","Agency Asset Type","Make Model","Agency Asset ID","Agency_Asset_Parent_ID","Line/Division","Branch/Garage","Segment/Route","Start","End","Latitude","Longitude","Address","User Defined Field 1","User Defined Field 2","User Defined Field 3","User Defined Field 4","Dept Asset Owner","Agency Project Number","Agency Project Category","Agency Project Desc","Notes"]
[null,"9999","Metroville Transportation Authority","CR","Rail Commuter Rail",21221,"Facilities","Buildings","Maintenance","Rail Commuter Rail",1,"Each",1966,false,2001,0.1,30000000,"","Normal","",0,0,60,"","Existing","","","30-675-865","","Systemwide","","","","","","","","","","","","","MJW-GW-BT-TT-3.5-K","","",""]
[null,"9999","Metroville Transportation Authority","CR","Rail Commuter Rail",21221,"Facilities","Buildings","Maintenance","Rail Commuter Rail",1,"Each",1966,false,2001,0.1,30000000,"","Normal","",0,0,60,"","Existing","","","30-675-865","","Systemwide","","","","","","","","","","","","","MJW-GW-BT-TT-3.5-K","","",""]
[null,"9999","Metroville Transportation Authority","CR","Rail Commuter Rail",23311,"Facilities","Equipment","Maintenance","Rail Commuter Rail",1,"Each",2011,false,2000,0.1,6254086.7659999998,"","Normal","",0,0,15,"","Existing","","","06-599-166","","South","","","","","","","","","","","","","WVE-ES-OCS0195-FD-JA-2.2-Y","","",""]
[null,"9999","Metroville Transportation Authority","CR","Rail Commuter Rail",23311,"Facilities","Equipment","Maintenance","Rail Commuter Rail",5,"Each",1966,false,1955,0.1,1006537.4689,"","Normal","",0,0,15,"","Existing","","","27-650-648","","North","","","","","","","","","","","","","CRS1-GW-BT-TT-10.1-K","","",""]
[null,"9999","Metroville Transportation Authority","CR","Grade Crossing Commuter Rail",10211,"Guideway Elements","Guideway","At Grade-In-Street","Grade Crossing Commuter Rail",41,"Ea",2023,false,2013,0,353722.0404,"","Normal","",0,0,18,"","Existing","","","48-450-217","","North Line","North","","","","","","","","","","","","WVE-ES-OCS0195-FD-JA-2.2-Y","","",""]
[null,"9999","Metroville Transportation Authority","CR","Grade Crossing Commuter Rail",10211,"Guideway Elements","Guideway","At Grade-In-Street","Grade Crossing Commuter Rail",1750,"LF",2019,false,2013,0,187.8432,"","Normal","",0,0,18,"","Existing","","","93-280-382","","South Line","North","","","","","","","","","","","","WVE-ES-OCS0195-FD-JA-2.2-Y","","",""]
[null,"9999","Metroville Transportation Authority","CR","Grade Crossing Commuter Rail",10211,"Guideway Elements","Guideway","At Grade-In-Street","Grade Crossing Commuter Rail",4,"Ea",2019,false,2013,0,188.53380000000001,"","Normal","",0,0,18,"","Existing","","","90-187-567","","North Line","Central","","","","","","","","","","","","CRN1-GW-BT-TT-32.7-K","","",""]
[null,"9999","Metroville Transportation Authority","CR","Grade Crossing Commuter Rail",10211,"Guideway Elements","Guideway","At Grade-In-Street","Grade Crossing Commuter Rail",1,"LF",2022,false,2013,0,493088.52429999999,"","Normal","",0,0,18,"","Existing","","","50-638-241","","North Line","","","","","","","","","","","","","CRS2-GW-BT-TT-30.1-K","","",""]
[null,"9999","Metroville Transportation Authority","CR","Grade Crossing Commuter Rail",10211,"Guideway Elements","Guideway","At Grade-In-Street","Grade Crossing Commuter Rail",72,"LF",2010,false,2013,0,187.9967,"","Normal","",0,0,18,"","Existing","","","02-717-323","","South Line","","","","","","","","","","","","","CRN1-GW-BT-TT-32.7-K","","",""]
[null,"9999","Metroville Transportation Authority","CR","Bridge Commuter Rail",10331,"Guideway Elements","Guideway","Elevated Structure","Bridge Commuter Rail",500,"LF",2019,false,2013,0,34992.4084,"","Normal","",0,0,100,"","Existing","","","15-381-940","","South Line","Central","","","","","","","","","","","","CRN1-GW-BT-TT-19.1-K","","",""]
[null,"9999","Metroville Transportation Authority","CR","Bridge Commuter Rail",10331,"Guideway Elements","Guideway","Elevated Structure","Bridge Commuter Rail",700,"LF",2019,false,2013,0,34992.4084,"","Normal","",0,0,100,"","Existing","","","15-381-940","","North Line","South","","","","","","","","","","","","CRS2-GW-BT-TT-0.1-K","","",""]
[null,"9999","Metroville Transportation Authority","CR","Bridge Commuter Rail",10331,"Guideway Elements","Guideway","Elevated Structure","Bridge Commuter Rail",850,"LF",2019,false,2013,0,34992.4084,"","Normal","",0,0,100,"","Existing","","","15-381-940","","South Line","South","","","","","","","","","","","","WVE-ES-OCS0195-FD-JA-2.2-Y","","",""]
[null,"9999","Metroville Transportation Authority","CR","Fencing",12100,"Guideway Elements","Special Structures","Fencing","-",132165,"LF",2019,false,2013,0,109.73099999999999,"","Normal","",0,0,25,"","Existing","","","33-329-903","","North Line","North","","","","","","","","","","","","CRN2-GW-BT-TT-1.6-K","","",""]
[null,"9999","Metroville Transportation Authority","CR","Retaining Walls",12200,"Guideway Elements","Special Structures","Retaining Walls","-",4799.22,"LF",2019,false,2013,0,34.247799999999998,"","Normal","",0,0,40,"","Existing","","","80-967-750","","South Line","North","","","","","","","","","","","","MJW-GW-BT-TT-6.2-K","","",""]
[null,"9999","Metroville Transportation Authority","CR","Curve",11202,"Guideway Elements","Trackwork","Ballasted","Curve",67930.2,"LF",2023,false,2013,0,469.68400000000003,"","Normal","",0,0,20,"","Existing","","","88-518-568","","North Line","Central","A-00978","","","","","","","","","","","CRN1-GW-BT-CT-2.8-K","","",""]
[null,"9999","Metroville Transportation Authority","CR","Curve",11202,"Guideway Elements","Trackwork","Ballasted","Curve",90490.43,"LF",2019,false,2013,0,309.84899999999999,"","Normal","",0,0,20,"","Existing","","","74-059-854","","South Line","Central","C-09874","","","","","","","","","","","WVE-ES-OCS0195-FD-JA-2.2-Y","","",""]
[null,"9999","Metroville Transportation Authority","CR","Curve",11202,"Guideway Elements","Trackwork","Ballasted","Curve",128.08000000000001,"LF",1911,false,2013,0,468.02069999999998,"","Normal","",0,0,20,"","Existing","","","25-681-400","","North Line","South","C-05198","","","","","","","","","","","CRS1-GW-BT-CT-10.1-K","","",""]
[null,"9999","Metroville Transportation Authority","CR","Curve",11202,"Guideway Elements","Trackwork","Ballasted","Curve",1,"Ea",2019,false,2013,0,45441.491499999996,"","Normal","",0,0,20,"","Existing","","","84-389-334","","South Line","South","B-02890","","","","","","","","","","","CRS2-GW-BT-CT-44.0-K","","",""]
[null,"9999","Metroville Transportation Authority","CR","Platform Curved",11205,"Guideway Elements","Trackwork","Ballasted","Platform Curved",1695.45,"LF",2019,false,2013,0,467.60980000000001,"","Normal","",0,0,36,"","Existing","","","31-801-257","","North Line","North","C-00585","","","","","","","","","","","CRS1-GW-BT-CT-22.4-K","","",""]
[null,"9999","Metroville Transportation Authority","CR","Platform Tangent",11204,"Guideway Elements","Trackwork","Ballasted","Platform Tangent",5395.99,"LF",2019,false,2013,0,232.9308,"","Normal","",0,0,10,"","Existing","","","09-031-138","","South Line","North","C-08771","","","","","","","","","","","WVE-GW-BT-CT-4.6-K","","",""]
[null,"9999","Metroville Transportation Authority","CR","Tangent",11201,"Guideway Elements","Trackwork","Ballasted","Tangent",162262.20000000001,"LF",2019,false,2013,0,190.6722,"","Normal","",0,0,40,"","Existing","","","41-115-876","","North Line","Central","B-01758","","","","","","","","","","","WVW-GW-BT-CT-3.1-K","","",""]
[null,"9999","Metroville Transportation Authority","CR","Tangent",11201,"Guideway Elements","Trackwork","Ballasted","Tangent",202413.6,"LF",2023,false,2013,0,119.4139,"","Normal","",0,0,40,"","Existing","","","02-626-862","","South Line","Central","B-00170","","","","","","","","","","","CRS2-GW-BT-CT-30.4-K","","",""]
[null,"9999","Metroville Transportation Authority","CR","Tangent",11201,"Guideway Elements","Trackwork","Ballasted","Tangent",6,"Ea",2019,false,2013,0,49953.412600000003,"","Normal","",0,0,40,"","Existing","","","79-670-024","","North Line","South","B-03928","","","","","","","","","","","WVE-ES-OCS0195-FD-JA-2.2-Y","","",""]
[null,"9999","Metroville Transportation Authority","CR","At-Grade Crossings",11303,"Guideway Elements","Trackwork","Embedded","At-Grade Crossings",2343.39,"LF",2019,false,2013,0,292.93310000000002,"","Normal","",0,0,20,"","Existing","","","64-948-292","","South Line","South","C-01411","","","","","","","","","","","WVE-ES-OCS0195-FD-JA-2.2-Y","","",""]
[null,"9999","Metroville Transportation Authority","CR","Special",11400,"Guideway Elements","Trackwork","Special","-",2903,"LF",2019,false,2013,0,466.2681,"","Normal","",0,0,20,"","Existing","","","66-297-441","","North Line","North","A-00216","","","","","","","","","","","CRS1-GW-BT-CT-29.6-K","","",""]
[null,"9999","Metroville Transportation Authority","CR","Special",11400,"Guideway Elements","Trackwork","Special","-",34,"Ea",2019,false,2013,0,12796.415000000001,"","Normal","",0,0,20,"","Existing","","","45-849-739","","South Line","North","B-04731","","","","","","","","","","","CRN1-GW-BT-CT-35.7-K","","",""]
[null,"9999","Metroville Transportation Authority","CR","Special",11400,"Guideway Elements","Trackwork","Special","-",1,"Ea",1911,false,2013,0,116.02079999999999,"","Normal","",0,0,20,"","Existing","","","26-134-619","","North Line","Central","B-00386","","","","","","","","","","","WVE-ES-OCS0195-FD-JA-2.2-Y","","",""]
[null,"9999","Metroville Transportation Authority","CR","Ballasted Diamond Crossover",11403,"Guideway Elements","Trackwork","Special","Ballasted Diamond Crossover",1,"Ea",2019,false,2013,0,25137.846300000001,"","Normal","",0,0,32,"","Existing","","","31-740-789","","North Line","North","B-06009","","","","","","","","","","","WVE-ES-OCS0195-FD-JA-2.2-Y","","",""]
[null,"9999","Metroville Transportation Authority","CR","Ballasted Single Crossover",11406,"Guideway Elements","Trackwork","Special","Ballasted Single Crossover",1,"Ea",2019,false,2013,0,87015.621899999998,"","Normal","",0,0,32,"","Existing","","","03-382-032","","South Line","North","B-00954","","","","","","","","","","","WVE-ES-OCS0195-FD-JA-2.2-Y","","",""]
[null,"9999","Metroville Transportation Authority","CR","Diamond Crossover",11401,"Guideway Elements","Trackwork","Special","Diamond Crossover",1,"Ea",2019,false,2013,0,37706.769500000002,"","Normal","",0,0,32,"","Existing","","","02-058-951","","North Line","Central","B-02396","","","","","","","","","","","APW-GW-ET-TT-1.1-K","","",""]
[null,"9999","Metroville Transportation Authority","CR","Single Crossover",11404,"Guideway Elements","Trackwork","Special","Single Crossover",3,"EA",2023,false,2013,0,87015.621899999998,"","Normal","",0,0,32,"","Existing","","","75-048-891","","South Line","Central","A-02887","","","","","","","","","","","APE-GW-ET-TT-1.5-K","","",""]
[null,"9999","Metroville Transportation Authority","CR","Single Crossover",11404,"Guideway Elements","Trackwork","Special","Single Crossover",2,"Ea",2019,false,2013,0,24654.426200000002,"","Normal","",0,0,32,"","Existing","","","67-592-461","","North Line","South","B-00386","","","","","","","","","","","UNW-GW-ET-TT-2.6-K","","",""]
[null,"9999","Metroville Transportation Authority","CR","Turnout",11407,"Guideway Elements","Trackwork","Special","Turnout",65,"Ea",2023,false,2013,0,35698.716699999997,"","Normal","",0,0,42,"","Existing","","","92-490-806","","South Line","South","B-02194","","","","","","","","","","","UNE-GW-ET-TT-2.6-K","","",""]
[null,"9999","Metroville Transportation Authority","CR","Turnout",11407,"Guideway Elements","Trackwork","Special","Turnout",1,"Ea",2019,false,2013,0,25137.846300000001,"","Normal","",0,0,32,"","Existing","","","20-606-741","","North Line","North","B-05446","","","","","","","","","","","APW-GW-BT-TT-5.4-K","","",""]
[null,"9999","Metroville Transportation Authority","CR","Park & Ride",41603,"Stations","Access","Parking","Park & Ride",1853500,"Each",2019,false,2008,0.1,23.236499999999999,"","Normal","",0,0,40,"","Existing","","","07-593-302","","South Line","","","","","","","","","","","","","WVE-ES-OCS0195-FD-JA-2.2-Y","","",""]
[null,"9999","Metroville Transportation Authority","CR","Park & Ride",41603,"Stations","Access","Parking","Park & Ride",1853500,"Each",2019,false,2008,0.1,23.236499999999999,"","Normal","",0,0,40,"","Existing","","","07-593-302","","North Line","","","","","","","","","","","","","UNW-GW-ET-TT-2.4-K","","",""]
[null,"9999","Metroville Transportation Authority","CR","Roadway Access",41650,"Stations","Access","Roadway Access","-",1,"Each",2019,false,2008,0.1,1113850.4606000001,"","Normal","",0,0,20,"","Existing","","","37-163-158","","South Line","","","","","","","","","","","","","UNW-GW-ET-CT-0.9-K","","",""]
[null,"9999","Metroville Transportation Authority","CR","Commuter Rail",41001,"Stations","Complete Station","Commuter Rail","-",7,"Each",2019,false,2008,0.1,2598984.4081999999,"","Normal","",0,0,60,"","Existing","","","90-661-470","","North Line","North","","","","","","","","","","","","APW-GW-ET-CT-1.2-K","","",""]
[null,"9999","Metroville Transportation Authority","CR","Commuter Rail",41001,"Stations","Complete Station","Commuter Rail","-",7,"Each",2019,false,2008,0.1,2598984.4081999999,"","Normal","",0,0,60,"","Existing","","","90-661-470","","South Line","North","","","","","","","","","","","","WVE-ES-OCS0195-FD-JA-2.2-Y","","",""]
[null,"9999","Metroville Transportation Authority","CR","Commuter Rail",41001,"Stations","Complete Station","Commuter Rail","-",4,"Each",2019,false,2008,0.1,2598984.4081999999,"","Normal","",0,0,60,"","Existing","","","90-661-470","","North Line","Central","","","","","","","","","","","","WVE-ES-OCS0195-FD-JA-2.2-Y","","",""]
[null,"9999","Metroville Transportation Authority","CR","Commuter Rail",41001,"Stations","Complete Station","Commuter Rail","-",4,"Each",2019,false,2008,0.1,2598984.4081999999,"","Normal","",0,0,60,"","Existing","","","90-661-470","","South Line","Central","","","","","","","","","","","","APW-GW-BT-CT-3.5-K","","",""]
[null,"9999","Metroville Transportation Authority","CR","Commuter Rail",41001,"Stations","Complete Station","Commuter Rail","-",9,"Each",2019,false,2008,0.1,2598984.4081999999,"","Normal","",0,0,60,"","Existing","","","90-661-470","","North Line","South","","","","","","","","","","","","WVE-ES-OCS0195-FD-JA-2.2-Y","","",""]
[null,"9999","Metroville Transportation Authority","CR","Commuter Rail",41001,"Stations","Complete Station","Commuter Rail","-",9,"Each",2019,false,2008,0.1,2598984.4081999999,"","Normal","",0,0,60,"","Existing","","","90-661-470","","South Line","South","","","","","","","","","","","","CRS1-GW-BT-GCP-0.7-K","","",""]
[null,"9999","Metroville Transportation Authority","CR","Fare Control System Commuter Rail",35121,"Systems","Revenue Collection","In-Station","Fare Control System Commuter Rail",37,"Each",2020,false,2009,0.1,3943.9625999999998,"","Normal","",0,0,20,"","Existing","","","03-322-124","","Red Line","West","","","","","","","","","","","","WVW-GW-BT-GCP-1.6-K","","",""]
[null,"9999","Metroville Transportation Authority","CR","System Commuter Rail",35111,"Systems","Revenue Collection","In-Station","System Commuter Rail",17,"Each",2019,false,2008,0.1,56784.533300000003,"","Normal","",0,0,15,"","Existing","","","63-550-806","","Yellow Line","Central","","","","","","","","","","","","MJW-GW-BT-GCP-8.0-K","","",""]
[null,"9999","Metroville Transportation Authority","CR","Commuter Rail",31001,"Systems","Train Control","Commuter Rail","-",83,"Ea",2023,false,2013,0,198027.51980000001,"","Normal","",0,0,40,"","Existing","","","45-414-365","","North Line","North","","","","","","","","","","","","WVW-GW-BT-ST-HSR-1.2-K","","",""]
[null,"9999","Metroville Transportation Authority","CR","Commuter Rail",31001,"Systems","Train Control","Commuter Rail","-",20,"Ea",2019,false,2013,0,117110.2267,"","Normal","",0,0,40,"","Existing","","","32-653-690","","South Line","North","","","","","","","","","","","","UNE-GW-ET-CT-PCR-0.0-K","","",""]
[null,"9999","Metroville Transportation Authority","CR","Commuter Rail",31001,"Systems","Train Control","Commuter Rail","-",22,"Ea",2019,false,2013,0,117110.2267,"","Normal","",0,0,40,"","Existing","","","32-653-690","","North Line","Central","","","","","","","","","","","","MJE-GW-BT-ST-SM1A-3.5-K","","",""]
[null,"9999","Metroville Transportation Authority","CR","Commuter Rail",31001,"Systems","Train Control","Commuter Rail","-",18,"Ea",2019,false,2013,0,117110.2267,"","Normal","",0,0,40,"","Existing","","","32-653-690","","South Line","Central","","","","","","","","","","","","NSE-GW-ET-ST-SM9402A-5.6-C","","",""]
[null,"9999","Metroville Transportation Authority","CR","Commuter Rail",31001,"Systems","Train Control","Commuter Rail","-",21,"Ea",2019,false,2013,0,117110.2267,"","Normal","",0,0,40,"","Existing","","","32-653-690","","North Line","South","","","","","","","","","","","","MJE-GW-BT-ST-GR-2.4-K","","",""]
[null,"9999","Metroville Transportation Authority","CR","Commuter Rail",31001,"Systems","Train Control","Commuter Rail","-",20,"Ea",2019,false,2013,0,117110.2267,"","Normal","",0,0,40,"","Existing","","","32-653-690","","South Line","South","","","","","","","","","","","","APE-GW-ET-ST-HSR-2.4-K","","",""]
[null,"9999","Metroville Transportation Authority","CR","Interlockings",31500,"Systems","Train Control","Interlockings","-",120,"Ea",2019,false,2013,0,362565.09139999998,"","Normal","",0,0,40,"","Existing","","","83-084-975","","North Line","North","","","","","","","","","","","","MJW-GW-BT-GT-1.2-K","","",""]
[null,"9999","Metroville Transportation Authority","CR","Interlockings",31500,"Systems","Train Control","Interlockings","-",88,"Ea",2023,false,2013,0,362565.09139999998,"","Normal","",0,0,40,"","Existing","","","11-417-976","","South Line","North","","","","","","","","","","","","WVE-GW-BT-ST-HSR-2.4-K","","",""]
[null,"9999","Metroville Transportation Authority","CR","Commuter Rail",31401,"Systems","Train Control","Roadway Crossings","Commuter Rail",183,"Ea",2023,false,2013,0,153215.12059999999,"","Normal","",0,0,40,"","Existing","","","35-484-401","","North Line","North","","","","","","","","","","","","WVE-GW-ET-ST-HSR-3.6-K","","",""]
[null,"9999","Metroville Transportation Authority","CR","Commuter Rail",31401,"Systems","Train Control","Roadway Crossings","Commuter Rail",131,"Ea",2019,false,2013,0,103326.43829999999,"","Normal","",0,0,40,"","Existing","","","72-014-031","","South Line","North","","","","","","","","","","","","WV-GW-BT-ST-SXO-1.2-K","","",""]
[null,"9999","Metroville Transportation Authority","CR","Drainage",36200,"Systems","Utilities","Drainage","-",761,"Ea",2019,false,2013,0,43196.541799999999,"","Normal","",0,0,45,"","Existing","","","08-967-864","","North Line","North","","","","","","","","","","","","CRS2-GW-BT-ST-TO-14.2-K","","",""]
[null,"9999","Metroville Transportation Authority","CR","Drainage",36200,"Systems","Utilities","Drainage","-",56573.65,"LF",2019,false,2013,0,70.068799999999996,"","Normal","",0,0,45,"","Existing","","","53-155-713","","South Line","North","","","","","","","","","","","","MJE-GW-BT-ST-TO-8.1-K","","",""]
[null,"9999","Metroville Transportation Authority","CR","Passenger Car",51302,"Vehicles","Revenue Vehicles","Commuter Rail","Passenger Car",21,"EA",2019,false,2008,0.1,2369142.2496000002,"","Normal","",0,0,40,"","Existing","","","65-430-221","","North Line","","","","","","","","","","","","","CRS2-GW-BT-ST-SM-T146-38.4-K","","",""]
[null,"9999","Metroville Transportation Authority","CR","Passenger Car",51302,"Vehicles","Revenue Vehicles","Commuter Rail","Passenger Car",15,"EA",2019,false,2008,0.1,2178196.4564,"","Normal","",0,0,40,"","Existing","","","39-890-800","","South Line","","","","","","","","","","","","","CRS1-GW-BT-ST-SM-T330-2.8-K","","",""]
[null,"9999","Metroville Transportation Authority","CR","Passenger Car",51302,"Vehicles","Revenue Vehicles","Commuter Rail","Passenger Car",25,"EA",2021,false,2010,0.1,282797.90600000002,"","Normal","",0,0,40,"","Existing","","","19-165-379","","North Line","","","","","","","","","","","","","WVE-ES-OCS0195-FD-JA-2.2-Y","","",""]
[null,"9999","Metroville Transportation Authority","CR","Passenger Car",51302,"Vehicles","Revenue Vehicles","Commuter Rail","Passenger Car",1,"EA",2023,false,2012,0.1,2634380.1601,"","Normal","",0,0,40,"","Existing","","","45-997-334","","South Line","","","","","","","","","","","","","CRS2-GW-BT-ST-TO-43.1-K","","",""]
[null,"9999","Metroville Transportation Authority","CR","Passenger Car",51302,"Vehicles","Revenue Vehicles","Commuter Rail","Passenger Car",1,"EA",2023,false,2012,0.1,2209480.1342000002,"","Normal","",0,0,40,"","Existing","","","17-859-419","","North Line","","","","","","","","","","","","","CRS2-GW-BT-ST-TO-27.5-K","","",""]
[null,"9999","Metroville Transportation Authority","CR","Revenue Locomotive",51301,"Vehicles","Revenue Vehicles","Commuter Rail","Revenue Locomotive",17,"EA",2019,false,2008,0.1,2620824.6132999999,"","Normal","",0,0,40,"","Existing","","","67-922-640","","South Line","","","","","","","","","","","","","CRN1-GW-FE-26.7-K","","",""]
[null,"9999","Metroville Transportation Authority","CR","Revenue Locomotive",51301,"Vehicles","Revenue Vehicles","Commuter Rail","Revenue Locomotive",1,"EA",2023,false,2012,0.1,2804340.1704000002,"","Normal","",0,0,40,"","Existing","","","05-286-700","","South Line","","","","","","","","","","","","","CRN1-GW-FE-11.9-K","","",""]
[null,"9999","Metroville Transportation Authority","DR","Bus (<30 ft)",51906,"Vehicles","Revenue Vehicles","Bus","Bus (<30 ft)",1,"Each",2009,false,2008,0.1,89108.036900000006,"","Normal","",0,0,6,"","Existing","","","61-265-967","","West","Brothford","","","","","","","","","","","","WVE-ES-OCS0195-FD-JA-2.2-Y","","",""]
[null,"9999","Metroville Transportation Authority","DR","Automobile",52301,"Vehicles","Revenue Vehicles","Vans, Cutaways and Autos","Automobile",56,"Each",2018,false,2004,0.1,90882.547300000006,"","Normal","",0,0,5,"","Existing","","","29-246-349","","South","Archer's Line","","","","","","","","","","","","","","",""]
[null,"9999","Metroville Transportation Authority","DR","Medium-Duty Van",52523,"Vehicles","Revenue Vehicles","Vans, Cutaways and Autos","Medium-Duty Van",46,"Each",2019,false,2010,0.1,89799.042000000001,"","Normal","",0,0,5,"","Existing","","","65-210-221","","North","Wingston","","","","","","","","","","","","","","",""]
[null,"9999","Metroville Transportation Authority","DR","Medium-Duty Van",52523,"Vehicles","Revenue Vehicles","Vans, Cutaways and Autos","Medium-Duty Van",32,"Each",2018,false,2010,0.1,89367.315799999997,"","Normal","",0,0,5,"","Existing","","","36-064-427","","North","Wingston","","","","","","","","","","","","","","",""]
[null,"9999","Metroville Transportation Authority","DR","Medium-Duty Van",52523,"Vehicles","Revenue Vehicles","Vans, Cutaways and Autos","Medium-Duty Van",30,"Each",2020,false,2010,0.1,90029.295899999997,"","Normal","",0,0,5,"","Existing","","","79-012-477","","North","Wingston","","","","","","","","","","","","","","",""]
[null,"9999","Metroville Transportation Authority","DR","Medium-Duty Van",52523,"Vehicles","Revenue Vehicles","Vans, Cutaways and Autos","Medium-Duty Van",21,"Each",2014,false,2010,0.1,90785.844599999997,"","Normal","",0,0,5,"","Existing","","","94-182-822","","West","Brothford","","","","","","","","","","","","","","",""]
[null,"9999","Metroville Transportation Authority","DR","Medium-Duty Van",52523,"Vehicles","Revenue Vehicles","Vans, Cutaways and Autos","Medium-Duty Van",20,"Each",2013,false,2010,0.1,87381.375499999995,"","Normal","",0,0,5,"","Existing","","","87-877-488","","West","Brothford","","","","","","","","","","","","","","",""]
[null,"9999","Metroville Transportation Authority","DR","Medium-Duty Van",52523,"Vehicles","Revenue Vehicles","Vans, Cutaways and Autos","Medium-Duty Van",13,"Each",2015,false,2010,0.1,91658.785399999993,"","Normal","",0,0,5,"","Existing","","","05-445-358","","North","Wingston","","","","","","","","","","","","","","",""]
[null,"9999","Metroville Transportation Authority","DR","Medium-Duty Van",52523,"Vehicles","Revenue Vehicles","Vans, Cutaways and Autos","Medium-Duty Van",4,"Each",2016,false,2010,0.1,89367.315799999997,"","Normal","",0,0,5,"","Existing","","","00-089-686","","North","Wingston","","","","","","","","","","","","","","",""]
[null,"9999","Metroville Transportation Authority","DR","Medium-Duty Van",52523,"Vehicles","Revenue Vehicles","Vans, Cutaways and Autos","Medium-Duty Van",2,"Each",2011,false,2010,0.1,87381.375499999995,"","Normal","",0,0,5,"","Existing","","","82-272-336","","West","Brothford","","","","","","","","","","","","","","",""]
[null,"9999","Metroville Transportation Authority","DR","Medium-Duty Van",52523,"Vehicles","Revenue Vehicles","Vans, Cutaways and Autos","Medium-Duty Van",1,"Each",2006,false,2010,0.1,95325.136899999998,"","Normal","",0,0,5,"","Existing","","","41-096-100","","South","Archer's Line","","","","","","","","","","","","","","",""]
[null,"9999","Metroville Transportation Authority","DR","Medium-Duty Van",52523,"Vehicles","Revenue Vehicles","Vans, Cutaways and Autos","Medium-Duty Van",1,"Each",2008,false,2010,0.1,95325.136899999998,"","Normal","",0,0,5,"","Existing","","","90-831-652","","South","Archer's Line","","","","","","","","","","","","","","",""]
[null,"9999","Metroville Transportation Authority","LR","Rail Light Rail",21223,"Facilities","Buildings","Maintenance","Rail Light Rail",2,"Each",2009,false,1998,0.1,10247980.6106,"","Normal","",0,0,60,"","Existing","","","16-966-628","","Red Line","","","","","","","","","","","","","","","",""]
[null,"9999","Metroville Transportation Authority","LR","Rail Light Rail",21223,"Facilities","Buildings","Maintenance","Rail Light Rail",1,"Each",2014,false,2003,0.1,5703663.3134000003,"","Normal","",0,0,60,"","Existing","","","54-639-086","","Yellow Line","","","","","","","","","","","","","","","",""]
[null,"9999","Metroville Transportation Authority","LR","Rail Light Rail",21223,"Facilities","Buildings","Maintenance","Rail Light Rail",1,"Each",2018,false,2007,0.1,1076915.4508,"","Normal","",0,0,60,"","Existing","","","64-714-723","","Blue Line","","","","","","","","","","","","","","","",""]
[null,"9999","Metroville Transportation Authority","LR","Rail Light Rail",23313,"Facilities","Equipment","Maintenance","Rail Light Rail",3,"Each",2009,false,1998,0.1,1083119.9018999999,"","Normal","",0,0,15,"","Existing","","","08-350-032","","Systemwide","","","","","","","","","","","","","","","",""]
[null,"9999","Metroville Transportation Authority","LR","Grade Crossing",10210,"Guideway Elements","Guideway","At Grade-In-Street","Grade Crossing",27,"LF",2010,false,2013,0,501324.57079999999,"","Normal","",0,0,18,"","Existing","","","30-891-649","","Yellow Line","South","","","","","","","","","","","","","","",""]
[null,"9999","Metroville Transportation Authority","LR","Bridge",10330,"Guideway Elements","Guideway","Elevated Structure","Bridge",905.2,"LF",2010,false,2013,0,39519.541599999997,"","Normal","",0,0,100,"","Existing","","","41-691-130","","Blue Line","West","","","","","","","","","","","","","","",""]
[null,"9999","Metroville Transportation Authority","LR","Bridge",10330,"Guideway Elements","Guideway","Elevated Structure","Bridge",3,"Ea",2010,false,2013,0,248155.66250000001,"","Normal","",0,0,100,"","Existing","","","08-405-591","","Blue Line","East","","","","","","","","","","","","","","",""]
[null,"9999","Metroville Transportation Authority","LR","Bridge Light Rail",10333,"Guideway Elements","Guideway","Elevated Structure","Bridge Light Rail",600,"LF",2022,false,2013,0,39928.873699999996,"","Normal","",0,0,100,"","Existing","","","68-152-469","","Blue Line","West","","","","","","","","","","","","","","",""]
[null,"9999","Metroville Transportation Authority","LR","Bridge Light Rail",10333,"Guideway Elements","Guideway","Elevated Structure","Bridge Light Rail",900,"LF",2022,false,2013,0,39928.873699999996,"","Normal","",0,0,100,"","Existing","","","68-152-469","","Yellow Line","Central","","","","","","","","","","","","","","",""]
[null,"9999","Metroville Transportation Authority","LR","Bridge Light Rail",10333,"Guideway Elements","Guideway","Elevated Structure","Bridge Light Rail",796.75,"LF",2024,false,2013,0,12013.4527,"","Normal","",0,0,100,"","Existing","","","64-109-027","","Red Line","North","","","","","","","","","","","","","","",""]
[null,"9999","Metroville Transportation Authority","LR","Fencing",12100,"Guideway Elements","Special Structures","Fencing","-",34657.919999999998,"LF",2010,false,2013,0,30.686299999999999,"","Normal","",0,0,25,"","Existing","","","75-730-958","","Red Line","West","","","","","","","","","","","","","","",""]
[null,"9999","Metroville Transportation Authority","LR","Fencing",12100,"Guideway Elements","Special Structures","Fencing","-",6,"Ea",2010,false,2013,0,27393.8069,"","Normal","",0,0,25,"","Existing","","","04-665-628","","Yellow Line","East","","","","","","","","","","","","","","",""]
[null,"9999","Metroville Transportation Authority","LR","Fencing",12100,"Guideway Elements","Special Structures","Fencing","-",2,"Ea",2019,false,2013,0,7734.7218999999996,"","Normal","",0,0,25,"","Existing","","","02-357-851","","Red Line","Central","","","","","","","","","","","","","","",""]
[null,"9999","Metroville Transportation Authority","LR","Retaining Walls",12200,"Guideway Elements","Special Structures","Retaining Walls","-",1454.9,"LF",2016,false,2013,0,644.60450000000003,"","Normal","",0,0,40,"","Existing","","","05-151-446","","Blue Line","East","","","","","","","","","","","","","","",""]
[null,"9999","Metroville Transportation Authority","LR","Retaining Walls",12200,"Guideway Elements","Special Structures","Retaining Walls","-",1778,"LF",2010,false,2013,0,42.4148,"","Normal","",0,0,40,"","Existing","","","21-009-085","","Red Line","North","","","","","","","","","","","","","","",""]
[null,"9999","Metroville Transportation Authority","LR","Curve",11202,"Guideway Elements","Trackwork","Ballasted","Curve",52179.839999999997,"LF",2022,false,2013,0,481.75400000000002,"","Normal","",0,0,20,"","Existing","","","55-798-009","","Red Line","West","A-00559","","","","","","","","","","","","","",""]
[null,"9999","Metroville Transportation Authority","LR","Curve",11202,"Guideway Elements","Trackwork","Ballasted","Curve",37864.49,"LF",2010,false,2013,0,459.61599999999999,"","Normal","",0,0,20,"","Existing","","","72-926-734","","Yellow Line","Central","B-01253","","","","","","","","","","","","","",""]
[null,"9999","Metroville Transportation Authority","LR","Curve",11202,"Guideway Elements","Trackwork","Ballasted","Curve",6027,"LF",2024,false,2013,0,465.21269999999998,"","Normal","",0,0,20,"","Existing","","","38-847-630","","Red Line","North","C-09061","","","","","","","","","","","","","",""]
[null,"9999","Metroville Transportation Authority","LR","Curve",11202,"Guideway Elements","Trackwork","Ballasted","Curve",1267.47,"LF",2019,false,2013,0,480.57100000000003,"","Normal","",0,0,20,"","Existing","","","28-023-533","","Yellow Line","East","C-09874","","","","","","","","","","","","","",""]
[null,"9999","Metroville Transportation Authority","LR","Guarded",11203,"Guideway Elements","Trackwork","Ballasted","Guarded",10065.75,"LF",2022,false,2013,0,124.8682,"","Normal","",0,0,10,"","Existing","","","02-980-896","","Red Line","Central","C-08734","","","","","","","","","","","","","",""]
[null,"9999","Metroville Transportation Authority","LR","Guarded",11203,"Guideway Elements","Trackwork","Ballasted","Guarded",4016.88,"LF",2024,false,2013,0,120.3472,"","Normal","",0,0,10,"","Existing","","","98-227-997","","Blue Line","East","C-09874","","","","","","","","","","","","","",""]
[null,"9999","Metroville Transportation Authority","LR","Guarded",11203,"Guideway Elements","Trackwork","Ballasted","Guarded",1892,"LF",2010,false,2013,0,122.64360000000001,"","Normal","",0,0,10,"","Existing","","","90-247-100","","Red Line","South","A-07864","","","","","","","","","","","","","",""]
[null,"9999","Metroville Transportation Authority","LR","Platform Curved",11205,"Guideway Elements","Trackwork","Ballasted","Platform Curved",277.8,"LF",2016,false,2013,0,487.24849999999998,"","Normal","",0,0,36,"","Existing","","","29-937-917","","Yellow Line","Central","B-09077","","","","","","","","","","","","","",""]
[null,"9999","Metroville Transportation Authority","LR","Platform Curved",11205,"Guideway Elements","Trackwork","Ballasted","Platform Curved",87.789000000000001,"LF",2010,false,2013,0,484.58199999999999,"","Normal","",0,0,36,"","Existing","","","81-805-486","","Red Line","North","C-02992","","","","","","","","","","","","","",""]
[null,"9999","Metroville Transportation Authority","LR","Platform Curved",11205,"Guideway Elements","Trackwork","Ballasted","Platform Curved",37.159999999999997,"LF",2014,false,2013,0,494.34780000000001,"","Normal","",0,0,36,"","Existing","","","46-857-468","","Yellow Line","South","B-00170","","","","","","","","","","","","","",""]
[null,"9999","Metroville Transportation Authority","LR","Platform Curved",11205,"Guideway Elements","Trackwork","Ballasted","Platform Curved",24.49,"LF",2019,false,2013,0,513.22680000000003,"","Normal","",0,0,36,"","Existing","","","54-622-238","","Red Line","West","A-09167","","","","","","","","","","","","","",""]
[null,"9999","Metroville Transportation Authority","LR","Platform Curved",11205,"Guideway Elements","Trackwork","Ballasted","Platform Curved",17.25,"LF",2017,false,2013,0,493.22859999999997,"","Normal","",0,0,36,"","Existing","","","58-003-460","","Yellow Line","East","C-03006","","","","","","","","","","","","","",""]
[null,"9999","Metroville Transportation Authority","LR","Platform Tangent",11204,"Guideway Elements","Trackwork","Ballasted","Platform Tangent",11734.75,"LF",2010,false,2013,0,280.13010000000003,"","Normal","",0,0,10,"","Existing","","","78-698-603","","Red Line","Central","B-02211","","","","","","","","","","","","","",""]
[null,"9999","Metroville Transportation Authority","LR","Platform Tangent",11204,"Guideway Elements","Trackwork","Ballasted","Platform Tangent",6035.98,"LF",2014,false,2013,0,432.4846,"","Normal","",0,0,10,"","Existing","","","94-266-824","","Blue Line","East","A-06288","","","","","","","","","","","","","",""]
[null,"9999","Metroville Transportation Authority","LR","Platform Tangent",11204,"Guideway Elements","Trackwork","Ballasted","Platform Tangent",3865.56,"LF",2016,false,2013,0,350.16309999999999,"","Normal","",0,0,10,"","Existing","","","99-485-460","","Blue Line","West","C-01910","","","","","","","","","","","","","",""]
[null,"9999","Metroville Transportation Authority","LR","Platform Tangent",11204,"Guideway Elements","Trackwork","Ballasted","Platform Tangent",2878,"LF",2022,false,2013,0,251.9563,"","Normal","",0,0,10,"","Existing","","","04-823-309","","Yellow Line","Central","C-03759","","","","","","","","","","","","","",""]
[null,"9999","Metroville Transportation Authority","LR","Platform Tangent",11204,"Guideway Elements","Trackwork","Ballasted","Platform Tangent",1696.13,"LF",2024,false,2013,0,364.81740000000002,"","Normal","",0,0,10,"","Existing","","","07-819-296","","Yellow Line","East","A-04645","","","","","","","","","","","","","",""]
[null,"9999","Metroville Transportation Authority","LR","Platform Tangent",11204,"Guideway Elements","Trackwork","Ballasted","Platform Tangent",2432,"LF",2019,false,2013,0,230.5787,"","Normal","",0,0,10,"","Existing","","","82-200-100","","Yellow Line","South","B-09077","","","","","","","","","","","","","",""]
[null,"9999","Metroville Transportation Authority","LR","Platform Tangent",11204,"Guideway Elements","Trackwork","Ballasted","Platform Tangent",1492.75,"LF",2017,false,2013,0,317.36840000000001,"","Normal","",0,0,10,"","Existing","","","56-894-972","","Red Line","North","B-00170","","","","","","","","","","","","","",""]
[null,"9999","Metroville Transportation Authority","LR","Platform Tangent",11204,"Guideway Elements","Trackwork","Ballasted","Platform Tangent",1,"Ea",2024,false,2013,0,338.39409999999998,"","Normal","",0,0,10,"","Existing","","","18-369-386","","Red Line","South","B-08260","","","","","","","","","","","","","",""]
[null,"9999","Metroville Transportation Authority","LR","Tangent",11201,"Guideway Elements","Trackwork","Ballasted","Tangent",110067.4,"LF",2022,false,2013,0,114.193,"","Normal","",0,0,40,"","Existing","","","79-744-131","","Red Line","North","B-09077","","","","","","","","","","","","","",""]
[null,"9999","Metroville Transportation Authority","LR","Tangent",11201,"Guideway Elements","Trackwork","Ballasted","Tangent",82714.58,"LF",2010,false,2013,0,115.71980000000001,"","Normal","",0,0,40,"","Existing","","","68-381-742","","Blue Line","East","B-08969","","","","","","","","","","","","","",""]
[null,"9999","Metroville Transportation Authority","LR","Tangent",11201,"Guideway Elements","Trackwork","Ballasted","Tangent",2842.54,"LF",2019,false,2013,0,115.6451,"","Normal","",0,0,40,"","Existing","","","90-350-745","","Blue Line","West","B-00170","","","","","","","","","","","","","",""]
[null,"9999","Metroville Transportation Authority","LR","Tangent",11201,"Guideway Elements","Trackwork","Ballasted","Tangent",2387.16,"LF",2024,false,2013,0,117.45489999999999,"","Normal","",0,0,40,"","Existing","","","23-380-210","","Yellow Line","South","B-01876","","","","","","","","","","","","","",""]
[null,"9999","Metroville Transportation Authority","LR","Tangent",11201,"Guideway Elements","Trackwork","Ballasted","Tangent",419.79,"LF",2019,false,2013,0,115.1576,"","Normal","",0,0,40,"","Existing","","","94-993-839","","Red Line","Central","B-09077","","","","","","","","","","","","","",""]
[null,"9999","Metroville Transportation Authority","LR","Curve",11102,"Guideway Elements","Trackwork","Direct Fixation","Curve",1856.95,"LF",2022,false,2013,0,572.72640000000001,"","Normal","",0,0,20,"","Existing","","","03-199-644","","Yellow Line","Central","C-05198","","","","","","","","","","","","","",""]
[null,"9999","Metroville Transportation Authority","LR","Curve",11102,"Guideway Elements","Trackwork","Direct Fixation","Curve",170.47,"LF",2024,false,2013,0,567.16150000000005,"","Normal","",0,0,20,"","Existing","","","11-829-632","","Yellow Line","East","B-00405","","","","","","","","","","","","","",""]
[null,"9999","Metroville Transportation Authority","LR","Guarded",11103,"Guideway Elements","Trackwork","Direct Fixation","Guarded",2071.16,"LF",2022,false,2013,0,606.85429999999997,"","Normal","",0,0,10,"","Existing","","","84-678-846","","Red Line","West","B-00002","","","","","","","","","","","","","",""]
[null,"9999","Metroville Transportation Authority","LR","Tangent",11101,"Guideway Elements","Trackwork","Direct Fixation","Tangent",126.48,"LF",2024,false,2013,0,389.85489999999999,"","Normal","",0,0,40,"","Existing","","","51-822-253","","Red Line","South","C-01337","","","","","","","","","","","","","",""]
[null,"9999","Metroville Transportation Authority","LR","Tangent",11101,"Guideway Elements","Trackwork","Direct Fixation","Tangent",14.71,"LF",2022,false,2013,0,387.78769999999997,"","Normal","",0,0,40,"","Existing","","","89-411-195","","Red Line","North","B-09620","","","","","","","","","","","","","",""]
[null,"9999","Metroville Transportation Authority","LR","At-Grade Crossings",11303,"Guideway Elements","Trackwork","Embedded","At-Grade Crossings",84,"LF",2022,false,2013,0,506440.12760000001,"","Normal","",0,0,20,"","Existing","","","21-741-684","","Blue Line","West","B-01838","","","","","","","","","","","","","",""]
[null,"9999","Metroville Transportation Authority","LR","At-Grade Crossings",11303,"Guideway Elements","Trackwork","Embedded","At-Grade Crossings",2137.7600000000002,"LF",2010,false,2013,0,189.95249999999999,"","Normal","",0,0,20,"","Existing","","","49-182-278","","Blue Line","East","A-03338","","","","","","","","","","","","","",""]
[null,"9999","Metroville Transportation Authority","LR","Curve",11302,"Guideway Elements","Trackwork","Embedded","Curve",19100.900000000001,"LF",2014,false,2013,0,607.41030000000001,"","Normal","",0,0,20,"","Existing","","","50-565-309","","Yellow Line","East","C-06989","","","","","","","","","","","","","",""]
[null,"9999","Metroville Transportation Authority","LR","Curve",11302,"Guideway Elements","Trackwork","Embedded","Curve",21246.639999999999,"LF",2024,false,2013,0,500.56119999999999,"","Normal","",0,0,20,"","Existing","","","40-693-360","","Red Line","Central","C-04974","","","","","","","","","","","","","",""]
[null,"9999","Metroville Transportation Authority","LR","Curve",11302,"Guideway Elements","Trackwork","Embedded","Curve",14019.74,"LF",2016,false,2013,0,496.53199999999998,"","Normal","",0,0,20,"","Existing","","","10-146-402","","Red Line","West","C-09633","","","","","","","","","","","","","",""]
[null,"9999","Metroville Transportation Authority","LR","Curve",11302,"Guideway Elements","Trackwork","Embedded","Curve",8953.85,"LF",2010,false,2013,0,485.91180000000003,"","Normal","",0,0,20,"","Existing","","","53-847-195","","Yellow Line","South","A-04064","","","","","","","","","","","","","",""]
[null,"9999","Metroville Transportation Authority","LR","Curve",11302,"Guideway Elements","Trackwork","Embedded","Curve",4644.42,"LF",2019,false,2013,0,499.6139,"","Normal","",0,0,20,"","Existing","","","17-051-279","","Red Line","North","B-03083","","","","","","","","","","","","","",""]
[null,"9999","Metroville Transportation Authority","LR","Curve",11302,"Guideway Elements","Trackwork","Embedded","Curve",4814.38,"LF",2022,false,2013,0,481.97620000000001,"","Normal","",0,0,20,"","Existing","","","43-444-191","","Red Line","South","B-06040","","","","","","","","","","","","","",""]
[null,"9999","Metroville Transportation Authority","LR","Curve",11302,"Guideway Elements","Trackwork","Embedded","Curve",569.21,"LF",2014,false,2013,0,492.58390000000003,"","Normal","",0,0,20,"","Existing","","","69-632-217","","Yellow Line","Central","C-02088","","","","","","","","","","","","","",""]
[null,"9999","Metroville Transportation Authority","LR","Curve",11302,"Guideway Elements","Trackwork","Embedded","Curve",8,"Ea",2014,false,2013,0,495.50560000000002,"","Normal","",0,0,20,"","Existing","","","96-908-650","","Red Line","North","C-00386","","","","","","","","","","","","","",""]
[null,"9999","Metroville Transportation Authority","LR","Tangent",11301,"Guideway Elements","Trackwork","Embedded","Tangent",18621.62,"LF",2010,false,2013,0,342.67399999999998,"","Normal","",0,0,40,"","Existing","","","10-033-115","","Red Line","North","C-07278","","","","","","","","","","","","","",""]
[null,"9999","Metroville Transportation Authority","LR","Tangent",11301,"Guideway Elements","Trackwork","Embedded","Tangent",21721.75,"LF",2024,false,2013,0,244.80629999999999,"","Normal","",0,0,40,"","Existing","","","69-018-424","","Red Line","Central","C-04044","","","","","","","","","","","","","",""]
[null,"9999","Metroville Transportation Authority","LR","Tangent",11301,"Guideway Elements","Trackwork","Embedded","Tangent",7961.04,"LF",2016,false,2013,0,352.19479999999999,"","Normal","",0,0,40,"","Existing","","","32-712-614","","Red Line","West","A-04137","","","","","","","","","","","","","",""]
[null,"9999","Metroville Transportation Authority","LR","Tangent",11301,"Guideway Elements","Trackwork","Embedded","Tangent",5095.41,"LF",2014,false,2013,0,455.39350000000002,"","Normal","",0,0,40,"","Existing","","","23-153-623","","Yellow Line","East","C-07411","","","","","","","","","","","","","",""]
[null,"9999","Metroville Transportation Authority","LR","Tangent",11301,"Guideway Elements","Trackwork","Embedded","Tangent",3868.68,"LF",2019,false,2013,0,349.88069999999999,"","Normal","",0,0,40,"","Existing","","","83-997-204","","Red Line","North","A-05703","","","","","","","","","","","","","",""]
[null,"9999","Metroville Transportation Authority","LR","Tangent",11301,"Guideway Elements","Trackwork","Embedded","Tangent",3798.26,"LF",2014,false,2013,0,356.36750000000001,"","Normal","",0,0,20,"","Existing","","","35-626-888","","Yellow Line","South","B-00014","","","","","","","","","","","","","",""]
[null,"9999","Metroville Transportation Authority","LR","Tangent",11301,"Guideway Elements","Trackwork","Embedded","Tangent",3252.76,"LF",2014,false,2013,0,356.68430000000001,"","Normal","",0,0,32,"","Existing","","","40-069-837","","Yellow Line","Central","C-04430","","","","","","","","","","","","","",""]
[null,"9999","Metroville Transportation Authority","LR","Tangent",11301,"Guideway Elements","Trackwork","Embedded","Tangent",1289.2,"LF",2022,false,2013,0,367.47730000000001,"","Normal","",0,0,40,"","Existing","","","79-264-658","","Red Line","South","B-03181","","","","","","","","","","","","","",""]
[null,"9999","Metroville Transportation Authority","LR","Tangent",11301,"Guideway Elements","Trackwork","Embedded","Tangent",122.91,"LF",1911,false,2013,0,346.1148,"","Normal","",0,0,40,"","Existing","","","51-323-630","","Blue Line","West","C-01058","","","","","","","","","","","","","",""]
[null,"9999","Metroville Transportation Authority","LR","Tangent",11301,"Guideway Elements","Trackwork","Embedded","Tangent",10,"Ea",2014,false,2013,0,338.39409999999998,"","Normal","",0,0,41,"","Existing","","","47-936-868","","Blue Line","East","C-04386","","","","","","","","","","","","","",""]
[null,"9999","Metroville Transportation Authority","LR","Special",11400,"Guideway Elements","Trackwork","Special","-",44625.34,"LF",2022,false,2013,0,368.31729999999999,"","Normal","",0,0,20,"","Existing","","","07-357-137","","Yellow Line","Central","C-02916","","","","","","","","","","","","","",""]
[null,"9999","Metroville Transportation Authority","LR","Special",11400,"Guideway Elements","Trackwork","Special","-",9493.89,"LF",2014,false,2013,0,1527.5723,"","Normal","",0,0,20,"","Existing","","","05-526-999","","Blue Line","West","C-09012","","","","","","","","","","","","","",""]
[null,"9999","Metroville Transportation Authority","LR","Special",11400,"Guideway Elements","Trackwork","Special","-",16367.93,"LF",2024,false,2013,0,649.76099999999997,"","Normal","",0,0,20,"","Existing","","","45-887-091","","Yellow Line","East","C-02540","","","","","","","","","","","","","",""]
[null,"9999","Metroville Transportation Authority","LR","Special",11400,"Guideway Elements","Trackwork","Special","-",9483.93,"LF",2019,false,2013,0,1019.4511,"","Normal","",0,0,20,"","Existing","","","67-902-418","","Yellow Line","South","C-03868","","","","","","","","","","","CRS-TC-INT-SEH-1.1-S","","",""]
[null,"9999","Metroville Transportation Authority","LR","Special",11400,"Guideway Elements","Trackwork","Special","-",222.42,"LF",2010,false,2013,0,12606.0458,"","Normal","",0,0,20,"","Existing","","","00-681-738","","Blue Line","East","C-08479","","","","","","","","","","","CRS-TC-SH-SEH-0.7-S","","",""]
[null,"9999","Metroville Transportation Authority","LR","Special",11400,"Guideway Elements","Trackwork","Special","-",22,"Ea",2024,false,2013,0,92289.296000000002,"","Normal","",0,0,20,"","Existing","","","35-967-750","","Red Line","Central","B-04731","","","","","","","","","","","CRS-TC-GC-GCEH-31.1-S","","",""]
[null,"9999","Metroville Transportation Authority","LR","Special",11400,"Guideway Elements","Trackwork","Special","-",64,"Ea",2010,false,2013,0,24171.006099999999,"","Normal","",0,0,20,"","Existing","","","44-617-774","","Yellow Line","Central","C-05761","","","","","","","","","","","WV-TC-CC18992-1.5-Z","","",""]
[null,"9999","Metroville Transportation Authority","LR","Special",11400,"Guideway Elements","Trackwork","Special","-",51,"Ea",2022,false,2013,0,28436.477800000001,"","Normal","",0,0,20,"","Existing","","","87-532-510","","Red Line","South","B-03524","","","","","","","","","","","MJE-TC-CC115790-8.7-Z","","",""]
[null,"9999","Metroville Transportation Authority","LR","Special",11400,"Guideway Elements","Trackwork","Special","-",3038.56,"LF",2016,false,2013,0,445.46640000000002,"","Normal","",0,0,20,"","Existing","","","06-601-947","","Red Line","North","C-09538","","","","","","","","","","","MJE-TC-CC142759-3.6-Z","","",""]
[null,"9999","Metroville Transportation Authority","LR","Special",11400,"Guideway Elements","Trackwork","Special","-",16,"Ea",2014,false,2013,0,41090.710400000004,"","Normal","",0,0,20,"","Existing","","","64-162-081","","Yellow Line","East","B-04731","","","","","","","","","","","MJE-TC-CC135394-5.0-Z","","",""]
[null,"9999","Metroville Transportation Authority","LR","Special",11400,"Guideway Elements","Trackwork","Special","-",9,"Ea",2019,false,2013,0,48342.012199999997,"","Normal","",0,0,20,"","Existing","","","01-131-582","","Red Line","North","C-05937","","","","","","","","","","","AP-TC-TS-SHPE-1.0-Z","","",""]
[null,"9999","Metroville Transportation Authority","LR","Special",11400,"Guideway Elements","Trackwork","Special","-",2,"Ea",2016,false,2013,0,116020.82919999999,"","Normal","",0,0,20,"","Existing","","","70-509-099","","Red Line","West","B-03836","","","","","","","","","","","WV-TC-TS-SHP-3.4-Z","","",""]
[null,"9999","Metroville Transportation Authority","LR","Special",11400,"Guideway Elements","Trackwork","Special","-",1,"Ea",1911,false,2013,0,75413.539000000004,"","Normal","",0,0,20,"","Existing","","","44-717-926","","Yellow Line","South","B-00163","","","","","","","","","","","WV-TC-TS-SHP-3.6-Z","","",""]
[null,"9999","Metroville Transportation Authority","LR","Ballasted Single Crossover",11406,"Guideway Elements","Trackwork","Special","Ballasted Single Crossover",10,"Ea",2010,false,2013,0,290052.07309999998,"","Normal","",0,0,32,"","Existing","","","51-992-350","","Red Line","Central","B-05446","","","","","","","","","","","CRS-TC-GC-GCIEG-40.3-S","","",""]
[null,"9999","Metroville Transportation Authority","LR","Ballasted Single Crossover",11406,"Guideway Elements","Trackwork","Special","Ballasted Single Crossover",8,"Ea",1911,false,2013,0,87015.621899999998,"","Normal","",0,0,32,"","Existing","","","69-390-842","","Red Line","South","A-04836","","","","","","","","","","","CRS-TC-GC-GCI-28.2-S","","",""]
[null,"9999","Metroville Transportation Authority","LR","Ballasted Single Crossover",11406,"Guideway Elements","Trackwork","Special","Ballasted Single Crossover",2,"Ea",2022,false,2013,0,87015.621899999998,"","Normal","",0,0,32,"","Existing","","","41-685-075","","Blue Line","East","A-03440","","","","","","","","","","","CRS-TC-GC-FL-31.1-S","","",""]
[null,"9999","Metroville Transportation Authority","LR","Diamond Crossover",11401,"Guideway Elements","Trackwork","Special","Diamond Crossover",2,"Ea",2024,false,2013,0,149860.2378,"","Normal","",0,0,32,"","Existing","","","04-453-751","","Yellow Line","Central","C-08687","","","","","","","","","","","CRS-TC-GC-FLWG-41.7-S","","",""]
[null,"9999","Metroville Transportation Authority","LR","Diamond Crossover",11401,"Guideway Elements","Trackwork","Special","Diamond Crossover",2,"Ea",2019,false,2013,0,37706.769500000002,"","Normal","",0,0,32,"","Existing","","","60-613-887","","Red Line","North","B-05446","","","","","","","","","","","CRS-TC-GC-GMEG-41.7-S","","",""]
[null,"9999","Metroville Transportation Authority","LR","Diamond Crossover",11401,"Guideway Elements","Trackwork","Special","Diamond Crossover",2,"Ea",2022,false,2013,0,37706.769500000002,"","Normal","",0,0,32,"","Existing","","","95-022-597","","Yellow Line","South","B-04731","","","","","","","","","","","CRS-TC-GC-GCI-43.5-S","","",""]
[null,"9999","Metroville Transportation Authority","LR","Single Crossover",11404,"Guideway Elements","Trackwork","Special","Single Crossover",239.61,"LF",2022,false,2013,0,129121.85550000001,"","Normal","",0,0,32,"","Existing","","","74-884-112","","Blue Line","East","C-06156","","","","","","","","","","","MJ-TC-GC-6.1-Z","","",""]
[null,"9999","Metroville Transportation Authority","LR","Single Crossover",11404,"Guideway Elements","Trackwork","Special","Single Crossover",4,"Ea",2022,false,2013,0,132940.53349999999,"","Normal","",0,0,32,"","Existing","","","78-701-200","","Red Line","South","C-05418","","","","","","","","","","","APE-TC-GC-GM-G2-5.5-Z","","",""]
[null,"9999","Metroville Transportation Authority","LR","Single Crossover",11404,"Guideway Elements","Trackwork","Special","Single Crossover",4,"Ea",2019,false,2013,0,118437.9299,"","Normal","",0,0,32,"","Existing","","","06-322-457","","Red Line","North","A-01515","","","","","","","","","","","UNW-TC-GC-FL-G1-3.3-SG","","",""]
[null,"9999","Metroville Transportation Authority","LR","Single Crossover",11404,"Guideway Elements","Trackwork","Special","Single Crossover",2,"Ea",2024,false,2013,0,120855.03049999999,"","Normal","",0,0,32,"","Existing","","","77-721-610","","Red Line","Central","C-08820","","","","","","","","","","","WVE-ES-OCS0195-FD-JA-2.2-Y","","",""]
[null,"9999","Metroville Transportation Authority","LR","Turnout",11407,"Guideway Elements","Trackwork","Special","Turnout",7,"Ea",2010,false,2013,0,303864.07659999997,"","Normal","",0,0,42,"","Existing","","","43-141-882","","Yellow Line","Central","A-08016","","","","","","","","","","","MJW-TC-GC-FL-G1-6.9-Z","","",""]
[null,"9999","Metroville Transportation Authority","LR","Turnout",11407,"Guideway Elements","Trackwork","Special","Turnout",34,"Ea",2022,false,2013,0,39811.068899999998,"","Normal","",0,0,42,"","Existing","","","09-990-775","","Red Line","West","C-00235","","","","","","","","","","","MJ-TC-GC-2.8-Z","","",""]
[null,"9999","Metroville Transportation Authority","LR","Turnout",11407,"Guideway Elements","Trackwork","Special","Turnout",6,"Ea",1911,false,2013,0,25782.406500000001,"","Normal","",0,0,42,"","Existing","","","34-732-621","","Yellow Line","South","B-02307","","","","","","","","","","","MJW-TC-GC-FL-G4-3.5-Z","","",""]
[null,"9999","Metroville Transportation Authority","LR","Turnout",11407,"Guideway Elements","Trackwork","Special","Turnout",2,"Ea",2024,false,2013,0,58010.414599999996,"","Normal","",0,0,42,"","Existing","","","27-534-601","","Red Line","North","C-08816","","","","","","","","","","","WVE-ES-OCS0195-FD-JA-2.2-Y","","",""]
[null,"9999","Metroville Transportation Authority","LR","Turnout",11407,"Guideway Elements","Trackwork","Special","Turnout",1,"Ea",2019,false,2013,0,31905.727999999999,"","Normal","",0,0,42,"","Existing","","","91-748-105","","Yellow Line","East","C-07357","","","","","","","","","","","NSW-TC-GC-GM-G1-4.2-NSSL","","",""]
[null,"9999","Metroville Transportation Authority","LR","Stations",40000,"Stations","-","-","-",2.3140000000000001,"Each",2010,false,2013,0,7102974.9967999998,"","Normal","",0,0,60,"","Existing","","","43-078-155","","Red Line","North","","","","","","","","","","","","WVE-ES-OCS0195-FD-JA-2.2-Y","","",""]
[null,"9999","Metroville Transportation Authority","LR","Stations",41203,"Stations","Building","Light Rail","-",10,"Each",2019,false,2008,0.1,1598984.4081999999,"","Normal","",0,0,60,"","Existing","","","90-661-470","","Blue Line","West","","","","","","","","","","","","CRS-TC-INT-SHPB6-16.7-S","","",""]
[null,"9999","Metroville Transportation Authority","LR","Stations",41203,"Stations","Building","Light Rail","-",10,"Each",2019,false,2008,0.1,1598984.4081999999,"","Normal","",0,0,60,"","Existing","","","90-661-470","","Red Line","North","","","","","","","","","","","","MJW-TC-INT-SHPSSI1-0.1-Z","","",""]
[null,"9999","Metroville Transportation Authority","LR","Stations",41203,"Stations","Building","Light Rail","-",10,"Each",2019,false,2008,0.1,1598984.4081999999,"","Normal","",0,0,60,"","Existing","","","90-661-470","","Yellow Line","Central","","","","","","","","","","","","APW-TC-INT-SHP-9.1-Z","","",""]
[null,"9999","Metroville Transportation Authority","LR","Stations",41203,"Stations","Building","Light Rail","-",10,"Each",2019,false,2008,0.1,1598984.4081999999,"","Normal","",0,0,60,"","Existing","","","90-661-470","","Red Line","West","","","","","","","","","","","","APE-TC-INT-RSJ2-0.3-Z","","",""]
[null,"9999","Metroville Transportation Authority","LR","Stations",41203,"Stations","Building","Light Rail","-",11,"Each",2019,false,2008,0.1,1598984.4081999999,"","Normal","",0,0,60,"","Existing","","","90-661-470","","Yellow Line","South","","","","","","","","","","","","MJE-TC-INT-SM1A-1.4-Z","","",""]
[null,"9999","Metroville Transportation Authority","LR","Stations",41203,"Stations","Building","Light Rail","-",11,"Each",2019,false,2008,0.1,1598984.4081999999,"","Normal","",0,0,60,"","Existing","","","90-661-470","","Red Line","North","","","","","","","","","","","","CRN1-TC-INT-SHPR3-34.1-CL","","",""]
[null,"9999","Metroville Transportation Authority","LR","Stations",41203,"Stations","Building","Light Rail","-",10,"Each",2019,false,2008,0.1,1598984.4081999999,"","Normal","",0,0,60,"","Existing","","","90-661-470","","Yellow Line","East","","","","","","","","","","","","UNE-TC-INT-SMR1A-2.2-SG","","",""]
[null,"9999","Metroville Transportation Authority","LR","Stations",41203,"Stations","Building","Light Rail","-",10,"Each",2019,false,2008,0.1,1598984.4081999999,"","Normal","",0,0,60,"","Existing","","","90-661-470","","Blue Line","West","","","","","","","","","","","","CRN1-TC-INT-SHPI3-0.6-CL","","",""]
[null,"9999","Metroville Transportation Authority","LR","Light Rail",32003,"Systems","Electrification","-","Light Rail",28,"Ea",2010,false,2013,0,725.13019999999995,"","Normal","",0,0,40,"","Existing","","","92-313-054","","Yellow Line","South","","","","","","","","","","","","NSE-TC-INT-SHPSC8-10.9-NSSL","","",""]
[null,"9999","Metroville Transportation Authority","LR","Light Rail",32003,"Systems","Electrification","-","Light Rail",1,"Ea",2019,false,2013,0,1256.8923,"","Normal","",0,0,40,"","Existing","","","69-608-611","","Red Line","North","","","","","","","","","","","","CRS-TC-INT-SHPS6-1.1-S","","",""]
[null,"9999","Metroville Transportation Authority","LR","Light Rail",32003,"Systems","Electrification","-","Light Rail",4,"EA",2016,false,2013,0,195.7851,"","Normal","",0,0,40,"","Existing","","","17-805-430","","Red Line","West","","","","","","","","","","","","CRS-TC-INT-SHPU2-43.1-S","","",""]
[null,"9999","Metroville Transportation Authority","LR","Light Rail",32003,"Systems","Electrification","-","Light Rail",1,"Ea",2017,false,2013,0,193.36799999999999,"","Normal","",0,0,40,"","Existing","","","06-606-900","","Yellow Line","Central","","","","","","","","","","","","NSW-TC-INT-SHPY4-3.4-Z","","",""]
[null,"9999","Metroville Transportation Authority","LR","Light Rail",32103,"Systems","Electrification","Catenary","Light Rail",587263,"LF",2022,false,2013,0,27.9879,"","Normal","",0,0,40,"","Existing","","","88-745-770","","Red Line","North","","","","","","","","","","","","APE-TC-INT-SM11-0.1-Z","","",""]
[null,"9999","Metroville Transportation Authority","LR","Light Rail",32103,"Systems","Electrification","Catenary","Light Rail",355114.4,"LF",2010,false,2013,0,27.226199999999999,"","Normal","",0,0,40,"","Existing","","","65-317-334","","Yellow Line","East","","","","","","","","","","","","CRS-TC-INT-SMA11-30.7-S","","",""]
[null,"9999","Metroville Transportation Authority","LR","Light Rail",32103,"Systems","Electrification","Catenary","Light Rail",223888.1,"LF",2024,false,2013,0,27.637799999999999,"","Normal","",0,0,40,"","Existing","","","49-646-694","","Blue Line","West","","","","","","","","","","","","WVW-TC-INT-SHPW6-4.8-Z","","",""]
[null,"9999","Metroville Transportation Authority","LR","Light Rail",32103,"Systems","Electrification","Catenary","Light Rail",89172,"LF",2014,false,2013,0,28.190300000000001,"","Normal","",0,0,40,"","Existing","","","05-011-821","","Blue Line","East","","","","","","","","","","","","CRS-TC-INT-SHPV1-36.8-S","","",""]
[null,"9999","Metroville Transportation Authority","LR","Light Rail",32103,"Systems","Electrification","Catenary","Light Rail",57714,"LF",2016,false,2013,0,26.803599999999999,"","Normal","",0,0,40,"","Existing","","","88-198-372","","Red Line","Central","","","","","","","","","","","","NSW-ES-TPSS-IM-1.5M-IB-0.0-TP","","",""]
[null,"9999","Metroville Transportation Authority","LR","Light Rail",32103,"Systems","Electrification","Catenary","Light Rail",11056.2,"LF",2017,false,2013,0,25.3599,"","Normal","",0,0,40,"","Existing","","","25-201-967","","Blue Line","East","","","","","","","","","","","","IME-ES-OCS3189-LP-JAX-1.6-TP","","",""]
[null,"9999","Metroville Transportation Authority","LR","Light Rail",32103,"Systems","Electrification","Catenary","Light Rail",32,"Ea",2010,false,2013,0,1480.4740999999999,"","Normal","",0,0,40,"","Existing","","","21-887-343","","Red Line","South","","","","","","","","","","","","UNE-ES-TPSS-IM-1.5M-DCB-3.3-TP","","",""]
[null,"9999","Metroville Transportation Authority","LR","Light Rail",32103,"Systems","Electrification","Catenary","Light Rail",2,"Ea",2019,false,2013,0,3142.2307999999998,"","Normal","",0,0,40,"","Existing","","","99-587-927","","Blue Line","West","","","","","","","","","","","","","","",""]
[null,"9999","Metroville Transportation Authority","LR","Light Rail",32103,"Systems","Electrification","Catenary","Light Rail",2,"Ea",2017,false,2013,0,159.52860000000001,"","Normal","",0,0,39,"","Existing","","","73-488-938","","Yellow Line","Central","","","","","","","","","","","","","","",""]
[null,"9999","Metroville Transportation Authority","LR","Light Rail",32103,"Systems","Electrification","Catenary","Light Rail",1,"Ea",2022,false,2013,0,154.6944,"","Normal","",0,0,40,"","Existing","","","69-480-212","","Red Line","North","","","","","","","","","","","","","","",""]
[null,"9999","Metroville Transportation Authority","LR","Light Rail",32104,"Systems","Electrification","Catenary Poles","Light Rail",8704,"EA",2016,false,2013,0,4665.3595999999998,"","Normal","",0,0,40,"","Existing","","","25-122-028","","Yellow Line","South","","","","","","","","","","","","","","",""]
[null,"9999","Metroville Transportation Authority","LR","Light Rail",32104,"Systems","Electrification","Catenary Poles","Light Rail",5937,"EA",2014,false,2013,0,4559.799,"","Normal","",0,0,40,"","Existing","","","76-828-650","","Red Line","West","","","","","","","","","","","","","","",""]
[null,"9999","Metroville Transportation Authority","LR","Light Rail",32104,"Systems","Electrification","Catenary Poles","Light Rail",2553,"Ea",2010,false,2013,0,6059.32,"","Normal","",0,0,40,"","Existing","","","94-475-854","","Yellow Line","East","","","","","","","","","","","","","","",""]
[null,"9999","Metroville Transportation Authority","LR","Light Rail",32104,"Systems","Electrification","Catenary Poles","Light Rail",2730,"Ea",2022,false,2013,0,4604.0011999999997,"","Normal","",0,0,40,"","Existing","","","15-491-678","","Red Line","Central","","","","","","","","","","","","MJE-ES-OCS-X0X2-FP-6.1-Y","","",""]
[null,"9999","Metroville Transportation Authority","LR","Light Rail",32104,"Systems","Electrification","Catenary Poles","Light Rail",1166,"Ea",2024,false,2013,0,4643.4866000000002,"","Normal","",0,0,40,"","Existing","","","96-542-605","","Blue Line","East","","","","","","","","","","","","AP-ES-OCS-XOA8-FD-MW-5.2-Y","","",""]
[null,"9999","Metroville Transportation Authority","LR","Light Rail",32104,"Systems","Electrification","Catenary Poles","Light Rail",181660,"LF",2010,false,2013,0,26.6113,"","Normal","",0,0,40,"","Existing","","","43-932-560","","Blue Line","West","","","","","","","","","","","","NSE-ES-OCS-WR110-FD-MW-10.2-TP","","",""]
[null,"9999","Metroville Transportation Authority","LR","Light Rail",32104,"Systems","Electrification","Catenary Poles","Light Rail",277,"Ea",2019,false,2013,0,4537.5173999999997,"","Normal","",0,0,40,"","Existing","","","94-325-675","","Red Line","North","","","","","","","","","","","","WVE-ES-YS-WR5EC-4.7-Y","","",""]
[null,"9999","Metroville Transportation Authority","LR","Light Rail",32104,"Systems","Electrification","Catenary Poles","Light Rail",17553.599999999999,"LF",2017,false,2013,0,24.785699999999999,"","Normal","",0,0,40,"","Existing","","","47-541-755","","Yellow Line","South","","","","","","","","","","","","MJE-ES-OCS-WR29-2.0-Y","","",""]
[null,"9999","Metroville Transportation Authority","LR","AC Switchgear",32204,"Systems","Electrification","Substations","AC Switchgear",17,"Ea",2022,false,2013,0,1194332.0656999999,"","Normal","",0,0,40,"","Existing","","","78-344-450","","Red Line","North","","","","","","","","","","","","MJE-ES-OCS-WR7-8.7-Y","","",""]
[null,"9999","Metroville Transportation Authority","LR","AC Switchgear",32204,"Systems","Electrification","Substations","AC Switchgear",13,"Ea",2010,false,2013,0,1041212.5701,"","Normal","",0,0,40,"","Existing","","","23-790-909","","Red Line","West","","","","","","","","","","","","MJE-ES-OCS-X0X2-FP-6.1-Y","","",""]
[null,"9999","Metroville Transportation Authority","LR","AC Switchgear",32204,"Systems","Electrification","Substations","AC Switchgear",6,"Ea",2024,false,2013,0,1401918.3533000001,"","Normal","",0,0,40,"","Existing","","","07-447-002","","Yellow Line","Central","","","","","","","","","","","","MJ-ES-OCS1004-FD-TT-0.1-Y","","",""]
[null,"9999","Metroville Transportation Authority","LR","AC Switchgear",32204,"Systems","Electrification","Substations","AC Switchgear",3,"EA",2014,false,2013,0,1418032.3574000001,"","Normal","",0,0,40,"","Existing","","","73-778-281","","Red Line","North","","","","","","","","","","","","IM-ES-OCS3091-LP-TT-0.1-TP","","",""]
[null,"9999","Metroville Transportation Authority","LR","AC Switchgear",32204,"Systems","Electrification","Substations","AC Switchgear",2,"EA",2016,false,2013,0,1401918.3533000001,"","Normal","",0,0,40,"","Existing","","","58-897-339","","Yellow Line","East","","","","","","","","","","","","APE-ES-OCS230-FD-CA-5.5-Y","","",""]
[null,"9999","Metroville Transportation Authority","LR","AC Switchgear",32204,"Systems","Electrification","Substations","AC Switchgear",1,"Ea",2017,false,2013,0,966840.24369999999,"","Normal","",0,0,40,"","Existing","","","32-370-808","","Blue Line","West","","","","","","","","","","","","IMW-ES-OCS3103-LP-CA-0.3-TP","","",""]
[null,"9999","Metroville Transportation Authority","LR","DC Switchgear",32205,"Systems","Electrification","Substations","DC Switchgear",8,"Ea",2022,false,2013,0,2685667.3435,"","Normal","",0,0,40,"","Existing","","","07-175-861","","Blue Line","East","","","","","","","","","","","","NSE-ES-OCS2223-FD-CA-9.2-TP","","",""]
[null,"9999","Metroville Transportation Authority","LR","DC Switchgear",32205,"Systems","Electrification","Substations","DC Switchgear",8,"Ea",2022,false,2013,0,2685667.3435,"","Normal","",0,0,40,"","Existing","","","07-175-861","","Red Line","Central","","","","","","","","","","","","APE-ES-OCS060-FD-JA-1.2-Y","","",""]
[null,"9999","Metroville Transportation Authority","LR","DC Switchgear",32205,"Systems","Electrification","Substations","DC Switchgear",8,"Ea",2022,false,2013,0,2685667.3435,"","Normal","",0,0,40,"","Existing","","","07-175-861","","Blue Line","East","","","","","","","","","","","","WVW-ES-OCS0080-FD-JA-4.1-Y","","",""]
[null,"9999","Metroville Transportation Authority","LR","DC Switchgear",32205,"Systems","Electrification","Substations","DC Switchgear",8,"Ea",2022,false,2013,0,2685667.3435,"","Normal","",0,0,40,"","Existing","","","07-175-861","","Red Line","South","","","","","","","","","","","","WVE-ES-OCS0226-FD-CA-1.8-Y","","",""]
[null,"9999","Metroville Transportation Authority","LR","DC Switchgear",32205,"Systems","Electrification","Substations","DC Switchgear",7,"Ea",2010,false,2013,0,2788962.2414000002,"","Normal","",0,0,40,"","Existing","","","26-622-153","","Blue Line","West","","","","","","","","","","","","WVE-ES-OCS0195-FD-JA-2.2-Y","","",""]
[null,"9999","Metroville Transportation Authority","LR","DC Switchgear",32205,"Systems","Electrification","Substations","DC Switchgear",7,"Ea",2010,false,2013,0,2788962.2414000002,"","Normal","",0,0,40,"","Existing","","","26-622-153","","Yellow Line","Central","","","","","","","","","","","","UN-ES-OCS4005-LP-PF-0.0-OC","","",""]
[null,"9999","Metroville Transportation Authority","LR","DC Switchgear",32205,"Systems","Electrification","Substations","DC Switchgear",7,"Ea",2010,false,2013,0,2788962.2414000002,"","Normal","",0,0,40,"","Existing","","","26-622-153","","Red Line","North","","","","","","","","","","","","MJ-ES-OCS1021-FD-TT-0.1-Y","","",""]
[null,"9999","Metroville Transportation Authority","LR","DC Switchgear",32205,"Systems","Electrification","Substations","DC Switchgear",7,"Ea",2010,false,2013,0,2788962.2414000002,"","Normal","",0,0,40,"","Existing","","","26-622-153","","Yellow Line","South","","","","","","","","","","","","NSE-ES-OCS2259-FD-JA-8.3-TP","","",""]
[null,"9999","Metroville Transportation Authority","LR","DC Switchgear",32205,"Systems","Electrification","Substations","DC Switchgear",12,"Ea",2024,false,2013,0,2739380.6904000002,"","Normal","",0,0,40,"","Existing","","","55-623-634","","Red Line","West","","","","","","","","","","","","NS-ES-OCS2224-DGF-9.2-TP","","",""]
[null,"9999","Metroville Transportation Authority","LR","DC Switchgear",32205,"Systems","Electrification","Substations","DC Switchgear",7,"EA",2014,false,2013,0,2762400.6962000001,"","Normal","",0,0,40,"","Existing","","","19-955-401","","Yellow Line","East","","","","","","","","","","","","APW-ES-OCS168-FD-JA-4.1-Y","","",""]
[null,"9999","Metroville Transportation Authority","LR","DC Switchgear",32205,"Systems","Electrification","Substations","DC Switchgear",4,"EA",2016,false,2013,0,2900520.7310000001,"","Normal","",0,0,40,"","Existing","","","19-099-055","","Red Line","Central","","","","","","","","","","","","NS-ES-OCS2415-FD-WF-5.5-TP","","",""]
[null,"9999","Metroville Transportation Authority","LR","DC Switchgear",32205,"Systems","Electrification","Substations","DC Switchgear",2,"Ea",2017,false,2013,0,2803836.7067,"","Normal","",0,0,40,"","Existing","","","55-712-240","","Blue Line","East","","","","","","","","","","","","NS-ES-OCS2306-FD-WF-7.6-TP","","",""]
[null,"9999","Metroville Transportation Authority","LR","Light Rail",32203,"Systems","Electrification","Substations","Light Rail",48,"Ea",2022,false,2013,0,1067552.7690999999,"","Normal","",0,0,40,"","Existing","","","23-344-088","","Blue Line","West","","","","","","","","","","","","APW-ES-OCS028-FD-JA-0.5-Y","","",""]
[null,"9999","Metroville Transportation Authority","LR","Light Rail",32203,"Systems","Electrification","Substations","Light Rail",18,"Ea",2024,false,2013,0,1074266.9373999999,"","Normal","",0,0,40,"","Existing","","","51-322-410","","Red Line","North","","","","","","","","","","","","AP-ES-OCS207-FD-TT-5.0-Y","","",""]
[null,"9999","Metroville Transportation Authority","LR","Light Rail",32203,"Systems","Electrification","Substations","Light Rail",13,"Ea",2010,false,2013,0,818095.59080000001,"","Normal","",0,0,40,"","Existing","","","80-578-450","","Yellow Line","Central","","","","","","","","","","","","APE-ES-OCS247-FD-CA-5.8-Y","","",""]
[null,"9999","Metroville Transportation Authority","LR","Light Rail",32203,"Systems","Electrification","Substations","Light Rail",9,"EA",2014,false,2013,0,1074266.9373999999,"","Normal","",0,0,40,"","Existing","","","21-163-552","","Yellow Line","East","","","","","","","","","","","","APW-ES-OCS187-FD-CA-4.5-Y","","",""]
[null,"9999","Metroville Transportation Authority","LR","Light Rail",32203,"Systems","Electrification","Substations","Light Rail",2,"EA",2016,false,2013,0,966840.24369999999,"","Normal","",0,0,40,"","Existing","","","98-855-444","","Yellow Line","South","","","","","","","","","","","","NSE-ES-OCS2175-FD-CA-10.2-TP","","",""]
[null,"9999","Metroville Transportation Authority","LR","Light Rail",32203,"Systems","Electrification","Substations","Light Rail",2,"Ea",2019,false,2013,0,1305.2343000000001,"","Normal","",0,0,40,"","Existing","","","62-370-612","","Red Line","North","","","","","","","","","","","","APW-ES-OCS053-FD-CA-1.0-Y","","",""]
[null,"9999","Metroville Transportation Authority","LR","Coin Counters - Light Rail",34103,"Systems","Revenue Collection","Central Revenue Collection","Coin Counters - Light Rail",2,"Ea",2010,false,2013,0,159528.64019999999,"","Normal","",0,0,20,"","Existing","","","31-938-732","","Systemwide","","","","","","","","","","","","","UNW-ES-OCS4005-LP-JA-0.0-OC","","",""]
[null,"9999","Metroville Transportation Authority","LR","Fare Control System Light Rail",35123,"Systems","Revenue Collection","In-Station","Fare Control System Light Rail",129,"Each",2020,false,2009,0.1,3989.0180999999998,"","Normal","",0,0,20,"","Existing","","","78-944-186","","Yellow Line","South","","","","","","","","","","","","NS-ES-OCS2485-DGF-4.2-TP","","",""]
[null,"9999","Metroville Transportation Authority","LR","System Light Rail",35113,"Systems","Revenue Collection","In-Station","System Light Rail",44,"Each",2010,false,1999,0.1,54487.369200000001,"","Normal","",0,0,20,"","Existing","","","28-568-985","","Yellow Line","East","","","","","","","","","","","","MJE-ES-OCS1273-FD-CA-4.9-Y","","",""]
[null,"9999","Metroville Transportation Authority","LR","System Light Rail",35113,"Systems","Revenue Collection","In-Station","System Light Rail",11,"Each",2012,false,2001,0.1,58450.764499999997,"","Normal","",0,0,20,"","Existing","","","99-200-501","","Red Line","West","","","","","","","","","","","","NSW-ES-OCS2490-FD-CA-4.0-TP","","",""]
[null,"9999","Metroville Transportation Authority","LR","System Light Rail",35113,"Systems","Revenue Collection","In-Station","System Light Rail",7,"Each",2014,false,2003,0.1,54592.205999999998,"","Normal","",0,0,20,"","Existing","","","43-435-524","","Red Line","South","","","","","","","","","","","","UNW-ES-OCS4103-LP-CA-2.0-OC","","",""]
[null,"9999","Metroville Transportation Authority","LR","System Light Rail",35113,"Systems","Revenue Collection","In-Station","System Light Rail",6,"Each",2019,false,2008,0.1,55692.523000000001,"","Normal","",0,0,20,"","Existing","","","16-861-607","","Red Line","North","","","","","","","","","","","","NSW-ES-OCS2300-FD-JA-7.7-TP","","",""]
[null,"9999","Metroville Transportation Authority","LR","System Light Rail",35113,"Systems","Revenue Collection","In-Station","System Light Rail",2,"Each",2015,false,2004,0.1,55574.155400000003,"","Normal","",0,0,20,"","Existing","","","47-716-809","","Blue Line","West","","","","","","","","","","","","WVE-ES-OCS0273-FD-CA-1.1-Y","","",""]
[null,"9999","Metroville Transportation Authority","LR","Interlockings",31500,"Systems","Train Control","Interlockings","-",90,"Ea",2010,false,2013,0,343765.42,"","Normal","",0,0,40,"","Existing","","","03-804-127","","Red Line","West","","","","","","","","","","","","NS-ES-OCS2459-FD-WF-4.7-TP","","",""]
[null,"9999","Metroville Transportation Authority","LR","Interlockings",31500,"Systems","Train Control","Interlockings","-",152,"Ea",2022,false,2013,0,139937.4037,"","Normal","",0,0,40,"","Existing","","","60-793-260","","Yellow Line","South","","","","","","","","","","","","NSW-ES-OCS2011-FD-CA-13.6-TP","","",""]
[null,"9999","Metroville Transportation Authority","LR","Interlockings",31500,"Systems","Train Control","Interlockings","-",50,"Ea",2014,false,2013,0,328725.68290000001,"","Normal","",0,0,40,"","Existing","","","37-449-862","","Red Line","North","","","","","","","","","","","","MJE-ES-OCS1039-FD-CA-0.2-Y","","",""]
[null,"9999","Metroville Transportation Authority","LR","Interlockings",31500,"Systems","Train Control","Interlockings","-",56,"Ea",2024,false,2013,0,155385.0392,"","Normal","",0,0,40,"","Existing","","","72-772-936","","Red Line","South","","","","","","","","","","","","APE-ES-OCS031-FD-CA-0.5-Y","","",""]
[null,"9999","Metroville Transportation Authority","LR","Interlockings",31500,"Systems","Train Control","Interlockings","-",31,"Ea",2019,false,2013,0,152823.13529999999,"","Normal","",0,0,40,"","Existing","","","36-601-896","","Yellow Line","Central","","","","","","","","","","","","NSW-ES-OCS2049-FD-CA-12.9-TP","","",""]
[null,"9999","Metroville Transportation Authority","LR","Interlockings",31500,"Systems","Train Control","Interlockings","-",8,"Ea",1911,false,2013,0,568018.64320000005,"","Normal","",0,0,40,"","Existing","","","83-833-238","","Red Line","North","","","","","","","","","","","","UNE-ES-OCS5036-LP-CA-3.1-TP","","",""]
[null,"9999","Metroville Transportation Authority","LR","Interlockings",31500,"Systems","Train Control","Interlockings","-",2,"Ea",1911,false,2013,0,580104.14619999996,"","Normal","",0,0,40,"","Existing","","","93-742-921","","Red Line","North","","","","","","","","","","","","UNW-ES-OCS5016-LP-CA-2.6-TP","","",""]
[null,"9999","Metroville Transportation Authority","LR","Interlockings",31500,"Systems","Train Control","Interlockings","-",3,"Ea",2013,false,2013,0,3545.0808999999999,"","Normal","",0,0,40,"","Existing","","","89-085-300","","Red Line","Central","","","","","","","","","","","","APW-ES-OCS225-FD-JA-5.4-Y","","",""]
[null,"9999","Metroville Transportation Authority","LR","Light Rail",31003,"Systems","Train Control","Light Rail","-",127,"Ea",2022,false,2013,0,129419.56020000001,"","Normal","",0,0,40,"","Existing","","","67-477-238","","Red Line","West","","","","","","","","","","","","NSE-ES-OCS2193-FD-JA-9.9-TP","","",""]
[null,"9999","Metroville Transportation Authority","LR","Light Rail",31003,"Systems","Train Control","Light Rail","-",197,"Ea",2010,false,2013,0,78525.0959,"","Normal","",0,0,40,"","Existing","","","82-355-361","","Yellow Line","East","","","","","","","","","","","","AP-ES-OCS170-FD-TT-4.1-Y","","",""]
[null,"9999","Metroville Transportation Authority","LR","Light Rail",31003,"Systems","Train Control","Light Rail","-",46,"Ea",2024,false,2013,0,193368.04870000001,"","Normal","",0,0,40,"","Existing","","","67-418-393","","Red Line","North","","","","","","","","","","","","AP-ES-OCS195-FD-TT-4.7-Y","","",""]
[null,"9999","Metroville Transportation Authority","LR","Light Rail",31003,"Systems","Train Control","Light Rail","-",13,"Ea",2014,false,2013,0,141307.42019999999,"","Normal","",0,0,40,"","Existing","","","99-749-440","","Yellow Line","South","","","","","","","","","","","","NSE-ES-OCS2210-FD-CA-9.4-TP","","",""]
[null,"9999","Metroville Transportation Authority","LR","Light Rail",31003,"Systems","Train Control","Light Rail","-",7,"Ea",2019,false,2013,0,100827.6254,"","Normal","",0,0,40,"","Existing","","","97-606-504","","Yellow Line","Central","","","","","","","","","","","","NSE-ES-OCS2380-FD-CA-6.1-TP","","",""]
[null,"9999","Metroville Transportation Authority","LR","Light Rail",31403,"Systems","Train Control","Roadway Crossings","Light Rail",233,"Ea",2010,false,2013,0,70541.991999999998,"","Normal","",0,0,40,"","Existing","","","00-833-173","","Blue Line","East","","","","","","","","","","","","WVW-ES-OCS0344-FD-CA-0.1-Y","","",""]
[null,"9999","Metroville Transportation Authority","LR","Light Rail",31403,"Systems","Train Control","Roadway Crossings","Light Rail",173,"Ea",2022,false,2013,0,41915.039499999999,"","Normal","",0,0,40,"","Existing","","","74-238-326","","Yellow Line","Central","","","","","","","","","","","","APW-ES-OCS155-FD-JA-3.6-Y","","",""]
[null,"9999","Metroville Transportation Authority","LR","Light Rail",31403,"Systems","Train Control","Roadway Crossings","Light Rail",43,"Ea",2014,false,2013,0,101180.95570000001,"","Normal","",0,0,40,"","Existing","","","70-743-322","","Blue Line","West","","","","","","","","","","","","MJE-ES-OCS1423-FD-CA-8.7-Y","","",""]
[null,"9999","Metroville Transportation Authority","LR","Light Rail",31403,"Systems","Train Control","Roadway Crossings","Light Rail",27,"Ea",2024,false,2013,0,42970.677499999998,"","Normal","",0,0,40,"","Existing","","","73-935-852","","Yellow Line","East","","","","","","","","","","","","MJW-ES-OCS1305-FD-CA-5.7-Y","","",""]
[null,"9999","Metroville Transportation Authority","LR","Light Rail",31403,"Systems","Train Control","Roadway Crossings","Light Rail",2,"Ea",1911,false,2013,0,159528.64019999999,"","Normal","",0,0,40,"","Existing","","","83-157-455","","Yellow Line","South","","","","","","","","","","","","NSE-ES-OCS2426-FD-JA-5.4-TP","","",""]
[null,"9999","Metroville Transportation Authority","LR","Light Rail",31403,"Systems","Train Control","Roadway Crossings","Light Rail",3,"Ea",1911,false,2013,0,83792.821100000001,"","Normal","",0,0,40,"","Existing","","","81-398-841","","Blue Line","East","","","","","","","","","","","","WVE-ES-OCS0181-FD-JA-2.4-Y","","",""]
[null,"9999","Metroville Transportation Authority","LR","Signals & Train Stops Light Rail",31113,"Systems","Train Control","Wayside Train Control","Signals & Train Stops Light Rail",64,"Ea",2014,false,2013,0,3776.7197000000001,"","Normal","",0,0,40,"","Existing","","","16-835-096","","Red Line","Central","","","","","","","","","","","","NSE-ES-OCS2623-LP-CA-1.7-TP","","",""]
[null,"9999","Metroville Transportation Authority","LR","Signals & Train Stops Light Rail",31113,"Systems","Train Control","Wayside Train Control","Signals & Train Stops Light Rail",38,"Ea",2024,false,2013,0,3816.4746,"","Normal","",0,0,40,"","Existing","","","36-419-424","","Yellow Line","Central","","","","","","","","","","","","IMW-ES-OCS3198-LP-JA-1.7-TP","","",""]
[null,"9999","Metroville Transportation Authority","LR","Signals & Train Stops Light Rail",31113,"Systems","Train Control","Wayside Train Control","Signals & Train Stops Light Rail",31,"Ea",2010,false,2013,0,3742.6073999999999,"","Normal","",0,0,40,"","Existing","","","82-299-835","","Red Line","South","","","","","","","","","","","","NSW-ES-OCS3014-LP-JA-1.2-TP","","",""]
[null,"9999","Metroville Transportation Authority","LR","Signals & Train Stops Light Rail",31113,"Systems","Train Control","Wayside Train Control","Signals & Train Stops Light Rail",42,"Ea",2022,false,2013,0,2762.4007000000001,"","Normal","",0,0,40,"","Existing","","","46-503-968","","Red Line","North","","","","","","","","","","","","APW-ES-OCS011-LP-JA-0.2-Y","","",""]
[null,"9999","Metroville Transportation Authority","LR","Drainage",36200,"Systems","Utilities","Drainage","-",1000,"LF",2024,false,2013,0,16310.8213,"","Normal","",0,0,45,"","Existing","","","06-943-948","","Red Line","North","","","","","","","","","","","","WVW-ES-OCS0317-FD-JA-0.4-Y","","",""]
[null,"9999","Metroville Transportation Authority","LR","Drainage",36200,"Systems","Utilities","Drainage","-",133895,"LF",2010,false,2013,0,194.9639,"","Normal","",0,0,45,"","Existing","","","44-179-882","","Blue Line","West","","","","","","","","","","","","NS-ES-OCS2204-FD-WF-9.6-TP","","",""]
[null,"9999","Metroville Transportation Authority","LR","Drainage",36200,"Systems","Utilities","Drainage","-",140,"Ea",2010,false,2013,0,17955.604500000001,"","Normal","",0,0,45,"","Existing","","","39-532-999","","Yellow Line","Central","","","","","","","","","","","","MJ-ES-OCS1365-FD-TT-7.1-Y","","",""]
[null,"9999","Metroville Transportation Authority","LR","Drainage",36200,"Systems","Utilities","Drainage","-",24,"Ea",2022,false,2013,0,64456.016199999998,"","Normal","",0,0,45,"","Existing","","","74-006-156","","Red Line","South","","","","","","","","","","","","IMW-ES-OCS3094-LP-CA-0.2-TP","","",""]
[null,"9999","Metroville Transportation Authority","LR","Drainage",36200,"Systems","Utilities","Drainage","-",26657.14,"LF",2022,false,2013,0,22.849799999999998,"","Normal","",0,0,45,"","Existing","","","44-703-245","","Yellow Line","Central","","","","","","","","","","","","NSW-ES-OCS2589-FD-CA-2.3-TP","","",""]
[null,"9999","Metroville Transportation Authority","LR","Drainage",36200,"Systems","Utilities","Drainage","-",813.67,"LF",2014,false,2013,0,54.659300000000002,"","Normal","",0,0,45,"","Existing","","","26-829-323","","Red Line","South","","","","","","","","","","","","UN-ES-OCS4024-LP-PF-0.3-OC","","",""]
[null,"9999","Metroville Transportation Authority","LR","Drainage",36200,"Systems","Utilities","Drainage","-",984.06,"LF",2016,false,2013,0,44.212600000000002,"","Normal","",0,0,45,"","Existing","","","57-123-135","","Blue Line","West","","","","","","","","","","","","IM-ES-OCS3208-LP-TT-1.8-TP","","",""]
[null,"9999","Metroville Transportation Authority","LR","Drainage",36200,"Systems","Utilities","Drainage","-",50,"Ea",2016,false,2013,0,599.44100000000003,"","Normal","",0,0,45,"","Existing","","","32-035-007","","Blue Line","East","","","","","","","","","","","","NSW-ES-OCS2530A-FD-CA-3.3-TP","","",""]
[null,"9999","Metroville Transportation Authority","LR","Drainage",36200,"Systems","Utilities","Drainage","-",40,"Ea",2024,false,2013,0,725.13019999999995,"","Normal","",0,0,45,"","Existing","","","22-884-833","","Yellow Line","Central","","","","","","","","","","","","MJW-ES-OCS1306-FD-CA-5.7-Y","","",""]
[null,"9999","Metroville Transportation Authority","LR","Drainage",36200,"Systems","Utilities","Drainage","-",59,"Ea",2014,false,2013,0,327.74250000000001,"","Normal","",0,0,45,"","Existing","","","88-064-156","","Blue Line","West","","","","","","","","","","","","NS-ES-OCS2274-FD-WF-8.0-TP","","",""]
[null,"9999","Metroville Transportation Authority","LR","LRV",52001,"Vehicles","Revenue Vehicles","Light Rail","LRV",7,"EA",2022,false,2011,0.1,3414528.3698999998,"","Normal","",0,0,28,"","Existing","","","09-388-394","","Blue Line","","","","","","","","","","","","","IME-ES-OCS3086-LP-CA-0.0-TP","","",""]
[null,"9999","Metroville Transportation Authority","LR","LRV",52001,"Vehicles","Revenue Vehicles","Light Rail","LRV",7,"EA",2022,false,2011,0.1,3414528.3698999998,"","Normal","",0,0,28,"","Existing","","","09-388-394","","Yellow Line","","","","","","","","","","","","","WV-ES-OCS0277-FD-WF-1.0-Y","","",""]
[null,"9999","Metroville Transportation Authority","LR","LRV",52001,"Vehicles","Revenue Vehicles","Light Rail","LRV",7,"EA",2022,false,2011,0.1,3414528.3698999998,"","Normal","",0,0,28,"","Existing","","","09-388-394","","Red Line","","","","","","","","","","","","","UNE-ES-OCS4036-LP-CA-0.6-OC","","",""]
[null,"9999","Metroville Transportation Authority","LR","LRV",52001,"Vehicles","Revenue Vehicles","Light Rail","LRV",7,"EA",2022,false,2011,0.1,3414528.3698999998,"","Normal","",0,0,28,"","Existing","","","09-388-394","","Blue Line","","","","","","","","","","","","","WVE-ES-OCS0065-FD-CA-4.4-Y","","",""]
[null,"9999","Metroville Transportation Authority","LR","LRV",52001,"Vehicles","Revenue Vehicles","Light Rail","LRV",7,"EA",2022,false,2011,0.1,3414528.3698999998,"","Normal","",0,0,28,"","Existing","","","09-388-394","","Yellow Line","","","","","","","","","","","","","APE-ES-OCS113-FD-CA-2.7-Y","","",""]
[null,"9999","Metroville Transportation Authority","LR","LRV",52001,"Vehicles","Revenue Vehicles","Light Rail","LRV",7,"EA",2022,false,2011,0.1,3414528.3698999998,"","Normal","",0,0,28,"","Existing","","","09-388-394","","Blue Line","","","","","","","","","","","","","NSE-ES-OCS2191-FD-CA-10.0-TP","","",""]
[null,"9999","Metroville Transportation Authority","LR","LRV",52001,"Vehicles","Revenue Vehicles","Light Rail","LRV",7,"EA",2022,false,2011,0.1,3414528.3698999998,"","Normal","",0,0,28,"","Existing","","","09-388-394","","Yellow Line","","","","","","","","","","","","","AP-ES-OCS155-FD-TT-3.6-Y","","",""]
[null,"9999","Metroville Transportation Authority","LR","LRV",52001,"Vehicles","Revenue Vehicles","Light Rail","LRV",7,"EA",2022,false,2011,0.1,3414528.3698999998,"","Normal","",0,0,28,"","Existing","","","09-388-394","","Red Line","","","","","","","","","","","","","APE-ES-OCS111-FD-CA-2.6-Y","","",""]
[null,"9999","Metroville Transportation Authority","LR","LRV",52001,"Vehicles","Revenue Vehicles","Light Rail","LRV",7,"EA",2022,false,2011,0.1,3414528.3698999998,"","Normal","",0,0,28,"","Existing","","","09-388-394","","Blue Line","","","","","","","","","","","","","MJ-ES-OCS1161-FD-TT-2.0-Y","","",""]
[null,"9999","Metroville Transportation Authority","LR","LRV",52001,"Vehicles","Revenue Vehicles","Light Rail","LRV",17,"EA",2012,false,2001,0.1,2615958.2363,"","Normal","",0,0,28,"","Existing","","","85-529-714","","Yellow Line","","","","","","","","","","","","","WVE-ES-OCS0100-FD-JA-3.8-Y","","",""]
[null,"9999","Metroville Transportation Authority","LR","LRV",52001,"Vehicles","Revenue Vehicles","Light Rail","LRV",23,"EA",2010,false,1999,0.1,1907309.9447000001,"","Normal","",0,0,28,"","Existing","","","02-438-101","","Blue Line","","","","","","","","","","","","","UNE-ES-OCS4062-LP-JA-1.2-OC","","",""]
[null,"9999","Metroville Transportation Authority","LR","LRV",52001,"Vehicles","Revenue Vehicles","Light Rail","LRV",7,"EA",2014,false,2003,0.1,2607388.9432999999,"","Normal","",0,0,28,"","Existing","","","71-217-213","","Yellow Line","","","","","","","","","","","","","WV-ES-OCS0045-FD-WF-4.7-Y","","",""]
[null,"9999","Metroville Transportation Authority","LR","LRV",52001,"Vehicles","Revenue Vehicles","Light Rail","LRV",29,"EA",1987,false,2008,0.1,235572.97099999999,"","Normal","",0,0,28,"","Existing","","","05-065-301","","Red Line","","","","","","","","","","","","","IMW-ES-OCS3190-LP-JAX-1.6-TP","","",""]
[null,"9999","Metroville Transportation Authority","MB","Bus",21210,"Facilities","Buildings","Maintenance","Bus",8,"Each",1992,false,1981,0.1,2892105.1923000002,"","Normal","",0,0,60,"","Existing","","","52-685-020","","South","Archer's Line","","","","","","","","","","","","NS-ES-OCS2313A-FD-WF-7.4-TP","","",""]
[null,"9999","Metroville Transportation Authority","MB","Bus",21210,"Facilities","Buildings","Maintenance","Bus",9,"Each",1998,false,1987,0.1,870691.31229999999,"","Normal","",0,0,60,"","Existing","","","43-925-666","","South","Archer's Line","","","","","","","","","","","","IM-ES-OCS3182-LP-TT-1.5-TP","","",""]
[null,"9999","Metroville Transportation Authority","MB","Bus",21210,"Facilities","Buildings","Maintenance","Bus",5,"Each",2008,false,1997,0.1,1367461.0349999999,"","Normal","",0,0,60,"","Existing","","","58-628-939","","North","Wingston","","","","","","","","","","","","AP-ES-OCS103-FD-TT-2.5-Y","","",""]
[null,"9999","Metroville Transportation Authority","MB","Bus",21210,"Facilities","Buildings","Maintenance","Bus",6,"Each",1999,false,1988,0.1,971661.36869999999,"","Normal","",0,0,60,"","Existing","","","15-272-464","","North","Wingston","","","","","","","","","","","","NSW-ES-OCS2189-FD-JA-10.0-TP","","",""]
[null,"9999","Metroville Transportation Authority","MB","Bus",21210,"Facilities","Buildings","Maintenance","Bus",11,"Each",2001,false,1990,0.1,371058.41009999998,"","Normal","",0,0,60,"","Existing","","","16-048-990","","South","Archer's Line","","","","","","","","","","","","NSE-ES-OCS2194-FD-CA-9.9-TP","","",""]
[null,"9999","Metroville Transportation Authority","MB","Bus",21210,"Facilities","Buildings","Maintenance","Bus",12,"Each",2010,false,1999,0.1,255047.26010000001,"","Normal","",0,0,60,"","Existing","","","02-274-745","","North","Wingston","","","","","","","","","","","","NSE-ES-OCS2055-FD-CA-12.7-TP","","",""]
[null,"9999","Metroville Transportation Authority","MB","Bus",21210,"Facilities","Buildings","Maintenance","Bus",8,"Each",2013,false,2002,0.1,277206.01419999998,"","Normal","",0,0,60,"","Existing","","","42-121-086","","North","Wingston","","","","","","","","","","","","NSE-ES-OCS2228-FD-JA-9.1-TP","","",""]
[null,"9999","Metroville Transportation Authority","MB","Bus",21210,"Facilities","Buildings","Maintenance","Bus",1,"Each",1983,false,1972,0.1,1991628.8213,"","Normal","",0,0,60,"","Existing","","","33-763-012","","North","Wingston","","","","","","","","","","","","UN-ES-OCS4015-LP-PF-0.1-OC","","",""]
[null,"9999","Metroville Transportation Authority","MB","Bus",21210,"Facilities","Buildings","Maintenance","Bus",2,"Each",2019,false,2008,0.1,891080.36849999998,"","Normal","",0,0,60,"","Existing","","","34-890-827","","South","Archer's Line","","","","","","","","","","","","NSW-ES-OCS2069-FD-CA-12.4-TP","","",""]
[null,"9999","Metroville Transportation Authority","MB","Bus",21210,"Facilities","Buildings","Maintenance","Bus",2,"Each",1997,false,1986,0.1,585700.18920000002,"","Normal","",0,0,60,"","Existing","","","94-904-310","","North","Wingston","","","","","","","","","","","","NS-ES-OCS2210A-DGF-9.4-TP","","",""]
[null,"9999","Metroville Transportation Authority","MB","Bus",21210,"Facilities","Buildings","Maintenance","Bus",3,"Each",2002,false,1991,0.1,362192.22249999997,"","Normal","",0,0,60,"","Existing","","","34-021-381","","South","Archer's Line","","","","","","","","","","","","MJE-ES-OCS1393-FD-CA-8.0-Y","","",""]
[null,"9999","Metroville Transportation Authority","MB","Bus",21210,"Facilities","Buildings","Maintenance","Bus",13,"Each",1994,false,1983,0.1,38914.181299999997,"","Normal","",0,0,60,"","Existing","","","74-355-418","","North","Wingston","","","","","","","","","","","","WV-ES-OCS0317-FD-TT-0.4-Y","","",""]
[null,"9999","Metroville Transportation Authority","MB","Utilities",21230,"Facilities","Buildings","Maintenance","Utilities",1,"Each",1992,false,1981,0.1,306632.83970000001,"","Normal","",0,0,60,"","Existing","","","71-994-649","","North","Wingston","","","","","","","","","","","","WV-ES-OCS0024-FD-WF-5.0-Y","","",""]
[null,"9999","Metroville Transportation Authority","MB","Bus",23301,"Facilities","Equipment","Maintenance","Bus",2,"Each",2008,false,1997,0.1,830244.19979999994,"","Normal","",0,0,15,"","Existing","","","71-812-435","","South","Archer's Line","","","","","","","","","","","","MJW-ES-OCS1364-FD-CA-7.2-Y","","",""]
[null,"9999","Metroville Transportation Authority","MB","Bus",23301,"Facilities","Equipment","Maintenance","Bus",5,"Each",1992,false,1981,0.1,167254.27619999999,"","Normal","",0,0,15,"","Existing","","","27-821-330","","South","Archer's Line","","","","","","","","","","","","AP-ES-OCS120-FD-TT-2.8-Y","","",""]
[null,"9999","Metroville Transportation Authority","MB","Bus",23301,"Facilities","Equipment","Maintenance","Bus",3,"Each",2011,false,2000,0.1,260586.9486,"","Normal","",0,0,15,"","Existing","","","48-964-998","","North","Wingston","","","","","","","","","","","","NSW-ES-OCS2023-FD-JA-13.4-TP","","",""]
[null,"9999","Metroville Transportation Authority","MB","Bus",23301,"Facilities","Equipment","Maintenance","Bus",3,"Each",2010,false,1999,0.1,108820.1643,"","Normal","",0,0,15,"","Existing","","","11-484-882","","West","Brothford","","","","","","","","","","","","MJE-ES-OCS1080-FD-CA-0.6-Y","","",""]
[null,"9999","Metroville Transportation Authority","MB","Bus",23301,"Facilities","Equipment","Maintenance","Bus",3,"Each",2016,false,2005,0.1,89157.963099999994,"","Normal","",0,0,15,"","Existing","","","29-756-722","","South","Archer's Line","","","","","","","","","","","","IMW-ES-OCS3229-LP-JA-2.1-TP","","",""]
[null,"9999","Metroville Transportation Authority","MB","Bus",23301,"Facilities","Equipment","Maintenance","Bus",2,"Each",2017,false,2006,0.1,97418.746700000003,"","Normal","",0,0,15,"","Existing","","","31-260-145","","North","Wingston","","","","","","","","","","","","WVW-ES-OCS0323-FD-JA-0.3-Y","","",""]
[null,"9999","Metroville Transportation Authority","MB","Bus",23301,"Facilities","Equipment","Maintenance","Bus",1,"Each",2014,false,2003,0.1,85554.949699999997,"","Normal","",0,0,15,"","Existing","","","30-549-906","","North","Wingston","","","","","","","","","","","","NSE-ES-OCS2387-FD-CA-6.0-TP","","",""]
[null,"9999","Metroville Transportation Authority","MB","Bus",23301,"Facilities","Equipment","Maintenance","Bus",1,"Each",1998,false,1987,0.1,78362.218099999998,"","Normal","",0,0,15,"","Existing","","","11-446-116","","North","Wingston","","","","","","","","","","","","AP-ES-OCS153-FD-TT-3.6-Y","","",""]
[null,"9999","Metroville Transportation Authority","MB","Bus",23301,"Facilities","Equipment","Maintenance","Bus",2,"Each",1994,false,1983,0.1,32039.3426,"","Normal","",0,0,15,"","Existing","","","85-946-011","","South","Archer's Line","","","","","","","","","","","","AP-ES-OCS199-FD-TT-4.8-Y","","",""]
[null,"9999","Metroville Transportation Authority","MB","Bus",23301,"Facilities","Equipment","Maintenance","Bus",1,"Each",2013,false,2002,0.1,43798.550199999998,"","Normal","",0,0,15,"","Existing","","","78-320-098","","North","Wingston","","","","","","","","","","","","IMW-ES-OCS3132-LP-CA-0.7-TP","","",""]
[null,"9999","Metroville Transportation Authority","MB","Bus",23301,"Facilities","Equipment","Maintenance","Bus",1,"Each",2000,false,1989,0.1,30279.494299999998,"","Normal","",0,0,15,"","Existing","","","87-377-475","","South","Archer's Line","","","","","","","","","","","","NSW-ES-OCS2294-FD-JA-7.7-TP","","",""]
[null,"9999","Metroville Transportation Authority","MB","Bus",23301,"Facilities","Equipment","Maintenance","Bus",1,"Each",2002,false,1991,0.1,10865.7667,"","Normal","",0,0,15,"","Existing","","","58-329-827","","North","Wingston","","","","","","","","","","","","NSW-ES-OCS4003-FD-JA-9.1-TP","","",""]
[null,"9999","Metroville Transportation Authority","MB","Bus",23301,"Facilities","Equipment","Maintenance","Bus",1,"Each",2003,false,1992,0.1,6434.9022000000004,"","Normal","",0,0,15,"","Existing","","","85-340-582","","North","Wingston","","","","","","","","","","","","IM-ES-OCS3215-LP-TT-1.9-TP","","",""]
[null,"9999","Metroville Transportation Authority","MB","Bus",23301,"Facilities","Equipment","Maintenance","Bus",1,"Each",1993,false,1982,0.1,6204.4512000000004,"","Normal","",0,0,15,"","Existing","","","37-357-558","","North","Wingston","","","","","","","","","","","","NSE-ES-OCS3084-LP-CA-0.0-TP","","",""]
[null,"9999","Metroville Transportation Authority","MB","Bus",23301,"Facilities","Equipment","Maintenance","Bus",1,"Each",2015,false,2004,0.1,5498.9164000000001,"","Normal","",0,0,15,"","Existing","","","63-900-178","","West","Brothford","","","","","","","","","","","","MJ-ES-OCS1108-FD-TT-1.1-Y","","",""]
[null,"9999","Metroville Transportation Authority","MB","Bus",23301,"Facilities","Equipment","Maintenance","Bus",1,"Each",1990,false,1979,0.1,4267.7759999999998,"","Normal","",0,0,15,"","Existing","","","91-703-440","","West","Brothford","","","","","","","","","","","","WV-ES-OCS0240-FD-WF-1.6-Y","","",""]
[null,"9999","Metroville Transportation Authority","MB","Pollution Treatment",23400,"Facilities","Equipment","Maintenance","Pollution Treatment",2,"Each",2019,false,2008,0.1,107672.21120000001,"","Normal","",0,0,15,"","Existing","","","31-911-972","","North","Wingston","","","","","","","","","","","","WVW-ES-OCS0338-FD-CA-0.1-Y","","",""]
[null,"9999","Metroville Transportation Authority","MB","Pollution Treatment",23400,"Facilities","Equipment","Maintenance","Pollution Treatment",1,"Each",1993,false,1982,0.1,8686.2315999999992,"","Normal","",0,0,15,"","Existing","","","73-373-845","","North","Wingston","","","","","","","","","","","","UN-ES-OCS5052-LP-PF-3.4-TP","","",""]
[null,"9999","Metroville Transportation Authority","MB","Storage Yard",22000,"Facilities","Storage Yard","-","-",3,"Each",2005,false,1994,0.1,91644.175300000003,"","Normal","",0,0,80,"","Existing","","","27-093-502","","West","Brothford","","","","","","","","","","","","MJE-ES-OCS1047-FD-CA-0.2-Y","","",""]
[null,"9999","Metroville Transportation Authority","MB","Storage Yard",22000,"Facilities","Storage Yard","-","-",3,"Each",2006,false,1995,0.1,13263.3439,"","Normal","",0,0,80,"","Existing","","","58-691-045","","South","Archer's Line","","","","","","","","","","","","NS-ES-OCS2503-DGF-3.7-TP","","",""]
[null,"9999","Metroville Transportation Authority","MB","Storage Yard",22000,"Facilities","Storage Yard","-","-",1,"Each",2004,false,1993,0.1,7929.2885999999999,"","Normal","",0,0,80,"","Existing","","","72-095-563","","North","Wingston","","","","","","","","","","","","IMW-ES-OCS3231-LP-CA-2.1-TP","","",""]
[null,"9999","Metroville Transportation Authority","MB","Bus Parking",22300,"Facilities","Storage Yard","Bus","Bus Parking",2,"Each",2010,false,1999,0.1,612113.42409999995,"","Normal","",0,0,60,"","Existing","","","78-186-981","","North","Wingston","","","","","","","","","","","","IMW-ES-OCS3222-LP-CA-2.0-TP","","",""]
[null,"9999","Metroville Transportation Authority","MB","Stations",40000,"Stations","-","-","-",3,"Each",2013,false,2002,0.1,4804904.2457999997,"","Normal","",0,0,60,"","Existing","","","50-700-831","","Yellow Line","Central","","","","","","","","","","","","WVW-ES-OCS0245-FD-JA-1.5-Y","","",""]
[null,"9999","Metroville Transportation Authority","MB","Park & Ride",41603,"Stations","Access","Parking","Park & Ride",1,"Each",2003,false,1992,0.1,137277.9136,"","Normal","",0,0,40,"","Existing","","","18-901-282","","Yellow Line","South","","","","","","","","","","","","IME-ES-OCS3223-LP-CA-2.0-TP","","",""]
[null,"9999","Metroville Transportation Authority","MB","Bus",41204,"Stations","Building","Bus","Bus",1,"Each",2020,false,2009,0.1,230410.44639999999,"","Normal","",0,0,60,"","Existing","","","74-093-101","","Yellow Line","East","","","","","","","","","","","","MJ-ES-OCS1403-FD-TT-8.3-Y","","",""]
[null,"9999","Metroville Transportation Authority","MB","Bus",41004,"Stations","Complete Station","Bus","-",923,"Each",2011,false,2000,0.1,542.06600000000003,"","Normal","",0,0,40,"","Existing","","","98-193-849","","Blue Line","West","","","","","","","","","","","","NS-ES-OCS3066-LP-TT-0.3-TP","","",""]
[null,"9999","Metroville Transportation Authority","MB","Bus",41006,"Stations","Complete Station","Bus Stop Shelters","Bus",113,"Each",2011,false,2000,0.1,7840.6692000000003,"","Normal","",0,0,15,"","Existing","","","81-618-447","","Red Line","West","","","","","","","","","","","","APE-ES-OCS191-FD-JA-4.6-Y","","",""]
[null,"9999","Metroville Transportation Authority","MB","Bus",41006,"Stations","Complete Station","Bus Stop Shelters","Bus",19,"Each",2019,false,2008,0.1,32438.452000000001,"","Normal","",0,0,15,"","Existing","","","24-102-861","","Red Line","Central","","","","","","","","","","","","NSW-ES-OCS3028-LP-CA-0.8-TP","","",""]
[null,"9999","Metroville Transportation Authority","MB","Bus",41006,"Stations","Complete Station","Bus Stop Shelters","Bus",142,"Each",2006,false,1995,0.1,2802.1149,"","Normal","",0,0,15,"","Existing","","","98-304-886","","Yellow Line","East","","","","","","","","","","","","UN-ES-OCS4001-LP-PF-0.0-OC","","",""]
[null,"9999","Metroville Transportation Authority","MB","Base Radio Stations",33700,"Systems","Communications","Radio","Base Radio Stations",1,"Each",2013,false,2002,0.1,9979.4164999999994,"","Normal","",0,0,10,"","Existing","","","50-119-591","","Systemwide","","","","","","","","","","","","","UNW-ES-OCS5049-LP-JA-3.3-TP","","",""]
[null,"9999","Metroville Transportation Authority","MB","Base Radio Stations",33700,"Systems","Communications","Radio","Base Radio Stations",1,"Each",2014,false,2003,0.1,9696.2276000000002,"","Normal","",0,0,10,"","Existing","","","47-974-331","","Systemwide","","","","","","","","","","","","","MJE-ES-OCS1199-FD-CA-2.7-Y","","",""]
[null,"9999","Metroville Transportation Authority","MB","Base Radio Stations",33700,"Systems","Communications","Radio","Base Radio Stations",2,"Each",2010,false,1999,0.1,4845.8978999999999,"","Normal","",0,0,10,"","Existing","","","32-798-399","","Systemwide","","","","","","","","","","","","","WVW-ES-OCS0198-FD-JA-2.1-Y","","",""]
[null,"9999","Metroville Transportation Authority","MB","Base Radio Stations",33700,"Systems","Communications","Radio","Base Radio Stations",1,"Each",2011,false,2000,0.1,5003.2694000000001,"","Normal","",0,0,10,"","Existing","","","64-347-991","","Systemwide","","","","","","","","","","","","","NS-ES-OCS2554-FD-WF-2.8-TP","","",""]
[null,"9999","Metroville Transportation Authority","MB","Base Radio Stations",33700,"Systems","Communications","Radio","Base Radio Stations",1,"Each",2009,false,1998,0.1,4949.0248000000001,"","Normal","",0,0,10,"","Existing","","","66-955-491","","Systemwide","","","","","","","","","","","","","MJW-ES-OCS1425-FD-JA-8.9-Y","","",""]
[null,"9999","Metroville Transportation Authority","MB","Base Radio Stations",33700,"Systems","Communications","Radio","Base Radio Stations",1,"Each",2008,false,1997,0.1,4004.7073,"","Normal","",0,0,10,"","Existing","","","81-221-364","","Systemwide","","","","","","","","","","","","","APE-ES-OCS107-FD-JA-2.6-Y","","",""]
[null,"9999","Metroville Transportation Authority","MB","Base Radio Stations",33700,"Systems","Communications","Radio","Base Radio Stations",1,"Each",2004,false,1993,0.1,1497.7545,"","Normal","",0,0,10,"","Existing","","","85-645-719","","Systemwide","","","","","","","","","","","","","NSW-ES-OCS2511-FD-JA-3.5-TP","","",""]
[null,"9999","Metroville Transportation Authority","MB","Bus Radio",33600,"Systems","Communications","Radio","Bus Radio",2,"Each",2017,false,2006,0.1,4031120.5515999999,"","Normal","",0,0,20,"","Existing","","","26-420-119","","Systemwide","","","","","","","","","","","","","WV-ES-OCS0136-FD-WF-3.2-Y","","",""]
[null,"9999","Metroville Transportation Authority","MB","Bus Radio",33600,"Systems","Communications","Radio","Bus Radio",4,"Each",2018,false,2007,0.1,574354.90709999995,"","Normal","",0,0,20,"","Existing","","","52-785-185","","Systemwide","","","","","","","","","","","","","MJ-ES-OCS1509-LP-CA-10.6-Y","","",""]
[null,"9999","Metroville Transportation Authority","MB","Bus Radio",33600,"Systems","Communications","Radio","Bus Radio",1,"Each",2016,false,2005,0.1,1910527.7812000001,"","Normal","",0,0,20,"","Existing","","","21-743-960","","Systemwide","","","","","","","","","","","","","WVE-ES-OCS0169-FD-JA-2.7-Y","","",""]
[null,"9999","Metroville Transportation Authority","MB","Bus Radio",33600,"Systems","Communications","Radio","Bus Radio",1,"Each",2019,false,2008,0.1,408411.83559999999,"","Normal","",0,0,20,"","Existing","","","44-632-859","","Systemwide","","","","","","","","","","","","","APE-ES-OCS087-FD-CA-2.0-Y","","",""]
[null,"9999","Metroville Transportation Authority","MB","SCADA",33800,"Systems","Communications","SCADA","-",1,"Each",2019,false,2008,0.1,371283.48690000002,"","Normal","",0,0,5,"","Existing","","","19-713-678","","Systemwide","","","","","","","","","","","","","MJ-ES-OCS1340-FD-TT-6.3-Y","","",""]
[null,"9999","Metroville Transportation Authority","MB","SCADA",33800,"Systems","Communications","SCADA","-",1,"Each",2017,false,2006,0.1,114215.08229999999,"","Normal","",0,0,5,"","Existing","","","72-135-772","","Systemwide","","","","","","","","","","","","","NSE-ES-OCS2500-FD-CA-3.8-TP","","",""]
[null,"9999","Metroville Transportation Authority","MB","Fare Control System",35120,"Systems","Revenue Collection","In-Station","Fare Control System",1,"Each",2020,false,2009,0.1,2150497.4996000002,"","Normal","",0,0,15,"","Existing","","","58-525-570","","Systemwide","","","","","","","","","","","","","NSW-ES-OCS2463-FD-CA-4.6-TP","","",""]
[null,"9999","Metroville Transportation Authority","MB","System",35110,"Systems","Revenue Collection","In-Station","System",21,"Each",2019,false,2008,0.1,56576.531300000002,"","Normal","",0,0,20,"","Existing","","","53-595-987","","Systemwide","","","","","","","","","","","","","NSE-ES-OCS2248-FD-JA-8.6-TP","","",""]
[null,"9999","Metroville Transportation Authority","MB","Bus (30 ft)",51905,"Vehicles","Revenue Vehicles","Bus","Bus (30 ft)",33,"Each",2016,false,2004,0.1,389994.07270000002,"","Normal","",0,0,14,"","Existing","","","94-657-102","","West","Brothford","","","","","","","","","","","","NSE-ES-OCS2228-FD-CA-9.1-TP","","",""]
[null,"9999","Metroville Transportation Authority","MB","Bus (30 ft)",51905,"Vehicles","Revenue Vehicles","Bus","Bus (30 ft)",10,"Each",2017,false,2004,0.1,397793.95419999998,"","Normal","",0,0,14,"","Existing","","","36-474-365","","West","Brothford","","","","","","","","","","","","UN-ES-OCS5009-LP-PF-2.5-TP","","",""]
[null,"9999","Metroville Transportation Authority","MB","Bus (35 ft)",51904,"Vehicles","Revenue Vehicles","Bus","Bus (35 ft)",28,"Each",2010,false,2008,0.1,503884.73220000003,"","Normal","",0,0,14,"","Existing","","","83-049-580","","South","Archer's Line","","","","","","","","","","","","WVE-ES-OCS0257-FD-CA-1.4-Y","","",""]
[null,"9999","Metroville Transportation Authority","MB","Bus (35 ft)",51904,"Vehicles","Revenue Vehicles","Bus","Bus (35 ft)",20,"Each",2008,false,2008,0.1,519796.88160000002,"","Normal","",0,0,14,"","Existing","","","77-977-532","","South","Archer's Line","","","","","","","","","","","","MJE-ES-OCS1113-FD-CA-1.2-Y","","",""]
[null,"9999","Metroville Transportation Authority","MB","Bus (35 ft)",51904,"Vehicles","Revenue Vehicles","Bus","Bus (35 ft)",15,"Each",2007,false,2008,0.1,495044.64919999999,"","Normal","",0,0,14,"","Existing","","","30-270-692","","West","Brothford","","","","","","","","","","","","WVE-ES-OCS0009-FD-CA-5.1-Y","","",""]
[null,"9999","Metroville Transportation Authority","MB","Bus (35 ft)",51904,"Vehicles","Revenue Vehicles","Bus","Bus (35 ft)",11,"Each",2012,false,2008,0.1,499545.0551,"","Normal","",0,0,14,"","Existing","","","92-965-827","","South","Archer's Line","","","","","","","","","","","","NSW-ES-OCS2351-FD-CA-6.6-TP","","",""]
[null,"9999","Metroville Transportation Authority","MB","Bus (35 ft)",51904,"Vehicles","Revenue Vehicles","Bus","Bus (35 ft)",9,"Each",2018,false,2008,0.1,503295.3933,"","Normal","",0,0,14,"","Existing","","","39-555-760","","South","Archer's Line","","","","","","","","","","","","NSW-ES-OCS2453-FD-CA-4.8-TP","","",""]
[null,"9999","Metroville Transportation Authority","MB","Bus (40 ft)",51903,"Vehicles","Revenue Vehicles","Bus","Bus (40 ft)",66,"Each",2010,false,2008,0.1,630056.82620000001,"","Normal","",0,0,16,"","Existing","","","53-221-089","","North","Wingston","","","","","","","","","","","","APW-ES-OCS190-FD-CA-4.6-Y","","",""]
[null,"9999","Metroville Transportation Authority","MB","Bus (40 ft)",51903,"Vehicles","Revenue Vehicles","Bus","Bus (40 ft)",61,"Each",2018,false,2008,0.1,620834.68299999996,"","Normal","",0,0,16,"","Existing","","","74-522-950","","South","Archer's Line","","","","","","","","","","","","UN-ES-OCS5053-LP-PF-3.4-TP","","",""]
[null,"9999","Metroville Transportation Authority","MB","Bus (40 ft)",51903,"Vehicles","Revenue Vehicles","Bus","Bus (40 ft)",57,"Each",2021,false,2008,0.1,625319.55680000002,"","Normal","",0,0,16,"","Existing","","","55-105-543","","South","Archer's Line","","","","","","","","","","","","APE-ES-OCS166-FD-CA-4.0-Y","","",""]
[null,"9999","Metroville Transportation Authority","MB","Bus (40 ft)",51903,"Vehicles","Revenue Vehicles","Bus","Bus (40 ft)",50,"Each",2012,false,2008,0.1,638607.59739999997,"","Normal","",0,0,16,"","Existing","","","88-203-728","","North","Wingston","","","","","","","","","","","","NS-ES-OCS2491-FD-WF-4.0-TP","","",""]
[null,"9999","Metroville Transportation Authority","MB","Bus (40 ft)",51903,"Vehicles","Revenue Vehicles","Bus","Bus (40 ft)",51,"Each",2020,false,2008,0.1,626085.8798,"","Normal","",0,0,16,"","Existing","","","30-914-390","","South","Archer's Line","","","","","","","","","","","","MJE-ES-OCS1055-FD-JA-0.3-Y","","",""]
[null,"9999","Metroville Transportation Authority","MB","Bus (40 ft)",51903,"Vehicles","Revenue Vehicles","Bus","Bus (40 ft)",31,"Each",2017,false,2008,0.1,646751.88040000002,"","Normal","",0,0,16,"","Existing","","","70-400-412","","South","Archer's Line","","","","","","","","","","","","WVW-ES-OCS0076-FD-JA-4.2-Y","","",""]
[null,"9999","Metroville Transportation Authority","MB","Bus (40 ft)",51903,"Vehicles","Revenue Vehicles","Bus","Bus (40 ft)",20,"Each",2016,false,2008,0.1,631181.9277,"","Normal","",0,0,16,"","Existing","","","16-282-833","","North","Wingston","","","","","","","","","","","","NS-ES-OCS2272-DGF-8.0-TP","","",""]
[null,"9999","Metroville Transportation Authority","MB","Bus (40 ft)",51903,"Vehicles","Revenue Vehicles","Bus","Bus (40 ft)",19,"Each",2006,false,2008,0.1,625319.55680000002,"","Normal","",0,0,16,"","Existing","","","55-686-450","","South","Archer's Line","","","","","","","","","","","","MJW-ES-OCS1139-FD-CA-1.6-Y","","",""]
[null,"9999","Metroville Transportation Authority","MB","Bus (40 ft)",51903,"Vehicles","Revenue Vehicles","Bus","Bus (40 ft)",15,"Each",2015,false,2008,0.1,643558.04390000005,"","Normal","",0,0,16,"","Existing","","","04-273-488","","North","Wingston","","","","","","","","","","","","APE-ES-OCS154-FD-JA-3.6-Y","","",""]
[null,"9999","Metroville Transportation Authority","MB","Bus (40 ft)",51903,"Vehicles","Revenue Vehicles","Bus","Bus (40 ft)",13,"Each",2013,false,2008,0.1,628325.90090000001,"","Normal","",0,0,16,"","Existing","","","57-024-718","","North","Wingston","","","","","","","","","","","","NS-ES-OCS2360-FD-WF-6.4-TP","","",""]
[null,"9999","Metroville Transportation Authority","MB","Bus (40 ft)",51903,"Vehicles","Revenue Vehicles","Bus","Bus (40 ft)",11,"Each",2008,false,2008,0.1,627806.62329999998,"","Normal","",0,0,16,"","Existing","","","77-583-424","","North","Wingston","","","","","","","","","","","","AP-ES-OCS018-LP-TT-0.2-Y","","",""]
[null,"9999","Metroville Transportation Authority","MB","Bus (40 ft)",51903,"Vehicles","Revenue Vehicles","Bus","Bus (40 ft)",3,"Each",2014,false,2008,0.1,643558.04390000005,"","Normal","",0,0,16,"","Existing","","","70-889-225","","North","Wingston","","","","","","","","","","","","MJ-ES-OCS1210-FD-TT-3.0-Y","","",""]
[null,"9999","Metroville Transportation Authority","SY","Buildings",21000,"Facilities","Buildings","-","-",1,"Each",2008,false,1997,0.1,19046.778699999999,"","Normal","",0,0,60,"","Existing","","","61-683-088","","Systemwide","","","","","","","","","","","","","MJW-ES-OCS1451-LP-CA-9.6-Y","","",""]
[null,"9999","Metroville Transportation Authority","SY","Administration",21100,"Facilities","Buildings","Administration","-",2,"Each",2019,false,2008,0.1,3193037.9871999999,"","Normal","",0,0,60,"","Existing","","","38-816-924","","Systemwide","","","","","","","","","","","","","AP-ES-OCS165-FD-TT-3.9-Y","","",""]
[null,"9999","Metroville Transportation Authority","SY","Administration",21100,"Facilities","Buildings","Administration","-",3,"Each",1992,false,1981,0.1,1393785.6348999999,"","Normal","",0,0,60,"","Existing","","","06-460-535","","Systemwide","","","","","","","","","","","","","APW-ES-OCS207-FD-JA-5.0-Y","","",""]
[null,"9999","Metroville Transportation Authority","SY","Administration",21100,"Facilities","Buildings","Administration","-",7,"Each",2013,false,2002,0.1,586092.71569999994,"","Normal","",0,0,60,"","Existing","","","15-675-931","","Systemwide","","","","","","","","","","","","","NSW-ES-OCS2127-FD-JA-11.3-TP","","",""]
[null,"9999","Metroville Transportation Authority","SY","Administration",21100,"Facilities","Buildings","Administration","-",2,"Each",1999,false,1988,0.1,893928.45920000004,"","Normal","",0,0,60,"","Existing","","","25-909-928","","Systemwide","","","","","","","","","","","","","WVE-ES-OCS0152-FD-JA-2.9-Y","","",""]
[null,"9999","Metroville Transportation Authority","SY","Administration",21100,"Facilities","Buildings","Administration","-",5,"Each",2008,false,1997,0.1,293027.36459999997,"","Normal","",0,0,60,"","Existing","","","43-073-392","","Systemwide","","","","","","","","","","","","","NS-ES-OCS2517-FD-WF-3.4-TP","","",""]
[null,"9999","Metroville Transportation Authority","SY","Administration",21100,"Facilities","Buildings","Administration","-",5,"Each",2001,false,1990,0.1,204082.12549999999,"","Normal","",0,0,60,"","Existing","","","98-675-885","","Systemwide","","","","","","","","","","","","","","","",""]
[null,"9999","Metroville Transportation Authority","SY","Administration",21100,"Facilities","Buildings","Administration","-",2,"Each",1998,false,1987,0.1,503757.1164,"","Normal","",0,0,60,"","Existing","","","23-231-795","","Systemwide","","","","","","","","","","","","","","","",""]
[null,"9999","Metroville Transportation Authority","SY","Administration",21100,"Facilities","Buildings","Administration","-",2,"Each",1990,false,1979,0.1,391212.80420000001,"","Normal","",0,0,60,"","Existing","","","35-047-180","","Systemwide","","","","","","","","","","","","","","","",""]
[null,"9999","Metroville Transportation Authority","SY","Administration",21100,"Facilities","Buildings","Administration","-",1,"Each",1983,false,1972,0.1,640166.40689999994,"","Normal","",0,0,60,"","Existing","","","51-441-351","","Systemwide","","","","","","","","","","","","","","","",""]
[null,"9999","Metroville Transportation Authority","SY","Administration",21100,"Facilities","Buildings","Administration","-",4,"Each",2006,false,1995,0.1,138802.43590000001,"","Normal","",0,0,60,"","Existing","","","91-943-895","","Systemwide","","","","","","","","","","","","","","","",""]
[null,"9999","Metroville Transportation Authority","SY","Administration",21100,"Facilities","Buildings","Administration","-",2,"Each",2002,false,1991,0.1,96120.243700000006,"","Normal","",0,0,60,"","Existing","","","56-216-409","","Systemwide","","","","","","","","","","","","","","","",""]
[null,"9999","Metroville Transportation Authority","SY","Administration",21100,"Facilities","Buildings","Administration","-",2,"Each",2007,false,1996,0.1,52454.202799999999,"","Normal","",0,0,60,"","Existing","","","87-784-811","","Systemwide","","","","","","","","","","","","","WV-ES-TPSS-SI-1.5M-2.9-Y","","",""]
[null,"9999","Metroville Transportation Authority","SY","Administration",21100,"Facilities","Buildings","Administration","-",3,"Each",2015,false,2004,0.1,21449.673999999999,"","Normal","",0,0,60,"","Existing","","","52-314-720","","Systemwide","","","","","","","","","","","","","WV-ES-TPSS-SI-1.5M-0.9-Y","","",""]
[null,"9999","Metroville Transportation Authority","SY","Administration",21100,"Facilities","Buildings","Administration","-",1,"Each",1994,false,1983,0.1,47215.873299999999,"","Normal","",0,0,60,"","Existing","","","62-124-440","","Systemwide","","","","","","","","","","","","","NS-ES-TPSS-IM-1.5M-2.2-TP","","",""]
[null,"9999","Metroville Transportation Authority","SY","Administration",21100,"Facilities","Buildings","Administration","-",5,"Each",2009,false,1998,0.1,8998.2268999999997,"","Normal","",0,0,60,"","Existing","","","84-029-892","","Systemwide","","","","","","","","","","","","","IM-ES-TPSS-IM-1.5M-0.1-TP","","",""]
[null,"9999","Metroville Transportation Authority","SY","Administration",21100,"Facilities","Buildings","Administration","-",2,"Each",2011,false,2000,0.1,20325.781999999999,"","Normal","",0,0,60,"","Existing","","","61-609-150","","Systemwide","","","","","","","","","","","","","","","",""]
[null,"9999","Metroville Transportation Authority","SY","Administration",21100,"Facilities","Buildings","Administration","-",1,"Each",2017,false,2006,0.1,33592.671300000002,"","Normal","",0,0,60,"","Existing","","","05-524-481","","Systemwide","","","","","","","","","","","","","","","",""]
[null,"9999","Metroville Transportation Authority","SY","Administration",21100,"Facilities","Buildings","Administration","-",2,"Each",2000,false,1989,0.1,8167.4952000000003,"","Normal","",0,0,60,"","Existing","","","73-870-434","","Systemwide","","","","","","","","","","","","","","","",""]
[null,"9999","Metroville Transportation Authority","SY","Administration",21100,"Facilities","Buildings","Administration","-",1,"Each",2003,false,1992,0.1,5576.9152000000004,"","Normal","",0,0,60,"","Existing","","","97-702-187","","Systemwide","","","","","","","","","","","","","","","",""]
[null,"9999","Metroville Transportation Authority","SY","Administration",21100,"Facilities","Buildings","Administration","-",1,"Each",1997,false,1986,0.1,2782.0758999999998,"","Normal","",0,0,60,"","Existing","","","16-654-341","","Systemwide","","","","","","","","","","","","","","","",""]
[null,"9999","Metroville Transportation Authority","SY","Equipment",23000,"Facilities","Equipment","-","-",1,"Each",2014,false,2003,0.1,313701.48220000003,"","Normal","",0,0,15,"","Existing","","","01-574-778","","West","Brothford","","","","","","","","","","","","","","",""]
[null,"9999","Metroville Transportation Authority","SY","Equipment",23000,"Facilities","Equipment","-","-",1,"Each",2006,false,1995,0.1,120295.44439999999,"","Normal","",0,0,15,"","Existing","","","19-621-929","","South","Archer's Line","","","","","","","","","","","","","","",""]
[null,"9999","Metroville Transportation Authority","SY","Furniture",23200,"Facilities","Equipment","Furniture","-",2,"Each",2011,false,2000,0.1,3648.2172999999998,"","Normal","",0,0,15,"","Existing","","","18-182-157","","South","Archer's Line","","","","","","","","","","","","","","",""]
[null,"9999","Metroville Transportation Authority","SY","Furniture",23200,"Facilities","Equipment","Furniture","-",1,"Each",2007,false,1996,0.1,4530.1356999999998,"","Normal","",0,0,15,"","Existing","","","17-981-678","","South","Archer's Line","","","","","","","","","","","","","","",""]
[null,"9999","Metroville Transportation Authority","SY","Furniture",23200,"Facilities","Equipment","Furniture","-",1,"Each",1995,false,1984,0.1,3056.6671999999999,"","Normal","",0,0,15,"","Existing","","","12-335-030","","North","Wingston","","","","","","","","","","","","","","",""]
[null,"9999","Metroville Transportation Authority","SY","Maintenance",23300,"Facilities","Equipment","Maintenance","-",4,"Each",2014,false,2003,0.1,156850.74110000001,"","Normal","",0,0,15,"","Existing","","","05-078-399","","North","Wingston","","","","","","","","","","","","","","",""]
[null,"9999","Metroville Transportation Authority","SY","Maintenance",23300,"Facilities","Equipment","Maintenance","-",2,"Each",2008,false,1997,0.1,163606.94529999999,"","Normal","",0,0,15,"","Existing","","","15-427-159","","South","Archer's Line","","","","","","","","","","","","","","",""]
[null,"9999","Metroville Transportation Authority","SY","Maintenance",23300,"Facilities","Equipment","Maintenance","-",9,"Each",2010,false,1999,0.1,22670.867600000001,"","Normal","",0,0,15,"","Existing","","","86-872-518","","North","Wingston","","","","","","","","","","","","","","",""]
[null,"9999","Metroville Transportation Authority","SY","Maintenance",23300,"Facilities","Equipment","Maintenance","-",5,"Each",2011,false,2000,0.1,35439.824999999997,"","Normal","",0,0,15,"","Existing","","","60-422-267","","North","Wingston","","","","","","","","","","","","","","",""]
[null,"9999","Metroville Transportation Authority","SY","Maintenance",23300,"Facilities","Equipment","Maintenance","-",3,"Each",2015,false,2004,0.1,46799.288699999997,"","Normal","",0,0,15,"","Existing","","","14-672-202","","North","Wingston","","","","","","","","","","","","","","",""]
[null,"9999","Metroville Transportation Authority","SY","Maintenance",23300,"Facilities","Equipment","Maintenance","-",6,"Each",2017,false,2006,0.1,20155.602800000001,"","Normal","",0,0,15,"","Existing","","","17-394-660","","South","Archer's Line","","","","","","","","","","","","","","",""]
[null,"9999","Metroville Transportation Authority","SY","Maintenance",23300,"Facilities","Equipment","Maintenance","-",1,"Each",2016,false,2005,0.1,108263.2409,"","Normal","",0,0,15,"","Existing","","","32-325-270","","West","Brothford","","","","","","","","","","","","","","",""]
[null,"9999","Metroville Transportation Authority","SY","Maintenance",23300,"Facilities","Equipment","Maintenance","-",2,"Each",2003,false,1992,0.1,14156.784799999999,"","Normal","",0,0,15,"","Existing","","","09-543-147","","South","Archer's Line","","","","","","","","","","","","","","",""]
[null,"9999","Metroville Transportation Authority","SY","Maintenance",23300,"Facilities","Equipment","Maintenance","-",1,"Each",2013,false,2002,0.1,23839.717199999999,"","Normal","",0,0,15,"","Existing","","","08-489-429","","North","Wingston","","","","","","","","","","","","","","",""]
[null,"9999","Metroville Transportation Authority","SY","Maintenance",23300,"Facilities","Equipment","Maintenance","-",1,"Each",2018,false,2007,0.1,22974.1963,"","Normal","",0,0,15,"","Existing","","","86-837-020","","West","Brothford","","","","","","","","","","","","","","",""]
[null,"9999","Metroville Transportation Authority","SY","MIS/IT/Network Systems",23100,"Facilities","Equipment","MIS/IT/Network Systems","-",7,"Each",2020,false,2009,0.1,405961.26270000002,"","Normal","",0,0,5,"","Existing","","","45-173-821","","Systemwide","","","","","","","","","","","","","","","",""]
[null,"9999","Metroville Transportation Authority","SY","MIS/IT/Network Systems",23100,"Facilities","Equipment","MIS/IT/Network Systems","-",2,"Each",2019,false,2008,0.1,891080.36849999998,"","Normal","",0,0,5,"","Existing","","","87-204-400","","Systemwide","","","","","","","","","","","","","","","",""]
[null,"9999","Metroville Transportation Authority","SY","MIS/IT/Network Systems",23100,"Facilities","Equipment","MIS/IT/Network Systems","-",1,"Each",2016,false,2005,0.1,700526.85309999995,"","Normal","",0,0,5,"","Existing","","","36-207-860","","Systemwide","","","","","","","","","","","","","","","",""]
[null,"9999","Metroville Transportation Authority","SY","MIS/IT/Network Systems",23100,"Facilities","Equipment","MIS/IT/Network Systems","-",2,"Each",2018,false,2007,0.1,290767.17170000001,"","Normal","",0,0,5,"","Existing","","","30-136-111","","Systemwide","","","","","","","","","","","","","","","",""]
[null,"9999","Metroville Transportation Authority","SY","MIS/IT/Network Systems",23100,"Facilities","Equipment","MIS/IT/Network Systems","-",2,"Each",2017,false,2006,0.1,245226.50020000001,"","Normal","",0,0,5,"","Existing","","","35-080-335","","Systemwide","","","","","","","","","","","","","","","",""]
[null,"9999","Metroville Transportation Authority","SY","MIS/IT/Network Systems",23100,"Facilities","Equipment","MIS/IT/Network Systems","-",1,"Each",1992,false,1981,0.1,306632.83970000001,"","Normal","",0,0,5,"","Existing","","","85-707-826","","Systemwide","","","","","","","","","","","","","","","",""]
[null,"9999","Metroville Transportation Authority","SY","MIS/IT/Network Systems",23100,"Facilities","Equipment","MIS/IT/Network Systems","-",1,"Each",2015,false,2004,0.1,157947.59940000001,"","Normal","",0,0,5,"","Existing","","","79-567-001","","Systemwide","","","","","","","","","","","","","","","",""]
[null,"9999","Metroville Transportation Authority","SY","MIS/IT/Network Systems",23100,"Facilities","Equipment","MIS/IT/Network Systems","-",1,"Each",2012,false,2001,0.1,75011.814499999993,"","Normal","",0,0,5,"","Existing","","","35-923-474","","Systemwide","","","","","","","","","","","","","","","",""]
[null,"9999","Metroville Transportation Authority","SY","Phone System",33400,"Systems","Communications","Phone System","-",2,"Each",2018,false,2007,0.1,610252.08880000003,"","Normal","",0,0,15,"","Existing","","","33-688-145","","Systemwide","","","","","","","","","","","","","","","",""]
[null,"9999","Metroville Transportation Authority","SY","Phone System",33400,"Systems","Communications","Phone System","-",1,"Each",2013,false,2002,0.1,288294.2548,"","Normal","",0,0,15,"","Existing","","","63-230-439","","Systemwide","","","","","","","","","","","","","","","",""]
[null,"9999","Metroville Transportation Authority","SY","Phone System",33400,"Systems","Communications","Phone System","-",2,"Each",2019,false,2008,0.1,12994.922,"","Normal","",0,0,15,"","Existing","","","58-689-485","","Systemwide","","","","","","","","","","","","","","","",""]
[null,"9999","Metroville Transportation Authority","SY","Phone System",33400,"Systems","Communications","Phone System","-",3,"Each",2020,false,2009,0.1,6656.3018000000002,"","Normal","",0,0,15,"","Existing","","","68-942-460","","Systemwide","","","","","","","","","","","","","","","",""]
[null,"9999","Metroville Transportation Authority","SY","Radio",33500,"Systems","Communications","Radio","-",2,"Each",2018,false,2007,0.1,25128.0272,"","Normal","",0,0,10,"","Existing","","","26-767-669","","Systemwide","","","","","","","","","","","","","","","",""]
[null,"9999","Metroville Transportation Authority","SY","Radio",33500,"Systems","Communications","Radio","-",3,"Each",2020,false,2009,0.1,11776.5339,"","Normal","",0,0,10,"","Existing","","","55-070-792","","Systemwide","","","","","","","","","","","","","","","",""]
[null,"9999","Metroville Transportation Authority","SY","Radio",33500,"Systems","Communications","Radio","-",3,"Each",2019,false,2008,0.1,5940.5357999999997,"","Normal","",0,0,10,"","Existing","","","43-981-556","","Systemwide","","","","","","","","","","","","","","","",""]
[null,"9999","Metroville Transportation Authority","SY","Radio",33500,"Systems","Communications","Radio","-",1,"Each",2013,false,2002,0.1,12197.0646,"","Normal","",0,0,10,"","Existing","","","28-354-124","","Systemwide","","","","","","","","","","","","","","","",""]
[null,"9999","Metroville Transportation Authority","SY","Radio",33500,"Systems","Communications","Radio","-",1,"Each",2015,false,2004,0.1,1520.9768999999999,"","Normal","",0,0,10,"","Existing","","","07-497-905","","Systemwide","","","","","","","","","","","","","WVE-ES-OCS0195-FD-JA-2.2-Y","","",""]
[null,"9999","Metroville Transportation Authority","SY","Central Revenue Collection",34000,"Systems","Revenue Collection","Central Revenue Collection","-",2,"Each",2001,false,1990,0.1,179592.27050000001,"","Normal","",0,0,15,"","Existing","","","44-493-649","","Systemwide","","","","","","","","","","","","","UNW-GW-GD-TD-3.9-K","","",""]
[null,"9999","Metroville Transportation Authority","SY","Central Revenue Collection",34000,"Systems","Revenue Collection","Central Revenue Collection","-",2,"Each",1998,false,1987,0.1,97019.8891,"","Normal","",0,0,15,"","Existing","","","28-051-845","","Systemwide","","","","","","","","","","","","","CRN1-GW-GD-CB-30.9-C","","",""]
[null,"9999","Metroville Transportation Authority","SY","Central Revenue Collection",34000,"Systems","Revenue Collection","Central Revenue Collection","-",1,"Each",1999,false,1988,0.1,182672.33730000001,"","Normal","",0,0,15,"","Existing","","","65-256-670","","Systemwide","","","","","","","","","","","","","CRN1-GW-GD-CU-9.8-C","","",""]
[null,"9999","Metroville Transportation Authority","SY","Central Revenue Collection",34000,"Systems","Revenue Collection","Central Revenue Collection","-",1,"Each",1994,false,1983,0.1,21247.143,"","Normal","",0,0,15,"","Existing","","","30-133-234","","Systemwide","","","","","","","","","","","","","CRN1-GW-GD-CB-27.6-C","","",""]
[null,"9999","Metroville Transportation Authority","VP","Light-Duty Van",52524,"Vehicles","Revenue Vehicles","Vans, Cutaways and Autos","Light-Duty Van",141,"Each",2017,false,2004,0.1,53935.3505,"","Normal","",0,0,5,"","Existing","","","01-879-729","","North","Wingston","","","","","","","","","","","","CRN1-GW-GD-CU-17.1-C","","",""]
[null,"9999","Metroville Transportation Authority","VP","Light-Duty Van",52524,"Vehicles","Revenue Vehicles","Vans, Cutaways and Autos","Light-Duty Van",107,"Each",2020,false,2004,0.1,54672.066299999999,"","Normal","",0,0,5,"","Existing","","","90-493-666","","South","Archer's Line","","","","","","","","","","","","WVE-ES-OCS0195-FD-JA-2.2-Y","","",""]
[null,"9999","Metroville Transportation Authority","VP","Light-Duty Van",52524,"Vehicles","Revenue Vehicles","Vans, Cutaways and Autos","Light-Duty Van",106,"Each",2018,false,2004,0.1,54635.962099999997,"","Normal","",0,0,5,"","Existing","","","48-196-672","","South","Archer's Line","","","","","","","","","","","","CRN1-GW-GD-CU-24.5-C","","",""]
[null,"9999","Metroville Transportation Authority","VP","Light-Duty Van",52524,"Vehicles","Revenue Vehicles","Vans, Cutaways and Autos","Light-Duty Van",49,"Each",2013,false,2004,0.1,54917.532700000003,"","Normal","",0,0,5,"","Existing","","","08-330-608","","North","Wingston","","","","","","","","","","","","WVE-ES-OCS0195-FD-JA-2.2-Y","","",""]
[null,"9999","Metroville Transportation Authority","VP","Light-Duty Van",52524,"Vehicles","Revenue Vehicles","Vans, Cutaways and Autos","Light-Duty Van",47,"Each",2015,false,2004,0.1,54765.125099999997,"","Normal","",0,0,5,"","Existing","","","59-597-614","","North","Wingston","","","","","","","","","","","","CRN1-GW-GD-CU-4.2-C","","",""]
[null,"9999","Metroville Transportation Authority","VP","Light-Duty Van",52524,"Vehicles","Revenue Vehicles","Vans, Cutaways and Autos","Light-Duty Van",38,"Each",2021,false,2004,0.1,53880.76,"","Normal","",0,0,5,"","Existing","","","25-500-137","","South","Archer's Line","","","","","","","","","","","","CRN1-GW-GD-CU-25.6-C","","",""]
[null,"9999","Metroville Transportation Authority","VP","Light-Duty Van",52524,"Vehicles","Revenue Vehicles","Vans, Cutaways and Autos","Light-Duty Van",36,"Each",2014,false,2004,0.1,55249.160300000003,"","Normal","",0,0,5,"","Existing","","","11-283-806","","North","Wingston","","","","","","","","","","","","UNW-GW-GD-IB-2.5-K","","",""]
[null,"9999","Metroville Transportation Authority","VP","Light-Duty Van",52524,"Vehicles","Revenue Vehicles","Vans, Cutaways and Autos","Light-Duty Van",29,"Each",2010,false,2004,0.1,54464.6895,"","Normal","",0,0,5,"","Existing","","","77-561-180","","North","Wingston","","","","","","","","","","","","WVE-ES-OCS0195-FD-JA-2.2-Y","","",""]
[null,"9999","Metroville Transportation Authority","VP","Light-Duty Van",52524,"Vehicles","Revenue Vehicles","Vans, Cutaways and Autos","Light-Duty Van",13,"Each",2011,false,2004,0.1,53999.179300000003,"","Normal","",0,0,5,"","Existing","","","81-738-643","","North","Wingston","","","","","","","","","","","","UNE-GW-GD-TD-2.1-K","","",""]
[null,"9999","Metroville Transportation Authority","VP","Light-Duty Van",52524,"Vehicles","Revenue Vehicles","Vans, Cutaways and Autos","Light-Duty Van",5,"Each",2009,false,2004,0.1,54989.164299999997,"","Normal","",0,0,5,"","Existing","","","88-675-990","","South","Archer's Line","","","","","","","","","","","","CRN1-GW-GD-UD-25.7-C","","",""]
[null,"9999","Metroville Transportation Authority","VP","Light-Duty Van",52524,"Vehicles","Revenue Vehicles","Vans, Cutaways and Autos","Light-Duty Van",5,"Each",2016,false,2004,0.1,54989.164299999997,"","Normal","",0,0,5,"","Existing","","","79-195-020","","North","Wingston","","","","","","","","","","","","CRN1-GW-GD-CU-22.4-C","","",""]
[null,"9999","Metroville Transportation Authority","VP","Light-Duty Van",52524,"Vehicles","Revenue Vehicles","Vans, Cutaways and Autos","Light-Duty Van",1,"Each",2008,false,2004,0.1,54989.164299999997,"","Normal","",0,0,5,"","Existing","","","36-352-688","","South","Archer's Line","","","","","","","","","","","","WVE-GW-GD-UD-3.4-D","","",""]